Workbook

Sheet READ ME
B2: Table of Contents (click to jump to section)
C3: IPM Results Viewer Overview
D4: Overview
D5: Beta-Test Disclaimer
C6: Data Views / Worksheets
C7: Navigation and Controls
D8: Workbook Navigation / Exporting Data:
D9: Dropdown Controls
C10: Historical Data
C11: RPE File Deep Dive
C16: IPM Results Viewer Overview
D17: Overview: The IPM Results Viewer is designed to allow a user to easily explore IPM case results via data visualizations. The viewer is pre-populated with data from the RPE files of IPM cases. "RPE" is not a specific acronym, but the data in the file includes details of IPM model plants, including the capacity, generation, heat input, emissions, pollution controls, retrofits, retirements, and new builds. The viewer also has some basic data on fuel prices and system costs, , but does not currently contain cost data related to unit O&M costs. The data can be viewed on a state map, a state whisker chart, or line, column, and pie charts detailing outputs for specific states or the CONUS. Drop down boxes (highlighted in green or blue) allow users to filter data based on multiple characteristics, including plant and fuel types, presence or lack of pollution controls, retrofits, and if the unit is a fossil unit > 25 MW (a frequent proxy for units covered by various power sector regulations). Additionally, the actual data for an individual case can be viewed, or data can be displayed as a comparison (absolute or percent change) to other IPM cases or run years. Users also have advanced options to display emission rates or create fractions from the data (e.g., the fraction of generation that comes from coal steam units). To enable the Results Viewer to operate faster, the file will not attempt to update automatically while the user is changing field settings. Instead, the user must click the “Update” button after changing drop-down selections to update calculates and graphs. Finally, to add context to IPM projections, historical data is included; however, the user should take caution that some of the historical data may not be on a fully apples-to-apples basis with IPM projections based on accounting differences in EGU representation between reported data sets and IPM modeling projections. Similarly, models like IPM often include a final model run year that is not included in the analysis of results. This technique reduces the likelihood that modeling results in the last represented year will be skewed due to the modeling artifact of having to specify an end point in the planning horizon, whereas, in reality, economic decision-making will continue to take information into account from years beyond the model’s time horizon. This should be considered when assessing model projections from the last output year
D38: Beta-Test Disclaimer: This IPM Results Viewer is in a beta-testing state. It may have bugs or features that may need clarification or changes. If you find any errors or have any comments or questions, please send them to Jeremy Mark (mark.jeremy@epa.gov). It should be noted that the historic data currently included in this viewer is rough and incomplete. See the note on historic data below for details about how it was derived and its limitations.
C46: Data Views / Worksheets
D47: Run Log: This worksheet contains information describing the details of each IPM case loaded into this version of the IPM Results Viewer.
D50: Map: This worksheet contains a map that will display state-level outputs and color-code the states based on the data. Users can use the drop-down controls on the left (see Drop-Down Controls section for more details) to filter and change what data is displayed. Note that due to space limitations, data from two different runs or years can be displayed as a comparison (absolute change or percent change), but the absolute results from two different runs or years cannot be displayed on a single map. Absolute results, fractions, emission rates, and capacity factors, can be compared between two runs or years using the whisker chart.
D53: Whisker: This worksheet contains a whisker chart that will display one or two state-level outputs. Users can use the drop-down controls on the left (see Drop-Down Controls section for more details) to filter and change what data is displayed.
D56: Emissions GWh Btu MW: This worksheet contains a variety of line, bar, and pie charts to display emissions, generation, heat input, and capacity outputs either nationally or for a user-chosen state. Users can use the drop-down controls on the left (see Drop-Down Controls section for more details) to filter and change what data is displayed.
D60: All Run Comparison: This worksheet contains a line chart that will display a single variable either nationally or for a user-chosen state across all cases in this version of the IPM Results Viewer. Users can use the drop-down controls on the left (see Drop-Down Controls section for more details) to filter and change what data is displayed.
D64: RPE Files: This worksheet contains the data from the RPE files for the IPM cases included in the viewer. It also contains additional data on model plant characteristics. This is described further in the RPE Files Deep Dive section of this document.
D67: Cost & Prices: This worksheet contains the cost and price data from the Summary Worksheet of the IPM Outputs, including: total (system) cost; National average wholesale electricity price; natural gas price (Henry Hub and delivered); and national average and regional minemouth coal prices
C70: Navigation and Controls
D71: Workbook Navigation / Exporting Data: The user can navigate to different worksheets in the IPM Results Viewer by either clicking the green worksheet tabs or clicking the green navigation buttons on each worksheet. Note that the "Emissions GWh Btu MW" worksheet has two navigation buttons to flip between charts for emissions and generation/heat input/capacity. Some charts do not automatically update after changing filters (this helps the workbook run faster). To update the charts, click the update button. To reset the filters, click the reset button. Each worksheet has a button that allows users to export the data for a graph they have created, along with a screenshot of the graph. After clicking the button, the user will be asked to create a unique name for the worksheet that the data will be reported to and if they want the screenshot to include a picture of the control settings they had selected. Users can then use this exported, static data and photos for graphs or future reference/discussion.
D83: Dropdown Controls: On each worksheet, there are drop down controls (cells highlighted light green or light blue) that allow the user to choose what data is displayed and filter that data based on several different criteria. Below is a description of these various controls. Filters that are greyed out are either not active due to other selections the user has made or are inactive in this Beta-Test version.
E87: Primary vs Comparison Data: The set of data filters on all the worksheets, except the "Emissions GWh Btu MW" worksheet, are labeled either “Primary” or “Comparison.” Understanding which measures, cases, years, and dimensions to select for the primary and comparison case data is key to display the data you want to view. The function of the Primary and Comparison selections differs based on the display value type and is summarized in the chart below. You can also hover the cursor over the display value type on the worksheet to see a pop-up comment that contains this information.
E92: Table for choosing the right measure, runs, years, and dimensions for each display value type
F93: Display Value Type | H93: Primary Run/Dimensions | L93: Comparison Run/Dimensions
F94: Actual | H94: Data you want to view | L94: N/A
F95: Absolute Change | H95: How the [Primary Run/Year/Dimensions] | L95: Changes from the [Comparison Run/Year/Dimensions]
F96: Percent Change | H96: How the [Primary Run/Year/Dimensions] | L96: Changes from the [Comparison Run/Year/Dimensions]
F97: Fraction | H97: Numerator | L97: Denominator
F98: Emissions Rate* | H98: Emissions | L98: Generation or Heat Input
F99: Capacity Factor* | H99: Generation | L99: Capacity
F100: *Run, Year, Dimensions, and season of the metric should be (Annual or Summer) should match between the Primary and Comparison selections
E104: Run: This dropdown allows the user to choose the case from which the data will be displayed. A Description of the cases appears on the “Run Log” worksheet. Users can also choose to view Historical data.
E107: Year: This dropdown allows the user to choose the year from which the data will be displayed. The dropdown options will change between the list of IPM cases years and historical years, depending on what case is selected.
E110: Region: On some worksheets, the user can select the region of interest for the data. Currently, the user can choose to see data either aggregated for the contiguous United States (CONUS) or for a specific state. If the user selects “state”, a second dropdown becomes available allowing the user to pick the state of interest.
E114: Fuel Type: This dropdown allows the user to choose the fuel type from which the data will be displayed. Note that at the end of the list is an option “*Unit Did Not Operate” which can be used to filter for non-retired units that did not operate.
E118: Fossil >25 MW: This dropdown allows the user to choose to view either data for all units or just for units that are BOTH fossil-fired AND > 25 MW. Fossil-fired units > 25 MW are typically covered by EPA emission rules (like the CSAPR Update) and typically (but there are exceptions) report emissions to CAMD. This is a helpful filter when wanting to compare to historical data, as the current historical data for fossil-fired units is taken from CAMD data. See the section on historical data below for more information on how the historical data set was created and important data caveats.
E125: Existing/New/Retired: This dropdown allows the user to choose whether to view data for Existing and New (model built) units (the combination of which reflects the entire active fleet in the model), data for either Existing Units or New Units, or Retired Units (the latter being helpful to look at retired capacity).
E129: Plant Type: This dropdown allows the user to filter data based on the plant types in IPM. This is like the Plant Categories filter, which groups some plant types together. Users only need to use one filter or the other. These filters will likely be merged in future versions of this viewer.
E132: Plant Category: This dropdown allows the user to filter data based on the plant categories. While some of these categories have a 1-to-1 correspondence with plant types, others are a combination of plant types. This includes plant types Coal Steam and IGCC being combined in to a “Coal” category and all renewables (solar, wind, geothermal, biomass, and hydro) being grouped together. This filter and the Plant Type filter will likely be merged, with additional plant categories added, in future versions of this viewer.
E137: Plant Controls: This dropdown allows the user to filter data based on the types of post-combustion controls a unit has or does not have, as well as heat rate improvement (HRI) retrofits. “Any NOx control” includes either SCR or SNCR and “Any SO2 Control” includes either FGD or DSI; “No NOX Control” and “No SO2 Control” indicates the lack of either SCR/SNCR or FGD/DSI.
E141: Existing or New Controls: This dropdown allows the user to filter data based on if they have Existing or New post-combustion controls (notes that all HRI retrofits are considered new controls for the use of this filter). This filter only works when a specific post-combustion control is chosen for the “Plant Controls” filter (this excludes “Any NOx Control” and “Any SO2 Control).
E145: Comparison Type: Some graphs on the "Emissions GWh Btu MW" worksheet have a dropdown option that allows the user to select the “comparison type.” This functions like the Display Value Type, but the only options are “Actual” or “Absolute Change.” If “Absolute Change” is selected, the user will then be able to use a further series of dropdowns to describe what case (or historic data) should the comparison be made to and if the comparison run year should be fixed or variable.
E150: Fixed or Parallel (Comparison): Some graphs have a dropdown option that allow the user to choose a fixed or parallel run year for a comparison. A parallel run year means that like run years will be compared among cases (i.e. 2021 vs 2021, 2030 vs 2030, etc.). Changes from historic data will not be shown if a parallel comparison is selected. Alternatively, selecting a fixed year for comparison means all data will be displayed as a change from the specific run year (for the specific case) or historic year selected.
E155: Aggregation: For the column and pie charts displaying Generation, Heat Input, and Capacity on the "Emissions GWh Btu MW"worksheet, the user can select how the data should be aggregated. “Detailed” is the most granular view, showing all unit types in IPM. “Grouped” aggregates the detailed unit types into broader categories. Finally, “Highlight Single” allows the user to show a data single plant type or plant category and aggregates all other data into a single group.
E160: Show/Hide: On the “All Run Comparison” worksheet, users can use the drop-down boxes to either show or hide a series on the graph.
E162: Color: On the “All Run Comparison” worksheet, users can change the fill color of the cells to change the line colors in the graph.
E164: Sort By: On the “Whisker” worksheet, users can change the order the states are displayed on the whisker chart so they are sorted either alphabetically or in ascending or descending order.
C170: Historical Data
D171: Historical Data: The historical data in this beta version of the IPM Results Viewer is incomplete, but 1) may be helpful in many cases; 2) demonstrates the Results Viewer capability for displaying historic data; and 3) will be updated and refined in future versions. The data historical data in the Results Viewer includes NOx, SO2, and CO2 emissions, net summer capacity, heat input, and generation (gross generation for fossil units and net generation for non-fossil units). Data for fossil units is derived from CAMD Data. As such, it only includes units that report to this system, meaning that it tends to exclude fossil units less than 25 MW and some larger fossil units in Western states (particularly in California) that do not report CAMD data (as they are not covered by relevant EPA regulations requiring such reporting). Additionally, CAMD data is reported as gross generation, while IPM projects net generation levels; as a result, all comparisons including projected and historical generation will not be on an apples-to-apples basis due to this difference in gross (historical) versus net (projected) generation data. The historical data provided in the viewer for non-fossil units that do not report to CAMD (i.e. nuclear, hydro, wind, solar, geothermal, and other non-fossil technologies) were derived from EIA form 923. Finally, as it is a frequent point of reference, CO2 emissions for 2005 are included at the state level, but no other emission, generation, or heat input data is available for that year.
D189: Data Caveats:
E190: 1) No data is included for fossil-fired units that do not report to CAMD (i.e. fossil units < 25 MW and some fossil units > 25 MW units, primarily in California and other western states, that do not report to CAMD. Therefore, in comparing emissions or results for fossil units, it is recommended the user filter the results to only show fossil > 25 MW. Otherwise, the user should remember this data is not an apples-to-apples comparison when comparing IPM results and historical data 2) Historical generation data is a mix of gross generation (for fossil units) and net generation (for non-fossil units). IPM results are net generation. 3) As several large fossil units in California do not report CAMD data, the historical data (emissions, generation, and heat input) shown for California is significantly lower than it was. Therefore, users should be cognizant of this when interpreting historical data for California. When considering national-level data, the impact of this issue is much less noticeable. 4) For 2017 Historical Data, only emissions reported to CAMD are included. Generation and heat input are not included because non-fossil data for 2017 is not yet available.
C207: RPE File Deep Dive:
D208: RPE Files Deep Dive: The data that underlies this IPM Results Viewer comes from the RPE file, one of the output files of IPM. It contains data about the model plant characteristics and how they were projected to operate (heat input, generation, emissions, and retrofit/retirement/build decisions) in all run years of the model. The model plants, as described in the IPM documentation, are developed by aggregating similar units (by state, IPM region, unit type, fuel type, and controls). These model plants can be identified by their “UnitID” (a field in the RPE file). This UnitID refers specifically to model plants and does not relate to ORIS or CAMD IDs. To reduce the size of this IPM Results Viewer, this data is aggregated such that units in the same state and IPM region, with the same unit type (including controls) and fuel type are merged. The UnitIDs of the model plants that are aggregated in each row entry on the “RPE Files” worksheet are preserved in the “UnitID” column (column E). This field will have one or more UnitIDs, which can be used to trace model plants back to the RPE files (for instance, if one wanted to see how specific units operated instead of the aggregated unit). [note: historical data does not have entries in the UnitID column, as this parameter only applies to IPM model plants for which the model projects (future) run-year results] Users who want to understand what model plants are contributing to specific results can go to the “RPE Files” worksheet and filter the data to identify specific model plants (or aggregations of model plants) that underlie the results. The “RPE Files” worksheet includes data from the RPE files, along with additional data to describe units (for example, “plant category”) and formulas that determine if the data should or should not be included based on filters the user has selected on other worksheets.
D225: For IPM Run data (i.e. not the historical data):
E226: - Columns B-Y and AA come from the RPE files. - Columns A (case name), Z (unique capacity), AB-AF (if a unit is fossil, > 25 MW, Existing or New, plant type, and plant category) are data fields added to provide further description of each row, often by breaking out data contained in the original RPE file “Plant Type” field. The “Unique Capacity” field is added because the RPE file will list capacity for the same model plant multiple time if the model plant consumes two or more types of fuel. To address this, the capacity is only included the first time the model plant appears in the RPE file for each run year. - Columns AG-AQ indicate if various post-combustion controls are present on the model plant, based on the original RPE file “Plant Type” field. - Columns AR-AZ calculate if the control configuration for the model plant matches that selected by the user on the various worksheets (historical data does not include information about controls. Therefore, it will be excluded if the control filters are activated by the user).
D235: For All Data: Columns BB-BH calculate if the model plant or historical data matches all the criteria selected by the user on the various worksheets. These values are then referenced by formulas on the various output worksheets to check if the data for the data row should be included.

Sheet Run Log
A2: (runs highlighted in Green are included in this workbook)
C3: Data Viewer Name | D3: Run Description
C5: v6 Summer 2021 Ref Case | D5: For details, see: https://www.epa.gov/airmarkets/power-sector-modeling

Sheet Map
B1: PRIMARY DIMENSIONS | D1: MEASURES | F1: DISPLAY VALUE TYPE | H1: COMPARISON DIMENSIONS | J1: COMPARISON MEASURES | L1: Categories and Sub-Categories | AD1: Display Value Formats | AQ1: =IF(AO1=0,"",IF($AL$18="Actual",0,SUMIFS(CHOOSE(VLOOKUP($AL$33,'Lookup tables'!$AK$5:$AM$15,3,0), RPE_FuelConsumptionSummerTBtu, RPE_FuelConsumptionTotalTBtu, RPE_GenerationSummerGWh, RPE_GenerationTotalGWh, RPE_CO2EmissionsSummerThousandTons, RPE_CO2EmissionsTotalThousandTons, RPE_NOXEmissionsSummerThousandTons, RPE_NOXEmissionsTotalThousandTons, RPE_SO2EmissionsSummerThousandTons, RPE_SO2EmissionsTotalThousandTons, RPE_DispatchableCapacityMW), MeetComparisonCriteria,"=1",IF($AL$6="IPM Region",RPE_IPMRegionGroupAcronym,RPE_State),"="&IF($AL$6="National","*",$AO1)))) ->  | AR1: 969659.0918 | AY1: =IF($AK$51<>"",$AK$51,IF($AL$18="Actual",VLOOKUP(AL16,$V$40:$W$50,2,0), IF($AL$18="Absolute Change",IF(VLOOKUP(AL16,$V$40:$W$50,2,0)=VLOOKUP(AL33,$V$40:$W$50,2,0),"Change in "&VLOOKUP(AL16,$V$40:$W$50,2,0),"Unit of Measure Mismatch"), IF($AL$18="Percent Change",IF(AL16=AL33,"Percent Change of "&VLOOKUP(AL16,$V$40:$W$50,2,0),"Unit of Measure Mismatch"), IF($AL$18="Emissions Rate",IF(AND(NOT(ISERROR(SEARCH("tons",$AL$16))),OR(NOT(ISERROR(SEARCH("GWh",$AL$33))),NOT(ISERROR(SEARCH("TBtu",$AL$33))))),IF(ISERROR(SEARCH("Summer",$AL$16))<>ISERROR(SEARCH("Summer",$AL$33)),"Unit of Measure Mismatch","lbs "&LEFT($AL$16,3)&"/"&IF(RIGHT($AL$33,4)="TBtu","mmBtu","kWh")),"Unit of Measure Mismatch"), IF($AL$18="Fraction",IF(AL16=AL33,"Dimensionless Fraction or Ratio",VLOOKUP(AL16,$V$40:$W$50,2,0)&" / "&VLOOKUP(AL33,$V$40:$W$50,2,0)), IF(AND($AL$18="Capacity Factor",NOT(ISERROR(SEARCH("Generation",$AL$16))),NOT(ISERROR(SEARCH("Capacity",$AL$33)))),"Capacity Factor","ERROR")))))))&AK55 -> Thousand (short) tons NOx v6 Summer 2021 Ref Case (2023)
B2: Fuel Type | D2: Fuel Consumption Summer TBtu | F2: Actual | H2: Fuel Type | J2: Fuel Consumption Summer TBtu | L2: Historic Years | M2: Year | N2: Region of Interest | O2: IPM Region | P2: State | Q2: State2 | R2: IPM Run | S2: Fuel Type | T2: Fossil >25 MW | U2: Existing, New, Retired | V2: Plant Type | W2: Plant Category | X2: Plant Controls | AD2: Fuel Consumption Winter TBtu | AE2: Decimal | AL2: v6 Summer 2021 Ref Case | AS2: =IF($AL$18="Percent Change","Percent",IF(OR($AL$18="Fraction",$AL$18="Emissions Rate"),"Decimal","Round")) -> Round
B3: Fossil >25 MW | D3: Fuel Consumption Total TBtu | F3: Absolute Change | H3: Fossil >25 MW | J3: Fuel Consumption Total TBtu | L3: 2013 | M3: 2023 | N3: National | O3: ERC_PHDL | P3: AL | Q3: National | R3: Historic | S3: All Units | T3: All Units | U3: Existing and New | V3: All Units | W3: All Units | X3: All Units | AD3: Fuel Consumption Summer TBtu | AE3: Decimal | AP3: Primary Value | AQ3: Comparison Value | AR3: Display Value | AS3: Display Value Format | AT3: Display Color
B4: Existing or New Unit | D4: Generation Summer GWh | F4: Percent Change | H4: Existing or New Unit | J4: Generation Summer GWh | L4: 2014 | M4: 2025 | N4: State | O4: ERC_REST | P4: AR | Q4: AL | R4: v6 Summer 2021 Ref Case | S4: Biomass | T4: Only Fossil > 25 MW | U4: Existing | V4: Biomass | W4: Coal | X4: Both NOx and SO2 Post Combustion Controls | AD4: Fuel Consumption Total TBtu | AE4: Decimal | AK4: PRIMARY YEAR | AL4: 2023 | AO4: National | AP4: =SUM(AP5:AP68) -> 262.1504697 | AQ4: =SUM(AQ5:AQ68) -> 0 | AR4: =IFERROR(IF($AL$18="Actual",AP4,IF($AL$18="Absolute Change",AP4-AQ4,IF($AL$18="Percent Change",(AP4-AQ4)/AQ4,IF($AL$18="Emissions Rate",(AP4*2/AQ4),IF($AL$18="Capacity Factor",AP4*1000/(AQ4*IF(NOT(ISERROR(SEARCH("Summer",$AL$16))),3672,8760)),AP4/AQ4))))),"") -> 262.1504697 | AS4: =IF(AR4="","",IF($AS$2="Percent",TEXT(AR4,"##0%"),IF($AS$2="Decimal",TEXT(AR4,"0.00"),IF(ABS(AR4)>=100,TEXT(AR4,"###,###"),IF(ABS(AR4)>=10,TEXT(AR4,"##0.0"),IF(ABS(AR4)>=1,TEXT(AR4,"#0.00"),TEXT(AR4,"#0.000"))))))) -> 262
B5: Plant Type | D5: Generation Total GWh | F5: Fraction | H5: Plant Type | J5: Generation Total GWh | L5: 2015 | M5: 2028 | N5: IPM Region | O5: ERC_WEST | P5: AZ | Q5: AR | S5: Coal | U5: New | V5: Coal Steam | W5: Combined Cycle | X5: Any NOx Post Combustion | AD5: Generation Winter GWh | AE5: Decimal | AO5: =IF($AL$6="state",P3,O3) -> AL | AP5: =IF(AO5=0,"",SUMIFS(CHOOSE(VLOOKUP($AL$16,'Lookup tables'!$AK$5:$AM$15,3,0), RPE_FuelConsumptionSummerTBtu, RPE_FuelConsumptionTotalTBtu, RPE_GenerationSummerGWh, RPE_GenerationTotalGWh, RPE_CO2EmissionsSummerThousandTons, RPE_CO2EmissionsTotalThousandTons, RPE_NOXEmissionsSummerThousandTons, RPE_NOXEmissionsTotalThousandTons, RPE_SO2EmissionsSummerThousandTons, RPE_SO2EmissionsTotalThousandTons, RPE_DispatchableCapacityMW), MeetPrimaryCriteria,"=1",IF($AL$6="IPM Region",RPE_RegionGroupAcronym,RPE_State),"="&IF($AL$6="National","*",$AO5))) -> 5.383017158 | AQ5: =IF(AO5=0,"",IF($AL$18="Actual",0,SUMIFS(CHOOSE(VLOOKUP($AL$33,'Lookup tables'!$AK$5:$AM$15,3,0), RPE_FuelConsumptionSummerTBtu, RPE_FuelConsumptionTotalTBtu, RPE_GenerationSummerGWh, RPE_GenerationTotalGWh, RPE_CO2EmissionsSummerThousandTons, RPE_CO2EmissionsTotalThousandTons, RPE_NOXEmissionsSummerThousandTons, RPE_NOXEmissionsTotalThousandTons, RPE_SO2EmissionsSummerThousandTons, RPE_SO2EmissionsTotalThousandTons, RPE_DispatchableCapacityMW), MeetComparisonCriteria,"=1",IF($AL$6="IPM Region",RPE_RegionGroupAcronym,RPE_State),"="&IF($AL$6="National","*",$AO5)))) -> 0 | AR5: =IFERROR(IF($AL$18="Actual",AP5,IF($AL$18="Absolute Change",AP5-AQ5,IF($AL$18="Percent Change",(AP5-AQ5)/AQ5,IF($AL$18="Emissions Rate",(AP5*2/AQ5),IF($AL$18="Capacity Factor",AP5*1000/(AQ5*IF(NOT(ISERROR(SEARCH("Summer",$AL$16))),3672,8760)),AP5/AQ5))))),"") -> 5.383017158 | AS5: =IF(AR5="","",IF($AS$2="Percent",TEXT(AR5,"##0%"),IF($AS$2="Decimal",TEXT(AR5,"0.00"),IF(ABS(AR5)>=100,TEXT(AR5,"###,###"),IF(ABS(AR5)>=10,TEXT(AR5,"##0.0"),IF(ABS(AR5)>=1,TEXT(AR5,"#0.00"),TEXT(AR5,"#0.000"))))))) -> 5.38 | AT5: =IF(OR(AR5="",AR5=0),16777215,IF(AR5<$BF$74,$BH$73,IF(AR5<$BF$75,$BH$74,IF(AR5<$BF$76,$BH$75,IF(AR5<$BF$77,BH$76,IF(AR5<$BF$78,$BH$78,IF(AR5<$BF$79,$BH$79,IF(AR5<$BF$80,$BH$80,$BH$81)))))))) -> 11854022
B6: Plant Category | D6: CO2 Emissions Summer Thousand Tons | F6: Emissions Rate | H6: Plant Category | J6: CO2 Emissions Summer Thousand Tons | L6: 2016 | M6: 2030 | O6: FRCC | P6: CA | Q6: AZ | S6: Fwaste | U6: Retired | V6: Combined Cycle | W6: Combustion Turbine | X6: --SCR | AA6: State | AC6: IPM Regions | AD6: Generation Summer GWh | AE6: Decimal | AK6: Regional Aggregation | AL6: State | AM6: =IF(AL6="State","RPE_State","RPE_RegionGroupAcronym") -> RPE_State | AO6: AR | AP6: =IF(AO6=0,"",SUMIFS(CHOOSE(VLOOKUP($AL$16,'Lookup tables'!$AK$5:$AM$15,3,0), RPE_FuelConsumptionSummerTBtu, RPE_FuelConsumptionTotalTBtu, RPE_GenerationSummerGWh, RPE_GenerationTotalGWh, RPE_CO2EmissionsSummerThousandTons, RPE_CO2EmissionsTotalThousandTons, RPE_NOXEmissionsSummerThousandTons, RPE_NOXEmissionsTotalThousandTons, RPE_SO2EmissionsSummerThousandTons, RPE_SO2EmissionsTotalThousandTons, RPE_DispatchableCapacityMW), MeetPrimaryCriteria,"=1",IF($AL$6="IPM Region",RPE_RegionGroupAcronym,RPE_State),"="&IF($AL$6="National","*",$AO6))) -> 6.037052705 | AQ6: =IF(AO6=0,"",IF($AL$18="Actual",0,SUMIFS(CHOOSE(VLOOKUP($AL$33,'Lookup tables'!$AK$5:$AM$15,3,0), RPE_FuelConsumptionSummerTBtu, RPE_FuelConsumptionTotalTBtu, RPE_GenerationSummerGWh, RPE_GenerationTotalGWh, RPE_CO2EmissionsSummerThousandTons, RPE_CO2EmissionsTotalThousandTons, RPE_NOXEmissionsSummerThousandTons, RPE_NOXEmissionsTotalThousandTons, RPE_SO2EmissionsSummerThousandTons, RPE_SO2EmissionsTotalThousandTons, RPE_DispatchableCapacityMW), MeetComparisonCriteria,"=1",IF($AL$6="IPM Region",RPE_RegionGroupAcronym,RPE_State),"="&IF($AL$6="National","*",$AO6)))) -> 0 | AR6: 6.037052705 | AS6: =IF(AR6="","",IF($AS$2="Percent",TEXT(AR6,"##0%"),IF($AS$2="Decimal",TEXT(AR6,"0.00"),IF(ABS(AR6)>=100,TEXT(AR6,"###,###"),IF(ABS(AR6)>=10,TEXT(AR6,"##0.0"),IF(ABS(AR6)>=1,TEXT(AR6,"#0.00"),TEXT(AR6,"#0.000"))))))) -> 6.04 | AT6: =IF(OR(AR6="",AR6=0),16777215,IF(AR6<$BF$74,$BH$73,IF(AR6<$BF$75,$BH$74,IF(AR6<$BF$76,$BH$75,IF(AR6<$BF$77,BH$76,IF(AR6<$BF$78,$BH$78,IF(AR6<$BF$79,$BH$79,IF(AR6<$BF$80,$BH$80,$BH$81)))))))) -> 11854022
B7: Plant Controls | D7: CO2 Emissions Total Thousand Tons | F7: Capacity Factor | H7: Plant Controls | J7: CO2 Emissions Total Thousand Tons | L7: 2017 | M7: 2035 | O7: MIS_AMSO | P7: CO | Q7: CA | S7: Geothermal | V7: Combustion Turbine | W7: Nuclear | X7: --SNCR | AD7: Generation Total GWh | AE7: Decimal | AO7: AZ | AP7: =IF(AO7=0,"",SUMIFS(CHOOSE(VLOOKUP($AL$16,'Lookup tables'!$AK$5:$AM$15,3,0), RPE_FuelConsumptionSummerTBtu, RPE_FuelConsumptionTotalTBtu, RPE_GenerationSummerGWh, RPE_GenerationTotalGWh, RPE_CO2EmissionsSummerThousandTons, RPE_CO2EmissionsTotalThousandTons, RPE_NOXEmissionsSummerThousandTons, RPE_NOXEmissionsTotalThousandTons, RPE_SO2EmissionsSummerThousandTons, RPE_SO2EmissionsTotalThousandTons, RPE_DispatchableCapacityMW), MeetPrimaryCriteria,"=1",IF($AL$6="IPM Region",RPE_RegionGroupAcronym,RPE_State),"="&IF($AL$6="National","*",$AO7))) -> 1.278199836 | AQ7: =IF(AO7=0,"",IF($AL$18="Actual",0,SUMIFS(CHOOSE(VLOOKUP($AL$33,'Lookup tables'!$AK$5:$AM$15,3,0), RPE_FuelConsumptionSummerTBtu, RPE_FuelConsumptionTotalTBtu, RPE_GenerationSummerGWh, RPE_GenerationTotalGWh, RPE_CO2EmissionsSummerThousandTons, RPE_CO2EmissionsTotalThousandTons, RPE_NOXEmissionsSummerThousandTons, RPE_NOXEmissionsTotalThousandTons, RPE_SO2EmissionsSummerThousandTons, RPE_SO2EmissionsTotalThousandTons, RPE_DispatchableCapacityMW), MeetComparisonCriteria,"=1",IF($AL$6="IPM Region",RPE_RegionGroupAcronym,RPE_State),"="&IF($AL$6="National","*",$AO7)))) -> 0 | AR7: 1.278199836 | AS7: 1.28 | AT7: 11854022
D8: NOX Emissions Summer Thousand Tons | J8: NOX Emissions Summer Thousand Tons | L8: 2018 | M8: 2040 | O8: MIS_AR | P8: CT | Q8: CO | S8: Hydro | V8: Energy Storage | W8: O/G Steam | X8: Any SO2 Post Combustion | AD8: CO2 Emissions Winter Thousand Tons | AE8: Decimal | AK8: PRIMARY DIMENSIONS | AO8: CA | AP8: =IF(AO8=0,"",SUMIFS(CHOOSE(VLOOKUP($AL$16,'Lookup tables'!$AK$5:$AM$15,3,0), RPE_FuelConsumptionSummerTBtu, RPE_FuelConsumptionTotalTBtu, RPE_GenerationSummerGWh, RPE_GenerationTotalGWh, RPE_CO2EmissionsSummerThousandTons, RPE_CO2EmissionsTotalThousandTons, RPE_NOXEmissionsSummerThousandTons, RPE_NOXEmissionsTotalThousandTons, RPE_SO2EmissionsSummerThousandTons, RPE_SO2EmissionsTotalThousandTons, RPE_DispatchableCapacityMW), MeetPrimaryCriteria,"=1",IF($AL$6="IPM Region",RPE_RegionGroupAcronym,RPE_State),"="&IF($AL$6="National","*",$AO8))) -> 5.974757266 | AQ8: =IF(AO8=0,"",IF($AL$18="Actual",0,SUMIFS(CHOOSE(VLOOKUP($AL$33,'Lookup tables'!$AK$5:$AM$15,3,0), RPE_FuelConsumptionSummerTBtu, RPE_FuelConsumptionTotalTBtu, RPE_GenerationSummerGWh, RPE_GenerationTotalGWh, RPE_CO2EmissionsSummerThousandTons, RPE_CO2EmissionsTotalThousandTons, RPE_NOXEmissionsSummerThousandTons, RPE_NOXEmissionsTotalThousandTons, RPE_SO2EmissionsSummerThousandTons, RPE_SO2EmissionsTotalThousandTons, RPE_DispatchableCapacityMW), MeetComparisonCriteria,"=1",IF($AL$6="IPM Region",RPE_RegionGroupAcronym,RPE_State),"="&IF($AL$6="National","*",$AO8)))) -> 0 | AR8: 5.974757266 | AS8: 5.97 | AT8: 11854022
D9: NOX Emissions Total Thousand Tons | J9: NOX Emissions Total Thousand Tons | L9: 2019 | M9: 2045 | O9: MIS_MS | P9: DC | Q9: CT | S9: LF Gas | V9: Fossil Other | W9: Other | X9: --FGD | AD9: CO2 Emissions Summer Thousand Tons | AE9: Decimal | AK9: Fuel Type | AL9: All Units | AM9: RPE_FuelType | AO9: CO | AP9: =IF(AO9=0,"",SUMIFS(CHOOSE(VLOOKUP($AL$16,'Lookup tables'!$AK$5:$AM$15,3,0), RPE_FuelConsumptionSummerTBtu, RPE_FuelConsumptionTotalTBtu, RPE_GenerationSummerGWh, RPE_GenerationTotalGWh, RPE_CO2EmissionsSummerThousandTons, RPE_CO2EmissionsTotalThousandTons, RPE_NOXEmissionsSummerThousandTons, RPE_NOXEmissionsTotalThousandTons, RPE_SO2EmissionsSummerThousandTons, RPE_SO2EmissionsTotalThousandTons, RPE_DispatchableCapacityMW), MeetPrimaryCriteria,"=1",IF($AL$6="IPM Region",RPE_RegionGroupAcronym,RPE_State),"="&IF($AL$6="National","*",$AO9))) -> 5.788710915 | AQ9: =IF(AO9=0,"",IF($AL$18="Actual",0,SUMIFS(CHOOSE(VLOOKUP($AL$33,'Lookup tables'!$AK$5:$AM$15,3,0), RPE_FuelConsumptionSummerTBtu, RPE_FuelConsumptionTotalTBtu, RPE_GenerationSummerGWh, RPE_GenerationTotalGWh, RPE_CO2EmissionsSummerThousandTons, RPE_CO2EmissionsTotalThousandTons, RPE_NOXEmissionsSummerThousandTons, RPE_NOXEmissionsTotalThousandTons, RPE_SO2EmissionsSummerThousandTons, RPE_SO2EmissionsTotalThousandTons, RPE_DispatchableCapacityMW), MeetComparisonCriteria,"=1",IF($AL$6="IPM Region",RPE_RegionGroupAcronym,RPE_State),"="&IF($AL$6="National","*",$AO9)))) -> 0 | AR9: 5.788710915 | AS9: 5.79 | AT9: 11854022
D10: SO2 Emissions Summer Thousand Tons | J10: SO2 Emissions Summer Thousand Tons | L10: 2005 | M10: 2050 | O10: MIS_IA | P10: DE | Q10: DC | S10: MSW | V10: Fuel Cell | W10: Renewable | X10: --DSI | AD10: CO2 Emissions Total Thousand Tons | AE10: Decimal | AK10: Fossil >25 MW | AL10: All Units | AM10: RPE_Fossil25MW | AO10: CT | AP10: =IF(AO10=0,"",SUMIFS(CHOOSE(VLOOKUP($AL$16,'Lookup tables'!$AK$5:$AM$15,3,0), RPE_FuelConsumptionSummerTBtu, RPE_FuelConsumptionTotalTBtu, RPE_GenerationSummerGWh, RPE_GenerationTotalGWh, RPE_CO2EmissionsSummerThousandTons, RPE_CO2EmissionsTotalThousandTons, RPE_NOXEmissionsSummerThousandTons, RPE_NOXEmissionsTotalThousandTons, RPE_SO2EmissionsSummerThousandTons, RPE_SO2EmissionsTotalThousandTons, RPE_DispatchableCapacityMW), MeetPrimaryCriteria,"=1",IF($AL$6="IPM Region",RPE_RegionGroupAcronym,RPE_State),"="&IF($AL$6="National","*",$AO10))) -> 1.703408204 | AQ10: =IF(AO10=0,"",IF($AL$18="Actual",0,SUMIFS(CHOOSE(VLOOKUP($AL$33,'Lookup tables'!$AK$5:$AM$15,3,0), RPE_FuelConsumptionSummerTBtu, RPE_FuelConsumptionTotalTBtu, RPE_GenerationSummerGWh, RPE_GenerationTotalGWh, RPE_CO2EmissionsSummerThousandTons, RPE_CO2EmissionsTotalThousandTons, RPE_NOXEmissionsSummerThousandTons, RPE_NOXEmissionsTotalThousandTons, RPE_SO2EmissionsSummerThousandTons, RPE_SO2EmissionsTotalThousandTons, RPE_DispatchableCapacityMW), MeetComparisonCriteria,"=1",IF($AL$6="IPM Region",RPE_RegionGroupAcronym,RPE_State),"="&IF($AL$6="National","*",$AO10)))) -> 0 | AR10: 1.703408204 | AS10: =IF(AR10="","","CT: "&IF($AS$2="Percent",TEXT(AR10,"##0%"),IF($AS$2="Decimal",TEXT(AR10,"0.00"),IF(ABS(AR10)>=100,TEXT(AR10,"###,###"),IF(ABS(AR10)>=10,TEXT(AR10,"##0.0"),IF(ABS(AR10)>=1,TEXT(AR10,"#0.00"),TEXT(AR10,"#0.000"))))))) -> CT: 1.70 | AT10: 11854022
D11: SO2 Emissions Total Thousand Tons | J11: SO2 Emissions Total Thousand Tons | O11: MIS_IL | P11: FL | Q11: DE | S11: NaturalGas | V11: Geothermal | W11: Storage | X11: ACI | AD11: NOX Emissions Winter Thousand Tons | AE11: Decimal | AK11: Existing/New/Retired | AL11: Existing and New | AM11: RPE_ExistingorNewUnit | AO11: DC | AP11: =IF(AO11=0,"",SUMIFS(CHOOSE(VLOOKUP($AL$16,'Lookup tables'!$AK$5:$AM$15,3,0), RPE_FuelConsumptionSummerTBtu, RPE_FuelConsumptionTotalTBtu, RPE_GenerationSummerGWh, RPE_GenerationTotalGWh, RPE_CO2EmissionsSummerThousandTons, RPE_CO2EmissionsTotalThousandTons, RPE_NOXEmissionsSummerThousandTons, RPE_NOXEmissionsTotalThousandTons, RPE_SO2EmissionsSummerThousandTons, RPE_SO2EmissionsTotalThousandTons, RPE_DispatchableCapacityMW), MeetPrimaryCriteria,"=1",IF($AL$6="IPM Region",RPE_RegionGroupAcronym,RPE_State),"="&IF($AL$6="National","*",$AO11))) -> 0.0178888774 | AQ11: =IF(AO11=0,"",IF($AL$18="Actual",0,SUMIFS(CHOOSE(VLOOKUP($AL$33,'Lookup tables'!$AK$5:$AM$15,3,0), RPE_FuelConsumptionSummerTBtu, RPE_FuelConsumptionTotalTBtu, RPE_GenerationSummerGWh, RPE_GenerationTotalGWh, RPE_CO2EmissionsSummerThousandTons, RPE_CO2EmissionsTotalThousandTons, RPE_NOXEmissionsSummerThousandTons, RPE_NOXEmissionsTotalThousandTons, RPE_SO2EmissionsSummerThousandTons, RPE_SO2EmissionsTotalThousandTons, RPE_DispatchableCapacityMW), MeetComparisonCriteria,"=1",IF($AL$6="IPM Region",RPE_RegionGroupAcronym,RPE_State),"="&IF($AL$6="National","*",$AO11)))) -> 0 | AR11: 0.0178888774 | AS11: =IF(AR11="","","DC: "&IF($AS$2="Percent",TEXT(AR11,"##0%"),IF($AS$2="Decimal",TEXT(AR11,"0.00"),IF(ABS(AR11)>=100,TEXT(AR11,"###,###"),IF(ABS(AR11)>=10,TEXT(AR11,"##0.0"),IF(ABS(AR11)>=1,TEXT(AR11,"#0.00"),TEXT(AR11,"#0.000"))))))) -> DC: 0.018 | AT11: 11854022
D12: Dispatchable Capacity MW | J12: Dispatchable Capacity MW | O12: MIS_INKY | P12: GA | Q12: FL | S12: None | V12: Hydro | W12: Coal w/CCS | X12: C2G | AD12: NOX Emissions Summer Thousand Tons | AE12: Decimal | AK12: Plant Type | AL12: All Units | AM12: RPE_PlantType | AO12: DE | AP12: =IF(AO12=0,"",SUMIFS(CHOOSE(VLOOKUP($AL$16,'Lookup tables'!$AK$5:$AM$15,3,0), RPE_FuelConsumptionSummerTBtu, RPE_FuelConsumptionTotalTBtu, RPE_GenerationSummerGWh, RPE_GenerationTotalGWh, RPE_CO2EmissionsSummerThousandTons, RPE_CO2EmissionsTotalThousandTons, RPE_NOXEmissionsSummerThousandTons, RPE_NOXEmissionsTotalThousandTons, RPE_SO2EmissionsSummerThousandTons, RPE_SO2EmissionsTotalThousandTons, RPE_DispatchableCapacityMW), MeetPrimaryCriteria,"=1",IF($AL$6="IPM Region",RPE_RegionGroupAcronym,RPE_State),"="&IF($AL$6="National","*",$AO12))) -> 0.1827244873 | AQ12: =IF(AO12=0,"",IF($AL$18="Actual",0,SUMIFS(CHOOSE(VLOOKUP($AL$33,'Lookup tables'!$AK$5:$AM$15,3,0), RPE_FuelConsumptionSummerTBtu, RPE_FuelConsumptionTotalTBtu, RPE_GenerationSummerGWh, RPE_GenerationTotalGWh, RPE_CO2EmissionsSummerThousandTons, RPE_CO2EmissionsTotalThousandTons, RPE_NOXEmissionsSummerThousandTons, RPE_NOXEmissionsTotalThousandTons, RPE_SO2EmissionsSummerThousandTons, RPE_SO2EmissionsTotalThousandTons, RPE_DispatchableCapacityMW), MeetComparisonCriteria,"=1",IF($AL$6="IPM Region",RPE_RegionGroupAcronym,RPE_State),"="&IF($AL$6="National","*",$AO12)))) -> 0 | AR12: 0.1827244873 | AS12: =IF(AR12="","","DE: "&IF($AS$2="Percent",TEXT(AR12,"##0%"),IF($AS$2="Decimal",TEXT(AR12,"0.00"),IF(ABS(AR12)>=100,TEXT(AR12,"###,###"),IF(ABS(AR12)>=10,TEXT(AR12,"##0.0"),IF(ABS(AR12)>=1,TEXT(AR12,"#0.00"),TEXT(AR12,"#0.000"))))))) -> DE: 0.183 | AT12: 11854022
O13: MIS_LA | P13: IA | Q13: GA | S13: Non-Fossil | V13: IGCC | W13: NGCC w/CCS | X13: HRI | AD13: NOX Emissions Total Thousand Tons | AE13: Decimal | AK13: Plant Category | AL13: All Units | AM13: RPE_PlantCategory | AO13: FL | AP13: =IF(AO13=0,"",SUMIFS(CHOOSE(VLOOKUP($AL$16,'Lookup tables'!$AK$5:$AM$15,3,0), RPE_FuelConsumptionSummerTBtu, RPE_FuelConsumptionTotalTBtu, RPE_GenerationSummerGWh, RPE_GenerationTotalGWh, RPE_CO2EmissionsSummerThousandTons, RPE_CO2EmissionsTotalThousandTons, RPE_NOXEmissionsSummerThousandTons, RPE_NOXEmissionsTotalThousandTons, RPE_SO2EmissionsSummerThousandTons, RPE_SO2EmissionsTotalThousandTons, RPE_DispatchableCapacityMW), MeetPrimaryCriteria,"=1",IF($AL$6="IPM Region",RPE_RegionGroupAcronym,RPE_State),"="&IF($AL$6="National","*",$AO13))) -> 11.20791482 | AQ13: =IF(AO13=0,"",IF($AL$18="Actual",0,SUMIFS(CHOOSE(VLOOKUP($AL$33,'Lookup tables'!$AK$5:$AM$15,3,0), RPE_FuelConsumptionSummerTBtu, RPE_FuelConsumptionTotalTBtu, RPE_GenerationSummerGWh, RPE_GenerationTotalGWh, RPE_CO2EmissionsSummerThousandTons, RPE_CO2EmissionsTotalThousandTons, RPE_NOXEmissionsSummerThousandTons, RPE_NOXEmissionsTotalThousandTons, RPE_SO2EmissionsSummerThousandTons, RPE_SO2EmissionsTotalThousandTons, RPE_DispatchableCapacityMW), MeetComparisonCriteria,"=1",IF($AL$6="IPM Region",RPE_RegionGroupAcronym,RPE_State),"="&IF($AL$6="National","*",$AO13)))) -> 0 | AR13: 11.20791482 | AS13: 11.2 | AT13: 9359529
O14: MIS_LMI | P14: ID | Q14: IA | S14: Nuclear | V14: International Imports | X14: CCS | AD14: SO2 Emissions Winter Thousand Tons | AE14: Decimal | AK14: Control/Retrofit Types | AL14: All Units | AM14: =MATCH(AL14,Controls,0) -> 1 | AO14: GA | AP14: =IF(AO14=0,"",SUMIFS(CHOOSE(VLOOKUP($AL$16,'Lookup tables'!$AK$5:$AM$15,3,0), RPE_FuelConsumptionSummerTBtu, RPE_FuelConsumptionTotalTBtu, RPE_GenerationSummerGWh, RPE_GenerationTotalGWh, RPE_CO2EmissionsSummerThousandTons, RPE_CO2EmissionsTotalThousandTons, RPE_NOXEmissionsSummerThousandTons, RPE_NOXEmissionsTotalThousandTons, RPE_SO2EmissionsSummerThousandTons, RPE_SO2EmissionsTotalThousandTons, RPE_DispatchableCapacityMW), MeetPrimaryCriteria,"=1",IF($AL$6="IPM Region",RPE_RegionGroupAcronym,RPE_State),"="&IF($AL$6="National","*",$AO14))) -> 3.740112319 | AQ14: =IF(AO14=0,"",IF($AL$18="Actual",0,SUMIFS(CHOOSE(VLOOKUP($AL$33,'Lookup tables'!$AK$5:$AM$15,3,0), RPE_FuelConsumptionSummerTBtu, RPE_FuelConsumptionTotalTBtu, RPE_GenerationSummerGWh, RPE_GenerationTotalGWh, RPE_CO2EmissionsSummerThousandTons, RPE_CO2EmissionsTotalThousandTons, RPE_NOXEmissionsSummerThousandTons, RPE_NOXEmissionsTotalThousandTons, RPE_SO2EmissionsSummerThousandTons, RPE_SO2EmissionsTotalThousandTons, RPE_DispatchableCapacityMW), MeetComparisonCriteria,"=1",IF($AL$6="IPM Region",RPE_RegionGroupAcronym,RPE_State),"="&IF($AL$6="National","*",$AO14)))) -> 0 | AR14: 3.740112319 | AS14: 3.74 | AT14: 11854022
O15: MIS_MAPP | P15: IL | Q15: ID | S15: Oil | V15: Landfill Gas | X15: No NOx Post Combustion Controls | AD15: SO2 Emissions Summer Thousand Tons | AE15: Decimal | AK15: Existing or New Controls | AL15: All Controls | AO15: IA | AP15: =IF(AO15=0,"",SUMIFS(CHOOSE(VLOOKUP($AL$16,'Lookup tables'!$AK$5:$AM$15,3,0), RPE_FuelConsumptionSummerTBtu, RPE_FuelConsumptionTotalTBtu, RPE_GenerationSummerGWh, RPE_GenerationTotalGWh, RPE_CO2EmissionsSummerThousandTons, RPE_CO2EmissionsTotalThousandTons, RPE_NOXEmissionsSummerThousandTons, RPE_NOXEmissionsTotalThousandTons, RPE_SO2EmissionsSummerThousandTons, RPE_SO2EmissionsTotalThousandTons, RPE_DispatchableCapacityMW), MeetPrimaryCriteria,"=1",IF($AL$6="IPM Region",RPE_RegionGroupAcronym,RPE_State),"="&IF($AL$6="National","*",$AO15))) -> 9.795436921 | AQ15: =IF(AO15=0,"",IF($AL$18="Actual",0,SUMIFS(CHOOSE(VLOOKUP($AL$33,'Lookup tables'!$AK$5:$AM$15,3,0), RPE_FuelConsumptionSummerTBtu, RPE_FuelConsumptionTotalTBtu, RPE_GenerationSummerGWh, RPE_GenerationTotalGWh, RPE_CO2EmissionsSummerThousandTons, RPE_CO2EmissionsTotalThousandTons, RPE_NOXEmissionsSummerThousandTons, RPE_NOXEmissionsTotalThousandTons, RPE_SO2EmissionsSummerThousandTons, RPE_SO2EmissionsTotalThousandTons, RPE_DispatchableCapacityMW), MeetComparisonCriteria,"=1",IF($AL$6="IPM Region",RPE_RegionGroupAcronym,RPE_State),"="&IF($AL$6="National","*",$AO15)))) -> 0 | AR15: 9.795436921 | AS15: 9.80 | AT15: 9359529
O16: MIS_MIDA | P16: IN | Q16: IL | S16: Pet. Coke | V16: Non-Fossil Other | X16: No SO2 Post Combustion Controls | AD16: SO2 Emissions Total Thousand Tons | AE16: Decimal | AK16: PRIMARY MEASURE | AL16: NOX Emissions Summer Thousand Tons | AM16: =VLOOKUP(AL16,'Lookup tables'!$AD$5:$AF$68,3,0) -> RPE_NOXEmissionsSummerThousandTons | AO16: ID | AP16: =IF(AO16=0,"",SUMIFS(CHOOSE(VLOOKUP($AL$16,'Lookup tables'!$AK$5:$AM$15,3,0), RPE_FuelConsumptionSummerTBtu, RPE_FuelConsumptionTotalTBtu, RPE_GenerationSummerGWh, RPE_GenerationTotalGWh, RPE_CO2EmissionsSummerThousandTons, RPE_CO2EmissionsTotalThousandTons, RPE_NOXEmissionsSummerThousandTons, RPE_NOXEmissionsTotalThousandTons, RPE_SO2EmissionsSummerThousandTons, RPE_SO2EmissionsTotalThousandTons, RPE_DispatchableCapacityMW), MeetPrimaryCriteria,"=1",IF($AL$6="IPM Region",RPE_RegionGroupAcronym,RPE_State),"="&IF($AL$6="National","*",$AO16))) -> 0.3630973706 | AQ16: =IF(AO16=0,"",IF($AL$18="Actual",0,SUMIFS(CHOOSE(VLOOKUP($AL$33,'Lookup tables'!$AK$5:$AM$15,3,0), RPE_FuelConsumptionSummerTBtu, RPE_FuelConsumptionTotalTBtu, RPE_GenerationSummerGWh, RPE_GenerationTotalGWh, RPE_CO2EmissionsSummerThousandTons, RPE_CO2EmissionsTotalThousandTons, RPE_NOXEmissionsSummerThousandTons, RPE_NOXEmissionsTotalThousandTons, RPE_SO2EmissionsSummerThousandTons, RPE_SO2EmissionsTotalThousandTons, RPE_DispatchableCapacityMW), MeetComparisonCriteria,"=1",IF($AL$6="IPM Region",RPE_RegionGroupAcronym,RPE_State),"="&IF($AL$6="National","*",$AO16)))) -> 0 | AR16: 0.3630973706 | AS16: 0.363 | AT16: 11854022
O17: MIS_MNWI | P17: KS | Q17: IN | S17: Pumps | V17: Nuclear | AD17: Dispatchable Capacity MW | AE17: Whole | AO17: IL | AP17: =IF(AO17=0,"",SUMIFS(CHOOSE(VLOOKUP($AL$16,'Lookup tables'!$AK$5:$AM$15,3,0), RPE_FuelConsumptionSummerTBtu, RPE_FuelConsumptionTotalTBtu, RPE_GenerationSummerGWh, RPE_GenerationTotalGWh, RPE_CO2EmissionsSummerThousandTons, RPE_CO2EmissionsTotalThousandTons, RPE_NOXEmissionsSummerThousandTons, RPE_NOXEmissionsTotalThousandTons, RPE_SO2EmissionsSummerThousandTons, RPE_SO2EmissionsTotalThousandTons, RPE_DispatchableCapacityMW), MeetPrimaryCriteria,"=1",IF($AL$6="IPM Region",RPE_RegionGroupAcronym,RPE_State),"="&IF($AL$6="National","*",$AO17))) -> 8.059570748 | AQ17: =IF(AO17=0,"",IF($AL$18="Actual",0,SUMIFS(CHOOSE(VLOOKUP($AL$33,'Lookup tables'!$AK$5:$AM$15,3,0), RPE_FuelConsumptionSummerTBtu, RPE_FuelConsumptionTotalTBtu, RPE_GenerationSummerGWh, RPE_GenerationTotalGWh, RPE_CO2EmissionsSummerThousandTons, RPE_CO2EmissionsTotalThousandTons, RPE_NOXEmissionsSummerThousandTons, RPE_NOXEmissionsTotalThousandTons, RPE_SO2EmissionsSummerThousandTons, RPE_SO2EmissionsTotalThousandTons, RPE_DispatchableCapacityMW), MeetComparisonCriteria,"=1",IF($AL$6="IPM Region",RPE_RegionGroupAcronym,RPE_State),"="&IF($AL$6="National","*",$AO17)))) -> 0 | AR17: 8.059570748 | AS17: 8.06 | AT17: 9359529
D18: NOT INCLUDED | J18: NOT INCLUDED | O18: MIS_MO | P18: KY | Q18: KS | S18: Solar | V18: O/G Steam | AK18: DISPLAY VALUE TYPE | AL18: Actual | AO18: IN | AP18: =IF(AO18=0,"",SUMIFS(CHOOSE(VLOOKUP($AL$16,'Lookup tables'!$AK$5:$AM$15,3,0), RPE_FuelConsumptionSummerTBtu, RPE_FuelConsumptionTotalTBtu, RPE_GenerationSummerGWh, RPE_GenerationTotalGWh, RPE_CO2EmissionsSummerThousandTons, RPE_CO2EmissionsTotalThousandTons, RPE_NOXEmissionsSummerThousandTons, RPE_NOXEmissionsTotalThousandTons, RPE_SO2EmissionsSummerThousandTons, RPE_SO2EmissionsTotalThousandTons, RPE_DispatchableCapacityMW), MeetPrimaryCriteria,"=1",IF($AL$6="IPM Region",RPE_RegionGroupAcronym,RPE_State),"="&IF($AL$6="National","*",$AO18))) -> 11.00518153 | AQ18: =IF(AO18=0,"",IF($AL$18="Actual",0,SUMIFS(CHOOSE(VLOOKUP($AL$33,'Lookup tables'!$AK$5:$AM$15,3,0), RPE_FuelConsumptionSummerTBtu, RPE_FuelConsumptionTotalTBtu, RPE_GenerationSummerGWh, RPE_GenerationTotalGWh, RPE_CO2EmissionsSummerThousandTons, RPE_CO2EmissionsTotalThousandTons, RPE_NOXEmissionsSummerThousandTons, RPE_NOXEmissionsTotalThousandTons, RPE_SO2EmissionsSummerThousandTons, RPE_SO2EmissionsTotalThousandTons, RPE_DispatchableCapacityMW), MeetComparisonCriteria,"=1",IF($AL$6="IPM Region",RPE_RegionGroupAcronym,RPE_State),"="&IF($AL$6="National","*",$AO18)))) -> 0 | AR18: 11.00518153 | AS18: 11.0 | AT18: 9359529 | BH18: ="< "&BI74 -> < -19 | BJ18: 801923
D19: Fuel Consumption Winter TBtu | J19: Fuel Consumption Winter TBtu | O19: MIS_WOTA | P19: LA | Q19: KY | S19: Tires | V19: Offshore Wind | AO19: KS | AP19: =IF(AO19=0,"",SUMIFS(CHOOSE(VLOOKUP($AL$16,'Lookup tables'!$AK$5:$AM$15,3,0), RPE_FuelConsumptionSummerTBtu, RPE_FuelConsumptionTotalTBtu, RPE_GenerationSummerGWh, RPE_GenerationTotalGWh, RPE_CO2EmissionsSummerThousandTons, RPE_CO2EmissionsTotalThousandTons, RPE_NOXEmissionsSummerThousandTons, RPE_NOXEmissionsTotalThousandTons, RPE_SO2EmissionsSummerThousandTons, RPE_SO2EmissionsTotalThousandTons, RPE_DispatchableCapacityMW), MeetPrimaryCriteria,"=1",IF($AL$6="IPM Region",RPE_RegionGroupAcronym,RPE_State),"="&IF($AL$6="National","*",$AO19))) -> 2.640347111 | AQ19: =IF(AO19=0,"",IF($AL$18="Actual",0,SUMIFS(CHOOSE(VLOOKUP($AL$33,'Lookup tables'!$AK$5:$AM$15,3,0), RPE_FuelConsumptionSummerTBtu, RPE_FuelConsumptionTotalTBtu, RPE_GenerationSummerGWh, RPE_GenerationTotalGWh, RPE_CO2EmissionsSummerThousandTons, RPE_CO2EmissionsTotalThousandTons, RPE_NOXEmissionsSummerThousandTons, RPE_NOXEmissionsTotalThousandTons, RPE_SO2EmissionsSummerThousandTons, RPE_SO2EmissionsTotalThousandTons, RPE_DispatchableCapacityMW), MeetComparisonCriteria,"=1",IF($AL$6="IPM Region",RPE_RegionGroupAcronym,RPE_State),"="&IF($AL$6="National","*",$AO19)))) -> 0 | AR19: 2.640347111 | AS19: 2.64 | AT19: 11854022 | BH19: ="between "&BI74&" and "&BI75 -> between -19 and -13 | BJ19: 1137094
D20: Generation Winter GWh | J20: Generation Winter GWh | O20: MIS_WUMS | P20: MA | Q20: LA | S20: Waste Coal | V20: Pumped Storage | AO20: KY | AP20: =IF(AO20=0,"",SUMIFS(CHOOSE(VLOOKUP($AL$16,'Lookup tables'!$AK$5:$AM$15,3,0), RPE_FuelConsumptionSummerTBtu, RPE_FuelConsumptionTotalTBtu, RPE_GenerationSummerGWh, RPE_GenerationTotalGWh, RPE_CO2EmissionsSummerThousandTons, RPE_CO2EmissionsTotalThousandTons, RPE_NOXEmissionsSummerThousandTons, RPE_NOXEmissionsTotalThousandTons, RPE_SO2EmissionsSummerThousandTons, RPE_SO2EmissionsTotalThousandTons, RPE_DispatchableCapacityMW), MeetPrimaryCriteria,"=1",IF($AL$6="IPM Region",RPE_RegionGroupAcronym,RPE_State),"="&IF($AL$6="National","*",$AO20))) -> 12.07069714 | AQ20: =IF(AO20=0,"",IF($AL$18="Actual",0,SUMIFS(CHOOSE(VLOOKUP($AL$33,'Lookup tables'!$AK$5:$AM$15,3,0), RPE_FuelConsumptionSummerTBtu, RPE_FuelConsumptionTotalTBtu, RPE_GenerationSummerGWh, RPE_GenerationTotalGWh, RPE_CO2EmissionsSummerThousandTons, RPE_CO2EmissionsTotalThousandTons, RPE_NOXEmissionsSummerThousandTons, RPE_NOXEmissionsTotalThousandTons, RPE_SO2EmissionsSummerThousandTons, RPE_SO2EmissionsTotalThousandTons, RPE_DispatchableCapacityMW), MeetComparisonCriteria,"=1",IF($AL$6="IPM Region",RPE_RegionGroupAcronym,RPE_State),"="&IF($AL$6="National","*",$AO20)))) -> 0 | AR20: 12.07069714 | AS20: 12.1 | AT20: 9359529 | BH20: ="between "&BI75&" and "&BI76 -> between -13 and -6 | BJ20: 8696052
D21: CO2 Emissions Winter Thousand Tons | J21: CO2 Emissions Winter Thousand Tons | O21: NENG_CT | P21: MD | Q21: MA | S21: Wind | V21: Solar PV | AK21: COMPARISON CASE | AL21: v6 Summer 2021 Ref Case | AO21: LA | AP21: =IF(AO21=0,"",SUMIFS(CHOOSE(VLOOKUP($AL$16,'Lookup tables'!$AK$5:$AM$15,3,0), RPE_FuelConsumptionSummerTBtu, RPE_FuelConsumptionTotalTBtu, RPE_GenerationSummerGWh, RPE_GenerationTotalGWh, RPE_CO2EmissionsSummerThousandTons, RPE_CO2EmissionsTotalThousandTons, RPE_NOXEmissionsSummerThousandTons, RPE_NOXEmissionsTotalThousandTons, RPE_SO2EmissionsSummerThousandTons, RPE_SO2EmissionsTotalThousandTons, RPE_DispatchableCapacityMW), MeetPrimaryCriteria,"=1",IF($AL$6="IPM Region",RPE_RegionGroupAcronym,RPE_State),"="&IF($AL$6="National","*",$AO21))) -> 9.409821107 | AQ21: =IF(AO21=0,"",IF($AL$18="Actual",0,SUMIFS(CHOOSE(VLOOKUP($AL$33,'Lookup tables'!$AK$5:$AM$15,3,0), RPE_FuelConsumptionSummerTBtu, RPE_FuelConsumptionTotalTBtu, RPE_GenerationSummerGWh, RPE_GenerationTotalGWh, RPE_CO2EmissionsSummerThousandTons, RPE_CO2EmissionsTotalThousandTons, RPE_NOXEmissionsSummerThousandTons, RPE_NOXEmissionsTotalThousandTons, RPE_SO2EmissionsSummerThousandTons, RPE_SO2EmissionsTotalThousandTons, RPE_DispatchableCapacityMW), MeetComparisonCriteria,"=1",IF($AL$6="IPM Region",RPE_RegionGroupAcronym,RPE_State),"="&IF($AL$6="National","*",$AO21)))) -> 0 | AR21: 9.409821107 | AS21: 9.41 | AT21: 9359529 | BH21: ="between "&BI76&" and "&BI77 -> between -6 and 0 | BJ21: 11389944
D22: NOX Emissions Winter Thousand Tons | J22: NOX Emissions Winter Thousand Tons | O22: NENG_ME | P22: ME | Q22: MD | S22: *Unit Did Not Operate | V22: Solar PV - DG | AO22: MA | AP22: =IF(AO22=0,"",SUMIFS(CHOOSE(VLOOKUP($AL$16,'Lookup tables'!$AK$5:$AM$15,3,0), RPE_FuelConsumptionSummerTBtu, RPE_FuelConsumptionTotalTBtu, RPE_GenerationSummerGWh, RPE_GenerationTotalGWh, RPE_CO2EmissionsSummerThousandTons, RPE_CO2EmissionsTotalThousandTons, RPE_NOXEmissionsSummerThousandTons, RPE_NOXEmissionsTotalThousandTons, RPE_SO2EmissionsSummerThousandTons, RPE_SO2EmissionsTotalThousandTons, RPE_DispatchableCapacityMW), MeetPrimaryCriteria,"=1",IF($AL$6="IPM Region",RPE_RegionGroupAcronym,RPE_State),"="&IF($AL$6="National","*",$AO22))) -> 2.129456316 | AQ22: =IF(AO22=0,"",IF($AL$18="Actual",0,SUMIFS(CHOOSE(VLOOKUP($AL$33,'Lookup tables'!$AK$5:$AM$15,3,0), RPE_FuelConsumptionSummerTBtu, RPE_FuelConsumptionTotalTBtu, RPE_GenerationSummerGWh, RPE_GenerationTotalGWh, RPE_CO2EmissionsSummerThousandTons, RPE_CO2EmissionsTotalThousandTons, RPE_NOXEmissionsSummerThousandTons, RPE_NOXEmissionsTotalThousandTons, RPE_SO2EmissionsSummerThousandTons, RPE_SO2EmissionsTotalThousandTons, RPE_DispatchableCapacityMW), MeetComparisonCriteria,"=1",IF($AL$6="IPM Region",RPE_RegionGroupAcronym,RPE_State),"="&IF($AL$6="National","*",$AO22)))) -> 0 | AR22: 2.129456316 | AS22: =IF(AR22="","","MA: "&IF($AS$2="Percent",TEXT(AR22,"##0%"),IF($AS$2="Decimal",TEXT(AR22,"0.00"),IF(ABS(AR22)>=100,TEXT(AR22,"###,###"),IF(ABS(AR22)>=10,TEXT(AR22,"##0.0"),IF(ABS(AR22)>=1,TEXT(AR22,"#0.00"),TEXT(AR22,"#0.000"))))))) -> MA: 2.13 | AT22: 11854022 | BH22: =BI77 -> 0 | BJ22: 16777215
D23: SO2 Emissions Winter Thousand Tons | J23: SO2 Emissions Winter Thousand Tons | O23: NENGREST | P23: MI | Q23: ME | V23: Solar Thermal | AK23: COMPARISON YEAR | AL23: 2023 | AO23: MD | AP23: =IF(AO23=0,"",SUMIFS(CHOOSE(VLOOKUP($AL$16,'Lookup tables'!$AK$5:$AM$15,3,0), RPE_FuelConsumptionSummerTBtu, RPE_FuelConsumptionTotalTBtu, RPE_GenerationSummerGWh, RPE_GenerationTotalGWh, RPE_CO2EmissionsSummerThousandTons, RPE_CO2EmissionsTotalThousandTons, RPE_NOXEmissionsSummerThousandTons, RPE_NOXEmissionsTotalThousandTons, RPE_SO2EmissionsSummerThousandTons, RPE_SO2EmissionsTotalThousandTons, RPE_DispatchableCapacityMW), MeetPrimaryCriteria,"=1",IF($AL$6="IPM Region",RPE_RegionGroupAcronym,RPE_State),"="&IF($AL$6="National","*",$AO23))) -> 1.53015434 | AQ23: =IF(AO23=0,"",IF($AL$18="Actual",0,SUMIFS(CHOOSE(VLOOKUP($AL$33,'Lookup tables'!$AK$5:$AM$15,3,0), RPE_FuelConsumptionSummerTBtu, RPE_FuelConsumptionTotalTBtu, RPE_GenerationSummerGWh, RPE_GenerationTotalGWh, RPE_CO2EmissionsSummerThousandTons, RPE_CO2EmissionsTotalThousandTons, RPE_NOXEmissionsSummerThousandTons, RPE_NOXEmissionsTotalThousandTons, RPE_SO2EmissionsSummerThousandTons, RPE_SO2EmissionsTotalThousandTons, RPE_DispatchableCapacityMW), MeetComparisonCriteria,"=1",IF($AL$6="IPM Region",RPE_RegionGroupAcronym,RPE_State),"="&IF($AL$6="National","*",$AO23)))) -> 0 | AR23: 1.53015434 | AS23: =IF(AR23="","","MD: "&IF($AS$2="Percent",TEXT(AR23,"##0%"),IF($AS$2="Decimal",TEXT(AR23,"0.00"),IF(ABS(AR23)>=100,TEXT(AR23,"###,###"),IF(ABS(AR23)>=10,TEXT(AR23,"##0.0"),IF(ABS(AR23)>=1,TEXT(AR23,"#0.00"),TEXT(AR23,"#0.000"))))))) -> MD: 1.53 | AT23: 11854022 | BH23: ="between "&BI77&" and "&BI78 -> between 0 and 6 | BJ23: 11854022
O24: NY_Z_A | P24: MN | Q24: MI | V24: Wind | AO24: ME | AP24: =IF(AO24=0,"",SUMIFS(CHOOSE(VLOOKUP($AL$16,'Lookup tables'!$AK$5:$AM$15,3,0), RPE_FuelConsumptionSummerTBtu, RPE_FuelConsumptionTotalTBtu, RPE_GenerationSummerGWh, RPE_GenerationTotalGWh, RPE_CO2EmissionsSummerThousandTons, RPE_CO2EmissionsTotalThousandTons, RPE_NOXEmissionsSummerThousandTons, RPE_NOXEmissionsTotalThousandTons, RPE_SO2EmissionsSummerThousandTons, RPE_SO2EmissionsTotalThousandTons, RPE_DispatchableCapacityMW), MeetPrimaryCriteria,"=1",IF($AL$6="IPM Region",RPE_RegionGroupAcronym,RPE_State),"="&IF($AL$6="National","*",$AO24))) -> 1.399169858 | AQ24: =IF(AO24=0,"",IF($AL$18="Actual",0,SUMIFS(CHOOSE(VLOOKUP($AL$33,'Lookup tables'!$AK$5:$AM$15,3,0), RPE_FuelConsumptionSummerTBtu, RPE_FuelConsumptionTotalTBtu, RPE_GenerationSummerGWh, RPE_GenerationTotalGWh, RPE_CO2EmissionsSummerThousandTons, RPE_CO2EmissionsTotalThousandTons, RPE_NOXEmissionsSummerThousandTons, RPE_NOXEmissionsTotalThousandTons, RPE_SO2EmissionsSummerThousandTons, RPE_SO2EmissionsTotalThousandTons, RPE_DispatchableCapacityMW), MeetComparisonCriteria,"=1",IF($AL$6="IPM Region",RPE_RegionGroupAcronym,RPE_State),"="&IF($AL$6="National","*",$AO24)))) -> 0 | AR24: 1.399169858 | AS24: 1.40 | AT24: 11854022 | BH24: ="between "&BI78&" and "&BI79 -> between 6 and 13 | BJ24: 9359529
O25: NY_Z_B | P25: MO | Q25: MN | V25: Coal 30% CCS | AK25: COMPARISON DIMENSIONS | AO25: MI | AP25: =IF(AO25=0,"",SUMIFS(CHOOSE(VLOOKUP($AL$16,'Lookup tables'!$AK$5:$AM$15,3,0), RPE_FuelConsumptionSummerTBtu, RPE_FuelConsumptionTotalTBtu, RPE_GenerationSummerGWh, RPE_GenerationTotalGWh, RPE_CO2EmissionsSummerThousandTons, RPE_CO2EmissionsTotalThousandTons, RPE_NOXEmissionsSummerThousandTons, RPE_NOXEmissionsTotalThousandTons, RPE_SO2EmissionsSummerThousandTons, RPE_SO2EmissionsTotalThousandTons, RPE_DispatchableCapacityMW), MeetPrimaryCriteria,"=1",IF($AL$6="IPM Region",RPE_RegionGroupAcronym,RPE_State),"="&IF($AL$6="National","*",$AO25))) -> 11.94291615 | AQ25: =IF(AO25=0,"",IF($AL$18="Actual",0,SUMIFS(CHOOSE(VLOOKUP($AL$33,'Lookup tables'!$AK$5:$AM$15,3,0), RPE_FuelConsumptionSummerTBtu, RPE_FuelConsumptionTotalTBtu, RPE_GenerationSummerGWh, RPE_GenerationTotalGWh, RPE_CO2EmissionsSummerThousandTons, RPE_CO2EmissionsTotalThousandTons, RPE_NOXEmissionsSummerThousandTons, RPE_NOXEmissionsTotalThousandTons, RPE_SO2EmissionsSummerThousandTons, RPE_SO2EmissionsTotalThousandTons, RPE_DispatchableCapacityMW), MeetComparisonCriteria,"=1",IF($AL$6="IPM Region",RPE_RegionGroupAcronym,RPE_State),"="&IF($AL$6="National","*",$AO25)))) -> 0 | AR25: 11.94291615 | AS25: 11.9 | AT25: 9359529 | BH25: ="between "&BI79&" and "&BI80 -> between 13 and 19 | BJ25: 4697456
O26: NY_Z_C&E | P26: MS | Q26: MO | V26: Coal 90% CCS | AK26: Fuel Type | AL26: All Units | AM26: RPE_FuelType | AO26: MN | AP26: =IF(AO26=0,"",SUMIFS(CHOOSE(VLOOKUP($AL$16,'Lookup tables'!$AK$5:$AM$15,3,0), RPE_FuelConsumptionSummerTBtu, RPE_FuelConsumptionTotalTBtu, RPE_GenerationSummerGWh, RPE_GenerationTotalGWh, RPE_CO2EmissionsSummerThousandTons, RPE_CO2EmissionsTotalThousandTons, RPE_NOXEmissionsSummerThousandTons, RPE_NOXEmissionsTotalThousandTons, RPE_SO2EmissionsSummerThousandTons, RPE_SO2EmissionsTotalThousandTons, RPE_DispatchableCapacityMW), MeetPrimaryCriteria,"=1",IF($AL$6="IPM Region",RPE_RegionGroupAcronym,RPE_State),"="&IF($AL$6="National","*",$AO26))) -> 6.218945711 | AQ26: =IF(AO26=0,"",IF($AL$18="Actual",0,SUMIFS(CHOOSE(VLOOKUP($AL$33,'Lookup tables'!$AK$5:$AM$15,3,0), RPE_FuelConsumptionSummerTBtu, RPE_FuelConsumptionTotalTBtu, RPE_GenerationSummerGWh, RPE_GenerationTotalGWh, RPE_CO2EmissionsSummerThousandTons, RPE_CO2EmissionsTotalThousandTons, RPE_NOXEmissionsSummerThousandTons, RPE_NOXEmissionsTotalThousandTons, RPE_SO2EmissionsSummerThousandTons, RPE_SO2EmissionsTotalThousandTons, RPE_DispatchableCapacityMW), MeetComparisonCriteria,"=1",IF($AL$6="IPM Region",RPE_RegionGroupAcronym,RPE_State),"="&IF($AL$6="National","*",$AO26)))) -> 0 | AR26: 6.218945711 | AS26: 6.22 | AT26: 11854022 | BH26: ="> "&BI80 -> > 19 | BJ26: 3506772
J27: RPE_FuelConsumptionSummerTBtu | O27: NY_Z_D | P27: MT | Q27: MS | V27: Coal W/CCS | AK27: Fossil >25 MW | AL27: All Units | AM27: RPE_Fossil25MW | AO27: MO | AP27: =IF(AO27=0,"",SUMIFS(CHOOSE(VLOOKUP($AL$16,'Lookup tables'!$AK$5:$AM$15,3,0), RPE_FuelConsumptionSummerTBtu, RPE_FuelConsumptionTotalTBtu, RPE_GenerationSummerGWh, RPE_GenerationTotalGWh, RPE_CO2EmissionsSummerThousandTons, RPE_CO2EmissionsTotalThousandTons, RPE_NOXEmissionsSummerThousandTons, RPE_NOXEmissionsTotalThousandTons, RPE_SO2EmissionsSummerThousandTons, RPE_SO2EmissionsTotalThousandTons, RPE_DispatchableCapacityMW), MeetPrimaryCriteria,"=1",IF($AL$6="IPM Region",RPE_RegionGroupAcronym,RPE_State),"="&IF($AL$6="National","*",$AO27))) -> 11.95717759 | AQ27: =IF(AO27=0,"",IF($AL$18="Actual",0,SUMIFS(CHOOSE(VLOOKUP($AL$33,'Lookup tables'!$AK$5:$AM$15,3,0), RPE_FuelConsumptionSummerTBtu, RPE_FuelConsumptionTotalTBtu, RPE_GenerationSummerGWh, RPE_GenerationTotalGWh, RPE_CO2EmissionsSummerThousandTons, RPE_CO2EmissionsTotalThousandTons, RPE_NOXEmissionsSummerThousandTons, RPE_NOXEmissionsTotalThousandTons, RPE_SO2EmissionsSummerThousandTons, RPE_SO2EmissionsTotalThousandTons, RPE_DispatchableCapacityMW), MeetComparisonCriteria,"=1",IF($AL$6="IPM Region",RPE_RegionGroupAcronym,RPE_State),"="&IF($AL$6="National","*",$AO27)))) -> 0 | AR27: 11.95717759 | AS27: 12.0 | AT27: 9359529
J28: RPE_FuelConsumptionTotalTBtu | O28: NY_Z_F | P28: NC | Q28: MT | V28: NGCC w/CCS | AK28: Existing/New/Retired | AL28: Existing and New | AM28: RPE_ExistingorNewUnit | AO28: MS | AP28: =IF(AO28=0,"",SUMIFS(CHOOSE(VLOOKUP($AL$16,'Lookup tables'!$AK$5:$AM$15,3,0), RPE_FuelConsumptionSummerTBtu, RPE_FuelConsumptionTotalTBtu, RPE_GenerationSummerGWh, RPE_GenerationTotalGWh, RPE_CO2EmissionsSummerThousandTons, RPE_CO2EmissionsTotalThousandTons, RPE_NOXEmissionsSummerThousandTons, RPE_NOXEmissionsTotalThousandTons, RPE_SO2EmissionsSummerThousandTons, RPE_SO2EmissionsTotalThousandTons, RPE_DispatchableCapacityMW), MeetPrimaryCriteria,"=1",IF($AL$6="IPM Region",RPE_RegionGroupAcronym,RPE_State),"="&IF($AL$6="National","*",$AO28))) -> 2.583857798 | AQ28: =IF(AO28=0,"",IF($AL$18="Actual",0,SUMIFS(CHOOSE(VLOOKUP($AL$33,'Lookup tables'!$AK$5:$AM$15,3,0), RPE_FuelConsumptionSummerTBtu, RPE_FuelConsumptionTotalTBtu, RPE_GenerationSummerGWh, RPE_GenerationTotalGWh, RPE_CO2EmissionsSummerThousandTons, RPE_CO2EmissionsTotalThousandTons, RPE_NOXEmissionsSummerThousandTons, RPE_NOXEmissionsTotalThousandTons, RPE_SO2EmissionsSummerThousandTons, RPE_SO2EmissionsTotalThousandTons, RPE_DispatchableCapacityMW), MeetComparisonCriteria,"=1",IF($AL$6="IPM Region",RPE_RegionGroupAcronym,RPE_State),"="&IF($AL$6="National","*",$AO28)))) -> 0 | AR28: 2.583857798 | AS28: 2.58 | AT28: 11854022
J29: RPE_GenerationSummerGWh | O29: NY_Z_G-I | P29: ND | Q29: NC | AK29: Plant Type | AL29: All Units | AM29: RPE_PlantType | AO29: MT | AP29: =IF(AO29=0,"",SUMIFS(CHOOSE(VLOOKUP($AL$16,'Lookup tables'!$AK$5:$AM$15,3,0), RPE_FuelConsumptionSummerTBtu, RPE_FuelConsumptionTotalTBtu, RPE_GenerationSummerGWh, RPE_GenerationTotalGWh, RPE_CO2EmissionsSummerThousandTons, RPE_CO2EmissionsTotalThousandTons, RPE_NOXEmissionsSummerThousandTons, RPE_NOXEmissionsTotalThousandTons, RPE_SO2EmissionsSummerThousandTons, RPE_SO2EmissionsTotalThousandTons, RPE_DispatchableCapacityMW), MeetPrimaryCriteria,"=1",IF($AL$6="IPM Region",RPE_RegionGroupAcronym,RPE_State),"="&IF($AL$6="National","*",$AO29))) -> 3.887775681 | AQ29: =IF(AO29=0,"",IF($AL$18="Actual",0,SUMIFS(CHOOSE(VLOOKUP($AL$33,'Lookup tables'!$AK$5:$AM$15,3,0), RPE_FuelConsumptionSummerTBtu, RPE_FuelConsumptionTotalTBtu, RPE_GenerationSummerGWh, RPE_GenerationTotalGWh, RPE_CO2EmissionsSummerThousandTons, RPE_CO2EmissionsTotalThousandTons, RPE_NOXEmissionsSummerThousandTons, RPE_NOXEmissionsTotalThousandTons, RPE_SO2EmissionsSummerThousandTons, RPE_SO2EmissionsTotalThousandTons, RPE_DispatchableCapacityMW), MeetComparisonCriteria,"=1",IF($AL$6="IPM Region",RPE_RegionGroupAcronym,RPE_State),"="&IF($AL$6="National","*",$AO29)))) -> 0 | AR29: 3.887775681 | AS29: 3.89 | AT29: 11854022
J30: RPE_GenerationTotalGWh | O30: NY_Z_J | P30: NE | Q30: ND | AK30: Plant Category | AL30: All Units | AM30: RPE_PlantCategory | AO30: NC | AP30: =IF(AO30=0,"",SUMIFS(CHOOSE(VLOOKUP($AL$16,'Lookup tables'!$AK$5:$AM$15,3,0), RPE_FuelConsumptionSummerTBtu, RPE_FuelConsumptionTotalTBtu, RPE_GenerationSummerGWh, RPE_GenerationTotalGWh, RPE_CO2EmissionsSummerThousandTons, RPE_CO2EmissionsTotalThousandTons, RPE_NOXEmissionsSummerThousandTons, RPE_NOXEmissionsTotalThousandTons, RPE_SO2EmissionsSummerThousandTons, RPE_SO2EmissionsTotalThousandTons, RPE_DispatchableCapacityMW), MeetPrimaryCriteria,"=1",IF($AL$6="IPM Region",RPE_RegionGroupAcronym,RPE_State),"="&IF($AL$6="National","*",$AO30))) -> 8.711660691 | AQ30: =IF(AO30=0,"",IF($AL$18="Actual",0,SUMIFS(CHOOSE(VLOOKUP($AL$33,'Lookup tables'!$AK$5:$AM$15,3,0), RPE_FuelConsumptionSummerTBtu, RPE_FuelConsumptionTotalTBtu, RPE_GenerationSummerGWh, RPE_GenerationTotalGWh, RPE_CO2EmissionsSummerThousandTons, RPE_CO2EmissionsTotalThousandTons, RPE_NOXEmissionsSummerThousandTons, RPE_NOXEmissionsTotalThousandTons, RPE_SO2EmissionsSummerThousandTons, RPE_SO2EmissionsTotalThousandTons, RPE_DispatchableCapacityMW), MeetComparisonCriteria,"=1",IF($AL$6="IPM Region",RPE_RegionGroupAcronym,RPE_State),"="&IF($AL$6="National","*",$AO30)))) -> 0 | AR30: 8.711660691 | AS30: 8.71 | AT30: 9359529
J31: RPE_CO2EmissionsSummerThousandTons | O31: NY_Z_K | P31: NH | Q31: NE | AK31: Control/Retrofit Types | AL31: All Units | AM31: =MATCH(AL31,Controls,0) -> 1 | AO31: ND | AP31: =IF(AO31=0,"",SUMIFS(CHOOSE(VLOOKUP($AL$16,'Lookup tables'!$AK$5:$AM$15,3,0), RPE_FuelConsumptionSummerTBtu, RPE_FuelConsumptionTotalTBtu, RPE_GenerationSummerGWh, RPE_GenerationTotalGWh, RPE_CO2EmissionsSummerThousandTons, RPE_CO2EmissionsTotalThousandTons, RPE_NOXEmissionsSummerThousandTons, RPE_NOXEmissionsTotalThousandTons, RPE_SO2EmissionsSummerThousandTons, RPE_SO2EmissionsTotalThousandTons, RPE_DispatchableCapacityMW), MeetPrimaryCriteria,"=1",IF($AL$6="IPM Region",RPE_RegionGroupAcronym,RPE_State),"="&IF($AL$6="National","*",$AO31))) -> 8.587205676 | AQ31: =IF(AO31=0,"",IF($AL$18="Actual",0,SUMIFS(CHOOSE(VLOOKUP($AL$33,'Lookup tables'!$AK$5:$AM$15,3,0), RPE_FuelConsumptionSummerTBtu, RPE_FuelConsumptionTotalTBtu, RPE_GenerationSummerGWh, RPE_GenerationTotalGWh, RPE_CO2EmissionsSummerThousandTons, RPE_CO2EmissionsTotalThousandTons, RPE_NOXEmissionsSummerThousandTons, RPE_NOXEmissionsTotalThousandTons, RPE_SO2EmissionsSummerThousandTons, RPE_SO2EmissionsTotalThousandTons, RPE_DispatchableCapacityMW), MeetComparisonCriteria,"=1",IF($AL$6="IPM Region",RPE_RegionGroupAcronym,RPE_State),"="&IF($AL$6="National","*",$AO31)))) -> 0 | AR31: 8.587205676 | AS31: 8.59 | AT31: 9359529
J32: RPE_CO2EmissionsTotalThousandTons | O32: PJM_AP | P32: NJ | Q32: NH | AK32: Existing or New Controls | AL32: All Controls | AO32: NE | AP32: =IF(AO32=0,"",SUMIFS(CHOOSE(VLOOKUP($AL$16,'Lookup tables'!$AK$5:$AM$15,3,0), RPE_FuelConsumptionSummerTBtu, RPE_FuelConsumptionTotalTBtu, RPE_GenerationSummerGWh, RPE_GenerationTotalGWh, RPE_CO2EmissionsSummerThousandTons, RPE_CO2EmissionsTotalThousandTons, RPE_NOXEmissionsSummerThousandTons, RPE_NOXEmissionsTotalThousandTons, RPE_SO2EmissionsSummerThousandTons, RPE_SO2EmissionsTotalThousandTons, RPE_DispatchableCapacityMW), MeetPrimaryCriteria,"=1",IF($AL$6="IPM Region",RPE_RegionGroupAcronym,RPE_State),"="&IF($AL$6="National","*",$AO32))) -> 10.63418971 | AQ32: =IF(AO32=0,"",IF($AL$18="Actual",0,SUMIFS(CHOOSE(VLOOKUP($AL$33,'Lookup tables'!$AK$5:$AM$15,3,0), RPE_FuelConsumptionSummerTBtu, RPE_FuelConsumptionTotalTBtu, RPE_GenerationSummerGWh, RPE_GenerationTotalGWh, RPE_CO2EmissionsSummerThousandTons, RPE_CO2EmissionsTotalThousandTons, RPE_NOXEmissionsSummerThousandTons, RPE_NOXEmissionsTotalThousandTons, RPE_SO2EmissionsSummerThousandTons, RPE_SO2EmissionsTotalThousandTons, RPE_DispatchableCapacityMW), MeetComparisonCriteria,"=1",IF($AL$6="IPM Region",RPE_RegionGroupAcronym,RPE_State),"="&IF($AL$6="National","*",$AO32)))) -> 0 | AR32: 10.63418971 | AS32: 10.6 | AT32: 9359529
J33: RPE_NOXEmissionsSummerThousandTons | O33: PJM_ATSI | P33: NM | Q33: NJ | AK33: COMPARISON MEASURE | AL33: NOX Emissions Summer Thousand Tons | AM33: =VLOOKUP(AL33,'Lookup tables'!$AD$5:$AF$68,3,0) -> RPE_NOXEmissionsSummerThousandTons | AO33: NH | AP33: =IF(AO33=0,"",SUMIFS(CHOOSE(VLOOKUP($AL$16,'Lookup tables'!$AK$5:$AM$15,3,0), RPE_FuelConsumptionSummerTBtu, RPE_FuelConsumptionTotalTBtu, RPE_GenerationSummerGWh, RPE_GenerationTotalGWh, RPE_CO2EmissionsSummerThousandTons, RPE_CO2EmissionsTotalThousandTons, RPE_NOXEmissionsSummerThousandTons, RPE_NOXEmissionsTotalThousandTons, RPE_SO2EmissionsSummerThousandTons, RPE_SO2EmissionsTotalThousandTons, RPE_DispatchableCapacityMW), MeetPrimaryCriteria,"=1",IF($AL$6="IPM Region",RPE_RegionGroupAcronym,RPE_State),"="&IF($AL$6="National","*",$AO33))) -> 0.2458698342 | AQ33: =IF(AO33=0,"",IF($AL$18="Actual",0,SUMIFS(CHOOSE(VLOOKUP($AL$33,'Lookup tables'!$AK$5:$AM$15,3,0), RPE_FuelConsumptionSummerTBtu, RPE_FuelConsumptionTotalTBtu, RPE_GenerationSummerGWh, RPE_GenerationTotalGWh, RPE_CO2EmissionsSummerThousandTons, RPE_CO2EmissionsTotalThousandTons, RPE_NOXEmissionsSummerThousandTons, RPE_NOXEmissionsTotalThousandTons, RPE_SO2EmissionsSummerThousandTons, RPE_SO2EmissionsTotalThousandTons, RPE_DispatchableCapacityMW), MeetComparisonCriteria,"=1",IF($AL$6="IPM Region",RPE_RegionGroupAcronym,RPE_State),"="&IF($AL$6="National","*",$AO33)))) -> 0 | AR33: 0.2458698342 | AS33: =IF(AR33="","","NH: "&IF($AS$2="Percent",TEXT(AR33,"##0%"),IF($AS$2="Decimal",TEXT(AR33,"0.00"),IF(ABS(AR33)>=100,TEXT(AR33,"###,###"),IF(ABS(AR33)>=10,TEXT(AR33,"##0.0"),IF(ABS(AR33)>=1,TEXT(AR33,"#0.00"),TEXT(AR33,"#0.000"))))))) -> NH: 0.246 | AT33: 11854022
J34: RPE_NOXEmissionsTotalThousandTons | O34: PJM_COMD | P34: NV | Q34: NM | AO34: NJ | AP34: =IF(AO34=0,"",SUMIFS(CHOOSE(VLOOKUP($AL$16,'Lookup tables'!$AK$5:$AM$15,3,0), RPE_FuelConsumptionSummerTBtu, RPE_FuelConsumptionTotalTBtu, RPE_GenerationSummerGWh, RPE_GenerationTotalGWh, RPE_CO2EmissionsSummerThousandTons, RPE_CO2EmissionsTotalThousandTons, RPE_NOXEmissionsSummerThousandTons, RPE_NOXEmissionsTotalThousandTons, RPE_SO2EmissionsSummerThousandTons, RPE_SO2EmissionsTotalThousandTons, RPE_DispatchableCapacityMW), MeetPrimaryCriteria,"=1",IF($AL$6="IPM Region",RPE_RegionGroupAcronym,RPE_State),"="&IF($AL$6="National","*",$AO34))) -> 1.944013777 | AQ34: =IF(AO34=0,"",IF($AL$18="Actual",0,SUMIFS(CHOOSE(VLOOKUP($AL$33,'Lookup tables'!$AK$5:$AM$15,3,0), RPE_FuelConsumptionSummerTBtu, RPE_FuelConsumptionTotalTBtu, RPE_GenerationSummerGWh, RPE_GenerationTotalGWh, RPE_CO2EmissionsSummerThousandTons, RPE_CO2EmissionsTotalThousandTons, RPE_NOXEmissionsSummerThousandTons, RPE_NOXEmissionsTotalThousandTons, RPE_SO2EmissionsSummerThousandTons, RPE_SO2EmissionsTotalThousandTons, RPE_DispatchableCapacityMW), MeetComparisonCriteria,"=1",IF($AL$6="IPM Region",RPE_RegionGroupAcronym,RPE_State),"="&IF($AL$6="National","*",$AO34)))) -> 0 | AR34: 1.944013777 | AS34: =IF(AR34="","","NJ: "&IF($AS$2="Percent",TEXT(AR34,"##0%"),IF($AS$2="Decimal",TEXT(AR34,"0.00"),IF(ABS(AR34)>=100,TEXT(AR34,"###,###"),IF(ABS(AR34)>=10,TEXT(AR34,"##0.0"),IF(ABS(AR34)>=1,TEXT(AR34,"#0.00"),TEXT(AR34,"#0.000"))))))) -> NJ: 1.94 | AT34: 11854022
J35: RPE_SO2EmissionsSummerThousandTons | O35: PJM_Dom | P35: NY | Q35: NV | AO35: NM | AP35: =IF(AO35=0,"",SUMIFS(CHOOSE(VLOOKUP($AL$16,'Lookup tables'!$AK$5:$AM$15,3,0), RPE_FuelConsumptionSummerTBtu, RPE_FuelConsumptionTotalTBtu, RPE_GenerationSummerGWh, RPE_GenerationTotalGWh, RPE_CO2EmissionsSummerThousandTons, RPE_CO2EmissionsTotalThousandTons, RPE_NOXEmissionsSummerThousandTons, RPE_NOXEmissionsTotalThousandTons, RPE_SO2EmissionsSummerThousandTons, RPE_SO2EmissionsTotalThousandTons, RPE_DispatchableCapacityMW), MeetPrimaryCriteria,"=1",IF($AL$6="IPM Region",RPE_RegionGroupAcronym,RPE_State),"="&IF($AL$6="National","*",$AO35))) -> 1.174144524 | AQ35: =IF(AO35=0,"",IF($AL$18="Actual",0,SUMIFS(CHOOSE(VLOOKUP($AL$33,'Lookup tables'!$AK$5:$AM$15,3,0), RPE_FuelConsumptionSummerTBtu, RPE_FuelConsumptionTotalTBtu, RPE_GenerationSummerGWh, RPE_GenerationTotalGWh, RPE_CO2EmissionsSummerThousandTons, RPE_CO2EmissionsTotalThousandTons, RPE_NOXEmissionsSummerThousandTons, RPE_NOXEmissionsTotalThousandTons, RPE_SO2EmissionsSummerThousandTons, RPE_SO2EmissionsTotalThousandTons, RPE_DispatchableCapacityMW), MeetComparisonCriteria,"=1",IF($AL$6="IPM Region",RPE_RegionGroupAcronym,RPE_State),"="&IF($AL$6="National","*",$AO35)))) -> 0 | AR35: 1.174144524 | AS35: 1.17 | AT35: 11854022
J36: RPE_SO2EmissionsTotalThousandTons | O36: PJM_EMAC | P36: OH | Q36: NY | AO36: NV | AP36: =IF(AO36=0,"",SUMIFS(CHOOSE(VLOOKUP($AL$16,'Lookup tables'!$AK$5:$AM$15,3,0), RPE_FuelConsumptionSummerTBtu, RPE_FuelConsumptionTotalTBtu, RPE_GenerationSummerGWh, RPE_GenerationTotalGWh, RPE_CO2EmissionsSummerThousandTons, RPE_CO2EmissionsTotalThousandTons, RPE_NOXEmissionsSummerThousandTons, RPE_NOXEmissionsTotalThousandTons, RPE_SO2EmissionsSummerThousandTons, RPE_SO2EmissionsTotalThousandTons, RPE_DispatchableCapacityMW), MeetPrimaryCriteria,"=1",IF($AL$6="IPM Region",RPE_RegionGroupAcronym,RPE_State),"="&IF($AL$6="National","*",$AO36))) -> 1.536740216 | AQ36: =IF(AO36=0,"",IF($AL$18="Actual",0,SUMIFS(CHOOSE(VLOOKUP($AL$33,'Lookup tables'!$AK$5:$AM$15,3,0), RPE_FuelConsumptionSummerTBtu, RPE_FuelConsumptionTotalTBtu, RPE_GenerationSummerGWh, RPE_GenerationTotalGWh, RPE_CO2EmissionsSummerThousandTons, RPE_CO2EmissionsTotalThousandTons, RPE_NOXEmissionsSummerThousandTons, RPE_NOXEmissionsTotalThousandTons, RPE_SO2EmissionsSummerThousandTons, RPE_SO2EmissionsTotalThousandTons, RPE_DispatchableCapacityMW), MeetComparisonCriteria,"=1",IF($AL$6="IPM Region",RPE_RegionGroupAcronym,RPE_State),"="&IF($AL$6="National","*",$AO36)))) -> 0 | AR36: 1.536740216 | AS36: 1.54 | AT36: 11854022
J37: RPE_DispatchableCapacityMW | O37: PJM_PENE | P37: OK | Q37: OH | AK37: ***You must click the update button to update the map | AO37: NY | AP37: =IF(AO37=0,"",SUMIFS(CHOOSE(VLOOKUP($AL$16,'Lookup tables'!$AK$5:$AM$15,3,0), RPE_FuelConsumptionSummerTBtu, RPE_FuelConsumptionTotalTBtu, RPE_GenerationSummerGWh, RPE_GenerationTotalGWh, RPE_CO2EmissionsSummerThousandTons, RPE_CO2EmissionsTotalThousandTons, RPE_NOXEmissionsSummerThousandTons, RPE_NOXEmissionsTotalThousandTons, RPE_SO2EmissionsSummerThousandTons, RPE_SO2EmissionsTotalThousandTons, RPE_DispatchableCapacityMW), MeetPrimaryCriteria,"=1",IF($AL$6="IPM Region",RPE_RegionGroupAcronym,RPE_State),"="&IF($AL$6="National","*",$AO37))) -> 6.390965958 | AQ37: =IF(AO37=0,"",IF($AL$18="Actual",0,SUMIFS(CHOOSE(VLOOKUP($AL$33,'Lookup tables'!$AK$5:$AM$15,3,0), RPE_FuelConsumptionSummerTBtu, RPE_FuelConsumptionTotalTBtu, RPE_GenerationSummerGWh, RPE_GenerationTotalGWh, RPE_CO2EmissionsSummerThousandTons, RPE_CO2EmissionsTotalThousandTons, RPE_NOXEmissionsSummerThousandTons, RPE_NOXEmissionsTotalThousandTons, RPE_SO2EmissionsSummerThousandTons, RPE_SO2EmissionsTotalThousandTons, RPE_DispatchableCapacityMW), MeetComparisonCriteria,"=1",IF($AL$6="IPM Region",RPE_RegionGroupAcronym,RPE_State),"="&IF($AL$6="National","*",$AO37)))) -> 0 | AR37: 6.390965958 | AS37: 6.39 | AT37: 9359529
O38: PJM_SMAC | P38: OR | Q38: OK | AO38: OH | AP38: =IF(AO38=0,"",SUMIFS(CHOOSE(VLOOKUP($AL$16,'Lookup tables'!$AK$5:$AM$15,3,0), RPE_FuelConsumptionSummerTBtu, RPE_FuelConsumptionTotalTBtu, RPE_GenerationSummerGWh, RPE_GenerationTotalGWh, RPE_CO2EmissionsSummerThousandTons, RPE_CO2EmissionsTotalThousandTons, RPE_NOXEmissionsSummerThousandTons, RPE_NOXEmissionsTotalThousandTons, RPE_SO2EmissionsSummerThousandTons, RPE_SO2EmissionsTotalThousandTons, RPE_DispatchableCapacityMW), MeetPrimaryCriteria,"=1",IF($AL$6="IPM Region",RPE_RegionGroupAcronym,RPE_State),"="&IF($AL$6="National","*",$AO38))) -> 10.36948405 | AQ38: =IF(AO38=0,"",IF($AL$18="Actual",0,SUMIFS(CHOOSE(VLOOKUP($AL$33,'Lookup tables'!$AK$5:$AM$15,3,0), RPE_FuelConsumptionSummerTBtu, RPE_FuelConsumptionTotalTBtu, RPE_GenerationSummerGWh, RPE_GenerationTotalGWh, RPE_CO2EmissionsSummerThousandTons, RPE_CO2EmissionsTotalThousandTons, RPE_NOXEmissionsSummerThousandTons, RPE_NOXEmissionsTotalThousandTons, RPE_SO2EmissionsSummerThousandTons, RPE_SO2EmissionsTotalThousandTons, RPE_DispatchableCapacityMW), MeetComparisonCriteria,"=1",IF($AL$6="IPM Region",RPE_RegionGroupAcronym,RPE_State),"="&IF($AL$6="National","*",$AO38)))) -> 0 | AR38: 10.36948405 | AS38: 10.4 | AT38: 9359529
O39: PJM_West | P39: PA | Q39: OR | AO39: OK | AP39: =IF(AO39=0,"",SUMIFS(CHOOSE(VLOOKUP($AL$16,'Lookup tables'!$AK$5:$AM$15,3,0), RPE_FuelConsumptionSummerTBtu, RPE_FuelConsumptionTotalTBtu, RPE_GenerationSummerGWh, RPE_GenerationTotalGWh, RPE_CO2EmissionsSummerThousandTons, RPE_CO2EmissionsTotalThousandTons, RPE_NOXEmissionsSummerThousandTons, RPE_NOXEmissionsTotalThousandTons, RPE_SO2EmissionsSummerThousandTons, RPE_SO2EmissionsTotalThousandTons, RPE_DispatchableCapacityMW), MeetPrimaryCriteria,"=1",IF($AL$6="IPM Region",RPE_RegionGroupAcronym,RPE_State),"="&IF($AL$6="National","*",$AO39))) -> 2.801441063 | AQ39: =IF(AO39=0,"",IF($AL$18="Actual",0,SUMIFS(CHOOSE(VLOOKUP($AL$33,'Lookup tables'!$AK$5:$AM$15,3,0), RPE_FuelConsumptionSummerTBtu, RPE_FuelConsumptionTotalTBtu, RPE_GenerationSummerGWh, RPE_GenerationTotalGWh, RPE_CO2EmissionsSummerThousandTons, RPE_CO2EmissionsTotalThousandTons, RPE_NOXEmissionsSummerThousandTons, RPE_NOXEmissionsTotalThousandTons, RPE_SO2EmissionsSummerThousandTons, RPE_SO2EmissionsTotalThousandTons, RPE_DispatchableCapacityMW), MeetComparisonCriteria,"=1",IF($AL$6="IPM Region",RPE_RegionGroupAcronym,RPE_State),"="&IF($AL$6="National","*",$AO39)))) -> 0 | AR39: 2.801441063 | AS39: 2.80 | AT39: 11854022
O40: PJM_WMAC | P40: RI | Q40: PA | V40: Fuel Consumption Summer TBtu | W40: TBtu | AO40: OR | AP40: =IF(AO40=0,"",SUMIFS(CHOOSE(VLOOKUP($AL$16,'Lookup tables'!$AK$5:$AM$15,3,0), RPE_FuelConsumptionSummerTBtu, RPE_FuelConsumptionTotalTBtu, RPE_GenerationSummerGWh, RPE_GenerationTotalGWh, RPE_CO2EmissionsSummerThousandTons, RPE_CO2EmissionsTotalThousandTons, RPE_NOXEmissionsSummerThousandTons, RPE_NOXEmissionsTotalThousandTons, RPE_SO2EmissionsSummerThousandTons, RPE_SO2EmissionsTotalThousandTons, RPE_DispatchableCapacityMW), MeetPrimaryCriteria,"=1",IF($AL$6="IPM Region",RPE_RegionGroupAcronym,RPE_State),"="&IF($AL$6="National","*",$AO40))) -> 1.181213548 | AQ40: =IF(AO40=0,"",IF($AL$18="Actual",0,SUMIFS(CHOOSE(VLOOKUP($AL$33,'Lookup tables'!$AK$5:$AM$15,3,0), RPE_FuelConsumptionSummerTBtu, RPE_FuelConsumptionTotalTBtu, RPE_GenerationSummerGWh, RPE_GenerationTotalGWh, RPE_CO2EmissionsSummerThousandTons, RPE_CO2EmissionsTotalThousandTons, RPE_NOXEmissionsSummerThousandTons, RPE_NOXEmissionsTotalThousandTons, RPE_SO2EmissionsSummerThousandTons, RPE_SO2EmissionsTotalThousandTons, RPE_DispatchableCapacityMW), MeetComparisonCriteria,"=1",IF($AL$6="IPM Region",RPE_RegionGroupAcronym,RPE_State),"="&IF($AL$6="National","*",$AO40)))) -> 0 | AR40: 1.181213548 | AS40: 1.18 | AT40: 11854022
O41: S_C_KY | P41: SC | Q41: RI | V41: Fuel Consumption Total TBtu | W41: TBtu | AO41: PA | AP41: =IF(AO41=0,"",SUMIFS(CHOOSE(VLOOKUP($AL$16,'Lookup tables'!$AK$5:$AM$15,3,0), RPE_FuelConsumptionSummerTBtu, RPE_FuelConsumptionTotalTBtu, RPE_GenerationSummerGWh, RPE_GenerationTotalGWh, RPE_CO2EmissionsSummerThousandTons, RPE_CO2EmissionsTotalThousandTons, RPE_NOXEmissionsSummerThousandTons, RPE_NOXEmissionsTotalThousandTons, RPE_SO2EmissionsSummerThousandTons, RPE_SO2EmissionsTotalThousandTons, RPE_DispatchableCapacityMW), MeetPrimaryCriteria,"=1",IF($AL$6="IPM Region",RPE_RegionGroupAcronym,RPE_State),"="&IF($AL$6="National","*",$AO41))) -> 10.62148619 | AQ41: =IF(AO41=0,"",IF($AL$18="Actual",0,SUMIFS(CHOOSE(VLOOKUP($AL$33,'Lookup tables'!$AK$5:$AM$15,3,0), RPE_FuelConsumptionSummerTBtu, RPE_FuelConsumptionTotalTBtu, RPE_GenerationSummerGWh, RPE_GenerationTotalGWh, RPE_CO2EmissionsSummerThousandTons, RPE_CO2EmissionsTotalThousandTons, RPE_NOXEmissionsSummerThousandTons, RPE_NOXEmissionsTotalThousandTons, RPE_SO2EmissionsSummerThousandTons, RPE_SO2EmissionsTotalThousandTons, RPE_DispatchableCapacityMW), MeetComparisonCriteria,"=1",IF($AL$6="IPM Region",RPE_RegionGroupAcronym,RPE_State),"="&IF($AL$6="National","*",$AO41)))) -> 0 | AR41: 10.62148619 | AS41: 10.6 | AT41: 9359529
O42: S_C_TVA | P42: SD | Q42: SC | V42: Generation Summer GWh | W42: GWh | AO42: RI | AP42: =IF(AO42=0,"",SUMIFS(CHOOSE(VLOOKUP($AL$16,'Lookup tables'!$AK$5:$AM$15,3,0), RPE_FuelConsumptionSummerTBtu, RPE_FuelConsumptionTotalTBtu, RPE_GenerationSummerGWh, RPE_GenerationTotalGWh, RPE_CO2EmissionsSummerThousandTons, RPE_CO2EmissionsTotalThousandTons, RPE_NOXEmissionsSummerThousandTons, RPE_NOXEmissionsTotalThousandTons, RPE_SO2EmissionsSummerThousandTons, RPE_SO2EmissionsTotalThousandTons, RPE_DispatchableCapacityMW), MeetPrimaryCriteria,"=1",IF($AL$6="IPM Region",RPE_RegionGroupAcronym,RPE_State),"="&IF($AL$6="National","*",$AO42))) -> 0.2351583279 | AQ42: =IF(AO42=0,"",IF($AL$18="Actual",0,SUMIFS(CHOOSE(VLOOKUP($AL$33,'Lookup tables'!$AK$5:$AM$15,3,0), RPE_FuelConsumptionSummerTBtu, RPE_FuelConsumptionTotalTBtu, RPE_GenerationSummerGWh, RPE_GenerationTotalGWh, RPE_CO2EmissionsSummerThousandTons, RPE_CO2EmissionsTotalThousandTons, RPE_NOXEmissionsSummerThousandTons, RPE_NOXEmissionsTotalThousandTons, RPE_SO2EmissionsSummerThousandTons, RPE_SO2EmissionsTotalThousandTons, RPE_DispatchableCapacityMW), MeetComparisonCriteria,"=1",IF($AL$6="IPM Region",RPE_RegionGroupAcronym,RPE_State),"="&IF($AL$6="National","*",$AO42)))) -> 0 | AR42: 0.2351583279 | AS42: =IF(AR42="","","RI: "&IF($AS$2="Percent",TEXT(AR42,"##0%"),IF($AS$2="Decimal",TEXT(AR42,"0.00"),IF(ABS(AR42)>=100,TEXT(AR42,"###,###"),IF(ABS(AR42)>=10,TEXT(AR42,"##0.0"),IF(ABS(AR42)>=1,TEXT(AR42,"#0.00"),TEXT(AR42,"#0.000"))))))) -> RI: 0.235 | AT42: 11854022 | AX42: =AL6 -> State | AY42: National | BB42: Comparison Year: | BC42: Parallel
O43: S_D_AECI | P43: TN | Q43: SD | V43: Generation Total GWh | W43: GWh | AO43: SC | AP43: =IF(AO43=0,"",SUMIFS(CHOOSE(VLOOKUP($AL$16,'Lookup tables'!$AK$5:$AM$15,3,0), RPE_FuelConsumptionSummerTBtu, RPE_FuelConsumptionTotalTBtu, RPE_GenerationSummerGWh, RPE_GenerationTotalGWh, RPE_CO2EmissionsSummerThousandTons, RPE_CO2EmissionsTotalThousandTons, RPE_NOXEmissionsSummerThousandTons, RPE_NOXEmissionsTotalThousandTons, RPE_SO2EmissionsSummerThousandTons, RPE_SO2EmissionsTotalThousandTons, RPE_DispatchableCapacityMW), MeetPrimaryCriteria,"=1",IF($AL$6="IPM Region",RPE_RegionGroupAcronym,RPE_State),"="&IF($AL$6="National","*",$AO43))) -> 4.564426272 | AQ43: =IF(AO43=0,"",IF($AL$18="Actual",0,SUMIFS(CHOOSE(VLOOKUP($AL$33,'Lookup tables'!$AK$5:$AM$15,3,0), RPE_FuelConsumptionSummerTBtu, RPE_FuelConsumptionTotalTBtu, RPE_GenerationSummerGWh, RPE_GenerationTotalGWh, RPE_CO2EmissionsSummerThousandTons, RPE_CO2EmissionsTotalThousandTons, RPE_NOXEmissionsSummerThousandTons, RPE_NOXEmissionsTotalThousandTons, RPE_SO2EmissionsSummerThousandTons, RPE_SO2EmissionsTotalThousandTons, RPE_DispatchableCapacityMW), MeetComparisonCriteria,"=1",IF($AL$6="IPM Region",RPE_RegionGroupAcronym,RPE_State),"="&IF($AL$6="National","*",$AO43)))) -> 0 | AR43: 4.564426272 | AS43: 4.56 | AT43: 11854022
O44: S_SOU | P44: TX | Q44: TN | V44: CO2 Emissions Summer Thousand Tons | W44: Thousand (short) tons CO2 | AO44: SD | AP44: =IF(AO44=0,"",SUMIFS(CHOOSE(VLOOKUP($AL$16,'Lookup tables'!$AK$5:$AM$15,3,0), RPE_FuelConsumptionSummerTBtu, RPE_FuelConsumptionTotalTBtu, RPE_GenerationSummerGWh, RPE_GenerationTotalGWh, RPE_CO2EmissionsSummerThousandTons, RPE_CO2EmissionsTotalThousandTons, RPE_NOXEmissionsSummerThousandTons, RPE_NOXEmissionsTotalThousandTons, RPE_SO2EmissionsSummerThousandTons, RPE_SO2EmissionsTotalThousandTons, RPE_DispatchableCapacityMW), MeetPrimaryCriteria,"=1",IF($AL$6="IPM Region",RPE_RegionGroupAcronym,RPE_State),"="&IF($AL$6="National","*",$AO44))) -> 0.4520672949 | AQ44: =IF(AO44=0,"",IF($AL$18="Actual",0,SUMIFS(CHOOSE(VLOOKUP($AL$33,'Lookup tables'!$AK$5:$AM$15,3,0), RPE_FuelConsumptionSummerTBtu, RPE_FuelConsumptionTotalTBtu, RPE_GenerationSummerGWh, RPE_GenerationTotalGWh, RPE_CO2EmissionsSummerThousandTons, RPE_CO2EmissionsTotalThousandTons, RPE_NOXEmissionsSummerThousandTons, RPE_NOXEmissionsTotalThousandTons, RPE_SO2EmissionsSummerThousandTons, RPE_SO2EmissionsTotalThousandTons, RPE_DispatchableCapacityMW), MeetComparisonCriteria,"=1",IF($AL$6="IPM Region",RPE_RegionGroupAcronym,RPE_State),"="&IF($AL$6="National","*",$AO44)))) -> 0 | AR44: 0.4520672949 | AS44: 0.452 | AT44: 11854022 | AW44: *Historical data is still under development. It is approximate and may not always provide an apples-to-apples comparison to IPM outputs. See READ ME worksheet for more info.
O45: S_VACA | P45: UT | Q45: TX | V45: CO2 Emissions Total Thousand Tons | W45: Thousand (short) tons CO2 | AO45: TN | AP45: =IF(AO45=0,"",SUMIFS(CHOOSE(VLOOKUP($AL$16,'Lookup tables'!$AK$5:$AM$15,3,0), RPE_FuelConsumptionSummerTBtu, RPE_FuelConsumptionTotalTBtu, RPE_GenerationSummerGWh, RPE_GenerationTotalGWh, RPE_CO2EmissionsSummerThousandTons, RPE_CO2EmissionsTotalThousandTons, RPE_NOXEmissionsSummerThousandTons, RPE_NOXEmissionsTotalThousandTons, RPE_SO2EmissionsSummerThousandTons, RPE_SO2EmissionsTotalThousandTons, RPE_DispatchableCapacityMW), MeetPrimaryCriteria,"=1",IF($AL$6="IPM Region",RPE_RegionGroupAcronym,RPE_State),"="&IF($AL$6="National","*",$AO45))) -> 1.116916881 | AQ45: =IF(AO45=0,"",IF($AL$18="Actual",0,SUMIFS(CHOOSE(VLOOKUP($AL$33,'Lookup tables'!$AK$5:$AM$15,3,0), RPE_FuelConsumptionSummerTBtu, RPE_FuelConsumptionTotalTBtu, RPE_GenerationSummerGWh, RPE_GenerationTotalGWh, RPE_CO2EmissionsSummerThousandTons, RPE_CO2EmissionsTotalThousandTons, RPE_NOXEmissionsSummerThousandTons, RPE_NOXEmissionsTotalThousandTons, RPE_SO2EmissionsSummerThousandTons, RPE_SO2EmissionsTotalThousandTons, RPE_DispatchableCapacityMW), MeetComparisonCriteria,"=1",IF($AL$6="IPM Region",RPE_RegionGroupAcronym,RPE_State),"="&IF($AL$6="National","*",$AO45)))) -> 0 | AR45: 1.116916881 | AS45: 1.12 | AT45: 11854022
O46: SPP_N | P46: VA | Q46: UT | V46: NOX Emissions Summer Thousand Tons | W46: Thousand (short) tons NOx | AO46: TX | AP46: =IF(AO46=0,"",SUMIFS(CHOOSE(VLOOKUP($AL$16,'Lookup tables'!$AK$5:$AM$15,3,0), RPE_FuelConsumptionSummerTBtu, RPE_FuelConsumptionTotalTBtu, RPE_GenerationSummerGWh, RPE_GenerationTotalGWh, RPE_CO2EmissionsSummerThousandTons, RPE_CO2EmissionsTotalThousandTons, RPE_NOXEmissionsSummerThousandTons, RPE_NOXEmissionsTotalThousandTons, RPE_SO2EmissionsSummerThousandTons, RPE_SO2EmissionsTotalThousandTons, RPE_DispatchableCapacityMW), MeetPrimaryCriteria,"=1",IF($AL$6="IPM Region",RPE_RegionGroupAcronym,RPE_State),"="&IF($AL$6="National","*",$AO46))) -> 25.40224299 | AQ46: =IF(AO46=0,"",IF($AL$18="Actual",0,SUMIFS(CHOOSE(VLOOKUP($AL$33,'Lookup tables'!$AK$5:$AM$15,3,0), RPE_FuelConsumptionSummerTBtu, RPE_FuelConsumptionTotalTBtu, RPE_GenerationSummerGWh, RPE_GenerationTotalGWh, RPE_CO2EmissionsSummerThousandTons, RPE_CO2EmissionsTotalThousandTons, RPE_NOXEmissionsSummerThousandTons, RPE_NOXEmissionsTotalThousandTons, RPE_SO2EmissionsSummerThousandTons, RPE_SO2EmissionsTotalThousandTons, RPE_DispatchableCapacityMW), MeetComparisonCriteria,"=1",IF($AL$6="IPM Region",RPE_RegionGroupAcronym,RPE_State),"="&IF($AL$6="National","*",$AO46)))) -> 0 | AR46: 25.40224299 | AS46: 25.4 | AT46: 3506772
O47: SPP_NEBR | P47: VT | Q47: VA | V47: NOX Emissions Total Thousand Tons | W47: Thousand (short) tons NOx | AO47: UT | AP47: =IF(AO47=0,"",SUMIFS(CHOOSE(VLOOKUP($AL$16,'Lookup tables'!$AK$5:$AM$15,3,0), RPE_FuelConsumptionSummerTBtu, RPE_FuelConsumptionTotalTBtu, RPE_GenerationSummerGWh, RPE_GenerationTotalGWh, RPE_CO2EmissionsSummerThousandTons, RPE_CO2EmissionsTotalThousandTons, RPE_NOXEmissionsSummerThousandTons, RPE_NOXEmissionsTotalThousandTons, RPE_SO2EmissionsSummerThousandTons, RPE_SO2EmissionsTotalThousandTons, RPE_DispatchableCapacityMW), MeetPrimaryCriteria,"=1",IF($AL$6="IPM Region",RPE_RegionGroupAcronym,RPE_State),"="&IF($AL$6="National","*",$AO47))) -> 7.117557827 | AQ47: =IF(AO47=0,"",IF($AL$18="Actual",0,SUMIFS(CHOOSE(VLOOKUP($AL$33,'Lookup tables'!$AK$5:$AM$15,3,0), RPE_FuelConsumptionSummerTBtu, RPE_FuelConsumptionTotalTBtu, RPE_GenerationSummerGWh, RPE_GenerationTotalGWh, RPE_CO2EmissionsSummerThousandTons, RPE_CO2EmissionsTotalThousandTons, RPE_NOXEmissionsSummerThousandTons, RPE_NOXEmissionsTotalThousandTons, RPE_SO2EmissionsSummerThousandTons, RPE_SO2EmissionsTotalThousandTons, RPE_DispatchableCapacityMW), MeetComparisonCriteria,"=1",IF($AL$6="IPM Region",RPE_RegionGroupAcronym,RPE_State),"="&IF($AL$6="National","*",$AO47)))) -> 0 | AR47: 7.117557827 | AS47: 7.12 | AT47: 9359529 | AY47: Primary Value
O48: SPP_SPS | P48: WA | Q48: VT | V48: SO2 Emissions Summer Thousand Tons | W48: Thousand (short) tons SO2 | AO48: VA | AP48: =IF(AO48=0,"",SUMIFS(CHOOSE(VLOOKUP($AL$16,'Lookup tables'!$AK$5:$AM$15,3,0), RPE_FuelConsumptionSummerTBtu, RPE_FuelConsumptionTotalTBtu, RPE_GenerationSummerGWh, RPE_GenerationTotalGWh, RPE_CO2EmissionsSummerThousandTons, RPE_CO2EmissionsTotalThousandTons, RPE_NOXEmissionsSummerThousandTons, RPE_NOXEmissionsTotalThousandTons, RPE_SO2EmissionsSummerThousandTons, RPE_SO2EmissionsTotalThousandTons, RPE_DispatchableCapacityMW), MeetPrimaryCriteria,"=1",IF($AL$6="IPM Region",RPE_RegionGroupAcronym,RPE_State),"="&IF($AL$6="National","*",$AO48))) -> 2.932227508 | AQ48: =IF(AO48=0,"",IF($AL$18="Actual",0,SUMIFS(CHOOSE(VLOOKUP($AL$33,'Lookup tables'!$AK$5:$AM$15,3,0), RPE_FuelConsumptionSummerTBtu, RPE_FuelConsumptionTotalTBtu, RPE_GenerationSummerGWh, RPE_GenerationTotalGWh, RPE_CO2EmissionsSummerThousandTons, RPE_CO2EmissionsTotalThousandTons, RPE_NOXEmissionsSummerThousandTons, RPE_NOXEmissionsTotalThousandTons, RPE_SO2EmissionsSummerThousandTons, RPE_SO2EmissionsTotalThousandTons, RPE_DispatchableCapacityMW), MeetComparisonCriteria,"=1",IF($AL$6="IPM Region",RPE_RegionGroupAcronym,RPE_State),"="&IF($AL$6="National","*",$AO48)))) -> 0 | AR48: 2.932227508 | AS48: 2.93 | AT48: 11854022 | AY48: 2023 | AZ48: 2025 | BA48: 2028 | BB48: 2030 | BC48: 2035 | BD48: 2040 | BE48: 2045 | BF48: 2050
O49: SPP_WAUE | P49: WI | Q49: WA | V49: SO2 Emissions Total Thousand Tons | W49: Thousand (short) tons SO2 | AO49: VT | AP49: =IF(AO49=0,"",SUMIFS(CHOOSE(VLOOKUP($AL$16,'Lookup tables'!$AK$5:$AM$15,3,0), RPE_FuelConsumptionSummerTBtu, RPE_FuelConsumptionTotalTBtu, RPE_GenerationSummerGWh, RPE_GenerationTotalGWh, RPE_CO2EmissionsSummerThousandTons, RPE_CO2EmissionsTotalThousandTons, RPE_NOXEmissionsSummerThousandTons, RPE_NOXEmissionsTotalThousandTons, RPE_SO2EmissionsSummerThousandTons, RPE_SO2EmissionsTotalThousandTons, RPE_DispatchableCapacityMW), MeetPrimaryCriteria,"=1",IF($AL$6="IPM Region",RPE_RegionGroupAcronym,RPE_State),"="&IF($AL$6="National","*",$AO49))) -> 0.04646798762 | AQ49: =IF(AO49=0,"",IF($AL$18="Actual",0,SUMIFS(CHOOSE(VLOOKUP($AL$33,'Lookup tables'!$AK$5:$AM$15,3,0), RPE_FuelConsumptionSummerTBtu, RPE_FuelConsumptionTotalTBtu, RPE_GenerationSummerGWh, RPE_GenerationTotalGWh, RPE_CO2EmissionsSummerThousandTons, RPE_CO2EmissionsTotalThousandTons, RPE_NOXEmissionsSummerThousandTons, RPE_NOXEmissionsTotalThousandTons, RPE_SO2EmissionsSummerThousandTons, RPE_SO2EmissionsTotalThousandTons, RPE_DispatchableCapacityMW), MeetComparisonCriteria,"=1",IF($AL$6="IPM Region",RPE_RegionGroupAcronym,RPE_State),"="&IF($AL$6="National","*",$AO49)))) -> 0 | AR49: 0.04646798762 | AS49: 0.046 | AT49: 11854022 | AX49: National | AY49: =SUMIFS(INDIRECT($AM$16),MeetPrimaryCriteriaSeries,"=1",RPE_Year,"="&AY$48) -> 263.487655 | AZ49: 239.2116113 | BA49: 264.2430379 | BB49: 264.3884969 | BC49: 258.1058023 | BD49: 247.5957457 | BE49: 230.4888256 | BF49: 185.359767
O50: SPP_WEST | P50: WV | Q50: WI | V50: Dispatchable Capacity MW | W50: MW | AK50: Error Flags | AO50: WA | AP50: =IF(AO50=0,"",SUMIFS(CHOOSE(VLOOKUP($AL$16,'Lookup tables'!$AK$5:$AM$15,3,0), RPE_FuelConsumptionSummerTBtu, RPE_FuelConsumptionTotalTBtu, RPE_GenerationSummerGWh, RPE_GenerationTotalGWh, RPE_CO2EmissionsSummerThousandTons, RPE_CO2EmissionsTotalThousandTons, RPE_NOXEmissionsSummerThousandTons, RPE_NOXEmissionsTotalThousandTons, RPE_SO2EmissionsSummerThousandTons, RPE_SO2EmissionsTotalThousandTons, RPE_DispatchableCapacityMW), MeetPrimaryCriteria,"=1",IF($AL$6="IPM Region",RPE_RegionGroupAcronym,RPE_State),"="&IF($AL$6="National","*",$AO50))) -> 0.7979621962 | AQ50: =IF(AO50=0,"",IF($AL$18="Actual",0,SUMIFS(CHOOSE(VLOOKUP($AL$33,'Lookup tables'!$AK$5:$AM$15,3,0), RPE_FuelConsumptionSummerTBtu, RPE_FuelConsumptionTotalTBtu, RPE_GenerationSummerGWh, RPE_GenerationTotalGWh, RPE_CO2EmissionsSummerThousandTons, RPE_CO2EmissionsTotalThousandTons, RPE_NOXEmissionsSummerThousandTons, RPE_NOXEmissionsTotalThousandTons, RPE_SO2EmissionsSummerThousandTons, RPE_SO2EmissionsTotalThousandTons, RPE_DispatchableCapacityMW), MeetComparisonCriteria,"=1",IF($AL$6="IPM Region",RPE_RegionGroupAcronym,RPE_State),"="&IF($AL$6="National","*",$AO50)))) -> 0 | AR50: 0.7979621962 | AS50: 0.798 | AT50: 11854022 | AX50: =AY42 -> National | AY50: =SUMIFS(INDIRECT($AM$16),MeetPrimaryCriteriaSeries,"=1",RPE_State,"="&$AX50,RPE_Year,"="&AY$48) -> 0 | AZ50: =SUMIFS(INDIRECT($AM$16),MeetPrimaryCriteriaSeries,"=1",RPE_State,"="&$AX50,RPE_Year,"="&AZ$48) -> 0 | BA50: 0 | BB50: 0 | BC50: 0 | BD50: 0 | BE50: 0 | BF50: 0
O51: WEC_BANC | P51: WY | Q51: WV | AK51: =IF(NOT(OR($AL$18="Emissions Rate",$AL$18="Capacity Factor")),"", IF($AL$2<>$AL$21,"Primary and Comparison Cases Don't Match", IF($AL$4<>$AL$23,"Primary and Comparison Years don't match", IF($AL$9<>$AL$26,"Primary and Comparison Fuel Types don't match", IF($AL$10<>$AL$27,"Primary and Comparison Fossil > 25 MW don't match", IF($AL$11<>$AL$28,"Primary and Comparison Exisint/New/Retired don't match", IF($AL$12<>$AL$29,"Primary and Comparison Plant Types don't match", IF($AL$13<>$AL$30,"Primary and Comparison Plant Categories don't match", IF($AL$14<>$AL$31,"Primary and Comparison Control/Retrofit Types don't match", IF($AL$15<>$AL$32,"Primary and Comparison Existing/New Controls don't match","")))))))))) ->  | AO51: WI | AP51: =IF(AO51=0,"",SUMIFS(CHOOSE(VLOOKUP($AL$16,'Lookup tables'!$AK$5:$AM$15,3,0), RPE_FuelConsumptionSummerTBtu, RPE_FuelConsumptionTotalTBtu, RPE_GenerationSummerGWh, RPE_GenerationTotalGWh, RPE_CO2EmissionsSummerThousandTons, RPE_CO2EmissionsTotalThousandTons, RPE_NOXEmissionsSummerThousandTons, RPE_NOXEmissionsTotalThousandTons, RPE_SO2EmissionsSummerThousandTons, RPE_SO2EmissionsTotalThousandTons, RPE_DispatchableCapacityMW), MeetPrimaryCriteria,"=1",IF($AL$6="IPM Region",RPE_RegionGroupAcronym,RPE_State),"="&IF($AL$6="National","*",$AO51))) -> 2.88391743 | AQ51: =IF(AO51=0,"",IF($AL$18="Actual",0,SUMIFS(CHOOSE(VLOOKUP($AL$33,'Lookup tables'!$AK$5:$AM$15,3,0), RPE_FuelConsumptionSummerTBtu, RPE_FuelConsumptionTotalTBtu, RPE_GenerationSummerGWh, RPE_GenerationTotalGWh, RPE_CO2EmissionsSummerThousandTons, RPE_CO2EmissionsTotalThousandTons, RPE_NOXEmissionsSummerThousandTons, RPE_NOXEmissionsTotalThousandTons, RPE_SO2EmissionsSummerThousandTons, RPE_SO2EmissionsTotalThousandTons, RPE_DispatchableCapacityMW), MeetComparisonCriteria,"=1",IF($AL$6="IPM Region",RPE_RegionGroupAcronym,RPE_State),"="&IF($AL$6="National","*",$AO51)))) -> 0 | AR51: 2.88391743 | AS51: 2.88 | AT51: 11854022
O52: WEC_CALN | Q52: WY | AO52: WV | AP52: =IF(AO52=0,"",SUMIFS(CHOOSE(VLOOKUP($AL$16,'Lookup tables'!$AK$5:$AM$15,3,0), RPE_FuelConsumptionSummerTBtu, RPE_FuelConsumptionTotalTBtu, RPE_GenerationSummerGWh, RPE_GenerationTotalGWh, RPE_CO2EmissionsSummerThousandTons, RPE_CO2EmissionsTotalThousandTons, RPE_NOXEmissionsSummerThousandTons, RPE_NOXEmissionsTotalThousandTons, RPE_SO2EmissionsSummerThousandTons, RPE_SO2EmissionsTotalThousandTons, RPE_DispatchableCapacityMW), MeetPrimaryCriteria,"=1",IF($AL$6="IPM Region",RPE_RegionGroupAcronym,RPE_State),"="&IF($AL$6="National","*",$AO52))) -> 11.18355111 | AQ52: =IF(AO52=0,"",IF($AL$18="Actual",0,SUMIFS(CHOOSE(VLOOKUP($AL$33,'Lookup tables'!$AK$5:$AM$15,3,0), RPE_FuelConsumptionSummerTBtu, RPE_FuelConsumptionTotalTBtu, RPE_GenerationSummerGWh, RPE_GenerationTotalGWh, RPE_CO2EmissionsSummerThousandTons, RPE_CO2EmissionsTotalThousandTons, RPE_NOXEmissionsSummerThousandTons, RPE_NOXEmissionsTotalThousandTons, RPE_SO2EmissionsSummerThousandTons, RPE_SO2EmissionsTotalThousandTons, RPE_DispatchableCapacityMW), MeetComparisonCriteria,"=1",IF($AL$6="IPM Region",RPE_RegionGroupAcronym,RPE_State),"="&IF($AL$6="National","*",$AO52)))) -> 0 | AR52: 11.18355111 | AS52: 11.2 | AT52: 9359529 | AY52: Comaprison Value
O53: WEC_LADW | AO53: WY | AP53: =IF(AO53=0,"",SUMIFS(CHOOSE(VLOOKUP($AL$16,'Lookup tables'!$AK$5:$AM$15,3,0), RPE_FuelConsumptionSummerTBtu, RPE_FuelConsumptionTotalTBtu, RPE_GenerationSummerGWh, RPE_GenerationTotalGWh, RPE_CO2EmissionsSummerThousandTons, RPE_CO2EmissionsTotalThousandTons, RPE_NOXEmissionsSummerThousandTons, RPE_NOXEmissionsTotalThousandTons, RPE_SO2EmissionsSummerThousandTons, RPE_SO2EmissionsTotalThousandTons, RPE_DispatchableCapacityMW), MeetPrimaryCriteria,"=1",IF($AL$6="IPM Region",RPE_RegionGroupAcronym,RPE_State),"="&IF($AL$6="National","*",$AO53))) -> 4.912166644 | AQ53: =IF(AO53=0,"",IF($AL$18="Actual",0,SUMIFS(CHOOSE(VLOOKUP($AL$33,'Lookup tables'!$AK$5:$AM$15,3,0), RPE_FuelConsumptionSummerTBtu, RPE_FuelConsumptionTotalTBtu, RPE_GenerationSummerGWh, RPE_GenerationTotalGWh, RPE_CO2EmissionsSummerThousandTons, RPE_CO2EmissionsTotalThousandTons, RPE_NOXEmissionsSummerThousandTons, RPE_NOXEmissionsTotalThousandTons, RPE_SO2EmissionsSummerThousandTons, RPE_SO2EmissionsTotalThousandTons, RPE_DispatchableCapacityMW), MeetComparisonCriteria,"=1",IF($AL$6="IPM Region",RPE_RegionGroupAcronym,RPE_State),"="&IF($AL$6="National","*",$AO53)))) -> 0 | AR53: 4.912166644 | AS53: 4.91 | AT53: 11854022 | AY53: 2023 | AZ53: 2025 | BA53: 2028 | BB53: 2030 | BC53: 2035 | BD53: 2040 | BE53: 2045 | BF53: 2050
O54: WEC_SDGE | AK54: Case Name(s) | AP54: =IF(AO54=0,"",SUMIFS(CHOOSE(VLOOKUP($AL$16,'Lookup tables'!$AK$5:$AM$15,3,0), RPE_FuelConsumptionSummerTBtu, RPE_FuelConsumptionTotalTBtu, RPE_GenerationSummerGWh, RPE_GenerationTotalGWh, RPE_CO2EmissionsSummerThousandTons, RPE_CO2EmissionsTotalThousandTons, RPE_NOXEmissionsSummerThousandTons, RPE_NOXEmissionsTotalThousandTons, RPE_SO2EmissionsSummerThousandTons, RPE_SO2EmissionsTotalThousandTons, RPE_DispatchableCapacityMW), MeetPrimaryCriteria,"=1",IF($AL$6="IPM Region",RPE_RegionGroupAcronym,RPE_State),"="&IF($AL$6="National","*",$AO54))) -> 0 | AQ54: =IF(AO54=0,"",IF($AL$18="Actual",0,SUMIFS(CHOOSE(VLOOKUP($AL$33,'Lookup tables'!$AK$5:$AM$15,3,0), RPE_FuelConsumptionSummerTBtu, RPE_FuelConsumptionTotalTBtu, RPE_GenerationSummerGWh, RPE_GenerationTotalGWh, RPE_CO2EmissionsSummerThousandTons, RPE_CO2EmissionsTotalThousandTons, RPE_NOXEmissionsSummerThousandTons, RPE_NOXEmissionsTotalThousandTons, RPE_SO2EmissionsSummerThousandTons, RPE_SO2EmissionsTotalThousandTons, RPE_DispatchableCapacityMW), MeetComparisonCriteria,"=1",IF($AL$6="IPM Region",RPE_RegionGroupAcronym,RPE_State),"="&IF($AL$6="National","*",$AO54)))) -> 0 | AR54: 0 | AS54: 0.000 | AT54: 16777215 | AX54: National | AY54: =IF($AL$18="Actual",0,SUMIFS(INDIRECT($AM$33),MeetComparisonCriteriaSeries,"=1",RPE_Year,"="&IF($BC$42="Parallel",AY$53,$AL$23))) -> 0 | AZ54: 0 | BA54: 0 | BB54: 0 | BC54: 0 | BD54: 0 | BE54: 0 | BF54: 0
O55: WECC_AZ | AK55: =IF($AL$18="Actual"," "&$AL$2&" ("&$AL$4&")", IF($AL$18="Absolute Change",", from "&AL21&" ("&AL23&") to "&AL2&" ("&AL4&")", IF($AL$18="Percent Change",", from "&AL21&" ("&AL23&") to "&AL2&" ("&AL4&")", IF($AL$18="Fraction","", IF($AL$18="Emissions Rate"," "&$AL$2&" in "&$AL$4, IF($AL$18="Capacity Factor"," "&$AL$2&" in "&$AL$4,"")))))) -> v6 Summer 2021 Ref Case (2023) | AO55: 0 | AP55: =IF(AO55=0,"",SUMIFS(CHOOSE(VLOOKUP($AL$16,'Lookup tables'!$AK$5:$AM$15,3,0), RPE_FuelConsumptionSummerTBtu, RPE_FuelConsumptionTotalTBtu, RPE_GenerationSummerGWh, RPE_GenerationTotalGWh, RPE_CO2EmissionsSummerThousandTons, RPE_CO2EmissionsTotalThousandTons, RPE_NOXEmissionsSummerThousandTons, RPE_NOXEmissionsTotalThousandTons, RPE_SO2EmissionsSummerThousandTons, RPE_SO2EmissionsTotalThousandTons, RPE_DispatchableCapacityMW), MeetPrimaryCriteria,"=1",IF($AL$6="IPM Region",RPE_RegionGroupAcronym,RPE_State),"="&IF($AL$6="National","*",$AO55))) ->  | AQ55: =IF(AO55=0,"",IF($AL$18="Actual",0,SUMIFS(CHOOSE(VLOOKUP($AL$33,'Lookup tables'!$AK$5:$AM$15,3,0), RPE_FuelConsumptionSummerTBtu, RPE_FuelConsumptionTotalTBtu, RPE_GenerationSummerGWh, RPE_GenerationTotalGWh, RPE_CO2EmissionsSummerThousandTons, RPE_CO2EmissionsTotalThousandTons, RPE_NOXEmissionsSummerThousandTons, RPE_NOXEmissionsTotalThousandTons, RPE_SO2EmissionsSummerThousandTons, RPE_SO2EmissionsTotalThousandTons, RPE_DispatchableCapacityMW), MeetComparisonCriteria,"=1",IF($AL$6="IPM Region",RPE_RegionGroupAcronym,RPE_State),"="&IF($AL$6="National","*",$AO55)))) ->  | AT55: 16777215 | AX55: =AY42 -> National | AY55: =IF($AL$18="Actual",0,SUMIFS(INDIRECT($AM$33),MeetComparisonCriteriaSeries,"=1",RPE_State,"="&$AX55,RPE_Year,"="&AY$53)) -> 0 | AZ55: 0 | BA55: 0 | BB55: 0 | BC55: 0 | BD55: 0 | BE55: 0 | BF55: 0
O56: WECC_CO | AO56: 0 | AP56: =IF(AO56=0,"",SUMIFS(CHOOSE(VLOOKUP($AL$16,'Lookup tables'!$AK$5:$AM$15,3,0), RPE_FuelConsumptionSummerTBtu, RPE_FuelConsumptionTotalTBtu, RPE_GenerationSummerGWh, RPE_GenerationTotalGWh, RPE_CO2EmissionsSummerThousandTons, RPE_CO2EmissionsTotalThousandTons, RPE_NOXEmissionsSummerThousandTons, RPE_NOXEmissionsTotalThousandTons, RPE_SO2EmissionsSummerThousandTons, RPE_SO2EmissionsTotalThousandTons, RPE_DispatchableCapacityMW), MeetPrimaryCriteria,"=1",IF($AL$6="IPM Region",RPE_RegionGroupAcronym,RPE_State),"="&IF($AL$6="National","*",$AO56))) ->  | AQ56: =IF(AO56=0,"",IF($AL$18="Actual",0,SUMIFS(CHOOSE(VLOOKUP($AL$33,'Lookup tables'!$AK$5:$AM$15,3,0), RPE_FuelConsumptionSummerTBtu, RPE_FuelConsumptionTotalTBtu, RPE_GenerationSummerGWh, RPE_GenerationTotalGWh, RPE_CO2EmissionsSummerThousandTons, RPE_CO2EmissionsTotalThousandTons, RPE_NOXEmissionsSummerThousandTons, RPE_NOXEmissionsTotalThousandTons, RPE_SO2EmissionsSummerThousandTons, RPE_SO2EmissionsTotalThousandTons, RPE_DispatchableCapacityMW), MeetComparisonCriteria,"=1",IF($AL$6="IPM Region",RPE_RegionGroupAcronym,RPE_State),"="&IF($AL$6="National","*",$AO56)))) ->  | AT56: 16777215
O57: WECC_ID | AO57: 0 | AP57: =IF(AO57=0,"",SUMIFS(CHOOSE(VLOOKUP($AL$16,'Lookup tables'!$AK$5:$AM$15,3,0), RPE_FuelConsumptionSummerTBtu, RPE_FuelConsumptionTotalTBtu, RPE_GenerationSummerGWh, RPE_GenerationTotalGWh, RPE_CO2EmissionsSummerThousandTons, RPE_CO2EmissionsTotalThousandTons, RPE_NOXEmissionsSummerThousandTons, RPE_NOXEmissionsTotalThousandTons, RPE_SO2EmissionsSummerThousandTons, RPE_SO2EmissionsTotalThousandTons, RPE_DispatchableCapacityMW), MeetPrimaryCriteria,"=1",IF($AL$6="IPM Region",RPE_RegionGroupAcronym,RPE_State),"="&IF($AL$6="National","*",$AO57))) ->  | AQ57: =IF(AO57=0,"",IF($AL$18="Actual",0,SUMIFS(CHOOSE(VLOOKUP($AL$33,'Lookup tables'!$AK$5:$AM$15,3,0), RPE_FuelConsumptionSummerTBtu, RPE_FuelConsumptionTotalTBtu, RPE_GenerationSummerGWh, RPE_GenerationTotalGWh, RPE_CO2EmissionsSummerThousandTons, RPE_CO2EmissionsTotalThousandTons, RPE_NOXEmissionsSummerThousandTons, RPE_NOXEmissionsTotalThousandTons, RPE_SO2EmissionsSummerThousandTons, RPE_SO2EmissionsTotalThousandTons, RPE_DispatchableCapacityMW), MeetComparisonCriteria,"=1",IF($AL$6="IPM Region",RPE_RegionGroupAcronym,RPE_State),"="&IF($AL$6="National","*",$AO57)))) ->  | AT57: 16777215 | AY57: Display Value
O58: WECC_IID | AO58: 0 | AP58: =IF(AO58=0,"",SUMIFS(CHOOSE(VLOOKUP($AL$16,'Lookup tables'!$AK$5:$AM$15,3,0), RPE_FuelConsumptionSummerTBtu, RPE_FuelConsumptionTotalTBtu, RPE_GenerationSummerGWh, RPE_GenerationTotalGWh, RPE_CO2EmissionsSummerThousandTons, RPE_CO2EmissionsTotalThousandTons, RPE_NOXEmissionsSummerThousandTons, RPE_NOXEmissionsTotalThousandTons, RPE_SO2EmissionsSummerThousandTons, RPE_SO2EmissionsTotalThousandTons, RPE_DispatchableCapacityMW), MeetPrimaryCriteria,"=1",IF($AL$6="IPM Region",RPE_RegionGroupAcronym,RPE_State),"="&IF($AL$6="National","*",$AO58))) ->  | AQ58: =IF(AO58=0,"",IF($AL$18="Actual",0,SUMIFS(CHOOSE(VLOOKUP($AL$33,'Lookup tables'!$AK$5:$AM$15,3,0), RPE_FuelConsumptionSummerTBtu, RPE_FuelConsumptionTotalTBtu, RPE_GenerationSummerGWh, RPE_GenerationTotalGWh, RPE_CO2EmissionsSummerThousandTons, RPE_CO2EmissionsTotalThousandTons, RPE_NOXEmissionsSummerThousandTons, RPE_NOXEmissionsTotalThousandTons, RPE_SO2EmissionsSummerThousandTons, RPE_SO2EmissionsTotalThousandTons, RPE_DispatchableCapacityMW), MeetComparisonCriteria,"=1",IF($AL$6="IPM Region",RPE_RegionGroupAcronym,RPE_State),"="&IF($AL$6="National","*",$AO58)))) ->  | AT58: 16777215 | AY58: 2023 | AZ58: 2025 | BA58: 2028 | BB58: 2030 | BC58: 2035 | BD58: 2040 | BE58: 2045 | BF58: 2050
O59: WECC_MT | AO59: 0 | AP59: =IF(AO59=0,"",SUMIFS(CHOOSE(VLOOKUP($AL$16,'Lookup tables'!$AK$5:$AM$15,3,0), RPE_FuelConsumptionSummerTBtu, RPE_FuelConsumptionTotalTBtu, RPE_GenerationSummerGWh, RPE_GenerationTotalGWh, RPE_CO2EmissionsSummerThousandTons, RPE_CO2EmissionsTotalThousandTons, RPE_NOXEmissionsSummerThousandTons, RPE_NOXEmissionsTotalThousandTons, RPE_SO2EmissionsSummerThousandTons, RPE_SO2EmissionsTotalThousandTons, RPE_DispatchableCapacityMW), MeetPrimaryCriteria,"=1",IF($AL$6="IPM Region",RPE_RegionGroupAcronym,RPE_State),"="&IF($AL$6="National","*",$AO59))) ->  | AQ59: =IF(AO59=0,"",IF($AL$18="Actual",0,SUMIFS(CHOOSE(VLOOKUP($AL$33,'Lookup tables'!$AK$5:$AM$15,3,0), RPE_FuelConsumptionSummerTBtu, RPE_FuelConsumptionTotalTBtu, RPE_GenerationSummerGWh, RPE_GenerationTotalGWh, RPE_CO2EmissionsSummerThousandTons, RPE_CO2EmissionsTotalThousandTons, RPE_NOXEmissionsSummerThousandTons, RPE_NOXEmissionsTotalThousandTons, RPE_SO2EmissionsSummerThousandTons, RPE_SO2EmissionsTotalThousandTons, RPE_DispatchableCapacityMW), MeetComparisonCriteria,"=1",IF($AL$6="IPM Region",RPE_RegionGroupAcronym,RPE_State),"="&IF($AL$6="National","*",$AO59)))) ->  | AT59: 16777215 | AX59: National | AY59: =IFERROR(IF($AL$18="Actual",AY49,IF($AL$18="Absolute Change",AY49-AY54,IF($AL$18="Percent Change",(AY49-AY54)/AY54,IF($AL$18="Emissions Rate",AY49*2/AY54,IF($AL$18="Capacity Factor",AY49*1000/(AY54*IF(NOT(ISERROR(SEARCH("Summer",$AL$16))),3672,8760)),AY49/AY54))))),"") -> 263.487655 | AZ59: =IFERROR(IF($AL$18="Actual",AZ49,IF($AL$18="Absolute Change",AZ49-AZ54,IF($AL$18="Percent Change",(AZ49-AZ54)/AZ54,IF($AL$18="Emissions Rate",AZ49*2/AZ54,IF($AL$18="Capacity Factor",AZ49*1000/(AZ54*IF(NOT(ISERROR(SEARCH("Summer",$AL$16))),3672,8760)),AZ49/AZ54))))),"") -> 239.2116113 | BA59: 264.2430379 | BB59: 264.3884969 | BC59: 258.1058023 | BD59: 247.5957457 | BE59: 230.4888256 | BF59: 185.359767
O60: WECC_NM | AO60: 0 | AP60: =IF(AO60=0,"",SUMIFS(CHOOSE(VLOOKUP($AL$16,'Lookup tables'!$AK$5:$AM$15,3,0), RPE_FuelConsumptionSummerTBtu, RPE_FuelConsumptionTotalTBtu, RPE_GenerationSummerGWh, RPE_GenerationTotalGWh, RPE_CO2EmissionsSummerThousandTons, RPE_CO2EmissionsTotalThousandTons, RPE_NOXEmissionsSummerThousandTons, RPE_NOXEmissionsTotalThousandTons, RPE_SO2EmissionsSummerThousandTons, RPE_SO2EmissionsTotalThousandTons, RPE_DispatchableCapacityMW), MeetPrimaryCriteria,"=1",IF($AL$6="IPM Region",RPE_RegionGroupAcronym,RPE_State),"="&IF($AL$6="National","*",$AO60))) ->  | AQ60: =IF(AO60=0,"",IF($AL$18="Actual",0,SUMIFS(CHOOSE(VLOOKUP($AL$33,'Lookup tables'!$AK$5:$AM$15,3,0), RPE_FuelConsumptionSummerTBtu, RPE_FuelConsumptionTotalTBtu, RPE_GenerationSummerGWh, RPE_GenerationTotalGWh, RPE_CO2EmissionsSummerThousandTons, RPE_CO2EmissionsTotalThousandTons, RPE_NOXEmissionsSummerThousandTons, RPE_NOXEmissionsTotalThousandTons, RPE_SO2EmissionsSummerThousandTons, RPE_SO2EmissionsTotalThousandTons, RPE_DispatchableCapacityMW), MeetComparisonCriteria,"=1",IF($AL$6="IPM Region",RPE_RegionGroupAcronym,RPE_State),"="&IF($AL$6="National","*",$AO60)))) ->  | AT60: 16777215 | AX60: =AY42 -> National | AY60: =IFERROR(IF($AL$18="Actual",AY50,IF($AL$18="Absolute Change",AY50-AY55,IF($AL$18="Percent Change",(AY50-AY55)/AY55,IF($AL$18="Emissions Rate",AY50*2/AY55,IF($AL$18="Capacity Factor",AY50*1000/(AY55*IF(NOT(ISERROR(SEARCH("Summer",$AL$16))),3672,8760)),AY50/AY55))))),"") -> 0 | AZ60: =IFERROR(IF($AL$18="Actual",AZ50,IF($AL$18="Absolute Change",AZ50-AZ55,IF($AL$18="Percent Change",(AZ50-AZ55)/AZ55,IF($AL$18="Emissions Rate",AZ50*2/AZ55,IF($AL$18="Capacity Factor",AZ50*1000/(AZ55*IF(NOT(ISERROR(SEARCH("Summer",$AL$16))),3672,8760)),AZ50/AZ55))))),"") -> 0 | BA60: 0 | BB60: 0 | BC60: 0 | BD60: 0 | BE60: 0 | BF60: 0
O61: WECC_NNV | AO61: 0 | AP61: =IF(AO61=0,"",SUMIFS(CHOOSE(VLOOKUP($AL$16,'Lookup tables'!$AK$5:$AM$15,3,0), RPE_FuelConsumptionSummerTBtu, RPE_FuelConsumptionTotalTBtu, RPE_GenerationSummerGWh, RPE_GenerationTotalGWh, RPE_CO2EmissionsSummerThousandTons, RPE_CO2EmissionsTotalThousandTons, RPE_NOXEmissionsSummerThousandTons, RPE_NOXEmissionsTotalThousandTons, RPE_SO2EmissionsSummerThousandTons, RPE_SO2EmissionsTotalThousandTons, RPE_DispatchableCapacityMW), MeetPrimaryCriteria,"=1",IF($AL$6="IPM Region",RPE_RegionGroupAcronym,RPE_State),"="&IF($AL$6="National","*",$AO61))) ->  | AQ61: =IF(AO61=0,"",IF($AL$18="Actual",0,SUMIFS(CHOOSE(VLOOKUP($AL$33,'Lookup tables'!$AK$5:$AM$15,3,0), RPE_FuelConsumptionSummerTBtu, RPE_FuelConsumptionTotalTBtu, RPE_GenerationSummerGWh, RPE_GenerationTotalGWh, RPE_CO2EmissionsSummerThousandTons, RPE_CO2EmissionsTotalThousandTons, RPE_NOXEmissionsSummerThousandTons, RPE_NOXEmissionsTotalThousandTons, RPE_SO2EmissionsSummerThousandTons, RPE_SO2EmissionsTotalThousandTons, RPE_DispatchableCapacityMW), MeetComparisonCriteria,"=1",IF($AL$6="IPM Region",RPE_RegionGroupAcronym,RPE_State),"="&IF($AL$6="National","*",$AO61)))) ->  | AT61: 16777215 | AX61: Display | AY61: =IF($AY$42="National",AY59,AY60) -> 263.487655 | AZ61: =IF($AY$42="National",AZ59,AZ60) -> 239.2116113 | BA61: =NA() ->  | BB61: 264.3884969 | BC61: 258.1058023 | BD61: =IF($AY$42="National",BD59,BD60) -> 247.5957457 | BE61: 230.4888256 | BF61: 185.359767
O62: WECC_PNW | AO62: 0 | AP62: =IF(AO62=0,"",SUMIFS(CHOOSE(VLOOKUP($AL$16,'Lookup tables'!$AK$5:$AM$15,3,0), RPE_FuelConsumptionSummerTBtu, RPE_FuelConsumptionTotalTBtu, RPE_GenerationSummerGWh, RPE_GenerationTotalGWh, RPE_CO2EmissionsSummerThousandTons, RPE_CO2EmissionsTotalThousandTons, RPE_NOXEmissionsSummerThousandTons, RPE_NOXEmissionsTotalThousandTons, RPE_SO2EmissionsSummerThousandTons, RPE_SO2EmissionsTotalThousandTons, RPE_DispatchableCapacityMW), MeetPrimaryCriteria,"=1",IF($AL$6="IPM Region",RPE_RegionGroupAcronym,RPE_State),"="&IF($AL$6="National","*",$AO62))) ->  | AQ62: =IF(AO62=0,"",IF($AL$18="Actual",0,SUMIFS(CHOOSE(VLOOKUP($AL$33,'Lookup tables'!$AK$5:$AM$15,3,0), RPE_FuelConsumptionSummerTBtu, RPE_FuelConsumptionTotalTBtu, RPE_GenerationSummerGWh, RPE_GenerationTotalGWh, RPE_CO2EmissionsSummerThousandTons, RPE_CO2EmissionsTotalThousandTons, RPE_NOXEmissionsSummerThousandTons, RPE_NOXEmissionsTotalThousandTons, RPE_SO2EmissionsSummerThousandTons, RPE_SO2EmissionsTotalThousandTons, RPE_DispatchableCapacityMW), MeetComparisonCriteria,"=1",IF($AL$6="IPM Region",RPE_RegionGroupAcronym,RPE_State),"="&IF($AL$6="National","*",$AO62)))) ->  | AT62: 16777215
O63: WECC_SCE | AO63: 0 | AP63: =IF(AO63=0,"",SUMIFS(CHOOSE(VLOOKUP($AL$16,'Lookup tables'!$AK$5:$AM$15,3,0), RPE_FuelConsumptionSummerTBtu, RPE_FuelConsumptionTotalTBtu, RPE_GenerationSummerGWh, RPE_GenerationTotalGWh, RPE_CO2EmissionsSummerThousandTons, RPE_CO2EmissionsTotalThousandTons, RPE_NOXEmissionsSummerThousandTons, RPE_NOXEmissionsTotalThousandTons, RPE_SO2EmissionsSummerThousandTons, RPE_SO2EmissionsTotalThousandTons, RPE_DispatchableCapacityMW), MeetPrimaryCriteria,"=1",IF($AL$6="IPM Region",RPE_RegionGroupAcronym,RPE_State),"="&IF($AL$6="National","*",$AO63))) ->  | AQ63: =IF(AO63=0,"",IF($AL$18="Actual",0,SUMIFS(CHOOSE(VLOOKUP($AL$33,'Lookup tables'!$AK$5:$AM$15,3,0), RPE_FuelConsumptionSummerTBtu, RPE_FuelConsumptionTotalTBtu, RPE_GenerationSummerGWh, RPE_GenerationTotalGWh, RPE_CO2EmissionsSummerThousandTons, RPE_CO2EmissionsTotalThousandTons, RPE_NOXEmissionsSummerThousandTons, RPE_NOXEmissionsTotalThousandTons, RPE_SO2EmissionsSummerThousandTons, RPE_SO2EmissionsTotalThousandTons, RPE_DispatchableCapacityMW), MeetComparisonCriteria,"=1",IF($AL$6="IPM Region",RPE_RegionGroupAcronym,RPE_State),"="&IF($AL$6="National","*",$AO63)))) ->  | AT63: 16777215
O64: WECC_SNV | AO64: 0 | AP64: =IF(AO64=0,"",SUMIFS(CHOOSE(VLOOKUP($AL$16,'Lookup tables'!$AK$5:$AM$15,3,0), RPE_FuelConsumptionSummerTBtu, RPE_FuelConsumptionTotalTBtu, RPE_GenerationSummerGWh, RPE_GenerationTotalGWh, RPE_CO2EmissionsSummerThousandTons, RPE_CO2EmissionsTotalThousandTons, RPE_NOXEmissionsSummerThousandTons, RPE_NOXEmissionsTotalThousandTons, RPE_SO2EmissionsSummerThousandTons, RPE_SO2EmissionsTotalThousandTons, RPE_DispatchableCapacityMW), MeetPrimaryCriteria,"=1",IF($AL$6="IPM Region",RPE_RegionGroupAcronym,RPE_State),"="&IF($AL$6="National","*",$AO64))) ->  | AQ64: =IF(AO64=0,"",IF($AL$18="Actual",0,SUMIFS(CHOOSE(VLOOKUP($AL$33,'Lookup tables'!$AK$5:$AM$15,3,0), RPE_FuelConsumptionSummerTBtu, RPE_FuelConsumptionTotalTBtu, RPE_GenerationSummerGWh, RPE_GenerationTotalGWh, RPE_CO2EmissionsSummerThousandTons, RPE_CO2EmissionsTotalThousandTons, RPE_NOXEmissionsSummerThousandTons, RPE_NOXEmissionsTotalThousandTons, RPE_SO2EmissionsSummerThousandTons, RPE_SO2EmissionsTotalThousandTons, RPE_DispatchableCapacityMW), MeetComparisonCriteria,"=1",IF($AL$6="IPM Region",RPE_RegionGroupAcronym,RPE_State),"="&IF($AL$6="National","*",$AO64)))) ->  | AT64: 16777215
O65: WECC_UT | AO65: 0 | AP65: =IF(AO65=0,"",SUMIFS(CHOOSE(VLOOKUP($AL$16,'Lookup tables'!$AK$5:$AM$15,3,0), RPE_FuelConsumptionSummerTBtu, RPE_FuelConsumptionTotalTBtu, RPE_GenerationSummerGWh, RPE_GenerationTotalGWh, RPE_CO2EmissionsSummerThousandTons, RPE_CO2EmissionsTotalThousandTons, RPE_NOXEmissionsSummerThousandTons, RPE_NOXEmissionsTotalThousandTons, RPE_SO2EmissionsSummerThousandTons, RPE_SO2EmissionsTotalThousandTons, RPE_DispatchableCapacityMW), MeetPrimaryCriteria,"=1",IF($AL$6="IPM Region",RPE_RegionGroupAcronym,RPE_State),"="&IF($AL$6="National","*",$AO65))) ->  | AQ65: =IF(AO65=0,"",IF($AL$18="Actual",0,SUMIFS(CHOOSE(VLOOKUP($AL$33,'Lookup tables'!$AK$5:$AM$15,3,0), RPE_FuelConsumptionSummerTBtu, RPE_FuelConsumptionTotalTBtu, RPE_GenerationSummerGWh, RPE_GenerationTotalGWh, RPE_CO2EmissionsSummerThousandTons, RPE_CO2EmissionsTotalThousandTons, RPE_NOXEmissionsSummerThousandTons, RPE_NOXEmissionsTotalThousandTons, RPE_SO2EmissionsSummerThousandTons, RPE_SO2EmissionsTotalThousandTons, RPE_DispatchableCapacityMW), MeetComparisonCriteria,"=1",IF($AL$6="IPM Region",RPE_RegionGroupAcronym,RPE_State),"="&IF($AL$6="National","*",$AO65)))) ->  | AT65: 16777215 | AY65: RPE_NOXEmissionsSummerThousandTons | BH65: min | BI65: =MIN($AR$5:$AR$53) -> 0.0178888774
O66: WECC_WY | AO66: 0 | AP66: =IF(AO66=0,"",SUMIFS(CHOOSE(VLOOKUP($AL$16,'Lookup tables'!$AK$5:$AM$15,3,0), RPE_FuelConsumptionSummerTBtu, RPE_FuelConsumptionTotalTBtu, RPE_GenerationSummerGWh, RPE_GenerationTotalGWh, RPE_CO2EmissionsSummerThousandTons, RPE_CO2EmissionsTotalThousandTons, RPE_NOXEmissionsSummerThousandTons, RPE_NOXEmissionsTotalThousandTons, RPE_SO2EmissionsSummerThousandTons, RPE_SO2EmissionsTotalThousandTons, RPE_DispatchableCapacityMW), MeetPrimaryCriteria,"=1",IF($AL$6="IPM Region",RPE_RegionGroupAcronym,RPE_State),"="&IF($AL$6="National","*",$AO66))) ->  | AQ66: =IF(AO66=0,"",IF($AL$18="Actual",0,SUMIFS(CHOOSE(VLOOKUP($AL$33,'Lookup tables'!$AK$5:$AM$15,3,0), RPE_FuelConsumptionSummerTBtu, RPE_FuelConsumptionTotalTBtu, RPE_GenerationSummerGWh, RPE_GenerationTotalGWh, RPE_CO2EmissionsSummerThousandTons, RPE_CO2EmissionsTotalThousandTons, RPE_NOXEmissionsSummerThousandTons, RPE_NOXEmissionsTotalThousandTons, RPE_SO2EmissionsSummerThousandTons, RPE_SO2EmissionsTotalThousandTons, RPE_DispatchableCapacityMW), MeetComparisonCriteria,"=1",IF($AL$6="IPM Region",RPE_RegionGroupAcronym,RPE_State),"="&IF($AL$6="National","*",$AO66)))) ->  | AT66: 16777215 | BH66: max | BI66: =MAX($AR$5:$AR$53) -> 25.40224299
AO67: 0 | AP67: =IF(AO67=0,"",SUMIFS(CHOOSE(VLOOKUP($AL$16,'Lookup tables'!$AK$5:$AM$15,3,0), RPE_FuelConsumptionSummerTBtu, RPE_FuelConsumptionTotalTBtu, RPE_GenerationSummerGWh, RPE_GenerationTotalGWh, RPE_CO2EmissionsSummerThousandTons, RPE_CO2EmissionsTotalThousandTons, RPE_NOXEmissionsSummerThousandTons, RPE_NOXEmissionsTotalThousandTons, RPE_SO2EmissionsSummerThousandTons, RPE_SO2EmissionsTotalThousandTons, RPE_DispatchableCapacityMW), MeetPrimaryCriteria,"=1",IF($AL$6="IPM Region",RPE_RegionGroupAcronym,RPE_State),"="&IF($AL$6="National","*",$AO67))) ->  | AQ67: =IF(AO67=0,"",IF($AL$18="Actual",0,SUMIFS(CHOOSE(VLOOKUP($AL$33,'Lookup tables'!$AK$5:$AM$15,3,0), RPE_FuelConsumptionSummerTBtu, RPE_FuelConsumptionTotalTBtu, RPE_GenerationSummerGWh, RPE_GenerationTotalGWh, RPE_CO2EmissionsSummerThousandTons, RPE_CO2EmissionsTotalThousandTons, RPE_NOXEmissionsSummerThousandTons, RPE_NOXEmissionsTotalThousandTons, RPE_SO2EmissionsSummerThousandTons, RPE_SO2EmissionsTotalThousandTons, RPE_DispatchableCapacityMW), MeetComparisonCriteria,"=1",IF($AL$6="IPM Region",RPE_RegionGroupAcronym,RPE_State),"="&IF($AL$6="National","*",$AO67)))) ->  | AT67: 16777215
AO68: 0 | AP68: =IF(AO68=0,"",SUMIFS(CHOOSE(VLOOKUP($AL$16,'Lookup tables'!$AK$5:$AM$15,3,0), RPE_FuelConsumptionSummerTBtu, RPE_FuelConsumptionTotalTBtu, RPE_GenerationSummerGWh, RPE_GenerationTotalGWh, RPE_CO2EmissionsSummerThousandTons, RPE_CO2EmissionsTotalThousandTons, RPE_NOXEmissionsSummerThousandTons, RPE_NOXEmissionsTotalThousandTons, RPE_SO2EmissionsSummerThousandTons, RPE_SO2EmissionsTotalThousandTons, RPE_DispatchableCapacityMW), MeetPrimaryCriteria,"=1",IF($AL$6="IPM Region",RPE_RegionGroupAcronym,RPE_State),"="&IF($AL$6="National","*",$AO68))) ->  | AQ68: =IF(AO68=0,"",IF($AL$18="Actual",0,SUMIFS(CHOOSE(VLOOKUP($AL$33,'Lookup tables'!$AK$5:$AM$15,3,0), RPE_FuelConsumptionSummerTBtu, RPE_FuelConsumptionTotalTBtu, RPE_GenerationSummerGWh, RPE_GenerationTotalGWh, RPE_CO2EmissionsSummerThousandTons, RPE_CO2EmissionsTotalThousandTons, RPE_NOXEmissionsSummerThousandTons, RPE_NOXEmissionsTotalThousandTons, RPE_SO2EmissionsSummerThousandTons, RPE_SO2EmissionsTotalThousandTons, RPE_DispatchableCapacityMW), MeetComparisonCriteria,"=1",IF($AL$6="IPM Region",RPE_RegionGroupAcronym,RPE_State),"="&IF($AL$6="National","*",$AO68)))) ->  | AT68: 16777215 | BH68: largest absolute | BI68: =MAX(ABS(BI65),ABS(BI66)) -> 25.40224299
BH69: step | BI69: =BI68/4 -> 6.350560747
BE72: Bucket | BH72: Coloring
BE73: 0 | BF73: =BF74-BI69 -> -25.40224299 | BH73: 801923 | BI73: =IF($AS$2="Round",TEXT(BF73,"###,##0"),IF($AS$2="Decimal",TEXT(BF73,"0.000"),TEXT(BF73,"#0%"))) -> -25
BE74: 1 | BF74: =BF75-BI69 -> -19.05168224 | BH74: 1137094 | BI74: =IF($AS$2="Round",TEXT(BF74,"###,##0"),IF($AS$2="Decimal",TEXT(BF74,"0.000"),TEXT(BF74,"#0%"))) -> -19
BE75: 2 | BF75: =BF76-BI69 -> -12.70112149 | BH75: 8696052 | BI75: -13
BE76: 3 | BF76: =BF77-BI69 -> -6.350560747 | BH76: 11389944 | BI76: -6
BE77: 4 | BF77: 0 | BH77: 16777215 | BI77: 0
BE78: 5 | BF78: =BF77+BI69 -> 6.350560747 | BH78: 11854022 | BI78: 6
BE79: 6 | BF79: =BF78+BI69 -> 12.70112149 | BH79: 9359529 | BI79: 13
BE80: 7 | BF80: =BF79+BI69 -> 19.05168224 | BH80: 4697456 | BI80: 19
BE81: 8 | BF81: =BF80+BI69 -> 25.40224299 | BH81: 3506772 | BI81: 25
BF83: (works with lookup above)
BF84: =BF81 -> 25.40224299
BF85: =BF80 -> 19.05168224
BF86: =BF79 -> 12.70112149
BF87: =BF78 -> 6.350560747

Sheet Whisker
I1: Data Point 1 | P1: Data Point 2
B2: Point 1 | E2: Point 2 (Optional) | I2: =IF($B$20="Actual",VLOOKUP(B18,$A$56:$B$66,2,0), IF($B$20="Absolute Change",IF(VLOOKUP(B18,$A$56:$B$66,2,0)=VLOOKUP(B35,$A$56:$B$66,2,0),"Change in "&VLOOKUP(B18,$A$56:$B$66,2,0),"Unit of Measure Mismatch"), IF($B$20="Percent Change",IF(B18=B35,"Percent Change of "&VLOOKUP(B18,$A$56:$B$66,2,0),"Unit of Measure Mismatch"), IF($B$20="Emissions Rate",IF(AND(NOT(ISERROR(SEARCH("tons",$B$18))),OR(NOT(ISERROR(SEARCH("GWh",$B$35))),NOT(ISERROR(SEARCH("TBtu",$B$35))))),IF(ISERROR(SEARCH("Summer",$B$18))<>ISERROR(SEARCH("Summer",$B$35)),"Unit of Measure Mismatch","lbs "&LEFT($B$18,3)&"/"&IF(RIGHT($B$35,4)="TBtu","mmBtu","kWh")),"Unit of Measure Mismatch"), IF($B$20="Fraction",IF(B18=B35,"Dimensionless Fraction or Ratio",VLOOKUP(B18,$A$56:$B$66,2,0)&" / "&VLOOKUP(B35,$A$56:$B$66,2,0)), IF(AND($B$20="Capacity Factor",NOT(ISERROR(SEARCH("Generation",$B$18))),NOT(ISERROR(SEARCH("Capacity",$B$35)))),"Capacity Factor","ERROR"))))))&A83 -> Thousand (short) tons NOx v6 Summer 2021 Ref Case (2023) | P2: =IF(E3="Off","[Data Point Off]",IF($E$20="Actual",VLOOKUP(E18,$A$56:$B$66,2,0), IF($E$20="Absolute Change",IF(VLOOKUP(E18,$A$56:$B$66,2,0)=VLOOKUP(E35,$A$56:$B$66,2,0),"Change in "&VLOOKUP(E18,$A$56:$B$66,2,0),"Unit of Measure Mismatch"), IF($E$20="Percent Change",IF(E18=E35,"Percent Change of "&VLOOKUP(E18,$A$56:$B$66,2,0),"Unit of Measure Mismatch"), IF($E$20="Emissions Rate",IF(AND(NOT(ISERROR(SEARCH("tons",$E$18))),OR(NOT(ISERROR(SEARCH("GWh",$E$35))),NOT(ISERROR(SEARCH("TBtu",$E$35))))),IF(ISERROR(SEARCH("Summer",$E$18))<>ISERROR(SEARCH("Summer",$E$35)),"Unit of Measure Mismatch","lbs "&LEFT($E$18,3)&"/"&IF(RIGHT($E$35,4)="TBtu","mmBtu","kWh")),"Unit of Measure Mismatch"), IF($E$20="Fraction",IF(E18=E35,"Dimensionless Fraction or Ratio",VLOOKUP(E18,$A$56:$B$66,2,0)&" / "&VLOOKUP(E35,$A$56:$B$66,2,0)), IF(AND($E$20="Capacity Factor",NOT(ISERROR(SEARCH("Generation",$E$18))),NOT(ISERROR(SEARCH("Capacity",$E$35)))),"Capacity Factor","ERROR"))))))&B83) -> [Data Point Off]
E3: Off
A4: PRIMARY RUN | B4: v6 Summer 2021 Ref Case | E4: v6 Summer 2021 Ref Case
A6: PRIMARY YEAR | B6: 2023 | E6: 2023
A8: Regional Aggregation | B8: State | C8: =IF(B8="State","RPE_State","RPE_RegionGroupAcronym") -> RPE_State | E8: State | F8: =IF(E8="State","RPE_State","RPE_RegionGroupAcronym") -> RPE_State
A10: PRIMARY DIMENSIONS
A11: Fuel Type | B11: All Units | C11: RPE_FuelType | E11: All Units | F11: RPE_FuelType
A12: Fossil >25 MW | B12: All Units | C12: RPE_Fossil25MW | E12: All Units | F12: RPE_Fossil25MW
A13: Existing/New/Retired | B13: Existing and New | C13: RPE_ExistingorNewUnit | E13: Existing and New | F13: RPE_ExistingorNewUnit
A14: Plant Type | B14: All Units | C14: RPE_PlantType | E14: All Units | F14: RPE_PlantType
A15: Plant Category | B15: All Units | C15: RPE_PlantCategory | E15: All Units | F15: RPE_PlantCategory
A16: Plant Controls | B16: All Units | C16: =MATCH(B16,Controls,0) -> 1 | E16: All Units | F16: =IF(E3="Off",0,MATCH(E16,Controls,0)) -> 0
A17: Existing or New Controls | B17: All Controls | E17: All Controls
A18: PRIMARY MEASURE | B18: NOX Emissions Summer Thousand Tons | C18: =VLOOKUP(B18,'Lookup tables'!$AD$5:$AF$68,3,0) -> RPE_NOXEmissionsSummerThousandTons | E18: NOX Emissions Summer Thousand Tons | F18: =VLOOKUP(E18,'Lookup tables'!$AD$5:$AF$68,3,0) -> RPE_NOXEmissionsSummerThousandTons
A20: DISPLAY VALUE TYPE | B20: Actual | E20: Actual
A21: SORT BY | B21: Ascending
A23: COMPARISON RUN | B23: v6 Summer 2021 Ref Case | E23: v6 Summer 2021 Ref Case
A25: COMPARISON YEAR | B25: 2023 | E25: 2023
A27: COMPARISON DIMENSIONS
A28: Fuel Type | B28: All Units | C28: RPE_FuelType | E28: All Units | F28: RPE_FuelType
A29: Fossil >25 MW | B29: All Units | C29: RPE_Fossil25MW | E29: All Units | F29: RPE_Fossil25MW
A30: Existing/New/Retired | B30: Existing and New | C30: RPE_ExistingorNewUnit | E30: Existing and New | F30: RPE_ExistingorNewUnit
A31: Plant Type | B31: All Units | C31: RPE_PlantType | E31: All Units | F31: RPE_PlantType
A32: Plant Category | B32: All Units | C32: RPE_PlantCategory | E32: All Units | F32: RPE_PlantCategory
A33: Plant Controls | B33: All Units | C33: =IF(B20="actual",0,MATCH(B33,Controls,0)) -> 0 | E33: All Units | F33: =IF(OR(E20="actual",E3="off"),0,MATCH(E33,Controls,0)) -> 0
A34: Existing or New Controls | B34: All Controls | E34: All Controls
A35: COMPARISON MEASURE | B35: NOX Emissions Summer Thousand Tons | C35: =VLOOKUP(B35,'Lookup tables'!$AD$5:$AF$68,3,0) -> RPE_NOXEmissionsSummerThousandTons | E35: NOX Emissions Summer Thousand Tons | F35: =VLOOKUP(E35,'Lookup tables'!$AD$5:$AF$68,3,0) -> RPE_NOXEmissionsSummerThousandTons
A37: POINT COLOR
B41: ***You must click the update button to update the chart
Q52: Sort: | V52: show | W52: =IF(MIN($U$56:$V$104)>0,0,MIN($U$56:$V$104)) -> 0
Q53: =B21 -> Ascending | V53: =E3 -> Off | W53: =IF(W52<0,ROUNDUP(W52,0),ROUNDDOWN(W52,0)) -> 0
J54: Primary Value | K54: Comparison Value | L54: Display Value | M54: Primary Value | N54: Comparison Value | O54: Display Value | P54: Rank of Point 1 | Q54: Rank Tie Break | S54: Rank | T54: State | U54: Point 1 | V54: =IF(E3="Off","","Point 2") ->  | W54: Dummy | AF54: State | AG54: Point 1 | AH54: Point 2
I55: National | J55: =SUM(J56:J119) -> 262.1504697 | K55: =SUM(K56:K119) -> 0 | L55: =IF(I55=0,"",IFERROR(IF($B$20="Actual",J55,IF($B$20="Absolute Change",J55-K55,IF($B$20="Percent Change",(J55-K55)/K55,IF($B$20="Emissions Rate",(J55*2/K55),IF($B$20="Capacity Factor",J55*1000/(K55*IF(NOT(ISERROR(SEARCH("Summer",$B$18))),3672,8760)),J55/K55))))),0)) -> 262.1504697 | M55: =SUM(M56:M119) -> 0 | N55: =SUM(N56:N119) -> 0 | O55: =IF(I55=0,"",IFERROR(IF($E$20="Actual",M55,IF($E$20="Absolute Change",M55-N55,IF($E$20="Percent Change",(M55-N55)/N55,IF($E$20="Emissions Rate",(M55*2/N55),IF($E$20="Capacity Factor",M55*1000/(N55*IF(NOT(ISERROR(SEARCH("Summer",$E$18))),3672,8760)),M55/N55))))),0)) -> 0
A56: Fuel Consumption Summer TBtu | B56: TBtu | I56: =IF($B$8="State",Map!P3,Map!O3) -> AL | J56: =IF(I56=0,"",SUMIFS(CHOOSE(VLOOKUP($B$18,'Lookup tables'!$AK$5:$AM$15,3,0), RPE_FuelConsumptionSummerTBtu, RPE_FuelConsumptionTotalTBtu, RPE_GenerationSummerGWh, RPE_GenerationTotalGWh, RPE_CO2EmissionsSummerThousandTons, RPE_CO2EmissionsTotalThousandTons, RPE_NOXEmissionsSummerThousandTons, RPE_NOXEmissionsTotalThousandTons, RPE_SO2EmissionsSummerThousandTons, RPE_SO2EmissionsTotalThousandTons, RPE_DispatchableCapacityMW), MeetPrimaryCriteria2,"=1",IF($B$8="IPM Region",RPE_IPMRegionGroupAcronym,RPE_State),"="&IF($B$8="National","*",$I56))) -> 5.383017158 | K56: =IF(I56=0,"",IF($B$20="Actual",0,SUMIFS(CHOOSE(VLOOKUP($B$35,'Lookup tables'!$AK$5:$AM$15,3,0), RPE_FuelConsumptionSummerTBtu, RPE_FuelConsumptionTotalTBtu, RPE_GenerationSummerGWh, RPE_GenerationTotalGWh, RPE_CO2EmissionsSummerThousandTons, RPE_CO2EmissionsTotalThousandTons, RPE_NOXEmissionsSummerThousandTons, RPE_NOXEmissionsTotalThousandTons, RPE_SO2EmissionsSummerThousandTons, RPE_SO2EmissionsTotalThousandTons, RPE_DispatchableCapacityMW), MeetComparisonCriteria2,"=1",IF($B$8="IPM Region",RPE_IPMRegionGroupAcronym,RPE_State),"="&IF($B$8="National","*",$I56)))) -> 0 | L56: =IF(I56=0,"",IFERROR(IF($B$20="Actual",J56,IF($B$20="Absolute Change",J56-K56,IF($B$20="Percent Change",(J56-K56)/K56,IF($B$20="Emissions Rate",(J56*2/K56),IF($B$20="Capacity Factor",J56*1000/(K56*IF(NOT(ISERROR(SEARCH("Summer",$B$18))),3672,8760)),J56/K56))))),0)) -> 5.383017158 | M56: =IF(I56=0,"",SUMIFS(CHOOSE(VLOOKUP($E$18,'Lookup tables'!$AK$5:$AM$15,3,0), RPE_FuelConsumptionSummerTBtu, RPE_FuelConsumptionTotalTBtu, RPE_GenerationSummerGWh, RPE_GenerationTotalGWh, RPE_CO2EmissionsSummerThousandTons, RPE_CO2EmissionsTotalThousandTons, RPE_NOXEmissionsSummerThousandTons, RPE_NOXEmissionsTotalThousandTons, RPE_SO2EmissionsSummerThousandTons, RPE_SO2EmissionsTotalThousandTons, RPE_DispatchableCapacityMW), MeetPrimaryCriteria3,"=1",IF($E$8="IPM Region",RPE_IPMRegionGroupAcronym,RPE_State),"="&IF($E$8="National","*",$I56))) -> 0 | N56: =IF(I56=0,"",IF($E$20="Actual",0,SUMIFS(CHOOSE(VLOOKUP($E$35,'Lookup tables'!$AK$5:$AM$15,3,0), RPE_FuelConsumptionSummerTBtu, RPE_FuelConsumptionTotalTBtu, RPE_GenerationSummerGWh, RPE_GenerationTotalGWh, RPE_CO2EmissionsSummerThousandTons, RPE_CO2EmissionsTotalThousandTons, RPE_NOXEmissionsSummerThousandTons, RPE_NOXEmissionsTotalThousandTons, RPE_SO2EmissionsSummerThousandTons, RPE_SO2EmissionsTotalThousandTons, RPE_DispatchableCapacityMW), MeetComparisonCriteria3,"=1",IF($E$8="IPM Region",RPE_IPMRegionGroupAcronym,RPE_State),"="&IF($E$8="National","*",$I56)))) -> 0 | O56: =IF(I56=0,"",IFERROR(IF($E$20="Actual",M56,IF($E$20="Absolute Change",M56-N56,IF($E$20="Percent Change",(M56-N56)/N56,IF($E$20="Emissions Rate",(M56*2/N56),IF($E$20="Capacity Factor",M56*1000/(N56*IF(NOT(ISERROR(SEARCH("Summer",$E$18))),3672,8760)),M56/N56))))),0)) -> 0 | P56: =IF(OR(I56=" ",I56=0),"",(RANK(L56,IF($B$8="State",$L$56:$L$104,$L$56:$L$118))+ROW()*0.0000000001)) -> 22.00000001 | Q56: =IF(OR(I56=" ",I56=0),"",IF($Q$53="Alphabetical",99-(ROW()-6),RANK(P56,IF($B$8="State",$P$56:$P$104,$P$56:$P$118),IF($Q$53="Descending",0,1)))) -> 22 | S56: 1 | T56: =IF(S56="","",INDEX($I$56:$I$118,MATCH(S56,$Q$56:$Q$118,0),1)) -> TX | U56: =IF(S56="","",INDEX($L$56:$L$118,MATCH(S56,$Q$56:$Q$118,0),1)) -> 25.40224299 | V56: =IF(S56="","",IF($V$53="off",0,INDEX($O$56:$O$118,MATCH(S56,$Q$56:$Q$118,0),1))) -> 0 | W56: =$W$53 -> 0 | AD56: 0 | AE56: 1 | AF56: IN | AG56: 0.1651487338 | AH56: 0.1265940015 | AI56: =AH56/AG56 -> 0.766545396
A57: Fuel Consumption Total TBtu | B57: TBtu | I57: =IF($B$8="State",Map!P4,Map!O4) -> AR | J57: =IF(I57=0,"",SUMIFS(CHOOSE(VLOOKUP($B$18,'Lookup tables'!$AK$5:$AM$15,3,0), RPE_FuelConsumptionSummerTBtu, RPE_FuelConsumptionTotalTBtu, RPE_GenerationSummerGWh, RPE_GenerationTotalGWh, RPE_CO2EmissionsSummerThousandTons, RPE_CO2EmissionsTotalThousandTons, RPE_NOXEmissionsSummerThousandTons, RPE_NOXEmissionsTotalThousandTons, RPE_SO2EmissionsSummerThousandTons, RPE_SO2EmissionsTotalThousandTons, RPE_DispatchableCapacityMW), MeetPrimaryCriteria2,"=1",IF($B$8="IPM Region",RPE_IPMRegionGroupAcronym,RPE_State),"="&IF($B$8="National","*",$I57))) -> 6.037052705 | K57: =IF(I57=0,"",IF($B$20="Actual",0,SUMIFS(CHOOSE(VLOOKUP($B$35,'Lookup tables'!$AK$5:$AM$15,3,0), RPE_FuelConsumptionSummerTBtu, RPE_FuelConsumptionTotalTBtu, RPE_GenerationSummerGWh, RPE_GenerationTotalGWh, RPE_CO2EmissionsSummerThousandTons, RPE_CO2EmissionsTotalThousandTons, RPE_NOXEmissionsSummerThousandTons, RPE_NOXEmissionsTotalThousandTons, RPE_SO2EmissionsSummerThousandTons, RPE_SO2EmissionsTotalThousandTons, RPE_DispatchableCapacityMW), MeetComparisonCriteria2,"=1",IF($B$8="IPM Region",RPE_IPMRegionGroupAcronym,RPE_State),"="&IF($B$8="National","*",$I57)))) -> 0 | L57: =IF(I57=0,"",IFERROR(IF($B$20="Actual",J57,IF($B$20="Absolute Change",J57-K57,IF($B$20="Percent Change",(J57-K57)/K57,IF($B$20="Emissions Rate",(J57*2/K57),IF($B$20="Capacity Factor",J57*1000/(K57*IF(NOT(ISERROR(SEARCH("Summer",$B$18))),3672,8760)),J57/K57))))),0)) -> 6.037052705 | M57: =IF(I57=0,"",SUMIFS(CHOOSE(VLOOKUP($E$18,'Lookup tables'!$AK$5:$AM$15,3,0), RPE_FuelConsumptionSummerTBtu, RPE_FuelConsumptionTotalTBtu, RPE_GenerationSummerGWh, RPE_GenerationTotalGWh, RPE_CO2EmissionsSummerThousandTons, RPE_CO2EmissionsTotalThousandTons, RPE_NOXEmissionsSummerThousandTons, RPE_NOXEmissionsTotalThousandTons, RPE_SO2EmissionsSummerThousandTons, RPE_SO2EmissionsTotalThousandTons, RPE_DispatchableCapacityMW), MeetPrimaryCriteria3,"=1",IF($E$8="IPM Region",RPE_IPMRegionGroupAcronym,RPE_State),"="&IF($E$8="National","*",$I57))) -> 0 | N57: =IF(I57=0,"",IF($E$20="Actual",0,SUMIFS(CHOOSE(VLOOKUP($E$35,'Lookup tables'!$AK$5:$AM$15,3,0), RPE_FuelConsumptionSummerTBtu, RPE_FuelConsumptionTotalTBtu, RPE_GenerationSummerGWh, RPE_GenerationTotalGWh, RPE_CO2EmissionsSummerThousandTons, RPE_CO2EmissionsTotalThousandTons, RPE_NOXEmissionsSummerThousandTons, RPE_NOXEmissionsTotalThousandTons, RPE_SO2EmissionsSummerThousandTons, RPE_SO2EmissionsTotalThousandTons, RPE_DispatchableCapacityMW), MeetComparisonCriteria3,"=1",IF($E$8="IPM Region",RPE_IPMRegionGroupAcronym,RPE_State),"="&IF($E$8="National","*",$I57)))) -> 0 | O57: =IF(I57=0,"",IFERROR(IF($E$20="Actual",M57,IF($E$20="Absolute Change",M57-N57,IF($E$20="Percent Change",(M57-N57)/N57,IF($E$20="Emissions Rate",(M57*2/N57),IF($E$20="Capacity Factor",M57*1000/(N57*IF(NOT(ISERROR(SEARCH("Summer",$E$18))),3672,8760)),M57/N57))))),0)) -> 0 | P57: 19.00000001 | Q57: =IF(OR(I57=" ",I57=0),"",IF($Q$53="Alphabetical",99-(ROW()-6),RANK(P57,IF($B$8="State",$P$56:$P$104,$P$56:$P$118),IF($Q$53="Descending",0,1)))) -> 19 | S57: =IF(OR(I57=" ",I57=0),"",S56+1) -> 2 | T57: =IF(S57="","",INDEX($I$56:$I$118,MATCH(S57,$Q$56:$Q$118,0),1)) -> KY | U57: =IF(S57="","",INDEX($L$56:$L$118,MATCH(S57,$Q$56:$Q$118,0),1)) -> 12.07069714 | V57: =IF(S57="","",IF($V$53="off",0,INDEX($O$56:$O$118,MATCH(S57,$Q$56:$Q$118,0),1))) -> 0 | W57: =$W$53 -> 0 | AD57: 0 | AE57: =AE56+1 -> 2 | AF57: IA | AG57: 0.150617194 | AH57: 0.1548536248 | AI57: 1.02812714
A58: Generation Summer GWh | B58: GWh | I58: =IF($B$8="State",Map!P5,Map!O5) -> AZ | J58: =IF(I58=0,"",SUMIFS(CHOOSE(VLOOKUP($B$18,'Lookup tables'!$AK$5:$AM$15,3,0), RPE_FuelConsumptionSummerTBtu, RPE_FuelConsumptionTotalTBtu, RPE_GenerationSummerGWh, RPE_GenerationTotalGWh, RPE_CO2EmissionsSummerThousandTons, RPE_CO2EmissionsTotalThousandTons, RPE_NOXEmissionsSummerThousandTons, RPE_NOXEmissionsTotalThousandTons, RPE_SO2EmissionsSummerThousandTons, RPE_SO2EmissionsTotalThousandTons, RPE_DispatchableCapacityMW), MeetPrimaryCriteria2,"=1",IF($B$8="IPM Region",RPE_IPMRegionGroupAcronym,RPE_State),"="&IF($B$8="National","*",$I58))) -> 1.278199836 | K58: =IF(I58=0,"",IF($B$20="Actual",0,SUMIFS(CHOOSE(VLOOKUP($B$35,'Lookup tables'!$AK$5:$AM$15,3,0), RPE_FuelConsumptionSummerTBtu, RPE_FuelConsumptionTotalTBtu, RPE_GenerationSummerGWh, RPE_GenerationTotalGWh, RPE_CO2EmissionsSummerThousandTons, RPE_CO2EmissionsTotalThousandTons, RPE_NOXEmissionsSummerThousandTons, RPE_NOXEmissionsTotalThousandTons, RPE_SO2EmissionsSummerThousandTons, RPE_SO2EmissionsTotalThousandTons, RPE_DispatchableCapacityMW), MeetComparisonCriteria2,"=1",IF($B$8="IPM Region",RPE_IPMRegionGroupAcronym,RPE_State),"="&IF($B$8="National","*",$I58)))) -> 0 | L58: 1.278199836 | M58: =IF(I58=0,"",SUMIFS(CHOOSE(VLOOKUP($E$18,'Lookup tables'!$AK$5:$AM$15,3,0), RPE_FuelConsumptionSummerTBtu, RPE_FuelConsumptionTotalTBtu, RPE_GenerationSummerGWh, RPE_GenerationTotalGWh, RPE_CO2EmissionsSummerThousandTons, RPE_CO2EmissionsTotalThousandTons, RPE_NOXEmissionsSummerThousandTons, RPE_NOXEmissionsTotalThousandTons, RPE_SO2EmissionsSummerThousandTons, RPE_SO2EmissionsTotalThousandTons, RPE_DispatchableCapacityMW), MeetPrimaryCriteria3,"=1",IF($E$8="IPM Region",RPE_IPMRegionGroupAcronym,RPE_State),"="&IF($E$8="National","*",$I58))) -> 0 | N58: =IF(I58=0,"",IF($E$20="Actual",0,SUMIFS(CHOOSE(VLOOKUP($E$35,'Lookup tables'!$AK$5:$AM$15,3,0), RPE_FuelConsumptionSummerTBtu, RPE_FuelConsumptionTotalTBtu, RPE_GenerationSummerGWh, RPE_GenerationTotalGWh, RPE_CO2EmissionsSummerThousandTons, RPE_CO2EmissionsTotalThousandTons, RPE_NOXEmissionsSummerThousandTons, RPE_NOXEmissionsTotalThousandTons, RPE_SO2EmissionsSummerThousandTons, RPE_SO2EmissionsTotalThousandTons, RPE_DispatchableCapacityMW), MeetComparisonCriteria3,"=1",IF($E$8="IPM Region",RPE_IPMRegionGroupAcronym,RPE_State),"="&IF($E$8="National","*",$I58)))) -> 0 | O58: 0 | P58: 38.00000001 | Q58: 38 | S58: =IF(OR(I58=" ",I58=0),"",S57+1) -> 3 | T58: MO | U58: 11.95717759 | V58: 0 | W58: 0 | AD58: 0 | AE58: =AE57+1 -> 3 | AF58: NC | AG58: 0.1483762276 | AH58: 0.1768438289 | AI58: 1.191860932
A59: Generation Total GWh | B59: GWh | I59: =IF($B$8="State",Map!P6,Map!O6) -> CA | J59: =IF(I59=0,"",SUMIFS(CHOOSE(VLOOKUP($B$18,'Lookup tables'!$AK$5:$AM$15,3,0), RPE_FuelConsumptionSummerTBtu, RPE_FuelConsumptionTotalTBtu, RPE_GenerationSummerGWh, RPE_GenerationTotalGWh, RPE_CO2EmissionsSummerThousandTons, RPE_CO2EmissionsTotalThousandTons, RPE_NOXEmissionsSummerThousandTons, RPE_NOXEmissionsTotalThousandTons, RPE_SO2EmissionsSummerThousandTons, RPE_SO2EmissionsTotalThousandTons, RPE_DispatchableCapacityMW), MeetPrimaryCriteria2,"=1",IF($B$8="IPM Region",RPE_IPMRegionGroupAcronym,RPE_State),"="&IF($B$8="National","*",$I59))) -> 5.974757266 | K59: =IF(I59=0,"",IF($B$20="Actual",0,SUMIFS(CHOOSE(VLOOKUP($B$35,'Lookup tables'!$AK$5:$AM$15,3,0), RPE_FuelConsumptionSummerTBtu, RPE_FuelConsumptionTotalTBtu, RPE_GenerationSummerGWh, RPE_GenerationTotalGWh, RPE_CO2EmissionsSummerThousandTons, RPE_CO2EmissionsTotalThousandTons, RPE_NOXEmissionsSummerThousandTons, RPE_NOXEmissionsTotalThousandTons, RPE_SO2EmissionsSummerThousandTons, RPE_SO2EmissionsTotalThousandTons, RPE_DispatchableCapacityMW), MeetComparisonCriteria2,"=1",IF($B$8="IPM Region",RPE_IPMRegionGroupAcronym,RPE_State),"="&IF($B$8="National","*",$I59)))) -> 0 | L59: 5.974757266 | M59: =IF(I59=0,"",SUMIFS(CHOOSE(VLOOKUP($E$18,'Lookup tables'!$AK$5:$AM$15,3,0), RPE_FuelConsumptionSummerTBtu, RPE_FuelConsumptionTotalTBtu, RPE_GenerationSummerGWh, RPE_GenerationTotalGWh, RPE_CO2EmissionsSummerThousandTons, RPE_CO2EmissionsTotalThousandTons, RPE_NOXEmissionsSummerThousandTons, RPE_NOXEmissionsTotalThousandTons, RPE_SO2EmissionsSummerThousandTons, RPE_SO2EmissionsTotalThousandTons, RPE_DispatchableCapacityMW), MeetPrimaryCriteria3,"=1",IF($E$8="IPM Region",RPE_IPMRegionGroupAcronym,RPE_State),"="&IF($E$8="National","*",$I59))) -> 0 | N59: =IF(I59=0,"",IF($E$20="Actual",0,SUMIFS(CHOOSE(VLOOKUP($E$35,'Lookup tables'!$AK$5:$AM$15,3,0), RPE_FuelConsumptionSummerTBtu, RPE_FuelConsumptionTotalTBtu, RPE_GenerationSummerGWh, RPE_GenerationTotalGWh, RPE_CO2EmissionsSummerThousandTons, RPE_CO2EmissionsTotalThousandTons, RPE_NOXEmissionsSummerThousandTons, RPE_NOXEmissionsTotalThousandTons, RPE_SO2EmissionsSummerThousandTons, RPE_SO2EmissionsTotalThousandTons, RPE_DispatchableCapacityMW), MeetComparisonCriteria3,"=1",IF($E$8="IPM Region",RPE_IPMRegionGroupAcronym,RPE_State),"="&IF($E$8="National","*",$I59)))) -> 0 | O59: 0 | P59: 20.00000001 | Q59: 20 | S59: 4 | T59: MI | U59: 11.94291615 | V59: 0 | W59: 0 | AD59: 0 | AE59: 4 | AF59: OH | AG59: 0.1438966661 | AH59: 0.1163631651 | AI59: 0.8086578254
A60: CO2 Emissions Summer Thousand Tons | B60: Thousand (short) tons CO2 | I60: =IF($B$8="State",Map!P7,Map!O7) -> CO | J60: =IF(I60=0,"",SUMIFS(CHOOSE(VLOOKUP($B$18,'Lookup tables'!$AK$5:$AM$15,3,0), RPE_FuelConsumptionSummerTBtu, RPE_FuelConsumptionTotalTBtu, RPE_GenerationSummerGWh, RPE_GenerationTotalGWh, RPE_CO2EmissionsSummerThousandTons, RPE_CO2EmissionsTotalThousandTons, RPE_NOXEmissionsSummerThousandTons, RPE_NOXEmissionsTotalThousandTons, RPE_SO2EmissionsSummerThousandTons, RPE_SO2EmissionsTotalThousandTons, RPE_DispatchableCapacityMW), MeetPrimaryCriteria2,"=1",IF($B$8="IPM Region",RPE_IPMRegionGroupAcronym,RPE_State),"="&IF($B$8="National","*",$I60))) -> 5.788710915 | K60: =IF(I60=0,"",IF($B$20="Actual",0,SUMIFS(CHOOSE(VLOOKUP($B$35,'Lookup tables'!$AK$5:$AM$15,3,0), RPE_FuelConsumptionSummerTBtu, RPE_FuelConsumptionTotalTBtu, RPE_GenerationSummerGWh, RPE_GenerationTotalGWh, RPE_CO2EmissionsSummerThousandTons, RPE_CO2EmissionsTotalThousandTons, RPE_NOXEmissionsSummerThousandTons, RPE_NOXEmissionsTotalThousandTons, RPE_SO2EmissionsSummerThousandTons, RPE_SO2EmissionsTotalThousandTons, RPE_DispatchableCapacityMW), MeetComparisonCriteria2,"=1",IF($B$8="IPM Region",RPE_IPMRegionGroupAcronym,RPE_State),"="&IF($B$8="National","*",$I60)))) -> 0 | L60: 5.788710915 | M60: =IF(I60=0,"",SUMIFS(CHOOSE(VLOOKUP($E$18,'Lookup tables'!$AK$5:$AM$15,3,0), RPE_FuelConsumptionSummerTBtu, RPE_FuelConsumptionTotalTBtu, RPE_GenerationSummerGWh, RPE_GenerationTotalGWh, RPE_CO2EmissionsSummerThousandTons, RPE_CO2EmissionsTotalThousandTons, RPE_NOXEmissionsSummerThousandTons, RPE_NOXEmissionsTotalThousandTons, RPE_SO2EmissionsSummerThousandTons, RPE_SO2EmissionsTotalThousandTons, RPE_DispatchableCapacityMW), MeetPrimaryCriteria3,"=1",IF($E$8="IPM Region",RPE_IPMRegionGroupAcronym,RPE_State),"="&IF($E$8="National","*",$I60))) -> 0 | N60: =IF(I60=0,"",IF($E$20="Actual",0,SUMIFS(CHOOSE(VLOOKUP($E$35,'Lookup tables'!$AK$5:$AM$15,3,0), RPE_FuelConsumptionSummerTBtu, RPE_FuelConsumptionTotalTBtu, RPE_GenerationSummerGWh, RPE_GenerationTotalGWh, RPE_CO2EmissionsSummerThousandTons, RPE_CO2EmissionsTotalThousandTons, RPE_NOXEmissionsSummerThousandTons, RPE_NOXEmissionsTotalThousandTons, RPE_SO2EmissionsSummerThousandTons, RPE_SO2EmissionsTotalThousandTons, RPE_DispatchableCapacityMW), MeetComparisonCriteria3,"=1",IF($E$8="IPM Region",RPE_IPMRegionGroupAcronym,RPE_State),"="&IF($E$8="National","*",$I60)))) -> 0 | O60: 0 | P60: 21.00000001 | Q60: 21 | S60: 5 | T60: FL | U60: 11.20791482 | V60: 0 | W60: 0 | AD60: 0 | AE60: 5 | AF60: AR | AG60: 0.1420763777 | AH60: 0.1763911521 | AI60: 1.241523432
A61: CO2 Emissions Total Thousand Tons | B61: Thousand (short) tons CO2 | I61: =IF($B$8="State",Map!P8,Map!O8) -> CT | J61: =IF(I61=0,"",SUMIFS(CHOOSE(VLOOKUP($B$18,'Lookup tables'!$AK$5:$AM$15,3,0), RPE_FuelConsumptionSummerTBtu, RPE_FuelConsumptionTotalTBtu, RPE_GenerationSummerGWh, RPE_GenerationTotalGWh, RPE_CO2EmissionsSummerThousandTons, RPE_CO2EmissionsTotalThousandTons, RPE_NOXEmissionsSummerThousandTons, RPE_NOXEmissionsTotalThousandTons, RPE_SO2EmissionsSummerThousandTons, RPE_SO2EmissionsTotalThousandTons, RPE_DispatchableCapacityMW), MeetPrimaryCriteria2,"=1",IF($B$8="IPM Region",RPE_IPMRegionGroupAcronym,RPE_State),"="&IF($B$8="National","*",$I61))) -> 1.703408204 | K61: =IF(I61=0,"",IF($B$20="Actual",0,SUMIFS(CHOOSE(VLOOKUP($B$35,'Lookup tables'!$AK$5:$AM$15,3,0), RPE_FuelConsumptionSummerTBtu, RPE_FuelConsumptionTotalTBtu, RPE_GenerationSummerGWh, RPE_GenerationTotalGWh, RPE_CO2EmissionsSummerThousandTons, RPE_CO2EmissionsTotalThousandTons, RPE_NOXEmissionsSummerThousandTons, RPE_NOXEmissionsTotalThousandTons, RPE_SO2EmissionsSummerThousandTons, RPE_SO2EmissionsTotalThousandTons, RPE_DispatchableCapacityMW), MeetComparisonCriteria2,"=1",IF($B$8="IPM Region",RPE_IPMRegionGroupAcronym,RPE_State),"="&IF($B$8="National","*",$I61)))) -> 0 | L61: 1.703408204 | M61: =IF(I61=0,"",SUMIFS(CHOOSE(VLOOKUP($E$18,'Lookup tables'!$AK$5:$AM$15,3,0), RPE_FuelConsumptionSummerTBtu, RPE_FuelConsumptionTotalTBtu, RPE_GenerationSummerGWh, RPE_GenerationTotalGWh, RPE_CO2EmissionsSummerThousandTons, RPE_CO2EmissionsTotalThousandTons, RPE_NOXEmissionsSummerThousandTons, RPE_NOXEmissionsTotalThousandTons, RPE_SO2EmissionsSummerThousandTons, RPE_SO2EmissionsTotalThousandTons, RPE_DispatchableCapacityMW), MeetPrimaryCriteria3,"=1",IF($E$8="IPM Region",RPE_IPMRegionGroupAcronym,RPE_State),"="&IF($E$8="National","*",$I61))) -> 0 | N61: =IF(I61=0,"",IF($E$20="Actual",0,SUMIFS(CHOOSE(VLOOKUP($E$35,'Lookup tables'!$AK$5:$AM$15,3,0), RPE_FuelConsumptionSummerTBtu, RPE_FuelConsumptionTotalTBtu, RPE_GenerationSummerGWh, RPE_GenerationTotalGWh, RPE_CO2EmissionsSummerThousandTons, RPE_CO2EmissionsTotalThousandTons, RPE_NOXEmissionsSummerThousandTons, RPE_NOXEmissionsTotalThousandTons, RPE_SO2EmissionsSummerThousandTons, RPE_SO2EmissionsTotalThousandTons, RPE_DispatchableCapacityMW), MeetComparisonCriteria3,"=1",IF($E$8="IPM Region",RPE_IPMRegionGroupAcronym,RPE_State),"="&IF($E$8="National","*",$I61)))) -> 0 | O61: 0 | P61: 34.00000001 | Q61: 34 | S61: 6 | T61: WV | U61: 11.18355111 | V61: 0 | W61: 0 | AD61: 0 | AE61: 6 | AF61: MN | AG61: 0.1344366423 | AH61: 0.1248185026 | AI61: 0.9284559663
A62: NOX Emissions Summer Thousand Tons | B62: Thousand (short) tons NOx | I62: =IF($B$8="State",Map!P9,Map!O9) -> DC | J62: =IF(I62=0,"",SUMIFS(CHOOSE(VLOOKUP($B$18,'Lookup tables'!$AK$5:$AM$15,3,0), RPE_FuelConsumptionSummerTBtu, RPE_FuelConsumptionTotalTBtu, RPE_GenerationSummerGWh, RPE_GenerationTotalGWh, RPE_CO2EmissionsSummerThousandTons, RPE_CO2EmissionsTotalThousandTons, RPE_NOXEmissionsSummerThousandTons, RPE_NOXEmissionsTotalThousandTons, RPE_SO2EmissionsSummerThousandTons, RPE_SO2EmissionsTotalThousandTons, RPE_DispatchableCapacityMW), MeetPrimaryCriteria2,"=1",IF($B$8="IPM Region",RPE_IPMRegionGroupAcronym,RPE_State),"="&IF($B$8="National","*",$I62))) -> 0.0178888774 | K62: =IF(I62=0,"",IF($B$20="Actual",0,SUMIFS(CHOOSE(VLOOKUP($B$35,'Lookup tables'!$AK$5:$AM$15,3,0), RPE_FuelConsumptionSummerTBtu, RPE_FuelConsumptionTotalTBtu, RPE_GenerationSummerGWh, RPE_GenerationTotalGWh, RPE_CO2EmissionsSummerThousandTons, RPE_CO2EmissionsTotalThousandTons, RPE_NOXEmissionsSummerThousandTons, RPE_NOXEmissionsTotalThousandTons, RPE_SO2EmissionsSummerThousandTons, RPE_SO2EmissionsTotalThousandTons, RPE_DispatchableCapacityMW), MeetComparisonCriteria2,"=1",IF($B$8="IPM Region",RPE_IPMRegionGroupAcronym,RPE_State),"="&IF($B$8="National","*",$I62)))) -> 0 | L62: 0.0178888774 | M62: =IF(I62=0,"",SUMIFS(CHOOSE(VLOOKUP($E$18,'Lookup tables'!$AK$5:$AM$15,3,0), RPE_FuelConsumptionSummerTBtu, RPE_FuelConsumptionTotalTBtu, RPE_GenerationSummerGWh, RPE_GenerationTotalGWh, RPE_CO2EmissionsSummerThousandTons, RPE_CO2EmissionsTotalThousandTons, RPE_NOXEmissionsSummerThousandTons, RPE_NOXEmissionsTotalThousandTons, RPE_SO2EmissionsSummerThousandTons, RPE_SO2EmissionsTotalThousandTons, RPE_DispatchableCapacityMW), MeetPrimaryCriteria3,"=1",IF($E$8="IPM Region",RPE_IPMRegionGroupAcronym,RPE_State),"="&IF($E$8="National","*",$I62))) -> 0 | N62: =IF(I62=0,"",IF($E$20="Actual",0,SUMIFS(CHOOSE(VLOOKUP($E$35,'Lookup tables'!$AK$5:$AM$15,3,0), RPE_FuelConsumptionSummerTBtu, RPE_FuelConsumptionTotalTBtu, RPE_GenerationSummerGWh, RPE_GenerationTotalGWh, RPE_CO2EmissionsSummerThousandTons, RPE_CO2EmissionsTotalThousandTons, RPE_NOXEmissionsSummerThousandTons, RPE_NOXEmissionsTotalThousandTons, RPE_SO2EmissionsSummerThousandTons, RPE_SO2EmissionsTotalThousandTons, RPE_DispatchableCapacityMW), MeetComparisonCriteria3,"=1",IF($E$8="IPM Region",RPE_IPMRegionGroupAcronym,RPE_State),"="&IF($E$8="National","*",$I62)))) -> 0 | O62: 0 | P62: 49.00000001 | Q62: 49 | S62: 7 | T62: IN | U62: 11.00518153 | V62: 0 | W62: 0 | AD62: 0 | AE62: 7 | AF62: KY | AG62: 0.1344192568 | AH62: 0.1470944151 | AI62: 1.094295703
A63: NOX Emissions Total Thousand Tons | B63: Thousand (short) tons NOx | I63: =IF($B$8="State",Map!P10,Map!O10) -> DE | J63: =IF(I63=0,"",SUMIFS(CHOOSE(VLOOKUP($B$18,'Lookup tables'!$AK$5:$AM$15,3,0), RPE_FuelConsumptionSummerTBtu, RPE_FuelConsumptionTotalTBtu, RPE_GenerationSummerGWh, RPE_GenerationTotalGWh, RPE_CO2EmissionsSummerThousandTons, RPE_CO2EmissionsTotalThousandTons, RPE_NOXEmissionsSummerThousandTons, RPE_NOXEmissionsTotalThousandTons, RPE_SO2EmissionsSummerThousandTons, RPE_SO2EmissionsTotalThousandTons, RPE_DispatchableCapacityMW), MeetPrimaryCriteria2,"=1",IF($B$8="IPM Region",RPE_IPMRegionGroupAcronym,RPE_State),"="&IF($B$8="National","*",$I63))) -> 0.1827244873 | K63: =IF(I63=0,"",IF($B$20="Actual",0,SUMIFS(CHOOSE(VLOOKUP($B$35,'Lookup tables'!$AK$5:$AM$15,3,0), RPE_FuelConsumptionSummerTBtu, RPE_FuelConsumptionTotalTBtu, RPE_GenerationSummerGWh, RPE_GenerationTotalGWh, RPE_CO2EmissionsSummerThousandTons, RPE_CO2EmissionsTotalThousandTons, RPE_NOXEmissionsSummerThousandTons, RPE_NOXEmissionsTotalThousandTons, RPE_SO2EmissionsSummerThousandTons, RPE_SO2EmissionsTotalThousandTons, RPE_DispatchableCapacityMW), MeetComparisonCriteria2,"=1",IF($B$8="IPM Region",RPE_IPMRegionGroupAcronym,RPE_State),"="&IF($B$8="National","*",$I63)))) -> 0 | L63: 0.1827244873 | M63: =IF(I63=0,"",SUMIFS(CHOOSE(VLOOKUP($E$18,'Lookup tables'!$AK$5:$AM$15,3,0), RPE_FuelConsumptionSummerTBtu, RPE_FuelConsumptionTotalTBtu, RPE_GenerationSummerGWh, RPE_GenerationTotalGWh, RPE_CO2EmissionsSummerThousandTons, RPE_CO2EmissionsTotalThousandTons, RPE_NOXEmissionsSummerThousandTons, RPE_NOXEmissionsTotalThousandTons, RPE_SO2EmissionsSummerThousandTons, RPE_SO2EmissionsTotalThousandTons, RPE_DispatchableCapacityMW), MeetPrimaryCriteria3,"=1",IF($E$8="IPM Region",RPE_IPMRegionGroupAcronym,RPE_State),"="&IF($E$8="National","*",$I63))) -> 0 | N63: =IF(I63=0,"",IF($E$20="Actual",0,SUMIFS(CHOOSE(VLOOKUP($E$35,'Lookup tables'!$AK$5:$AM$15,3,0), RPE_FuelConsumptionSummerTBtu, RPE_FuelConsumptionTotalTBtu, RPE_GenerationSummerGWh, RPE_GenerationTotalGWh, RPE_CO2EmissionsSummerThousandTons, RPE_CO2EmissionsTotalThousandTons, RPE_NOXEmissionsSummerThousandTons, RPE_NOXEmissionsTotalThousandTons, RPE_SO2EmissionsSummerThousandTons, RPE_SO2EmissionsTotalThousandTons, RPE_DispatchableCapacityMW), MeetComparisonCriteria3,"=1",IF($E$8="IPM Region",RPE_IPMRegionGroupAcronym,RPE_State),"="&IF($E$8="National","*",$I63)))) -> 0 | O63: 0 | P63: 47.00000001 | Q63: 47 | S63: 8 | T63: NE | U63: 10.63418971 | V63: 0 | W63: 0 | AD63: 0 | AE63: 8 | AF63: CO | AG63: 0.1295018429 | AH63: 0.1077913889 | AI63: 0.8323540926
A64: SO2 Emissions Summer Thousand Tons | B64: Thousand (short) tons SO2 | I64: =IF($B$8="State",Map!P11,Map!O11) -> FL | J64: =IF(I64=0,"",SUMIFS(CHOOSE(VLOOKUP($B$18,'Lookup tables'!$AK$5:$AM$15,3,0), RPE_FuelConsumptionSummerTBtu, RPE_FuelConsumptionTotalTBtu, RPE_GenerationSummerGWh, RPE_GenerationTotalGWh, RPE_CO2EmissionsSummerThousandTons, RPE_CO2EmissionsTotalThousandTons, RPE_NOXEmissionsSummerThousandTons, RPE_NOXEmissionsTotalThousandTons, RPE_SO2EmissionsSummerThousandTons, RPE_SO2EmissionsTotalThousandTons, RPE_DispatchableCapacityMW), MeetPrimaryCriteria2,"=1",IF($B$8="IPM Region",RPE_IPMRegionGroupAcronym,RPE_State),"="&IF($B$8="National","*",$I64))) -> 11.20791482 | K64: =IF(I64=0,"",IF($B$20="Actual",0,SUMIFS(CHOOSE(VLOOKUP($B$35,'Lookup tables'!$AK$5:$AM$15,3,0), RPE_FuelConsumptionSummerTBtu, RPE_FuelConsumptionTotalTBtu, RPE_GenerationSummerGWh, RPE_GenerationTotalGWh, RPE_CO2EmissionsSummerThousandTons, RPE_CO2EmissionsTotalThousandTons, RPE_NOXEmissionsSummerThousandTons, RPE_NOXEmissionsTotalThousandTons, RPE_SO2EmissionsSummerThousandTons, RPE_SO2EmissionsTotalThousandTons, RPE_DispatchableCapacityMW), MeetComparisonCriteria2,"=1",IF($B$8="IPM Region",RPE_IPMRegionGroupAcronym,RPE_State),"="&IF($B$8="National","*",$I64)))) -> 0 | L64: 11.20791482 | M64: =IF(I64=0,"",SUMIFS(CHOOSE(VLOOKUP($E$18,'Lookup tables'!$AK$5:$AM$15,3,0), RPE_FuelConsumptionSummerTBtu, RPE_FuelConsumptionTotalTBtu, RPE_GenerationSummerGWh, RPE_GenerationTotalGWh, RPE_CO2EmissionsSummerThousandTons, RPE_CO2EmissionsTotalThousandTons, RPE_NOXEmissionsSummerThousandTons, RPE_NOXEmissionsTotalThousandTons, RPE_SO2EmissionsSummerThousandTons, RPE_SO2EmissionsTotalThousandTons, RPE_DispatchableCapacityMW), MeetPrimaryCriteria3,"=1",IF($E$8="IPM Region",RPE_IPMRegionGroupAcronym,RPE_State),"="&IF($E$8="National","*",$I64))) -> 0 | N64: =IF(I64=0,"",IF($E$20="Actual",0,SUMIFS(CHOOSE(VLOOKUP($E$35,'Lookup tables'!$AK$5:$AM$15,3,0), RPE_FuelConsumptionSummerTBtu, RPE_FuelConsumptionTotalTBtu, RPE_GenerationSummerGWh, RPE_GenerationTotalGWh, RPE_CO2EmissionsSummerThousandTons, RPE_CO2EmissionsTotalThousandTons, RPE_NOXEmissionsSummerThousandTons, RPE_NOXEmissionsTotalThousandTons, RPE_SO2EmissionsSummerThousandTons, RPE_SO2EmissionsTotalThousandTons, RPE_DispatchableCapacityMW), MeetComparisonCriteria3,"=1",IF($E$8="IPM Region",RPE_IPMRegionGroupAcronym,RPE_State),"="&IF($E$8="National","*",$I64)))) -> 0 | O64: 0 | P64: 5.000000006 | Q64: 5 | S64: 9 | T64: PA | U64: 10.62148619 | V64: 0 | W64: 0 | AD64: 0 | AE64: 9 | AF64: PA | AG64: 0.1210516261 | AH64: 0.1094001486 | AI64: 0.9037478644
A65: SO2 Emissions Total Thousand Tons | B65: Thousand (short) tons SO2 | I65: =IF($B$8="State",Map!P12,Map!O12) -> GA | J65: =IF(I65=0,"",SUMIFS(CHOOSE(VLOOKUP($B$18,'Lookup tables'!$AK$5:$AM$15,3,0), RPE_FuelConsumptionSummerTBtu, RPE_FuelConsumptionTotalTBtu, RPE_GenerationSummerGWh, RPE_GenerationTotalGWh, RPE_CO2EmissionsSummerThousandTons, RPE_CO2EmissionsTotalThousandTons, RPE_NOXEmissionsSummerThousandTons, RPE_NOXEmissionsTotalThousandTons, RPE_SO2EmissionsSummerThousandTons, RPE_SO2EmissionsTotalThousandTons, RPE_DispatchableCapacityMW), MeetPrimaryCriteria2,"=1",IF($B$8="IPM Region",RPE_IPMRegionGroupAcronym,RPE_State),"="&IF($B$8="National","*",$I65))) -> 3.740112319 | K65: =IF(I65=0,"",IF($B$20="Actual",0,SUMIFS(CHOOSE(VLOOKUP($B$35,'Lookup tables'!$AK$5:$AM$15,3,0), RPE_FuelConsumptionSummerTBtu, RPE_FuelConsumptionTotalTBtu, RPE_GenerationSummerGWh, RPE_GenerationTotalGWh, RPE_CO2EmissionsSummerThousandTons, RPE_CO2EmissionsTotalThousandTons, RPE_NOXEmissionsSummerThousandTons, RPE_NOXEmissionsTotalThousandTons, RPE_SO2EmissionsSummerThousandTons, RPE_SO2EmissionsTotalThousandTons, RPE_DispatchableCapacityMW), MeetComparisonCriteria2,"=1",IF($B$8="IPM Region",RPE_IPMRegionGroupAcronym,RPE_State),"="&IF($B$8="National","*",$I65)))) -> 0 | L65: 3.740112319 | M65: =IF(I65=0,"",SUMIFS(CHOOSE(VLOOKUP($E$18,'Lookup tables'!$AK$5:$AM$15,3,0), RPE_FuelConsumptionSummerTBtu, RPE_FuelConsumptionTotalTBtu, RPE_GenerationSummerGWh, RPE_GenerationTotalGWh, RPE_CO2EmissionsSummerThousandTons, RPE_CO2EmissionsTotalThousandTons, RPE_NOXEmissionsSummerThousandTons, RPE_NOXEmissionsTotalThousandTons, RPE_SO2EmissionsSummerThousandTons, RPE_SO2EmissionsTotalThousandTons, RPE_DispatchableCapacityMW), MeetPrimaryCriteria3,"=1",IF($E$8="IPM Region",RPE_IPMRegionGroupAcronym,RPE_State),"="&IF($E$8="National","*",$I65))) -> 0 | N65: =IF(I65=0,"",IF($E$20="Actual",0,SUMIFS(CHOOSE(VLOOKUP($E$35,'Lookup tables'!$AK$5:$AM$15,3,0), RPE_FuelConsumptionSummerTBtu, RPE_FuelConsumptionTotalTBtu, RPE_GenerationSummerGWh, RPE_GenerationTotalGWh, RPE_CO2EmissionsSummerThousandTons, RPE_CO2EmissionsTotalThousandTons, RPE_NOXEmissionsSummerThousandTons, RPE_NOXEmissionsTotalThousandTons, RPE_SO2EmissionsSummerThousandTons, RPE_SO2EmissionsTotalThousandTons, RPE_DispatchableCapacityMW), MeetComparisonCriteria3,"=1",IF($E$8="IPM Region",RPE_IPMRegionGroupAcronym,RPE_State),"="&IF($E$8="National","*",$I65)))) -> 0 | O65: 0 | P65: 26.00000001 | Q65: 26 | S65: 10 | T65: OH | U65: 10.36948405 | V65: 0 | W65: 0 | AD65: 0 | AE65: 10 | AF65: MS | AG65: 0.116555 | AH65: 0.1297 | AI65: 1.112779375
A66: Dispatchable Capacity MW | B66: MW | I66: =IF($B$8="State",Map!P13,Map!O13) -> IA | J66: =IF(I66=0,"",SUMIFS(CHOOSE(VLOOKUP($B$18,'Lookup tables'!$AK$5:$AM$15,3,0), RPE_FuelConsumptionSummerTBtu, RPE_FuelConsumptionTotalTBtu, RPE_GenerationSummerGWh, RPE_GenerationTotalGWh, RPE_CO2EmissionsSummerThousandTons, RPE_CO2EmissionsTotalThousandTons, RPE_NOXEmissionsSummerThousandTons, RPE_NOXEmissionsTotalThousandTons, RPE_SO2EmissionsSummerThousandTons, RPE_SO2EmissionsTotalThousandTons, RPE_DispatchableCapacityMW), MeetPrimaryCriteria2,"=1",IF($B$8="IPM Region",RPE_IPMRegionGroupAcronym,RPE_State),"="&IF($B$8="National","*",$I66))) -> 9.795436921 | K66: =IF(I66=0,"",IF($B$20="Actual",0,SUMIFS(CHOOSE(VLOOKUP($B$35,'Lookup tables'!$AK$5:$AM$15,3,0), RPE_FuelConsumptionSummerTBtu, RPE_FuelConsumptionTotalTBtu, RPE_GenerationSummerGWh, RPE_GenerationTotalGWh, RPE_CO2EmissionsSummerThousandTons, RPE_CO2EmissionsTotalThousandTons, RPE_NOXEmissionsSummerThousandTons, RPE_NOXEmissionsTotalThousandTons, RPE_SO2EmissionsSummerThousandTons, RPE_SO2EmissionsTotalThousandTons, RPE_DispatchableCapacityMW), MeetComparisonCriteria2,"=1",IF($B$8="IPM Region",RPE_IPMRegionGroupAcronym,RPE_State),"="&IF($B$8="National","*",$I66)))) -> 0 | L66: 9.795436921 | M66: =IF(I66=0,"",SUMIFS(CHOOSE(VLOOKUP($E$18,'Lookup tables'!$AK$5:$AM$15,3,0), RPE_FuelConsumptionSummerTBtu, RPE_FuelConsumptionTotalTBtu, RPE_GenerationSummerGWh, RPE_GenerationTotalGWh, RPE_CO2EmissionsSummerThousandTons, RPE_CO2EmissionsTotalThousandTons, RPE_NOXEmissionsSummerThousandTons, RPE_NOXEmissionsTotalThousandTons, RPE_SO2EmissionsSummerThousandTons, RPE_SO2EmissionsTotalThousandTons, RPE_DispatchableCapacityMW), MeetPrimaryCriteria3,"=1",IF($E$8="IPM Region",RPE_IPMRegionGroupAcronym,RPE_State),"="&IF($E$8="National","*",$I66))) -> 0 | N66: =IF(I66=0,"",IF($E$20="Actual",0,SUMIFS(CHOOSE(VLOOKUP($E$35,'Lookup tables'!$AK$5:$AM$15,3,0), RPE_FuelConsumptionSummerTBtu, RPE_FuelConsumptionTotalTBtu, RPE_GenerationSummerGWh, RPE_GenerationTotalGWh, RPE_CO2EmissionsSummerThousandTons, RPE_CO2EmissionsTotalThousandTons, RPE_NOXEmissionsSummerThousandTons, RPE_NOXEmissionsTotalThousandTons, RPE_SO2EmissionsSummerThousandTons, RPE_SO2EmissionsTotalThousandTons, RPE_DispatchableCapacityMW), MeetComparisonCriteria3,"=1",IF($E$8="IPM Region",RPE_IPMRegionGroupAcronym,RPE_State),"="&IF($E$8="National","*",$I66)))) -> 0 | O66: 0 | P66: 11.00000001 | Q66: 11 | S66: 11 | T66: IA | U66: 9.795436921 | V66: 0 | W66: 0 | AD66: 0 | AE66: 11 | AF66: WV | AG66: 0.1091782985 | AH66: 0.1156666931 | AI66: 1.059429343
I67: =IF($B$8="State",Map!P14,Map!O14) -> ID | J67: =IF(I67=0,"",SUMIFS(CHOOSE(VLOOKUP($B$18,'Lookup tables'!$AK$5:$AM$15,3,0), RPE_FuelConsumptionSummerTBtu, RPE_FuelConsumptionTotalTBtu, RPE_GenerationSummerGWh, RPE_GenerationTotalGWh, RPE_CO2EmissionsSummerThousandTons, RPE_CO2EmissionsTotalThousandTons, RPE_NOXEmissionsSummerThousandTons, RPE_NOXEmissionsTotalThousandTons, RPE_SO2EmissionsSummerThousandTons, RPE_SO2EmissionsTotalThousandTons, RPE_DispatchableCapacityMW), MeetPrimaryCriteria2,"=1",IF($B$8="IPM Region",RPE_IPMRegionGroupAcronym,RPE_State),"="&IF($B$8="National","*",$I67))) -> 0.3630973706 | K67: =IF(I67=0,"",IF($B$20="Actual",0,SUMIFS(CHOOSE(VLOOKUP($B$35,'Lookup tables'!$AK$5:$AM$15,3,0), RPE_FuelConsumptionSummerTBtu, RPE_FuelConsumptionTotalTBtu, RPE_GenerationSummerGWh, RPE_GenerationTotalGWh, RPE_CO2EmissionsSummerThousandTons, RPE_CO2EmissionsTotalThousandTons, RPE_NOXEmissionsSummerThousandTons, RPE_NOXEmissionsTotalThousandTons, RPE_SO2EmissionsSummerThousandTons, RPE_SO2EmissionsTotalThousandTons, RPE_DispatchableCapacityMW), MeetComparisonCriteria2,"=1",IF($B$8="IPM Region",RPE_IPMRegionGroupAcronym,RPE_State),"="&IF($B$8="National","*",$I67)))) -> 0 | L67: 0.3630973706 | M67: =IF(I67=0,"",SUMIFS(CHOOSE(VLOOKUP($E$18,'Lookup tables'!$AK$5:$AM$15,3,0), RPE_FuelConsumptionSummerTBtu, RPE_FuelConsumptionTotalTBtu, RPE_GenerationSummerGWh, RPE_GenerationTotalGWh, RPE_CO2EmissionsSummerThousandTons, RPE_CO2EmissionsTotalThousandTons, RPE_NOXEmissionsSummerThousandTons, RPE_NOXEmissionsTotalThousandTons, RPE_SO2EmissionsSummerThousandTons, RPE_SO2EmissionsTotalThousandTons, RPE_DispatchableCapacityMW), MeetPrimaryCriteria3,"=1",IF($E$8="IPM Region",RPE_IPMRegionGroupAcronym,RPE_State),"="&IF($E$8="National","*",$I67))) -> 0 | N67: =IF(I67=0,"",IF($E$20="Actual",0,SUMIFS(CHOOSE(VLOOKUP($E$35,'Lookup tables'!$AK$5:$AM$15,3,0), RPE_FuelConsumptionSummerTBtu, RPE_FuelConsumptionTotalTBtu, RPE_GenerationSummerGWh, RPE_GenerationTotalGWh, RPE_CO2EmissionsSummerThousandTons, RPE_CO2EmissionsTotalThousandTons, RPE_NOXEmissionsSummerThousandTons, RPE_NOXEmissionsTotalThousandTons, RPE_SO2EmissionsSummerThousandTons, RPE_SO2EmissionsTotalThousandTons, RPE_DispatchableCapacityMW), MeetComparisonCriteria3,"=1",IF($E$8="IPM Region",RPE_IPMRegionGroupAcronym,RPE_State),"="&IF($E$8="National","*",$I67)))) -> 0 | O67: 0 | P67: 44.00000001 | Q67: 44 | S67: 12 | T67: LA | U67: 9.409821107 | V67: 0 | W67: 0 | AD67: 0 | AE67: 12 | AF67: SC | AG67: 0.1050384927 | AH67: 0.09664431682 | AI67: 0.9200847641
I68: =IF($B$8="State",Map!P15,Map!O15) -> IL | J68: =IF(I68=0,"",SUMIFS(CHOOSE(VLOOKUP($B$18,'Lookup tables'!$AK$5:$AM$15,3,0), RPE_FuelConsumptionSummerTBtu, RPE_FuelConsumptionTotalTBtu, RPE_GenerationSummerGWh, RPE_GenerationTotalGWh, RPE_CO2EmissionsSummerThousandTons, RPE_CO2EmissionsTotalThousandTons, RPE_NOXEmissionsSummerThousandTons, RPE_NOXEmissionsTotalThousandTons, RPE_SO2EmissionsSummerThousandTons, RPE_SO2EmissionsTotalThousandTons, RPE_DispatchableCapacityMW), MeetPrimaryCriteria2,"=1",IF($B$8="IPM Region",RPE_IPMRegionGroupAcronym,RPE_State),"="&IF($B$8="National","*",$I68))) -> 8.059570748 | K68: =IF(I68=0,"",IF($B$20="Actual",0,SUMIFS(CHOOSE(VLOOKUP($B$35,'Lookup tables'!$AK$5:$AM$15,3,0), RPE_FuelConsumptionSummerTBtu, RPE_FuelConsumptionTotalTBtu, RPE_GenerationSummerGWh, RPE_GenerationTotalGWh, RPE_CO2EmissionsSummerThousandTons, RPE_CO2EmissionsTotalThousandTons, RPE_NOXEmissionsSummerThousandTons, RPE_NOXEmissionsTotalThousandTons, RPE_SO2EmissionsSummerThousandTons, RPE_SO2EmissionsTotalThousandTons, RPE_DispatchableCapacityMW), MeetComparisonCriteria2,"=1",IF($B$8="IPM Region",RPE_IPMRegionGroupAcronym,RPE_State),"="&IF($B$8="National","*",$I68)))) -> 0 | L68: 8.059570748 | M68: =IF(I68=0,"",SUMIFS(CHOOSE(VLOOKUP($E$18,'Lookup tables'!$AK$5:$AM$15,3,0), RPE_FuelConsumptionSummerTBtu, RPE_FuelConsumptionTotalTBtu, RPE_GenerationSummerGWh, RPE_GenerationTotalGWh, RPE_CO2EmissionsSummerThousandTons, RPE_CO2EmissionsTotalThousandTons, RPE_NOXEmissionsSummerThousandTons, RPE_NOXEmissionsTotalThousandTons, RPE_SO2EmissionsSummerThousandTons, RPE_SO2EmissionsTotalThousandTons, RPE_DispatchableCapacityMW), MeetPrimaryCriteria3,"=1",IF($E$8="IPM Region",RPE_IPMRegionGroupAcronym,RPE_State),"="&IF($E$8="National","*",$I68))) -> 0 | N68: =IF(I68=0,"",IF($E$20="Actual",0,SUMIFS(CHOOSE(VLOOKUP($E$35,'Lookup tables'!$AK$5:$AM$15,3,0), RPE_FuelConsumptionSummerTBtu, RPE_FuelConsumptionTotalTBtu, RPE_GenerationSummerGWh, RPE_GenerationTotalGWh, RPE_CO2EmissionsSummerThousandTons, RPE_CO2EmissionsTotalThousandTons, RPE_NOXEmissionsSummerThousandTons, RPE_NOXEmissionsTotalThousandTons, RPE_SO2EmissionsSummerThousandTons, RPE_SO2EmissionsTotalThousandTons, RPE_DispatchableCapacityMW), MeetComparisonCriteria3,"=1",IF($E$8="IPM Region",RPE_IPMRegionGroupAcronym,RPE_State),"="&IF($E$8="National","*",$I68)))) -> 0 | O68: 0 | P68: 15.00000001 | Q68: 15 | S68: 13 | T68: NC | U68: 8.711660691 | V68: 0 | W68: 0 | AD68: 0 | AE68: 13 | AF68: MO | AG68: 0.1044966585 | AH68: 0.09743805864 | AI68: 0.9324514299
I69: =IF($B$8="State",Map!P16,Map!O16) -> IN | J69: =IF(I69=0,"",SUMIFS(CHOOSE(VLOOKUP($B$18,'Lookup tables'!$AK$5:$AM$15,3,0), RPE_FuelConsumptionSummerTBtu, RPE_FuelConsumptionTotalTBtu, RPE_GenerationSummerGWh, RPE_GenerationTotalGWh, RPE_CO2EmissionsSummerThousandTons, RPE_CO2EmissionsTotalThousandTons, RPE_NOXEmissionsSummerThousandTons, RPE_NOXEmissionsTotalThousandTons, RPE_SO2EmissionsSummerThousandTons, RPE_SO2EmissionsTotalThousandTons, RPE_DispatchableCapacityMW), MeetPrimaryCriteria2,"=1",IF($B$8="IPM Region",RPE_IPMRegionGroupAcronym,RPE_State),"="&IF($B$8="National","*",$I69))) -> 11.00518153 | K69: =IF(I69=0,"",IF($B$20="Actual",0,SUMIFS(CHOOSE(VLOOKUP($B$35,'Lookup tables'!$AK$5:$AM$15,3,0), RPE_FuelConsumptionSummerTBtu, RPE_FuelConsumptionTotalTBtu, RPE_GenerationSummerGWh, RPE_GenerationTotalGWh, RPE_CO2EmissionsSummerThousandTons, RPE_CO2EmissionsTotalThousandTons, RPE_NOXEmissionsSummerThousandTons, RPE_NOXEmissionsTotalThousandTons, RPE_SO2EmissionsSummerThousandTons, RPE_SO2EmissionsTotalThousandTons, RPE_DispatchableCapacityMW), MeetComparisonCriteria2,"=1",IF($B$8="IPM Region",RPE_IPMRegionGroupAcronym,RPE_State),"="&IF($B$8="National","*",$I69)))) -> 0 | L69: 11.00518153 | M69: =IF(I69=0,"",SUMIFS(CHOOSE(VLOOKUP($E$18,'Lookup tables'!$AK$5:$AM$15,3,0), RPE_FuelConsumptionSummerTBtu, RPE_FuelConsumptionTotalTBtu, RPE_GenerationSummerGWh, RPE_GenerationTotalGWh, RPE_CO2EmissionsSummerThousandTons, RPE_CO2EmissionsTotalThousandTons, RPE_NOXEmissionsSummerThousandTons, RPE_NOXEmissionsTotalThousandTons, RPE_SO2EmissionsSummerThousandTons, RPE_SO2EmissionsTotalThousandTons, RPE_DispatchableCapacityMW), MeetPrimaryCriteria3,"=1",IF($E$8="IPM Region",RPE_IPMRegionGroupAcronym,RPE_State),"="&IF($E$8="National","*",$I69))) -> 0 | N69: =IF(I69=0,"",IF($E$20="Actual",0,SUMIFS(CHOOSE(VLOOKUP($E$35,'Lookup tables'!$AK$5:$AM$15,3,0), RPE_FuelConsumptionSummerTBtu, RPE_FuelConsumptionTotalTBtu, RPE_GenerationSummerGWh, RPE_GenerationTotalGWh, RPE_CO2EmissionsSummerThousandTons, RPE_CO2EmissionsTotalThousandTons, RPE_NOXEmissionsSummerThousandTons, RPE_NOXEmissionsTotalThousandTons, RPE_SO2EmissionsSummerThousandTons, RPE_SO2EmissionsTotalThousandTons, RPE_DispatchableCapacityMW), MeetComparisonCriteria3,"=1",IF($E$8="IPM Region",RPE_IPMRegionGroupAcronym,RPE_State),"="&IF($E$8="National","*",$I69)))) -> 0 | O69: 0 | P69: 7.000000007 | Q69: 7 | S69: 14 | T69: ND | U69: 8.587205676 | V69: 0 | W69: 0 | AD69: 0 | AE69: 14 | AF69: KS | AG69: 0.1040929608 | AH69: 0.1004634523 | AI69: 0.9651320463
I70: =IF($B$8="State",Map!P17,Map!O17) -> KS | J70: =IF(I70=0,"",SUMIFS(CHOOSE(VLOOKUP($B$18,'Lookup tables'!$AK$5:$AM$15,3,0), RPE_FuelConsumptionSummerTBtu, RPE_FuelConsumptionTotalTBtu, RPE_GenerationSummerGWh, RPE_GenerationTotalGWh, RPE_CO2EmissionsSummerThousandTons, RPE_CO2EmissionsTotalThousandTons, RPE_NOXEmissionsSummerThousandTons, RPE_NOXEmissionsTotalThousandTons, RPE_SO2EmissionsSummerThousandTons, RPE_SO2EmissionsTotalThousandTons, RPE_DispatchableCapacityMW), MeetPrimaryCriteria2,"=1",IF($B$8="IPM Region",RPE_IPMRegionGroupAcronym,RPE_State),"="&IF($B$8="National","*",$I70))) -> 2.640347111 | K70: =IF(I70=0,"",IF($B$20="Actual",0,SUMIFS(CHOOSE(VLOOKUP($B$35,'Lookup tables'!$AK$5:$AM$15,3,0), RPE_FuelConsumptionSummerTBtu, RPE_FuelConsumptionTotalTBtu, RPE_GenerationSummerGWh, RPE_GenerationTotalGWh, RPE_CO2EmissionsSummerThousandTons, RPE_CO2EmissionsTotalThousandTons, RPE_NOXEmissionsSummerThousandTons, RPE_NOXEmissionsTotalThousandTons, RPE_SO2EmissionsSummerThousandTons, RPE_SO2EmissionsTotalThousandTons, RPE_DispatchableCapacityMW), MeetComparisonCriteria2,"=1",IF($B$8="IPM Region",RPE_IPMRegionGroupAcronym,RPE_State),"="&IF($B$8="National","*",$I70)))) -> 0 | L70: 2.640347111 | M70: =IF(I70=0,"",SUMIFS(CHOOSE(VLOOKUP($E$18,'Lookup tables'!$AK$5:$AM$15,3,0), RPE_FuelConsumptionSummerTBtu, RPE_FuelConsumptionTotalTBtu, RPE_GenerationSummerGWh, RPE_GenerationTotalGWh, RPE_CO2EmissionsSummerThousandTons, RPE_CO2EmissionsTotalThousandTons, RPE_NOXEmissionsSummerThousandTons, RPE_NOXEmissionsTotalThousandTons, RPE_SO2EmissionsSummerThousandTons, RPE_SO2EmissionsTotalThousandTons, RPE_DispatchableCapacityMW), MeetPrimaryCriteria3,"=1",IF($E$8="IPM Region",RPE_IPMRegionGroupAcronym,RPE_State),"="&IF($E$8="National","*",$I70))) -> 0 | N70: =IF(I70=0,"",IF($E$20="Actual",0,SUMIFS(CHOOSE(VLOOKUP($E$35,'Lookup tables'!$AK$5:$AM$15,3,0), RPE_FuelConsumptionSummerTBtu, RPE_FuelConsumptionTotalTBtu, RPE_GenerationSummerGWh, RPE_GenerationTotalGWh, RPE_CO2EmissionsSummerThousandTons, RPE_CO2EmissionsTotalThousandTons, RPE_NOXEmissionsSummerThousandTons, RPE_NOXEmissionsTotalThousandTons, RPE_SO2EmissionsSummerThousandTons, RPE_SO2EmissionsTotalThousandTons, RPE_DispatchableCapacityMW), MeetComparisonCriteria3,"=1",IF($E$8="IPM Region",RPE_IPMRegionGroupAcronym,RPE_State),"="&IF($E$8="National","*",$I70)))) -> 0 | O70: 0 | P70: 30.00000001 | Q70: 30 | S70: 15 | T70: IL | U70: 8.059570748 | V70: 0 | W70: 0 | AD70: 0 | AE70: 15 | AF70: MI | AG70: 0.09351895924 | AH70: 0.09975135306 | AI70: 1.066643105
A71: =IF($B$20="Actual",VLOOKUP(B18,$A$56:$B$66,2,0), IF($B$20="Absolute Change",IF(VLOOKUP(B18,$A$56:$B$66,2,0)=VLOOKUP(B35,$A$56:$B$66,2,0),"Change in "&VLOOKUP(B18,$A$56:$B$66,2,0),"Unit of Measure Mismatch"), IF($B$20="Percent Change",IF(B18=B35,"Percent Change of "&VLOOKUP(B18,$A$56:$B$66,2,0),"Unit of Measure Mismatch"), IF($B$20="Emissions Rate",IF(AND(NOT(ISERROR(SEARCH("tons",$B$18))),OR(NOT(ISERROR(SEARCH("GWh",$B$35))),NOT(ISERROR(SEARCH("TBtu",$B$35))))),IF(ISERROR(SEARCH("Summer",$B$18))<>ISERROR(SEARCH("Summer",$B$35)),"Unit of Measure Mismatch","lbs "&LEFT($B$18,3)&"/"&IF(RIGHT($B$35,4)="TBtu","mmBtu","kWh")),"Unit of Measure Mismatch"), IF($B$20="Fraction",IF(B18=B35,"Dimensionless Fraction or Ratio",VLOOKUP(B18,$A$56:$B$66,2,0)&" / "&VLOOKUP(B35,$A$56:$B$66,2,0)), IF(AND($B$20="Capacity Factor",NOT(ISERROR(SEARCH("Generation",$B$18))),NOT(ISERROR(SEARCH("Capacity",$B$35)))),"Capacity Factor","ERROR")))))) -> Thousand (short) tons NOx | I71: =IF($B$8="State",Map!P18,Map!O18) -> KY | J71: =IF(I71=0,"",SUMIFS(CHOOSE(VLOOKUP($B$18,'Lookup tables'!$AK$5:$AM$15,3,0), RPE_FuelConsumptionSummerTBtu, RPE_FuelConsumptionTotalTBtu, RPE_GenerationSummerGWh, RPE_GenerationTotalGWh, RPE_CO2EmissionsSummerThousandTons, RPE_CO2EmissionsTotalThousandTons, RPE_NOXEmissionsSummerThousandTons, RPE_NOXEmissionsTotalThousandTons, RPE_SO2EmissionsSummerThousandTons, RPE_SO2EmissionsTotalThousandTons, RPE_DispatchableCapacityMW), MeetPrimaryCriteria2,"=1",IF($B$8="IPM Region",RPE_IPMRegionGroupAcronym,RPE_State),"="&IF($B$8="National","*",$I71))) -> 12.07069714 | K71: =IF(I71=0,"",IF($B$20="Actual",0,SUMIFS(CHOOSE(VLOOKUP($B$35,'Lookup tables'!$AK$5:$AM$15,3,0), RPE_FuelConsumptionSummerTBtu, RPE_FuelConsumptionTotalTBtu, RPE_GenerationSummerGWh, RPE_GenerationTotalGWh, RPE_CO2EmissionsSummerThousandTons, RPE_CO2EmissionsTotalThousandTons, RPE_NOXEmissionsSummerThousandTons, RPE_NOXEmissionsTotalThousandTons, RPE_SO2EmissionsSummerThousandTons, RPE_SO2EmissionsTotalThousandTons, RPE_DispatchableCapacityMW), MeetComparisonCriteria2,"=1",IF($B$8="IPM Region",RPE_IPMRegionGroupAcronym,RPE_State),"="&IF($B$8="National","*",$I71)))) -> 0 | L71: 12.07069714 | M71: =IF(I71=0,"",SUMIFS(CHOOSE(VLOOKUP($E$18,'Lookup tables'!$AK$5:$AM$15,3,0), RPE_FuelConsumptionSummerTBtu, RPE_FuelConsumptionTotalTBtu, RPE_GenerationSummerGWh, RPE_GenerationTotalGWh, RPE_CO2EmissionsSummerThousandTons, RPE_CO2EmissionsTotalThousandTons, RPE_NOXEmissionsSummerThousandTons, RPE_NOXEmissionsTotalThousandTons, RPE_SO2EmissionsSummerThousandTons, RPE_SO2EmissionsTotalThousandTons, RPE_DispatchableCapacityMW), MeetPrimaryCriteria3,"=1",IF($E$8="IPM Region",RPE_IPMRegionGroupAcronym,RPE_State),"="&IF($E$8="National","*",$I71))) -> 0 | N71: =IF(I71=0,"",IF($E$20="Actual",0,SUMIFS(CHOOSE(VLOOKUP($E$35,'Lookup tables'!$AK$5:$AM$15,3,0), RPE_FuelConsumptionSummerTBtu, RPE_FuelConsumptionTotalTBtu, RPE_GenerationSummerGWh, RPE_GenerationTotalGWh, RPE_CO2EmissionsSummerThousandTons, RPE_CO2EmissionsTotalThousandTons, RPE_NOXEmissionsSummerThousandTons, RPE_NOXEmissionsTotalThousandTons, RPE_SO2EmissionsSummerThousandTons, RPE_SO2EmissionsTotalThousandTons, RPE_DispatchableCapacityMW), MeetComparisonCriteria3,"=1",IF($E$8="IPM Region",RPE_IPMRegionGroupAcronym,RPE_State),"="&IF($E$8="National","*",$I71)))) -> 0 | O71: 0 | P71: 2.000000007 | Q71: 2 | S71: 16 | T71: UT | U71: 7.117557827 | V71: 0 | W71: 0 | AD71: 0 | AE71: 16 | AF71: GA | AG71: 0.09158071652 | AH71: 0.09973705243 | AI71: 1.089061718
I72: =IF($B$8="State",Map!P19,Map!O19) -> LA | J72: =IF(I72=0,"",SUMIFS(CHOOSE(VLOOKUP($B$18,'Lookup tables'!$AK$5:$AM$15,3,0), RPE_FuelConsumptionSummerTBtu, RPE_FuelConsumptionTotalTBtu, RPE_GenerationSummerGWh, RPE_GenerationTotalGWh, RPE_CO2EmissionsSummerThousandTons, RPE_CO2EmissionsTotalThousandTons, RPE_NOXEmissionsSummerThousandTons, RPE_NOXEmissionsTotalThousandTons, RPE_SO2EmissionsSummerThousandTons, RPE_SO2EmissionsTotalThousandTons, RPE_DispatchableCapacityMW), MeetPrimaryCriteria2,"=1",IF($B$8="IPM Region",RPE_IPMRegionGroupAcronym,RPE_State),"="&IF($B$8="National","*",$I72))) -> 9.409821107 | K72: =IF(I72=0,"",IF($B$20="Actual",0,SUMIFS(CHOOSE(VLOOKUP($B$35,'Lookup tables'!$AK$5:$AM$15,3,0), RPE_FuelConsumptionSummerTBtu, RPE_FuelConsumptionTotalTBtu, RPE_GenerationSummerGWh, RPE_GenerationTotalGWh, RPE_CO2EmissionsSummerThousandTons, RPE_CO2EmissionsTotalThousandTons, RPE_NOXEmissionsSummerThousandTons, RPE_NOXEmissionsTotalThousandTons, RPE_SO2EmissionsSummerThousandTons, RPE_SO2EmissionsTotalThousandTons, RPE_DispatchableCapacityMW), MeetComparisonCriteria2,"=1",IF($B$8="IPM Region",RPE_IPMRegionGroupAcronym,RPE_State),"="&IF($B$8="National","*",$I72)))) -> 0 | L72: 9.409821107 | M72: =IF(I72=0,"",SUMIFS(CHOOSE(VLOOKUP($E$18,'Lookup tables'!$AK$5:$AM$15,3,0), RPE_FuelConsumptionSummerTBtu, RPE_FuelConsumptionTotalTBtu, RPE_GenerationSummerGWh, RPE_GenerationTotalGWh, RPE_CO2EmissionsSummerThousandTons, RPE_CO2EmissionsTotalThousandTons, RPE_NOXEmissionsSummerThousandTons, RPE_NOXEmissionsTotalThousandTons, RPE_SO2EmissionsSummerThousandTons, RPE_SO2EmissionsTotalThousandTons, RPE_DispatchableCapacityMW), MeetPrimaryCriteria3,"=1",IF($E$8="IPM Region",RPE_IPMRegionGroupAcronym,RPE_State),"="&IF($E$8="National","*",$I72))) -> 0 | N72: =IF(I72=0,"",IF($E$20="Actual",0,SUMIFS(CHOOSE(VLOOKUP($E$35,'Lookup tables'!$AK$5:$AM$15,3,0), RPE_FuelConsumptionSummerTBtu, RPE_FuelConsumptionTotalTBtu, RPE_GenerationSummerGWh, RPE_GenerationTotalGWh, RPE_CO2EmissionsSummerThousandTons, RPE_CO2EmissionsTotalThousandTons, RPE_NOXEmissionsSummerThousandTons, RPE_NOXEmissionsTotalThousandTons, RPE_SO2EmissionsSummerThousandTons, RPE_SO2EmissionsTotalThousandTons, RPE_DispatchableCapacityMW), MeetComparisonCriteria3,"=1",IF($E$8="IPM Region",RPE_IPMRegionGroupAcronym,RPE_State),"="&IF($E$8="National","*",$I72)))) -> 0 | O72: 0 | P72: 12.00000001 | Q72: 12 | S72: 17 | T72: NY | U72: 6.390965958 | V72: 0 | W72: 0 | AD72: 0 | AE72: 17 | AF72: AL | AG72: 0.07677431652 | AH72: 0.07065174811 | AI72: =AH72/AG72 -> 0.9202523879
I73: =IF($B$8="State",Map!P20,Map!O20) -> MA | J73: =IF(I73=0,"",SUMIFS(CHOOSE(VLOOKUP($B$18,'Lookup tables'!$AK$5:$AM$15,3,0), RPE_FuelConsumptionSummerTBtu, RPE_FuelConsumptionTotalTBtu, RPE_GenerationSummerGWh, RPE_GenerationTotalGWh, RPE_CO2EmissionsSummerThousandTons, RPE_CO2EmissionsTotalThousandTons, RPE_NOXEmissionsSummerThousandTons, RPE_NOXEmissionsTotalThousandTons, RPE_SO2EmissionsSummerThousandTons, RPE_SO2EmissionsTotalThousandTons, RPE_DispatchableCapacityMW), MeetPrimaryCriteria2,"=1",IF($B$8="IPM Region",RPE_IPMRegionGroupAcronym,RPE_State),"="&IF($B$8="National","*",$I73))) -> 2.129456316 | K73: =IF(I73=0,"",IF($B$20="Actual",0,SUMIFS(CHOOSE(VLOOKUP($B$35,'Lookup tables'!$AK$5:$AM$15,3,0), RPE_FuelConsumptionSummerTBtu, RPE_FuelConsumptionTotalTBtu, RPE_GenerationSummerGWh, RPE_GenerationTotalGWh, RPE_CO2EmissionsSummerThousandTons, RPE_CO2EmissionsTotalThousandTons, RPE_NOXEmissionsSummerThousandTons, RPE_NOXEmissionsTotalThousandTons, RPE_SO2EmissionsSummerThousandTons, RPE_SO2EmissionsTotalThousandTons, RPE_DispatchableCapacityMW), MeetComparisonCriteria2,"=1",IF($B$8="IPM Region",RPE_IPMRegionGroupAcronym,RPE_State),"="&IF($B$8="National","*",$I73)))) -> 0 | L73: 2.129456316 | M73: =IF(I73=0,"",SUMIFS(CHOOSE(VLOOKUP($E$18,'Lookup tables'!$AK$5:$AM$15,3,0), RPE_FuelConsumptionSummerTBtu, RPE_FuelConsumptionTotalTBtu, RPE_GenerationSummerGWh, RPE_GenerationTotalGWh, RPE_CO2EmissionsSummerThousandTons, RPE_CO2EmissionsTotalThousandTons, RPE_NOXEmissionsSummerThousandTons, RPE_NOXEmissionsTotalThousandTons, RPE_SO2EmissionsSummerThousandTons, RPE_SO2EmissionsTotalThousandTons, RPE_DispatchableCapacityMW), MeetPrimaryCriteria3,"=1",IF($E$8="IPM Region",RPE_IPMRegionGroupAcronym,RPE_State),"="&IF($E$8="National","*",$I73))) -> 0 | N73: =IF(I73=0,"",IF($E$20="Actual",0,SUMIFS(CHOOSE(VLOOKUP($E$35,'Lookup tables'!$AK$5:$AM$15,3,0), RPE_FuelConsumptionSummerTBtu, RPE_FuelConsumptionTotalTBtu, RPE_GenerationSummerGWh, RPE_GenerationTotalGWh, RPE_CO2EmissionsSummerThousandTons, RPE_CO2EmissionsTotalThousandTons, RPE_NOXEmissionsSummerThousandTons, RPE_NOXEmissionsTotalThousandTons, RPE_SO2EmissionsSummerThousandTons, RPE_SO2EmissionsTotalThousandTons, RPE_DispatchableCapacityMW), MeetComparisonCriteria3,"=1",IF($E$8="IPM Region",RPE_IPMRegionGroupAcronym,RPE_State),"="&IF($E$8="National","*",$I73)))) -> 0 | O73: 0 | P73: 32.00000001 | Q73: 32 | S73: 18 | T73: MN | U73: 6.218945711 | V73: 0 | W73: 0 | AD73: 0 | AE73: 18 | AF73: TN | AG73: 0.07663954243 | AH73: 0.08610499559 | AI73: =AH73/AG73 -> 1.123506128
I74: =IF($B$8="State",Map!P21,Map!O21) -> MD | J74: =IF(I74=0,"",SUMIFS(CHOOSE(VLOOKUP($B$18,'Lookup tables'!$AK$5:$AM$15,3,0), RPE_FuelConsumptionSummerTBtu, RPE_FuelConsumptionTotalTBtu, RPE_GenerationSummerGWh, RPE_GenerationTotalGWh, RPE_CO2EmissionsSummerThousandTons, RPE_CO2EmissionsTotalThousandTons, RPE_NOXEmissionsSummerThousandTons, RPE_NOXEmissionsTotalThousandTons, RPE_SO2EmissionsSummerThousandTons, RPE_SO2EmissionsTotalThousandTons, RPE_DispatchableCapacityMW), MeetPrimaryCriteria2,"=1",IF($B$8="IPM Region",RPE_IPMRegionGroupAcronym,RPE_State),"="&IF($B$8="National","*",$I74))) -> 1.53015434 | K74: =IF(I74=0,"",IF($B$20="Actual",0,SUMIFS(CHOOSE(VLOOKUP($B$35,'Lookup tables'!$AK$5:$AM$15,3,0), RPE_FuelConsumptionSummerTBtu, RPE_FuelConsumptionTotalTBtu, RPE_GenerationSummerGWh, RPE_GenerationTotalGWh, RPE_CO2EmissionsSummerThousandTons, RPE_CO2EmissionsTotalThousandTons, RPE_NOXEmissionsSummerThousandTons, RPE_NOXEmissionsTotalThousandTons, RPE_SO2EmissionsSummerThousandTons, RPE_SO2EmissionsTotalThousandTons, RPE_DispatchableCapacityMW), MeetComparisonCriteria2,"=1",IF($B$8="IPM Region",RPE_IPMRegionGroupAcronym,RPE_State),"="&IF($B$8="National","*",$I74)))) -> 0 | L74: 1.53015434 | M74: =IF(I74=0,"",SUMIFS(CHOOSE(VLOOKUP($E$18,'Lookup tables'!$AK$5:$AM$15,3,0), RPE_FuelConsumptionSummerTBtu, RPE_FuelConsumptionTotalTBtu, RPE_GenerationSummerGWh, RPE_GenerationTotalGWh, RPE_CO2EmissionsSummerThousandTons, RPE_CO2EmissionsTotalThousandTons, RPE_NOXEmissionsSummerThousandTons, RPE_NOXEmissionsTotalThousandTons, RPE_SO2EmissionsSummerThousandTons, RPE_SO2EmissionsTotalThousandTons, RPE_DispatchableCapacityMW), MeetPrimaryCriteria3,"=1",IF($E$8="IPM Region",RPE_IPMRegionGroupAcronym,RPE_State),"="&IF($E$8="National","*",$I74))) -> 0 | N74: =IF(I74=0,"",IF($E$20="Actual",0,SUMIFS(CHOOSE(VLOOKUP($E$35,'Lookup tables'!$AK$5:$AM$15,3,0), RPE_FuelConsumptionSummerTBtu, RPE_FuelConsumptionTotalTBtu, RPE_GenerationSummerGWh, RPE_GenerationTotalGWh, RPE_CO2EmissionsSummerThousandTons, RPE_CO2EmissionsTotalThousandTons, RPE_NOXEmissionsSummerThousandTons, RPE_NOXEmissionsTotalThousandTons, RPE_SO2EmissionsSummerThousandTons, RPE_SO2EmissionsTotalThousandTons, RPE_DispatchableCapacityMW), MeetComparisonCriteria3,"=1",IF($E$8="IPM Region",RPE_IPMRegionGroupAcronym,RPE_State),"="&IF($E$8="National","*",$I74)))) -> 0 | O74: 0 | P74: 36.00000001 | Q74: 36 | S74: 19 | T74: AR | U74: 6.037052705 | V74: 0 | W74: 0 | AD74: 0 | AE74: 19 | AF74: SD | AG74: 0.07566950733 | AH74: 0.08303 | AI74: =AH74/AG74 -> 1.097271582
I75: =IF($B$8="State",Map!P22,Map!O22) -> ME | J75: =IF(I75=0,"",SUMIFS(CHOOSE(VLOOKUP($B$18,'Lookup tables'!$AK$5:$AM$15,3,0), RPE_FuelConsumptionSummerTBtu, RPE_FuelConsumptionTotalTBtu, RPE_GenerationSummerGWh, RPE_GenerationTotalGWh, RPE_CO2EmissionsSummerThousandTons, RPE_CO2EmissionsTotalThousandTons, RPE_NOXEmissionsSummerThousandTons, RPE_NOXEmissionsTotalThousandTons, RPE_SO2EmissionsSummerThousandTons, RPE_SO2EmissionsTotalThousandTons, RPE_DispatchableCapacityMW), MeetPrimaryCriteria2,"=1",IF($B$8="IPM Region",RPE_IPMRegionGroupAcronym,RPE_State),"="&IF($B$8="National","*",$I75))) -> 1.399169858 | K75: =IF(I75=0,"",IF($B$20="Actual",0,SUMIFS(CHOOSE(VLOOKUP($B$35,'Lookup tables'!$AK$5:$AM$15,3,0), RPE_FuelConsumptionSummerTBtu, RPE_FuelConsumptionTotalTBtu, RPE_GenerationSummerGWh, RPE_GenerationTotalGWh, RPE_CO2EmissionsSummerThousandTons, RPE_CO2EmissionsTotalThousandTons, RPE_NOXEmissionsSummerThousandTons, RPE_NOXEmissionsTotalThousandTons, RPE_SO2EmissionsSummerThousandTons, RPE_SO2EmissionsTotalThousandTons, RPE_DispatchableCapacityMW), MeetComparisonCriteria2,"=1",IF($B$8="IPM Region",RPE_IPMRegionGroupAcronym,RPE_State),"="&IF($B$8="National","*",$I75)))) -> 0 | L75: 1.399169858 | M75: =IF(I75=0,"",SUMIFS(CHOOSE(VLOOKUP($E$18,'Lookup tables'!$AK$5:$AM$15,3,0), RPE_FuelConsumptionSummerTBtu, RPE_FuelConsumptionTotalTBtu, RPE_GenerationSummerGWh, RPE_GenerationTotalGWh, RPE_CO2EmissionsSummerThousandTons, RPE_CO2EmissionsTotalThousandTons, RPE_NOXEmissionsSummerThousandTons, RPE_NOXEmissionsTotalThousandTons, RPE_SO2EmissionsSummerThousandTons, RPE_SO2EmissionsTotalThousandTons, RPE_DispatchableCapacityMW), MeetPrimaryCriteria3,"=1",IF($E$8="IPM Region",RPE_IPMRegionGroupAcronym,RPE_State),"="&IF($E$8="National","*",$I75))) -> 0 | N75: =IF(I75=0,"",IF($E$20="Actual",0,SUMIFS(CHOOSE(VLOOKUP($E$35,'Lookup tables'!$AK$5:$AM$15,3,0), RPE_FuelConsumptionSummerTBtu, RPE_FuelConsumptionTotalTBtu, RPE_GenerationSummerGWh, RPE_GenerationTotalGWh, RPE_CO2EmissionsSummerThousandTons, RPE_CO2EmissionsTotalThousandTons, RPE_NOXEmissionsSummerThousandTons, RPE_NOXEmissionsTotalThousandTons, RPE_SO2EmissionsSummerThousandTons, RPE_SO2EmissionsTotalThousandTons, RPE_DispatchableCapacityMW), MeetComparisonCriteria3,"=1",IF($E$8="IPM Region",RPE_IPMRegionGroupAcronym,RPE_State),"="&IF($E$8="National","*",$I75)))) -> 0 | O75: 0 | P75: 37.00000001 | Q75: 37 | S75: 20 | T75: CA | U75: 5.974757266 | V75: 0 | W75: 0 | AD75: 0 | AE75: 20 | AF75: LA | AG75: 0.07251007845 | AH75: 0.1410889485 | AI75: =AH75/AG75 -> 1.945783973
I76: =IF($B$8="State",Map!P23,Map!O23) -> MI | J76: =IF(I76=0,"",SUMIFS(CHOOSE(VLOOKUP($B$18,'Lookup tables'!$AK$5:$AM$15,3,0), RPE_FuelConsumptionSummerTBtu, RPE_FuelConsumptionTotalTBtu, RPE_GenerationSummerGWh, RPE_GenerationTotalGWh, RPE_CO2EmissionsSummerThousandTons, RPE_CO2EmissionsTotalThousandTons, RPE_NOXEmissionsSummerThousandTons, RPE_NOXEmissionsTotalThousandTons, RPE_SO2EmissionsSummerThousandTons, RPE_SO2EmissionsTotalThousandTons, RPE_DispatchableCapacityMW), MeetPrimaryCriteria2,"=1",IF($B$8="IPM Region",RPE_IPMRegionGroupAcronym,RPE_State),"="&IF($B$8="National","*",$I76))) -> 11.94291615 | K76: =IF(I76=0,"",IF($B$20="Actual",0,SUMIFS(CHOOSE(VLOOKUP($B$35,'Lookup tables'!$AK$5:$AM$15,3,0), RPE_FuelConsumptionSummerTBtu, RPE_FuelConsumptionTotalTBtu, RPE_GenerationSummerGWh, RPE_GenerationTotalGWh, RPE_CO2EmissionsSummerThousandTons, RPE_CO2EmissionsTotalThousandTons, RPE_NOXEmissionsSummerThousandTons, RPE_NOXEmissionsTotalThousandTons, RPE_SO2EmissionsSummerThousandTons, RPE_SO2EmissionsTotalThousandTons, RPE_DispatchableCapacityMW), MeetComparisonCriteria2,"=1",IF($B$8="IPM Region",RPE_IPMRegionGroupAcronym,RPE_State),"="&IF($B$8="National","*",$I76)))) -> 0 | L76: 11.94291615 | M76: =IF(I76=0,"",SUMIFS(CHOOSE(VLOOKUP($E$18,'Lookup tables'!$AK$5:$AM$15,3,0), RPE_FuelConsumptionSummerTBtu, RPE_FuelConsumptionTotalTBtu, RPE_GenerationSummerGWh, RPE_GenerationTotalGWh, RPE_CO2EmissionsSummerThousandTons, RPE_CO2EmissionsTotalThousandTons, RPE_NOXEmissionsSummerThousandTons, RPE_NOXEmissionsTotalThousandTons, RPE_SO2EmissionsSummerThousandTons, RPE_SO2EmissionsTotalThousandTons, RPE_DispatchableCapacityMW), MeetPrimaryCriteria3,"=1",IF($E$8="IPM Region",RPE_IPMRegionGroupAcronym,RPE_State),"="&IF($E$8="National","*",$I76))) -> 0 | N76: =IF(I76=0,"",IF($E$20="Actual",0,SUMIFS(CHOOSE(VLOOKUP($E$35,'Lookup tables'!$AK$5:$AM$15,3,0), RPE_FuelConsumptionSummerTBtu, RPE_FuelConsumptionTotalTBtu, RPE_GenerationSummerGWh, RPE_GenerationTotalGWh, RPE_CO2EmissionsSummerThousandTons, RPE_CO2EmissionsTotalThousandTons, RPE_NOXEmissionsSummerThousandTons, RPE_NOXEmissionsTotalThousandTons, RPE_SO2EmissionsSummerThousandTons, RPE_SO2EmissionsTotalThousandTons, RPE_DispatchableCapacityMW), MeetComparisonCriteria3,"=1",IF($E$8="IPM Region",RPE_IPMRegionGroupAcronym,RPE_State),"="&IF($E$8="National","*",$I76)))) -> 0 | O76: 0 | P76: 4.000000008 | Q76: 4 | S76: 21 | T76: CO | U76: 5.788710915 | V76: 0 | W76: 0 | AD76: 0 | AE76: 21 | AF76: MD | AG76: 0.07105 | AH76: 0.0391897528 | AI76: =AH76/AG76 -> 0.5515799127
I77: =IF($B$8="State",Map!P24,Map!O24) -> MN | J77: =IF(I77=0,"",SUMIFS(CHOOSE(VLOOKUP($B$18,'Lookup tables'!$AK$5:$AM$15,3,0), RPE_FuelConsumptionSummerTBtu, RPE_FuelConsumptionTotalTBtu, RPE_GenerationSummerGWh, RPE_GenerationTotalGWh, RPE_CO2EmissionsSummerThousandTons, RPE_CO2EmissionsTotalThousandTons, RPE_NOXEmissionsSummerThousandTons, RPE_NOXEmissionsTotalThousandTons, RPE_SO2EmissionsSummerThousandTons, RPE_SO2EmissionsTotalThousandTons, RPE_DispatchableCapacityMW), MeetPrimaryCriteria2,"=1",IF($B$8="IPM Region",RPE_IPMRegionGroupAcronym,RPE_State),"="&IF($B$8="National","*",$I77))) -> 6.218945711 | K77: =IF(I77=0,"",IF($B$20="Actual",0,SUMIFS(CHOOSE(VLOOKUP($B$35,'Lookup tables'!$AK$5:$AM$15,3,0), RPE_FuelConsumptionSummerTBtu, RPE_FuelConsumptionTotalTBtu, RPE_GenerationSummerGWh, RPE_GenerationTotalGWh, RPE_CO2EmissionsSummerThousandTons, RPE_CO2EmissionsTotalThousandTons, RPE_NOXEmissionsSummerThousandTons, RPE_NOXEmissionsTotalThousandTons, RPE_SO2EmissionsSummerThousandTons, RPE_SO2EmissionsTotalThousandTons, RPE_DispatchableCapacityMW), MeetComparisonCriteria2,"=1",IF($B$8="IPM Region",RPE_IPMRegionGroupAcronym,RPE_State),"="&IF($B$8="National","*",$I77)))) -> 0 | L77: 6.218945711 | M77: =IF(I77=0,"",SUMIFS(CHOOSE(VLOOKUP($E$18,'Lookup tables'!$AK$5:$AM$15,3,0), RPE_FuelConsumptionSummerTBtu, RPE_FuelConsumptionTotalTBtu, RPE_GenerationSummerGWh, RPE_GenerationTotalGWh, RPE_CO2EmissionsSummerThousandTons, RPE_CO2EmissionsTotalThousandTons, RPE_NOXEmissionsSummerThousandTons, RPE_NOXEmissionsTotalThousandTons, RPE_SO2EmissionsSummerThousandTons, RPE_SO2EmissionsTotalThousandTons, RPE_DispatchableCapacityMW), MeetPrimaryCriteria3,"=1",IF($E$8="IPM Region",RPE_IPMRegionGroupAcronym,RPE_State),"="&IF($E$8="National","*",$I77))) -> 0 | N77: =IF(I77=0,"",IF($E$20="Actual",0,SUMIFS(CHOOSE(VLOOKUP($E$35,'Lookup tables'!$AK$5:$AM$15,3,0), RPE_FuelConsumptionSummerTBtu, RPE_FuelConsumptionTotalTBtu, RPE_GenerationSummerGWh, RPE_GenerationTotalGWh, RPE_CO2EmissionsSummerThousandTons, RPE_CO2EmissionsTotalThousandTons, RPE_NOXEmissionsSummerThousandTons, RPE_NOXEmissionsTotalThousandTons, RPE_SO2EmissionsSummerThousandTons, RPE_SO2EmissionsTotalThousandTons, RPE_DispatchableCapacityMW), MeetComparisonCriteria3,"=1",IF($E$8="IPM Region",RPE_IPMRegionGroupAcronym,RPE_State),"="&IF($E$8="National","*",$I77)))) -> 0 | O77: 0 | P77: 18.00000001 | Q77: 18 | S77: 22 | T77: AL | U77: 5.383017158 | V77: 0 | W77: 0
I78: =IF($B$8="State",Map!P25,Map!O25) -> MO | J78: =IF(I78=0,"",SUMIFS(CHOOSE(VLOOKUP($B$18,'Lookup tables'!$AK$5:$AM$15,3,0), RPE_FuelConsumptionSummerTBtu, RPE_FuelConsumptionTotalTBtu, RPE_GenerationSummerGWh, RPE_GenerationTotalGWh, RPE_CO2EmissionsSummerThousandTons, RPE_CO2EmissionsTotalThousandTons, RPE_NOXEmissionsSummerThousandTons, RPE_NOXEmissionsTotalThousandTons, RPE_SO2EmissionsSummerThousandTons, RPE_SO2EmissionsTotalThousandTons, RPE_DispatchableCapacityMW), MeetPrimaryCriteria2,"=1",IF($B$8="IPM Region",RPE_IPMRegionGroupAcronym,RPE_State),"="&IF($B$8="National","*",$I78))) -> 11.95717759 | K78: =IF(I78=0,"",IF($B$20="Actual",0,SUMIFS(CHOOSE(VLOOKUP($B$35,'Lookup tables'!$AK$5:$AM$15,3,0), RPE_FuelConsumptionSummerTBtu, RPE_FuelConsumptionTotalTBtu, RPE_GenerationSummerGWh, RPE_GenerationTotalGWh, RPE_CO2EmissionsSummerThousandTons, RPE_CO2EmissionsTotalThousandTons, RPE_NOXEmissionsSummerThousandTons, RPE_NOXEmissionsTotalThousandTons, RPE_SO2EmissionsSummerThousandTons, RPE_SO2EmissionsTotalThousandTons, RPE_DispatchableCapacityMW), MeetComparisonCriteria2,"=1",IF($B$8="IPM Region",RPE_IPMRegionGroupAcronym,RPE_State),"="&IF($B$8="National","*",$I78)))) -> 0 | L78: 11.95717759 | M78: =IF(I78=0,"",SUMIFS(CHOOSE(VLOOKUP($E$18,'Lookup tables'!$AK$5:$AM$15,3,0), RPE_FuelConsumptionSummerTBtu, RPE_FuelConsumptionTotalTBtu, RPE_GenerationSummerGWh, RPE_GenerationTotalGWh, RPE_CO2EmissionsSummerThousandTons, RPE_CO2EmissionsTotalThousandTons, RPE_NOXEmissionsSummerThousandTons, RPE_NOXEmissionsTotalThousandTons, RPE_SO2EmissionsSummerThousandTons, RPE_SO2EmissionsTotalThousandTons, RPE_DispatchableCapacityMW), MeetPrimaryCriteria3,"=1",IF($E$8="IPM Region",RPE_IPMRegionGroupAcronym,RPE_State),"="&IF($E$8="National","*",$I78))) -> 0 | N78: =IF(I78=0,"",IF($E$20="Actual",0,SUMIFS(CHOOSE(VLOOKUP($E$35,'Lookup tables'!$AK$5:$AM$15,3,0), RPE_FuelConsumptionSummerTBtu, RPE_FuelConsumptionTotalTBtu, RPE_GenerationSummerGWh, RPE_GenerationTotalGWh, RPE_CO2EmissionsSummerThousandTons, RPE_CO2EmissionsTotalThousandTons, RPE_NOXEmissionsSummerThousandTons, RPE_NOXEmissionsTotalThousandTons, RPE_SO2EmissionsSummerThousandTons, RPE_SO2EmissionsTotalThousandTons, RPE_DispatchableCapacityMW), MeetComparisonCriteria3,"=1",IF($E$8="IPM Region",RPE_IPMRegionGroupAcronym,RPE_State),"="&IF($E$8="National","*",$I78)))) -> 0 | O78: 0 | P78: 3.000000008 | Q78: 3 | S78: 23 | T78: WY | U78: 4.912166644 | V78: 0 | W78: 0
I79: =IF($B$8="State",Map!P26,Map!O26) -> MS | J79: =IF(I79=0,"",SUMIFS(CHOOSE(VLOOKUP($B$18,'Lookup tables'!$AK$5:$AM$15,3,0), RPE_FuelConsumptionSummerTBtu, RPE_FuelConsumptionTotalTBtu, RPE_GenerationSummerGWh, RPE_GenerationTotalGWh, RPE_CO2EmissionsSummerThousandTons, RPE_CO2EmissionsTotalThousandTons, RPE_NOXEmissionsSummerThousandTons, RPE_NOXEmissionsTotalThousandTons, RPE_SO2EmissionsSummerThousandTons, RPE_SO2EmissionsTotalThousandTons, RPE_DispatchableCapacityMW), MeetPrimaryCriteria2,"=1",IF($B$8="IPM Region",RPE_IPMRegionGroupAcronym,RPE_State),"="&IF($B$8="National","*",$I79))) -> 2.583857798 | K79: =IF(I79=0,"",IF($B$20="Actual",0,SUMIFS(CHOOSE(VLOOKUP($B$35,'Lookup tables'!$AK$5:$AM$15,3,0), RPE_FuelConsumptionSummerTBtu, RPE_FuelConsumptionTotalTBtu, RPE_GenerationSummerGWh, RPE_GenerationTotalGWh, RPE_CO2EmissionsSummerThousandTons, RPE_CO2EmissionsTotalThousandTons, RPE_NOXEmissionsSummerThousandTons, RPE_NOXEmissionsTotalThousandTons, RPE_SO2EmissionsSummerThousandTons, RPE_SO2EmissionsTotalThousandTons, RPE_DispatchableCapacityMW), MeetComparisonCriteria2,"=1",IF($B$8="IPM Region",RPE_IPMRegionGroupAcronym,RPE_State),"="&IF($B$8="National","*",$I79)))) -> 0 | L79: 2.583857798 | M79: =IF(I79=0,"",SUMIFS(CHOOSE(VLOOKUP($E$18,'Lookup tables'!$AK$5:$AM$15,3,0), RPE_FuelConsumptionSummerTBtu, RPE_FuelConsumptionTotalTBtu, RPE_GenerationSummerGWh, RPE_GenerationTotalGWh, RPE_CO2EmissionsSummerThousandTons, RPE_CO2EmissionsTotalThousandTons, RPE_NOXEmissionsSummerThousandTons, RPE_NOXEmissionsTotalThousandTons, RPE_SO2EmissionsSummerThousandTons, RPE_SO2EmissionsTotalThousandTons, RPE_DispatchableCapacityMW), MeetPrimaryCriteria3,"=1",IF($E$8="IPM Region",RPE_IPMRegionGroupAcronym,RPE_State),"="&IF($E$8="National","*",$I79))) -> 0 | N79: =IF(I79=0,"",IF($E$20="Actual",0,SUMIFS(CHOOSE(VLOOKUP($E$35,'Lookup tables'!$AK$5:$AM$15,3,0), RPE_FuelConsumptionSummerTBtu, RPE_FuelConsumptionTotalTBtu, RPE_GenerationSummerGWh, RPE_GenerationTotalGWh, RPE_CO2EmissionsSummerThousandTons, RPE_CO2EmissionsTotalThousandTons, RPE_NOXEmissionsSummerThousandTons, RPE_NOXEmissionsTotalThousandTons, RPE_SO2EmissionsSummerThousandTons, RPE_SO2EmissionsTotalThousandTons, RPE_DispatchableCapacityMW), MeetComparisonCriteria3,"=1",IF($E$8="IPM Region",RPE_IPMRegionGroupAcronym,RPE_State),"="&IF($E$8="National","*",$I79)))) -> 0 | O79: 0 | P79: 31.00000001 | Q79: 31 | S79: 24 | T79: SC | U79: 4.564426272 | V79: 0 | W79: 0
I80: =IF($B$8="State",Map!P27,Map!O27) -> MT | J80: =IF(I80=0,"",SUMIFS(CHOOSE(VLOOKUP($B$18,'Lookup tables'!$AK$5:$AM$15,3,0), RPE_FuelConsumptionSummerTBtu, RPE_FuelConsumptionTotalTBtu, RPE_GenerationSummerGWh, RPE_GenerationTotalGWh, RPE_CO2EmissionsSummerThousandTons, RPE_CO2EmissionsTotalThousandTons, RPE_NOXEmissionsSummerThousandTons, RPE_NOXEmissionsTotalThousandTons, RPE_SO2EmissionsSummerThousandTons, RPE_SO2EmissionsTotalThousandTons, RPE_DispatchableCapacityMW), MeetPrimaryCriteria2,"=1",IF($B$8="IPM Region",RPE_IPMRegionGroupAcronym,RPE_State),"="&IF($B$8="National","*",$I80))) -> 3.887775681 | K80: =IF(I80=0,"",IF($B$20="Actual",0,SUMIFS(CHOOSE(VLOOKUP($B$35,'Lookup tables'!$AK$5:$AM$15,3,0), RPE_FuelConsumptionSummerTBtu, RPE_FuelConsumptionTotalTBtu, RPE_GenerationSummerGWh, RPE_GenerationTotalGWh, RPE_CO2EmissionsSummerThousandTons, RPE_CO2EmissionsTotalThousandTons, RPE_NOXEmissionsSummerThousandTons, RPE_NOXEmissionsTotalThousandTons, RPE_SO2EmissionsSummerThousandTons, RPE_SO2EmissionsTotalThousandTons, RPE_DispatchableCapacityMW), MeetComparisonCriteria2,"=1",IF($B$8="IPM Region",RPE_IPMRegionGroupAcronym,RPE_State),"="&IF($B$8="National","*",$I80)))) -> 0 | L80: 3.887775681 | M80: =IF(I80=0,"",SUMIFS(CHOOSE(VLOOKUP($E$18,'Lookup tables'!$AK$5:$AM$15,3,0), RPE_FuelConsumptionSummerTBtu, RPE_FuelConsumptionTotalTBtu, RPE_GenerationSummerGWh, RPE_GenerationTotalGWh, RPE_CO2EmissionsSummerThousandTons, RPE_CO2EmissionsTotalThousandTons, RPE_NOXEmissionsSummerThousandTons, RPE_NOXEmissionsTotalThousandTons, RPE_SO2EmissionsSummerThousandTons, RPE_SO2EmissionsTotalThousandTons, RPE_DispatchableCapacityMW), MeetPrimaryCriteria3,"=1",IF($E$8="IPM Region",RPE_IPMRegionGroupAcronym,RPE_State),"="&IF($E$8="National","*",$I80))) -> 0 | N80: =IF(I80=0,"",IF($E$20="Actual",0,SUMIFS(CHOOSE(VLOOKUP($E$35,'Lookup tables'!$AK$5:$AM$15,3,0), RPE_FuelConsumptionSummerTBtu, RPE_FuelConsumptionTotalTBtu, RPE_GenerationSummerGWh, RPE_GenerationTotalGWh, RPE_CO2EmissionsSummerThousandTons, RPE_CO2EmissionsTotalThousandTons, RPE_NOXEmissionsSummerThousandTons, RPE_NOXEmissionsTotalThousandTons, RPE_SO2EmissionsSummerThousandTons, RPE_SO2EmissionsTotalThousandTons, RPE_DispatchableCapacityMW), MeetComparisonCriteria3,"=1",IF($E$8="IPM Region",RPE_IPMRegionGroupAcronym,RPE_State),"="&IF($E$8="National","*",$I80)))) -> 0 | O80: 0 | P80: 25.00000001 | Q80: 25 | S80: 25 | T80: MT | U80: 3.887775681 | V80: 0 | W80: 0
I81: =IF($B$8="State",Map!P28,Map!O28) -> NC | J81: =IF(I81=0,"",SUMIFS(CHOOSE(VLOOKUP($B$18,'Lookup tables'!$AK$5:$AM$15,3,0), RPE_FuelConsumptionSummerTBtu, RPE_FuelConsumptionTotalTBtu, RPE_GenerationSummerGWh, RPE_GenerationTotalGWh, RPE_CO2EmissionsSummerThousandTons, RPE_CO2EmissionsTotalThousandTons, RPE_NOXEmissionsSummerThousandTons, RPE_NOXEmissionsTotalThousandTons, RPE_SO2EmissionsSummerThousandTons, RPE_SO2EmissionsTotalThousandTons, RPE_DispatchableCapacityMW), MeetPrimaryCriteria2,"=1",IF($B$8="IPM Region",RPE_IPMRegionGroupAcronym,RPE_State),"="&IF($B$8="National","*",$I81))) -> 8.711660691 | K81: =IF(I81=0,"",IF($B$20="Actual",0,SUMIFS(CHOOSE(VLOOKUP($B$35,'Lookup tables'!$AK$5:$AM$15,3,0), RPE_FuelConsumptionSummerTBtu, RPE_FuelConsumptionTotalTBtu, RPE_GenerationSummerGWh, RPE_GenerationTotalGWh, RPE_CO2EmissionsSummerThousandTons, RPE_CO2EmissionsTotalThousandTons, RPE_NOXEmissionsSummerThousandTons, RPE_NOXEmissionsTotalThousandTons, RPE_SO2EmissionsSummerThousandTons, RPE_SO2EmissionsTotalThousandTons, RPE_DispatchableCapacityMW), MeetComparisonCriteria2,"=1",IF($B$8="IPM Region",RPE_IPMRegionGroupAcronym,RPE_State),"="&IF($B$8="National","*",$I81)))) -> 0 | L81: 8.711660691 | M81: =IF(I81=0,"",SUMIFS(CHOOSE(VLOOKUP($E$18,'Lookup tables'!$AK$5:$AM$15,3,0), RPE_FuelConsumptionSummerTBtu, RPE_FuelConsumptionTotalTBtu, RPE_GenerationSummerGWh, RPE_GenerationTotalGWh, RPE_CO2EmissionsSummerThousandTons, RPE_CO2EmissionsTotalThousandTons, RPE_NOXEmissionsSummerThousandTons, RPE_NOXEmissionsTotalThousandTons, RPE_SO2EmissionsSummerThousandTons, RPE_SO2EmissionsTotalThousandTons, RPE_DispatchableCapacityMW), MeetPrimaryCriteria3,"=1",IF($E$8="IPM Region",RPE_IPMRegionGroupAcronym,RPE_State),"="&IF($E$8="National","*",$I81))) -> 0 | N81: =IF(I81=0,"",IF($E$20="Actual",0,SUMIFS(CHOOSE(VLOOKUP($E$35,'Lookup tables'!$AK$5:$AM$15,3,0), RPE_FuelConsumptionSummerTBtu, RPE_FuelConsumptionTotalTBtu, RPE_GenerationSummerGWh, RPE_GenerationTotalGWh, RPE_CO2EmissionsSummerThousandTons, RPE_CO2EmissionsTotalThousandTons, RPE_NOXEmissionsSummerThousandTons, RPE_NOXEmissionsTotalThousandTons, RPE_SO2EmissionsSummerThousandTons, RPE_SO2EmissionsTotalThousandTons, RPE_DispatchableCapacityMW), MeetComparisonCriteria3,"=1",IF($E$8="IPM Region",RPE_IPMRegionGroupAcronym,RPE_State),"="&IF($E$8="National","*",$I81)))) -> 0 | O81: 0 | P81: 13.00000001 | Q81: 13 | S81: 26 | T81: GA | U81: 3.740112319 | V81: 0 | W81: 0
A82: Case Name(s) | I82: =IF($B$8="State",Map!P29,Map!O29) -> ND | J82: =IF(I82=0,"",SUMIFS(CHOOSE(VLOOKUP($B$18,'Lookup tables'!$AK$5:$AM$15,3,0), RPE_FuelConsumptionSummerTBtu, RPE_FuelConsumptionTotalTBtu, RPE_GenerationSummerGWh, RPE_GenerationTotalGWh, RPE_CO2EmissionsSummerThousandTons, RPE_CO2EmissionsTotalThousandTons, RPE_NOXEmissionsSummerThousandTons, RPE_NOXEmissionsTotalThousandTons, RPE_SO2EmissionsSummerThousandTons, RPE_SO2EmissionsTotalThousandTons, RPE_DispatchableCapacityMW), MeetPrimaryCriteria2,"=1",IF($B$8="IPM Region",RPE_IPMRegionGroupAcronym,RPE_State),"="&IF($B$8="National","*",$I82))) -> 8.587205676 | K82: =IF(I82=0,"",IF($B$20="Actual",0,SUMIFS(CHOOSE(VLOOKUP($B$35,'Lookup tables'!$AK$5:$AM$15,3,0), RPE_FuelConsumptionSummerTBtu, RPE_FuelConsumptionTotalTBtu, RPE_GenerationSummerGWh, RPE_GenerationTotalGWh, RPE_CO2EmissionsSummerThousandTons, RPE_CO2EmissionsTotalThousandTons, RPE_NOXEmissionsSummerThousandTons, RPE_NOXEmissionsTotalThousandTons, RPE_SO2EmissionsSummerThousandTons, RPE_SO2EmissionsTotalThousandTons, RPE_DispatchableCapacityMW), MeetComparisonCriteria2,"=1",IF($B$8="IPM Region",RPE_IPMRegionGroupAcronym,RPE_State),"="&IF($B$8="National","*",$I82)))) -> 0 | L82: 8.587205676 | M82: =IF(I82=0,"",SUMIFS(CHOOSE(VLOOKUP($E$18,'Lookup tables'!$AK$5:$AM$15,3,0), RPE_FuelConsumptionSummerTBtu, RPE_FuelConsumptionTotalTBtu, RPE_GenerationSummerGWh, RPE_GenerationTotalGWh, RPE_CO2EmissionsSummerThousandTons, RPE_CO2EmissionsTotalThousandTons, RPE_NOXEmissionsSummerThousandTons, RPE_NOXEmissionsTotalThousandTons, RPE_SO2EmissionsSummerThousandTons, RPE_SO2EmissionsTotalThousandTons, RPE_DispatchableCapacityMW), MeetPrimaryCriteria3,"=1",IF($E$8="IPM Region",RPE_IPMRegionGroupAcronym,RPE_State),"="&IF($E$8="National","*",$I82))) -> 0 | N82: =IF(I82=0,"",IF($E$20="Actual",0,SUMIFS(CHOOSE(VLOOKUP($E$35,'Lookup tables'!$AK$5:$AM$15,3,0), RPE_FuelConsumptionSummerTBtu, RPE_FuelConsumptionTotalTBtu, RPE_GenerationSummerGWh, RPE_GenerationTotalGWh, RPE_CO2EmissionsSummerThousandTons, RPE_CO2EmissionsTotalThousandTons, RPE_NOXEmissionsSummerThousandTons, RPE_NOXEmissionsTotalThousandTons, RPE_SO2EmissionsSummerThousandTons, RPE_SO2EmissionsTotalThousandTons, RPE_DispatchableCapacityMW), MeetComparisonCriteria3,"=1",IF($E$8="IPM Region",RPE_IPMRegionGroupAcronym,RPE_State),"="&IF($E$8="National","*",$I82)))) -> 0 | O82: 0 | P82: 14.00000001 | Q82: 14 | S82: 27 | T82: VA | U82: 2.932227508 | V82: 0 | W82: 0
A83: =IF(B20="Actual"," "&B4&" ("&B6&")", IF(B20="Absolute Change",", from "&B49&" ("&B51&") to "&B23&" ("&B25&")", IF(B20="Percent Change",", from "&B49&" ("&B51&") to "&B23&" ("&B25&")", IF(B20="Fraction","", IF(B20="Emissions Rate"," "&B4&" in "&B6, IF(B20="Capacity Factor"," "&B4&" in "&B6,"")))))) -> v6 Summer 2021 Ref Case (2023) | B83: =IF(E20="Actual"," "&E4&" ("&E6&")", IF(E20="Absolute Change",", from "&C49&" ("&C51&") to "&E23&" ("&E25&")", IF(E20="Percent Change",", from "&C49&" ("&C51&") to "&E23&" ("&E25&")", IF(E20="Fraction","", IF(E20="Emissions Rate"," "&E4&" in "&E6, IF(E20="Capacity Factor"," "&E4&" in "&E6,"")))))) -> v6 Summer 2021 Ref Case (2023) | I83: =IF($B$8="State",Map!P30,Map!O30) -> NE | J83: =IF(I83=0,"",SUMIFS(CHOOSE(VLOOKUP($B$18,'Lookup tables'!$AK$5:$AM$15,3,0), RPE_FuelConsumptionSummerTBtu, RPE_FuelConsumptionTotalTBtu, RPE_GenerationSummerGWh, RPE_GenerationTotalGWh, RPE_CO2EmissionsSummerThousandTons, RPE_CO2EmissionsTotalThousandTons, RPE_NOXEmissionsSummerThousandTons, RPE_NOXEmissionsTotalThousandTons, RPE_SO2EmissionsSummerThousandTons, RPE_SO2EmissionsTotalThousandTons, RPE_DispatchableCapacityMW), MeetPrimaryCriteria2,"=1",IF($B$8="IPM Region",RPE_IPMRegionGroupAcronym,RPE_State),"="&IF($B$8="National","*",$I83))) -> 10.63418971 | K83: =IF(I83=0,"",IF($B$20="Actual",0,SUMIFS(CHOOSE(VLOOKUP($B$35,'Lookup tables'!$AK$5:$AM$15,3,0), RPE_FuelConsumptionSummerTBtu, RPE_FuelConsumptionTotalTBtu, RPE_GenerationSummerGWh, RPE_GenerationTotalGWh, RPE_CO2EmissionsSummerThousandTons, RPE_CO2EmissionsTotalThousandTons, RPE_NOXEmissionsSummerThousandTons, RPE_NOXEmissionsTotalThousandTons, RPE_SO2EmissionsSummerThousandTons, RPE_SO2EmissionsTotalThousandTons, RPE_DispatchableCapacityMW), MeetComparisonCriteria2,"=1",IF($B$8="IPM Region",RPE_IPMRegionGroupAcronym,RPE_State),"="&IF($B$8="National","*",$I83)))) -> 0 | L83: 10.63418971 | M83: =IF(I83=0,"",SUMIFS(CHOOSE(VLOOKUP($E$18,'Lookup tables'!$AK$5:$AM$15,3,0), RPE_FuelConsumptionSummerTBtu, RPE_FuelConsumptionTotalTBtu, RPE_GenerationSummerGWh, RPE_GenerationTotalGWh, RPE_CO2EmissionsSummerThousandTons, RPE_CO2EmissionsTotalThousandTons, RPE_NOXEmissionsSummerThousandTons, RPE_NOXEmissionsTotalThousandTons, RPE_SO2EmissionsSummerThousandTons, RPE_SO2EmissionsTotalThousandTons, RPE_DispatchableCapacityMW), MeetPrimaryCriteria3,"=1",IF($E$8="IPM Region",RPE_IPMRegionGroupAcronym,RPE_State),"="&IF($E$8="National","*",$I83))) -> 0 | N83: =IF(I83=0,"",IF($E$20="Actual",0,SUMIFS(CHOOSE(VLOOKUP($E$35,'Lookup tables'!$AK$5:$AM$15,3,0), RPE_FuelConsumptionSummerTBtu, RPE_FuelConsumptionTotalTBtu, RPE_GenerationSummerGWh, RPE_GenerationTotalGWh, RPE_CO2EmissionsSummerThousandTons, RPE_CO2EmissionsTotalThousandTons, RPE_NOXEmissionsSummerThousandTons, RPE_NOXEmissionsTotalThousandTons, RPE_SO2EmissionsSummerThousandTons, RPE_SO2EmissionsTotalThousandTons, RPE_DispatchableCapacityMW), MeetComparisonCriteria3,"=1",IF($E$8="IPM Region",RPE_IPMRegionGroupAcronym,RPE_State),"="&IF($E$8="National","*",$I83)))) -> 0 | O83: 0 | P83: 8.000000008 | Q83: 8 | S83: 28 | T83: WI | U83: 2.88391743 | V83: 0 | W83: 0
I84: =IF($B$8="State",Map!P31,Map!O31) -> NH | J84: =IF(I84=0,"",SUMIFS(CHOOSE(VLOOKUP($B$18,'Lookup tables'!$AK$5:$AM$15,3,0), RPE_FuelConsumptionSummerTBtu, RPE_FuelConsumptionTotalTBtu, RPE_GenerationSummerGWh, RPE_GenerationTotalGWh, RPE_CO2EmissionsSummerThousandTons, RPE_CO2EmissionsTotalThousandTons, RPE_NOXEmissionsSummerThousandTons, RPE_NOXEmissionsTotalThousandTons, RPE_SO2EmissionsSummerThousandTons, RPE_SO2EmissionsTotalThousandTons, RPE_DispatchableCapacityMW), MeetPrimaryCriteria2,"=1",IF($B$8="IPM Region",RPE_IPMRegionGroupAcronym,RPE_State),"="&IF($B$8="National","*",$I84))) -> 0.2458698342 | K84: =IF(I84=0,"",IF($B$20="Actual",0,SUMIFS(CHOOSE(VLOOKUP($B$35,'Lookup tables'!$AK$5:$AM$15,3,0), RPE_FuelConsumptionSummerTBtu, RPE_FuelConsumptionTotalTBtu, RPE_GenerationSummerGWh, RPE_GenerationTotalGWh, RPE_CO2EmissionsSummerThousandTons, RPE_CO2EmissionsTotalThousandTons, RPE_NOXEmissionsSummerThousandTons, RPE_NOXEmissionsTotalThousandTons, RPE_SO2EmissionsSummerThousandTons, RPE_SO2EmissionsTotalThousandTons, RPE_DispatchableCapacityMW), MeetComparisonCriteria2,"=1",IF($B$8="IPM Region",RPE_IPMRegionGroupAcronym,RPE_State),"="&IF($B$8="National","*",$I84)))) -> 0 | L84: 0.2458698342 | M84: =IF(I84=0,"",SUMIFS(CHOOSE(VLOOKUP($E$18,'Lookup tables'!$AK$5:$AM$15,3,0), RPE_FuelConsumptionSummerTBtu, RPE_FuelConsumptionTotalTBtu, RPE_GenerationSummerGWh, RPE_GenerationTotalGWh, RPE_CO2EmissionsSummerThousandTons, RPE_CO2EmissionsTotalThousandTons, RPE_NOXEmissionsSummerThousandTons, RPE_NOXEmissionsTotalThousandTons, RPE_SO2EmissionsSummerThousandTons, RPE_SO2EmissionsTotalThousandTons, RPE_DispatchableCapacityMW), MeetPrimaryCriteria3,"=1",IF($E$8="IPM Region",RPE_IPMRegionGroupAcronym,RPE_State),"="&IF($E$8="National","*",$I84))) -> 0 | N84: =IF(I84=0,"",IF($E$20="Actual",0,SUMIFS(CHOOSE(VLOOKUP($E$35,'Lookup tables'!$AK$5:$AM$15,3,0), RPE_FuelConsumptionSummerTBtu, RPE_FuelConsumptionTotalTBtu, RPE_GenerationSummerGWh, RPE_GenerationTotalGWh, RPE_CO2EmissionsSummerThousandTons, RPE_CO2EmissionsTotalThousandTons, RPE_NOXEmissionsSummerThousandTons, RPE_NOXEmissionsTotalThousandTons, RPE_SO2EmissionsSummerThousandTons, RPE_SO2EmissionsTotalThousandTons, RPE_DispatchableCapacityMW), MeetComparisonCriteria3,"=1",IF($E$8="IPM Region",RPE_IPMRegionGroupAcronym,RPE_State),"="&IF($E$8="National","*",$I84)))) -> 0 | O84: 0 | P84: 45.00000001 | Q84: 45 | S84: 29 | T84: OK | U84: 2.801441063 | V84: 0 | W84: 0
I85: =IF($B$8="State",Map!P32,Map!O32) -> NJ | J85: =IF(I85=0,"",SUMIFS(CHOOSE(VLOOKUP($B$18,'Lookup tables'!$AK$5:$AM$15,3,0), RPE_FuelConsumptionSummerTBtu, RPE_FuelConsumptionTotalTBtu, RPE_GenerationSummerGWh, RPE_GenerationTotalGWh, RPE_CO2EmissionsSummerThousandTons, RPE_CO2EmissionsTotalThousandTons, RPE_NOXEmissionsSummerThousandTons, RPE_NOXEmissionsTotalThousandTons, RPE_SO2EmissionsSummerThousandTons, RPE_SO2EmissionsTotalThousandTons, RPE_DispatchableCapacityMW), MeetPrimaryCriteria2,"=1",IF($B$8="IPM Region",RPE_IPMRegionGroupAcronym,RPE_State),"="&IF($B$8="National","*",$I85))) -> 1.944013777 | K85: =IF(I85=0,"",IF($B$20="Actual",0,SUMIFS(CHOOSE(VLOOKUP($B$35,'Lookup tables'!$AK$5:$AM$15,3,0), RPE_FuelConsumptionSummerTBtu, RPE_FuelConsumptionTotalTBtu, RPE_GenerationSummerGWh, RPE_GenerationTotalGWh, RPE_CO2EmissionsSummerThousandTons, RPE_CO2EmissionsTotalThousandTons, RPE_NOXEmissionsSummerThousandTons, RPE_NOXEmissionsTotalThousandTons, RPE_SO2EmissionsSummerThousandTons, RPE_SO2EmissionsTotalThousandTons, RPE_DispatchableCapacityMW), MeetComparisonCriteria2,"=1",IF($B$8="IPM Region",RPE_IPMRegionGroupAcronym,RPE_State),"="&IF($B$8="National","*",$I85)))) -> 0 | L85: 1.944013777 | M85: =IF(I85=0,"",SUMIFS(CHOOSE(VLOOKUP($E$18,'Lookup tables'!$AK$5:$AM$15,3,0), RPE_FuelConsumptionSummerTBtu, RPE_FuelConsumptionTotalTBtu, RPE_GenerationSummerGWh, RPE_GenerationTotalGWh, RPE_CO2EmissionsSummerThousandTons, RPE_CO2EmissionsTotalThousandTons, RPE_NOXEmissionsSummerThousandTons, RPE_NOXEmissionsTotalThousandTons, RPE_SO2EmissionsSummerThousandTons, RPE_SO2EmissionsTotalThousandTons, RPE_DispatchableCapacityMW), MeetPrimaryCriteria3,"=1",IF($E$8="IPM Region",RPE_IPMRegionGroupAcronym,RPE_State),"="&IF($E$8="National","*",$I85))) -> 0 | N85: =IF(I85=0,"",IF($E$20="Actual",0,SUMIFS(CHOOSE(VLOOKUP($E$35,'Lookup tables'!$AK$5:$AM$15,3,0), RPE_FuelConsumptionSummerTBtu, RPE_FuelConsumptionTotalTBtu, RPE_GenerationSummerGWh, RPE_GenerationTotalGWh, RPE_CO2EmissionsSummerThousandTons, RPE_CO2EmissionsTotalThousandTons, RPE_NOXEmissionsSummerThousandTons, RPE_NOXEmissionsTotalThousandTons, RPE_SO2EmissionsSummerThousandTons, RPE_SO2EmissionsTotalThousandTons, RPE_DispatchableCapacityMW), MeetComparisonCriteria3,"=1",IF($E$8="IPM Region",RPE_IPMRegionGroupAcronym,RPE_State),"="&IF($E$8="National","*",$I85)))) -> 0 | O85: 0 | P85: 33.00000001 | Q85: 33 | S85: 30 | T85: KS | U85: 2.640347111 | V85: 0 | W85: 0
I86: =IF($B$8="State",Map!P33,Map!O33) -> NM | J86: =IF(I86=0,"",SUMIFS(CHOOSE(VLOOKUP($B$18,'Lookup tables'!$AK$5:$AM$15,3,0), RPE_FuelConsumptionSummerTBtu, RPE_FuelConsumptionTotalTBtu, RPE_GenerationSummerGWh, RPE_GenerationTotalGWh, RPE_CO2EmissionsSummerThousandTons, RPE_CO2EmissionsTotalThousandTons, RPE_NOXEmissionsSummerThousandTons, RPE_NOXEmissionsTotalThousandTons, RPE_SO2EmissionsSummerThousandTons, RPE_SO2EmissionsTotalThousandTons, RPE_DispatchableCapacityMW), MeetPrimaryCriteria2,"=1",IF($B$8="IPM Region",RPE_IPMRegionGroupAcronym,RPE_State),"="&IF($B$8="National","*",$I86))) -> 1.174144524 | K86: =IF(I86=0,"",IF($B$20="Actual",0,SUMIFS(CHOOSE(VLOOKUP($B$35,'Lookup tables'!$AK$5:$AM$15,3,0), RPE_FuelConsumptionSummerTBtu, RPE_FuelConsumptionTotalTBtu, RPE_GenerationSummerGWh, RPE_GenerationTotalGWh, RPE_CO2EmissionsSummerThousandTons, RPE_CO2EmissionsTotalThousandTons, RPE_NOXEmissionsSummerThousandTons, RPE_NOXEmissionsTotalThousandTons, RPE_SO2EmissionsSummerThousandTons, RPE_SO2EmissionsTotalThousandTons, RPE_DispatchableCapacityMW), MeetComparisonCriteria2,"=1",IF($B$8="IPM Region",RPE_IPMRegionGroupAcronym,RPE_State),"="&IF($B$8="National","*",$I86)))) -> 0 | L86: 1.174144524 | M86: =IF(I86=0,"",SUMIFS(CHOOSE(VLOOKUP($E$18,'Lookup tables'!$AK$5:$AM$15,3,0), RPE_FuelConsumptionSummerTBtu, RPE_FuelConsumptionTotalTBtu, RPE_GenerationSummerGWh, RPE_GenerationTotalGWh, RPE_CO2EmissionsSummerThousandTons, RPE_CO2EmissionsTotalThousandTons, RPE_NOXEmissionsSummerThousandTons, RPE_NOXEmissionsTotalThousandTons, RPE_SO2EmissionsSummerThousandTons, RPE_SO2EmissionsTotalThousandTons, RPE_DispatchableCapacityMW), MeetPrimaryCriteria3,"=1",IF($E$8="IPM Region",RPE_IPMRegionGroupAcronym,RPE_State),"="&IF($E$8="National","*",$I86))) -> 0 | N86: =IF(I86=0,"",IF($E$20="Actual",0,SUMIFS(CHOOSE(VLOOKUP($E$35,'Lookup tables'!$AK$5:$AM$15,3,0), RPE_FuelConsumptionSummerTBtu, RPE_FuelConsumptionTotalTBtu, RPE_GenerationSummerGWh, RPE_GenerationTotalGWh, RPE_CO2EmissionsSummerThousandTons, RPE_CO2EmissionsTotalThousandTons, RPE_NOXEmissionsSummerThousandTons, RPE_NOXEmissionsTotalThousandTons, RPE_SO2EmissionsSummerThousandTons, RPE_SO2EmissionsTotalThousandTons, RPE_DispatchableCapacityMW), MeetComparisonCriteria3,"=1",IF($E$8="IPM Region",RPE_IPMRegionGroupAcronym,RPE_State),"="&IF($E$8="National","*",$I86)))) -> 0 | O86: 0 | P86: 40.00000001 | Q86: 40 | S86: 31 | T86: MS | U86: 2.583857798 | V86: 0 | W86: 0
I87: =IF($B$8="State",Map!P34,Map!O34) -> NV | J87: =IF(I87=0,"",SUMIFS(CHOOSE(VLOOKUP($B$18,'Lookup tables'!$AK$5:$AM$15,3,0), RPE_FuelConsumptionSummerTBtu, RPE_FuelConsumptionTotalTBtu, RPE_GenerationSummerGWh, RPE_GenerationTotalGWh, RPE_CO2EmissionsSummerThousandTons, RPE_CO2EmissionsTotalThousandTons, RPE_NOXEmissionsSummerThousandTons, RPE_NOXEmissionsTotalThousandTons, RPE_SO2EmissionsSummerThousandTons, RPE_SO2EmissionsTotalThousandTons, RPE_DispatchableCapacityMW), MeetPrimaryCriteria2,"=1",IF($B$8="IPM Region",RPE_IPMRegionGroupAcronym,RPE_State),"="&IF($B$8="National","*",$I87))) -> 1.536740216 | K87: =IF(I87=0,"",IF($B$20="Actual",0,SUMIFS(CHOOSE(VLOOKUP($B$35,'Lookup tables'!$AK$5:$AM$15,3,0), RPE_FuelConsumptionSummerTBtu, RPE_FuelConsumptionTotalTBtu, RPE_GenerationSummerGWh, RPE_GenerationTotalGWh, RPE_CO2EmissionsSummerThousandTons, RPE_CO2EmissionsTotalThousandTons, RPE_NOXEmissionsSummerThousandTons, RPE_NOXEmissionsTotalThousandTons, RPE_SO2EmissionsSummerThousandTons, RPE_SO2EmissionsTotalThousandTons, RPE_DispatchableCapacityMW), MeetComparisonCriteria2,"=1",IF($B$8="IPM Region",RPE_IPMRegionGroupAcronym,RPE_State),"="&IF($B$8="National","*",$I87)))) -> 0 | L87: 1.536740216 | M87: =IF(I87=0,"",SUMIFS(CHOOSE(VLOOKUP($E$18,'Lookup tables'!$AK$5:$AM$15,3,0), RPE_FuelConsumptionSummerTBtu, RPE_FuelConsumptionTotalTBtu, RPE_GenerationSummerGWh, RPE_GenerationTotalGWh, RPE_CO2EmissionsSummerThousandTons, RPE_CO2EmissionsTotalThousandTons, RPE_NOXEmissionsSummerThousandTons, RPE_NOXEmissionsTotalThousandTons, RPE_SO2EmissionsSummerThousandTons, RPE_SO2EmissionsTotalThousandTons, RPE_DispatchableCapacityMW), MeetPrimaryCriteria3,"=1",IF($E$8="IPM Region",RPE_IPMRegionGroupAcronym,RPE_State),"="&IF($E$8="National","*",$I87))) -> 0 | N87: =IF(I87=0,"",IF($E$20="Actual",0,SUMIFS(CHOOSE(VLOOKUP($E$35,'Lookup tables'!$AK$5:$AM$15,3,0), RPE_FuelConsumptionSummerTBtu, RPE_FuelConsumptionTotalTBtu, RPE_GenerationSummerGWh, RPE_GenerationTotalGWh, RPE_CO2EmissionsSummerThousandTons, RPE_CO2EmissionsTotalThousandTons, RPE_NOXEmissionsSummerThousandTons, RPE_NOXEmissionsTotalThousandTons, RPE_SO2EmissionsSummerThousandTons, RPE_SO2EmissionsTotalThousandTons, RPE_DispatchableCapacityMW), MeetComparisonCriteria3,"=1",IF($E$8="IPM Region",RPE_IPMRegionGroupAcronym,RPE_State),"="&IF($E$8="National","*",$I87)))) -> 0 | O87: 0 | P87: 35.00000001 | Q87: 35 | S87: 32 | T87: MA | U87: 2.129456316 | V87: 0 | W87: 0
I88: =IF($B$8="State",Map!P35,Map!O35) -> NY | J88: =IF(I88=0,"",SUMIFS(CHOOSE(VLOOKUP($B$18,'Lookup tables'!$AK$5:$AM$15,3,0), RPE_FuelConsumptionSummerTBtu, RPE_FuelConsumptionTotalTBtu, RPE_GenerationSummerGWh, RPE_GenerationTotalGWh, RPE_CO2EmissionsSummerThousandTons, RPE_CO2EmissionsTotalThousandTons, RPE_NOXEmissionsSummerThousandTons, RPE_NOXEmissionsTotalThousandTons, RPE_SO2EmissionsSummerThousandTons, RPE_SO2EmissionsTotalThousandTons, RPE_DispatchableCapacityMW), MeetPrimaryCriteria2,"=1",IF($B$8="IPM Region",RPE_IPMRegionGroupAcronym,RPE_State),"="&IF($B$8="National","*",$I88))) -> 6.390965958 | K88: =IF(I88=0,"",IF($B$20="Actual",0,SUMIFS(CHOOSE(VLOOKUP($B$35,'Lookup tables'!$AK$5:$AM$15,3,0), RPE_FuelConsumptionSummerTBtu, RPE_FuelConsumptionTotalTBtu, RPE_GenerationSummerGWh, RPE_GenerationTotalGWh, RPE_CO2EmissionsSummerThousandTons, RPE_CO2EmissionsTotalThousandTons, RPE_NOXEmissionsSummerThousandTons, RPE_NOXEmissionsTotalThousandTons, RPE_SO2EmissionsSummerThousandTons, RPE_SO2EmissionsTotalThousandTons, RPE_DispatchableCapacityMW), MeetComparisonCriteria2,"=1",IF($B$8="IPM Region",RPE_IPMRegionGroupAcronym,RPE_State),"="&IF($B$8="National","*",$I88)))) -> 0 | L88: 6.390965958 | M88: =IF(I88=0,"",SUMIFS(CHOOSE(VLOOKUP($E$18,'Lookup tables'!$AK$5:$AM$15,3,0), RPE_FuelConsumptionSummerTBtu, RPE_FuelConsumptionTotalTBtu, RPE_GenerationSummerGWh, RPE_GenerationTotalGWh, RPE_CO2EmissionsSummerThousandTons, RPE_CO2EmissionsTotalThousandTons, RPE_NOXEmissionsSummerThousandTons, RPE_NOXEmissionsTotalThousandTons, RPE_SO2EmissionsSummerThousandTons, RPE_SO2EmissionsTotalThousandTons, RPE_DispatchableCapacityMW), MeetPrimaryCriteria3,"=1",IF($E$8="IPM Region",RPE_IPMRegionGroupAcronym,RPE_State),"="&IF($E$8="National","*",$I88))) -> 0 | N88: =IF(I88=0,"",IF($E$20="Actual",0,SUMIFS(CHOOSE(VLOOKUP($E$35,'Lookup tables'!$AK$5:$AM$15,3,0), RPE_FuelConsumptionSummerTBtu, RPE_FuelConsumptionTotalTBtu, RPE_GenerationSummerGWh, RPE_GenerationTotalGWh, RPE_CO2EmissionsSummerThousandTons, RPE_CO2EmissionsTotalThousandTons, RPE_NOXEmissionsSummerThousandTons, RPE_NOXEmissionsTotalThousandTons, RPE_SO2EmissionsSummerThousandTons, RPE_SO2EmissionsTotalThousandTons, RPE_DispatchableCapacityMW), MeetComparisonCriteria3,"=1",IF($E$8="IPM Region",RPE_IPMRegionGroupAcronym,RPE_State),"="&IF($E$8="National","*",$I88)))) -> 0 | O88: 0 | P88: =IF(OR(I88=" ",I88=0),"",(RANK(L88,IF($B$8="State",$L$56:$L$104,$L$56:$L$118))+ROW()*0.0000000001)) -> 17.00000001 | Q88: 17 | S88: 33 | T88: NJ | U88: 1.944013777 | V88: 0 | W88: 0
I89: =IF($B$8="State",Map!P36,Map!O36) -> OH | J89: =IF(I89=0,"",SUMIFS(CHOOSE(VLOOKUP($B$18,'Lookup tables'!$AK$5:$AM$15,3,0), RPE_FuelConsumptionSummerTBtu, RPE_FuelConsumptionTotalTBtu, RPE_GenerationSummerGWh, RPE_GenerationTotalGWh, RPE_CO2EmissionsSummerThousandTons, RPE_CO2EmissionsTotalThousandTons, RPE_NOXEmissionsSummerThousandTons, RPE_NOXEmissionsTotalThousandTons, RPE_SO2EmissionsSummerThousandTons, RPE_SO2EmissionsTotalThousandTons, RPE_DispatchableCapacityMW), MeetPrimaryCriteria2,"=1",IF($B$8="IPM Region",RPE_IPMRegionGroupAcronym,RPE_State),"="&IF($B$8="National","*",$I89))) -> 10.36948405 | K89: =IF(I89=0,"",IF($B$20="Actual",0,SUMIFS(CHOOSE(VLOOKUP($B$35,'Lookup tables'!$AK$5:$AM$15,3,0), RPE_FuelConsumptionSummerTBtu, RPE_FuelConsumptionTotalTBtu, RPE_GenerationSummerGWh, RPE_GenerationTotalGWh, RPE_CO2EmissionsSummerThousandTons, RPE_CO2EmissionsTotalThousandTons, RPE_NOXEmissionsSummerThousandTons, RPE_NOXEmissionsTotalThousandTons, RPE_SO2EmissionsSummerThousandTons, RPE_SO2EmissionsTotalThousandTons, RPE_DispatchableCapacityMW), MeetComparisonCriteria2,"=1",IF($B$8="IPM Region",RPE_IPMRegionGroupAcronym,RPE_State),"="&IF($B$8="National","*",$I89)))) -> 0 | L89: 10.36948405 | M89: =IF(I89=0,"",SUMIFS(CHOOSE(VLOOKUP($E$18,'Lookup tables'!$AK$5:$AM$15,3,0), RPE_FuelConsumptionSummerTBtu, RPE_FuelConsumptionTotalTBtu, RPE_GenerationSummerGWh, RPE_GenerationTotalGWh, RPE_CO2EmissionsSummerThousandTons, RPE_CO2EmissionsTotalThousandTons, RPE_NOXEmissionsSummerThousandTons, RPE_NOXEmissionsTotalThousandTons, RPE_SO2EmissionsSummerThousandTons, RPE_SO2EmissionsTotalThousandTons, RPE_DispatchableCapacityMW), MeetPrimaryCriteria3,"=1",IF($E$8="IPM Region",RPE_IPMRegionGroupAcronym,RPE_State),"="&IF($E$8="National","*",$I89))) -> 0 | N89: =IF(I89=0,"",IF($E$20="Actual",0,SUMIFS(CHOOSE(VLOOKUP($E$35,'Lookup tables'!$AK$5:$AM$15,3,0), RPE_FuelConsumptionSummerTBtu, RPE_FuelConsumptionTotalTBtu, RPE_GenerationSummerGWh, RPE_GenerationTotalGWh, RPE_CO2EmissionsSummerThousandTons, RPE_CO2EmissionsTotalThousandTons, RPE_NOXEmissionsSummerThousandTons, RPE_NOXEmissionsTotalThousandTons, RPE_SO2EmissionsSummerThousandTons, RPE_SO2EmissionsTotalThousandTons, RPE_DispatchableCapacityMW), MeetComparisonCriteria3,"=1",IF($E$8="IPM Region",RPE_IPMRegionGroupAcronym,RPE_State),"="&IF($E$8="National","*",$I89)))) -> 0 | O89: 0 | P89: 10.00000001 | Q89: 10 | S89: 34 | T89: CT | U89: 1.703408204 | V89: 0 | W89: 0
I90: =IF($B$8="State",Map!P37,Map!O37) -> OK | J90: =IF(I90=0,"",SUMIFS(CHOOSE(VLOOKUP($B$18,'Lookup tables'!$AK$5:$AM$15,3,0), RPE_FuelConsumptionSummerTBtu, RPE_FuelConsumptionTotalTBtu, RPE_GenerationSummerGWh, RPE_GenerationTotalGWh, RPE_CO2EmissionsSummerThousandTons, RPE_CO2EmissionsTotalThousandTons, RPE_NOXEmissionsSummerThousandTons, RPE_NOXEmissionsTotalThousandTons, RPE_SO2EmissionsSummerThousandTons, RPE_SO2EmissionsTotalThousandTons, RPE_DispatchableCapacityMW), MeetPrimaryCriteria2,"=1",IF($B$8="IPM Region",RPE_IPMRegionGroupAcronym,RPE_State),"="&IF($B$8="National","*",$I90))) -> 2.801441063 | K90: =IF(I90=0,"",IF($B$20="Actual",0,SUMIFS(CHOOSE(VLOOKUP($B$35,'Lookup tables'!$AK$5:$AM$15,3,0), RPE_FuelConsumptionSummerTBtu, RPE_FuelConsumptionTotalTBtu, RPE_GenerationSummerGWh, RPE_GenerationTotalGWh, RPE_CO2EmissionsSummerThousandTons, RPE_CO2EmissionsTotalThousandTons, RPE_NOXEmissionsSummerThousandTons, RPE_NOXEmissionsTotalThousandTons, RPE_SO2EmissionsSummerThousandTons, RPE_SO2EmissionsTotalThousandTons, RPE_DispatchableCapacityMW), MeetComparisonCriteria2,"=1",IF($B$8="IPM Region",RPE_IPMRegionGroupAcronym,RPE_State),"="&IF($B$8="National","*",$I90)))) -> 0 | L90: 2.801441063 | M90: =IF(I90=0,"",SUMIFS(CHOOSE(VLOOKUP($E$18,'Lookup tables'!$AK$5:$AM$15,3,0), RPE_FuelConsumptionSummerTBtu, RPE_FuelConsumptionTotalTBtu, RPE_GenerationSummerGWh, RPE_GenerationTotalGWh, RPE_CO2EmissionsSummerThousandTons, RPE_CO2EmissionsTotalThousandTons, RPE_NOXEmissionsSummerThousandTons, RPE_NOXEmissionsTotalThousandTons, RPE_SO2EmissionsSummerThousandTons, RPE_SO2EmissionsTotalThousandTons, RPE_DispatchableCapacityMW), MeetPrimaryCriteria3,"=1",IF($E$8="IPM Region",RPE_IPMRegionGroupAcronym,RPE_State),"="&IF($E$8="National","*",$I90))) -> 0 | N90: =IF(I90=0,"",IF($E$20="Actual",0,SUMIFS(CHOOSE(VLOOKUP($E$35,'Lookup tables'!$AK$5:$AM$15,3,0), RPE_FuelConsumptionSummerTBtu, RPE_FuelConsumptionTotalTBtu, RPE_GenerationSummerGWh, RPE_GenerationTotalGWh, RPE_CO2EmissionsSummerThousandTons, RPE_CO2EmissionsTotalThousandTons, RPE_NOXEmissionsSummerThousandTons, RPE_NOXEmissionsTotalThousandTons, RPE_SO2EmissionsSummerThousandTons, RPE_SO2EmissionsTotalThousandTons, RPE_DispatchableCapacityMW), MeetComparisonCriteria3,"=1",IF($E$8="IPM Region",RPE_IPMRegionGroupAcronym,RPE_State),"="&IF($E$8="National","*",$I90)))) -> 0 | O90: 0 | P90: 29.00000001 | Q90: 29 | S90: 35 | T90: NV | U90: 1.536740216 | V90: 0 | W90: 0
I91: =IF($B$8="State",Map!P38,Map!O38) -> OR | J91: =IF(I91=0,"",SUMIFS(CHOOSE(VLOOKUP($B$18,'Lookup tables'!$AK$5:$AM$15,3,0), RPE_FuelConsumptionSummerTBtu, RPE_FuelConsumptionTotalTBtu, RPE_GenerationSummerGWh, RPE_GenerationTotalGWh, RPE_CO2EmissionsSummerThousandTons, RPE_CO2EmissionsTotalThousandTons, RPE_NOXEmissionsSummerThousandTons, RPE_NOXEmissionsTotalThousandTons, RPE_SO2EmissionsSummerThousandTons, RPE_SO2EmissionsTotalThousandTons, RPE_DispatchableCapacityMW), MeetPrimaryCriteria2,"=1",IF($B$8="IPM Region",RPE_IPMRegionGroupAcronym,RPE_State),"="&IF($B$8="National","*",$I91))) -> 1.181213548 | K91: =IF(I91=0,"",IF($B$20="Actual",0,SUMIFS(CHOOSE(VLOOKUP($B$35,'Lookup tables'!$AK$5:$AM$15,3,0), RPE_FuelConsumptionSummerTBtu, RPE_FuelConsumptionTotalTBtu, RPE_GenerationSummerGWh, RPE_GenerationTotalGWh, RPE_CO2EmissionsSummerThousandTons, RPE_CO2EmissionsTotalThousandTons, RPE_NOXEmissionsSummerThousandTons, RPE_NOXEmissionsTotalThousandTons, RPE_SO2EmissionsSummerThousandTons, RPE_SO2EmissionsTotalThousandTons, RPE_DispatchableCapacityMW), MeetComparisonCriteria2,"=1",IF($B$8="IPM Region",RPE_IPMRegionGroupAcronym,RPE_State),"="&IF($B$8="National","*",$I91)))) -> 0 | L91: 1.181213548 | M91: =IF(I91=0,"",SUMIFS(CHOOSE(VLOOKUP($E$18,'Lookup tables'!$AK$5:$AM$15,3,0), RPE_FuelConsumptionSummerTBtu, RPE_FuelConsumptionTotalTBtu, RPE_GenerationSummerGWh, RPE_GenerationTotalGWh, RPE_CO2EmissionsSummerThousandTons, RPE_CO2EmissionsTotalThousandTons, RPE_NOXEmissionsSummerThousandTons, RPE_NOXEmissionsTotalThousandTons, RPE_SO2EmissionsSummerThousandTons, RPE_SO2EmissionsTotalThousandTons, RPE_DispatchableCapacityMW), MeetPrimaryCriteria3,"=1",IF($E$8="IPM Region",RPE_IPMRegionGroupAcronym,RPE_State),"="&IF($E$8="National","*",$I91))) -> 0 | N91: =IF(I91=0,"",IF($E$20="Actual",0,SUMIFS(CHOOSE(VLOOKUP($E$35,'Lookup tables'!$AK$5:$AM$15,3,0), RPE_FuelConsumptionSummerTBtu, RPE_FuelConsumptionTotalTBtu, RPE_GenerationSummerGWh, RPE_GenerationTotalGWh, RPE_CO2EmissionsSummerThousandTons, RPE_CO2EmissionsTotalThousandTons, RPE_NOXEmissionsSummerThousandTons, RPE_NOXEmissionsTotalThousandTons, RPE_SO2EmissionsSummerThousandTons, RPE_SO2EmissionsTotalThousandTons, RPE_DispatchableCapacityMW), MeetComparisonCriteria3,"=1",IF($E$8="IPM Region",RPE_IPMRegionGroupAcronym,RPE_State),"="&IF($E$8="National","*",$I91)))) -> 0 | O91: 0 | P91: 39.00000001 | Q91: 39 | S91: 36 | T91: MD | U91: 1.53015434 | V91: 0 | W91: 0
I92: =IF($B$8="State",Map!P39,Map!O39) -> PA | J92: =IF(I92=0,"",SUMIFS(CHOOSE(VLOOKUP($B$18,'Lookup tables'!$AK$5:$AM$15,3,0), RPE_FuelConsumptionSummerTBtu, RPE_FuelConsumptionTotalTBtu, RPE_GenerationSummerGWh, RPE_GenerationTotalGWh, RPE_CO2EmissionsSummerThousandTons, RPE_CO2EmissionsTotalThousandTons, RPE_NOXEmissionsSummerThousandTons, RPE_NOXEmissionsTotalThousandTons, RPE_SO2EmissionsSummerThousandTons, RPE_SO2EmissionsTotalThousandTons, RPE_DispatchableCapacityMW), MeetPrimaryCriteria2,"=1",IF($B$8="IPM Region",RPE_IPMRegionGroupAcronym,RPE_State),"="&IF($B$8="National","*",$I92))) -> 10.62148619 | K92: =IF(I92=0,"",IF($B$20="Actual",0,SUMIFS(CHOOSE(VLOOKUP($B$35,'Lookup tables'!$AK$5:$AM$15,3,0), RPE_FuelConsumptionSummerTBtu, RPE_FuelConsumptionTotalTBtu, RPE_GenerationSummerGWh, RPE_GenerationTotalGWh, RPE_CO2EmissionsSummerThousandTons, RPE_CO2EmissionsTotalThousandTons, RPE_NOXEmissionsSummerThousandTons, RPE_NOXEmissionsTotalThousandTons, RPE_SO2EmissionsSummerThousandTons, RPE_SO2EmissionsTotalThousandTons, RPE_DispatchableCapacityMW), MeetComparisonCriteria2,"=1",IF($B$8="IPM Region",RPE_IPMRegionGroupAcronym,RPE_State),"="&IF($B$8="National","*",$I92)))) -> 0 | L92: 10.62148619 | M92: =IF(I92=0,"",SUMIFS(CHOOSE(VLOOKUP($E$18,'Lookup tables'!$AK$5:$AM$15,3,0), RPE_FuelConsumptionSummerTBtu, RPE_FuelConsumptionTotalTBtu, RPE_GenerationSummerGWh, RPE_GenerationTotalGWh, RPE_CO2EmissionsSummerThousandTons, RPE_CO2EmissionsTotalThousandTons, RPE_NOXEmissionsSummerThousandTons, RPE_NOXEmissionsTotalThousandTons, RPE_SO2EmissionsSummerThousandTons, RPE_SO2EmissionsTotalThousandTons, RPE_DispatchableCapacityMW), MeetPrimaryCriteria3,"=1",IF($E$8="IPM Region",RPE_IPMRegionGroupAcronym,RPE_State),"="&IF($E$8="National","*",$I92))) -> 0 | N92: =IF(I92=0,"",IF($E$20="Actual",0,SUMIFS(CHOOSE(VLOOKUP($E$35,'Lookup tables'!$AK$5:$AM$15,3,0), RPE_FuelConsumptionSummerTBtu, RPE_FuelConsumptionTotalTBtu, RPE_GenerationSummerGWh, RPE_GenerationTotalGWh, RPE_CO2EmissionsSummerThousandTons, RPE_CO2EmissionsTotalThousandTons, RPE_NOXEmissionsSummerThousandTons, RPE_NOXEmissionsTotalThousandTons, RPE_SO2EmissionsSummerThousandTons, RPE_SO2EmissionsTotalThousandTons, RPE_DispatchableCapacityMW), MeetComparisonCriteria3,"=1",IF($E$8="IPM Region",RPE_IPMRegionGroupAcronym,RPE_State),"="&IF($E$8="National","*",$I92)))) -> 0 | O92: 0 | P92: 9.000000009 | Q92: 9 | S92: 37 | T92: ME | U92: 1.399169858 | V92: 0 | W92: 0
I93: =IF($B$8="State",Map!P40,Map!O40) -> RI | J93: =IF(I93=0,"",SUMIFS(CHOOSE(VLOOKUP($B$18,'Lookup tables'!$AK$5:$AM$15,3,0), RPE_FuelConsumptionSummerTBtu, RPE_FuelConsumptionTotalTBtu, RPE_GenerationSummerGWh, RPE_GenerationTotalGWh, RPE_CO2EmissionsSummerThousandTons, RPE_CO2EmissionsTotalThousandTons, RPE_NOXEmissionsSummerThousandTons, RPE_NOXEmissionsTotalThousandTons, RPE_SO2EmissionsSummerThousandTons, RPE_SO2EmissionsTotalThousandTons, RPE_DispatchableCapacityMW), MeetPrimaryCriteria2,"=1",IF($B$8="IPM Region",RPE_IPMRegionGroupAcronym,RPE_State),"="&IF($B$8="National","*",$I93))) -> 0.2351583279 | K93: =IF(I93=0,"",IF($B$20="Actual",0,SUMIFS(CHOOSE(VLOOKUP($B$35,'Lookup tables'!$AK$5:$AM$15,3,0), RPE_FuelConsumptionSummerTBtu, RPE_FuelConsumptionTotalTBtu, RPE_GenerationSummerGWh, RPE_GenerationTotalGWh, RPE_CO2EmissionsSummerThousandTons, RPE_CO2EmissionsTotalThousandTons, RPE_NOXEmissionsSummerThousandTons, RPE_NOXEmissionsTotalThousandTons, RPE_SO2EmissionsSummerThousandTons, RPE_SO2EmissionsTotalThousandTons, RPE_DispatchableCapacityMW), MeetComparisonCriteria2,"=1",IF($B$8="IPM Region",RPE_IPMRegionGroupAcronym,RPE_State),"="&IF($B$8="National","*",$I93)))) -> 0 | L93: 0.2351583279 | M93: =IF(I93=0,"",SUMIFS(CHOOSE(VLOOKUP($E$18,'Lookup tables'!$AK$5:$AM$15,3,0), RPE_FuelConsumptionSummerTBtu, RPE_FuelConsumptionTotalTBtu, RPE_GenerationSummerGWh, RPE_GenerationTotalGWh, RPE_CO2EmissionsSummerThousandTons, RPE_CO2EmissionsTotalThousandTons, RPE_NOXEmissionsSummerThousandTons, RPE_NOXEmissionsTotalThousandTons, RPE_SO2EmissionsSummerThousandTons, RPE_SO2EmissionsTotalThousandTons, RPE_DispatchableCapacityMW), MeetPrimaryCriteria3,"=1",IF($E$8="IPM Region",RPE_IPMRegionGroupAcronym,RPE_State),"="&IF($E$8="National","*",$I93))) -> 0 | N93: =IF(I93=0,"",IF($E$20="Actual",0,SUMIFS(CHOOSE(VLOOKUP($E$35,'Lookup tables'!$AK$5:$AM$15,3,0), RPE_FuelConsumptionSummerTBtu, RPE_FuelConsumptionTotalTBtu, RPE_GenerationSummerGWh, RPE_GenerationTotalGWh, RPE_CO2EmissionsSummerThousandTons, RPE_CO2EmissionsTotalThousandTons, RPE_NOXEmissionsSummerThousandTons, RPE_NOXEmissionsTotalThousandTons, RPE_SO2EmissionsSummerThousandTons, RPE_SO2EmissionsTotalThousandTons, RPE_DispatchableCapacityMW), MeetComparisonCriteria3,"=1",IF($E$8="IPM Region",RPE_IPMRegionGroupAcronym,RPE_State),"="&IF($E$8="National","*",$I93)))) -> 0 | O93: 0 | P93: 46.00000001 | Q93: 46 | S93: 38 | T93: AZ | U93: 1.278199836 | V93: 0 | W93: 0
I94: =IF($B$8="State",Map!P41,Map!O41) -> SC | J94: =IF(I94=0,"",SUMIFS(CHOOSE(VLOOKUP($B$18,'Lookup tables'!$AK$5:$AM$15,3,0), RPE_FuelConsumptionSummerTBtu, RPE_FuelConsumptionTotalTBtu, RPE_GenerationSummerGWh, RPE_GenerationTotalGWh, RPE_CO2EmissionsSummerThousandTons, RPE_CO2EmissionsTotalThousandTons, RPE_NOXEmissionsSummerThousandTons, RPE_NOXEmissionsTotalThousandTons, RPE_SO2EmissionsSummerThousandTons, RPE_SO2EmissionsTotalThousandTons, RPE_DispatchableCapacityMW), MeetPrimaryCriteria2,"=1",IF($B$8="IPM Region",RPE_IPMRegionGroupAcronym,RPE_State),"="&IF($B$8="National","*",$I94))) -> 4.564426272 | K94: =IF(I94=0,"",IF($B$20="Actual",0,SUMIFS(CHOOSE(VLOOKUP($B$35,'Lookup tables'!$AK$5:$AM$15,3,0), RPE_FuelConsumptionSummerTBtu, RPE_FuelConsumptionTotalTBtu, RPE_GenerationSummerGWh, RPE_GenerationTotalGWh, RPE_CO2EmissionsSummerThousandTons, RPE_CO2EmissionsTotalThousandTons, RPE_NOXEmissionsSummerThousandTons, RPE_NOXEmissionsTotalThousandTons, RPE_SO2EmissionsSummerThousandTons, RPE_SO2EmissionsTotalThousandTons, RPE_DispatchableCapacityMW), MeetComparisonCriteria2,"=1",IF($B$8="IPM Region",RPE_IPMRegionGroupAcronym,RPE_State),"="&IF($B$8="National","*",$I94)))) -> 0 | L94: 4.564426272 | M94: =IF(I94=0,"",SUMIFS(CHOOSE(VLOOKUP($E$18,'Lookup tables'!$AK$5:$AM$15,3,0), RPE_FuelConsumptionSummerTBtu, RPE_FuelConsumptionTotalTBtu, RPE_GenerationSummerGWh, RPE_GenerationTotalGWh, RPE_CO2EmissionsSummerThousandTons, RPE_CO2EmissionsTotalThousandTons, RPE_NOXEmissionsSummerThousandTons, RPE_NOXEmissionsTotalThousandTons, RPE_SO2EmissionsSummerThousandTons, RPE_SO2EmissionsTotalThousandTons, RPE_DispatchableCapacityMW), MeetPrimaryCriteria3,"=1",IF($E$8="IPM Region",RPE_IPMRegionGroupAcronym,RPE_State),"="&IF($E$8="National","*",$I94))) -> 0 | N94: =IF(I94=0,"",IF($E$20="Actual",0,SUMIFS(CHOOSE(VLOOKUP($E$35,'Lookup tables'!$AK$5:$AM$15,3,0), RPE_FuelConsumptionSummerTBtu, RPE_FuelConsumptionTotalTBtu, RPE_GenerationSummerGWh, RPE_GenerationTotalGWh, RPE_CO2EmissionsSummerThousandTons, RPE_CO2EmissionsTotalThousandTons, RPE_NOXEmissionsSummerThousandTons, RPE_NOXEmissionsTotalThousandTons, RPE_SO2EmissionsSummerThousandTons, RPE_SO2EmissionsTotalThousandTons, RPE_DispatchableCapacityMW), MeetComparisonCriteria3,"=1",IF($E$8="IPM Region",RPE_IPMRegionGroupAcronym,RPE_State),"="&IF($E$8="National","*",$I94)))) -> 0 | O94: 0 | P94: 24.00000001 | Q94: 24 | S94: 39 | T94: OR | U94: 1.181213548 | V94: 0 | W94: 0
I95: =IF($B$8="State",Map!P42,Map!O42) -> SD | J95: =IF(I95=0,"",SUMIFS(CHOOSE(VLOOKUP($B$18,'Lookup tables'!$AK$5:$AM$15,3,0), RPE_FuelConsumptionSummerTBtu, RPE_FuelConsumptionTotalTBtu, RPE_GenerationSummerGWh, RPE_GenerationTotalGWh, RPE_CO2EmissionsSummerThousandTons, RPE_CO2EmissionsTotalThousandTons, RPE_NOXEmissionsSummerThousandTons, RPE_NOXEmissionsTotalThousandTons, RPE_SO2EmissionsSummerThousandTons, RPE_SO2EmissionsTotalThousandTons, RPE_DispatchableCapacityMW), MeetPrimaryCriteria2,"=1",IF($B$8="IPM Region",RPE_IPMRegionGroupAcronym,RPE_State),"="&IF($B$8="National","*",$I95))) -> 0.4520672949 | K95: =IF(I95=0,"",IF($B$20="Actual",0,SUMIFS(CHOOSE(VLOOKUP($B$35,'Lookup tables'!$AK$5:$AM$15,3,0), RPE_FuelConsumptionSummerTBtu, RPE_FuelConsumptionTotalTBtu, RPE_GenerationSummerGWh, RPE_GenerationTotalGWh, RPE_CO2EmissionsSummerThousandTons, RPE_CO2EmissionsTotalThousandTons, RPE_NOXEmissionsSummerThousandTons, RPE_NOXEmissionsTotalThousandTons, RPE_SO2EmissionsSummerThousandTons, RPE_SO2EmissionsTotalThousandTons, RPE_DispatchableCapacityMW), MeetComparisonCriteria2,"=1",IF($B$8="IPM Region",RPE_IPMRegionGroupAcronym,RPE_State),"="&IF($B$8="National","*",$I95)))) -> 0 | L95: 0.4520672949 | M95: =IF(I95=0,"",SUMIFS(CHOOSE(VLOOKUP($E$18,'Lookup tables'!$AK$5:$AM$15,3,0), RPE_FuelConsumptionSummerTBtu, RPE_FuelConsumptionTotalTBtu, RPE_GenerationSummerGWh, RPE_GenerationTotalGWh, RPE_CO2EmissionsSummerThousandTons, RPE_CO2EmissionsTotalThousandTons, RPE_NOXEmissionsSummerThousandTons, RPE_NOXEmissionsTotalThousandTons, RPE_SO2EmissionsSummerThousandTons, RPE_SO2EmissionsTotalThousandTons, RPE_DispatchableCapacityMW), MeetPrimaryCriteria3,"=1",IF($E$8="IPM Region",RPE_IPMRegionGroupAcronym,RPE_State),"="&IF($E$8="National","*",$I95))) -> 0 | N95: =IF(I95=0,"",IF($E$20="Actual",0,SUMIFS(CHOOSE(VLOOKUP($E$35,'Lookup tables'!$AK$5:$AM$15,3,0), RPE_FuelConsumptionSummerTBtu, RPE_FuelConsumptionTotalTBtu, RPE_GenerationSummerGWh, RPE_GenerationTotalGWh, RPE_CO2EmissionsSummerThousandTons, RPE_CO2EmissionsTotalThousandTons, RPE_NOXEmissionsSummerThousandTons, RPE_NOXEmissionsTotalThousandTons, RPE_SO2EmissionsSummerThousandTons, RPE_SO2EmissionsTotalThousandTons, RPE_DispatchableCapacityMW), MeetComparisonCriteria3,"=1",IF($E$8="IPM Region",RPE_IPMRegionGroupAcronym,RPE_State),"="&IF($E$8="National","*",$I95)))) -> 0 | O95: 0 | P95: 43.00000001 | Q95: 43 | S95: 40 | T95: NM | U95: 1.174144524 | V95: 0 | W95: 0
I96: =IF($B$8="State",Map!P43,Map!O43) -> TN | J96: =IF(I96=0,"",SUMIFS(CHOOSE(VLOOKUP($B$18,'Lookup tables'!$AK$5:$AM$15,3,0), RPE_FuelConsumptionSummerTBtu, RPE_FuelConsumptionTotalTBtu, RPE_GenerationSummerGWh, RPE_GenerationTotalGWh, RPE_CO2EmissionsSummerThousandTons, RPE_CO2EmissionsTotalThousandTons, RPE_NOXEmissionsSummerThousandTons, RPE_NOXEmissionsTotalThousandTons, RPE_SO2EmissionsSummerThousandTons, RPE_SO2EmissionsTotalThousandTons, RPE_DispatchableCapacityMW), MeetPrimaryCriteria2,"=1",IF($B$8="IPM Region",RPE_IPMRegionGroupAcronym,RPE_State),"="&IF($B$8="National","*",$I96))) -> 1.116916881 | K96: =IF(I96=0,"",IF($B$20="Actual",0,SUMIFS(CHOOSE(VLOOKUP($B$35,'Lookup tables'!$AK$5:$AM$15,3,0), RPE_FuelConsumptionSummerTBtu, RPE_FuelConsumptionTotalTBtu, RPE_GenerationSummerGWh, RPE_GenerationTotalGWh, RPE_CO2EmissionsSummerThousandTons, RPE_CO2EmissionsTotalThousandTons, RPE_NOXEmissionsSummerThousandTons, RPE_NOXEmissionsTotalThousandTons, RPE_SO2EmissionsSummerThousandTons, RPE_SO2EmissionsTotalThousandTons, RPE_DispatchableCapacityMW), MeetComparisonCriteria2,"=1",IF($B$8="IPM Region",RPE_IPMRegionGroupAcronym,RPE_State),"="&IF($B$8="National","*",$I96)))) -> 0 | L96: 1.116916881 | M96: =IF(I96=0,"",SUMIFS(CHOOSE(VLOOKUP($E$18,'Lookup tables'!$AK$5:$AM$15,3,0), RPE_FuelConsumptionSummerTBtu, RPE_FuelConsumptionTotalTBtu, RPE_GenerationSummerGWh, RPE_GenerationTotalGWh, RPE_CO2EmissionsSummerThousandTons, RPE_CO2EmissionsTotalThousandTons, RPE_NOXEmissionsSummerThousandTons, RPE_NOXEmissionsTotalThousandTons, RPE_SO2EmissionsSummerThousandTons, RPE_SO2EmissionsTotalThousandTons, RPE_DispatchableCapacityMW), MeetPrimaryCriteria3,"=1",IF($E$8="IPM Region",RPE_IPMRegionGroupAcronym,RPE_State),"="&IF($E$8="National","*",$I96))) -> 0 | N96: =IF(I96=0,"",IF($E$20="Actual",0,SUMIFS(CHOOSE(VLOOKUP($E$35,'Lookup tables'!$AK$5:$AM$15,3,0), RPE_FuelConsumptionSummerTBtu, RPE_FuelConsumptionTotalTBtu, RPE_GenerationSummerGWh, RPE_GenerationTotalGWh, RPE_CO2EmissionsSummerThousandTons, RPE_CO2EmissionsTotalThousandTons, RPE_NOXEmissionsSummerThousandTons, RPE_NOXEmissionsTotalThousandTons, RPE_SO2EmissionsSummerThousandTons, RPE_SO2EmissionsTotalThousandTons, RPE_DispatchableCapacityMW), MeetComparisonCriteria3,"=1",IF($E$8="IPM Region",RPE_IPMRegionGroupAcronym,RPE_State),"="&IF($E$8="National","*",$I96)))) -> 0 | O96: 0 | P96: 41.00000001 | Q96: 41 | S96: 41 | T96: TN | U96: 1.116916881 | V96: 0 | W96: 0
I97: =IF($B$8="State",Map!P44,Map!O44) -> TX | J97: =IF(I97=0,"",SUMIFS(CHOOSE(VLOOKUP($B$18,'Lookup tables'!$AK$5:$AM$15,3,0), RPE_FuelConsumptionSummerTBtu, RPE_FuelConsumptionTotalTBtu, RPE_GenerationSummerGWh, RPE_GenerationTotalGWh, RPE_CO2EmissionsSummerThousandTons, RPE_CO2EmissionsTotalThousandTons, RPE_NOXEmissionsSummerThousandTons, RPE_NOXEmissionsTotalThousandTons, RPE_SO2EmissionsSummerThousandTons, RPE_SO2EmissionsTotalThousandTons, RPE_DispatchableCapacityMW), MeetPrimaryCriteria2,"=1",IF($B$8="IPM Region",RPE_IPMRegionGroupAcronym,RPE_State),"="&IF($B$8="National","*",$I97))) -> 25.40224299 | K97: =IF(I97=0,"",IF($B$20="Actual",0,SUMIFS(CHOOSE(VLOOKUP($B$35,'Lookup tables'!$AK$5:$AM$15,3,0), RPE_FuelConsumptionSummerTBtu, RPE_FuelConsumptionTotalTBtu, RPE_GenerationSummerGWh, RPE_GenerationTotalGWh, RPE_CO2EmissionsSummerThousandTons, RPE_CO2EmissionsTotalThousandTons, RPE_NOXEmissionsSummerThousandTons, RPE_NOXEmissionsTotalThousandTons, RPE_SO2EmissionsSummerThousandTons, RPE_SO2EmissionsTotalThousandTons, RPE_DispatchableCapacityMW), MeetComparisonCriteria2,"=1",IF($B$8="IPM Region",RPE_IPMRegionGroupAcronym,RPE_State),"="&IF($B$8="National","*",$I97)))) -> 0 | L97: 25.40224299 | M97: =IF(I97=0,"",SUMIFS(CHOOSE(VLOOKUP($E$18,'Lookup tables'!$AK$5:$AM$15,3,0), RPE_FuelConsumptionSummerTBtu, RPE_FuelConsumptionTotalTBtu, RPE_GenerationSummerGWh, RPE_GenerationTotalGWh, RPE_CO2EmissionsSummerThousandTons, RPE_CO2EmissionsTotalThousandTons, RPE_NOXEmissionsSummerThousandTons, RPE_NOXEmissionsTotalThousandTons, RPE_SO2EmissionsSummerThousandTons, RPE_SO2EmissionsTotalThousandTons, RPE_DispatchableCapacityMW), MeetPrimaryCriteria3,"=1",IF($E$8="IPM Region",RPE_IPMRegionGroupAcronym,RPE_State),"="&IF($E$8="National","*",$I97))) -> 0 | N97: =IF(I97=0,"",IF($E$20="Actual",0,SUMIFS(CHOOSE(VLOOKUP($E$35,'Lookup tables'!$AK$5:$AM$15,3,0), RPE_FuelConsumptionSummerTBtu, RPE_FuelConsumptionTotalTBtu, RPE_GenerationSummerGWh, RPE_GenerationTotalGWh, RPE_CO2EmissionsSummerThousandTons, RPE_CO2EmissionsTotalThousandTons, RPE_NOXEmissionsSummerThousandTons, RPE_NOXEmissionsTotalThousandTons, RPE_SO2EmissionsSummerThousandTons, RPE_SO2EmissionsTotalThousandTons, RPE_DispatchableCapacityMW), MeetComparisonCriteria3,"=1",IF($E$8="IPM Region",RPE_IPMRegionGroupAcronym,RPE_State),"="&IF($E$8="National","*",$I97)))) -> 0 | O97: 0 | P97: 1.00000001 | Q97: 1 | S97: 42 | T97: WA | U97: 0.7979621962 | V97: 0 | W97: 0
I98: =IF($B$8="State",Map!P45,Map!O45) -> UT | J98: =IF(I98=0,"",SUMIFS(CHOOSE(VLOOKUP($B$18,'Lookup tables'!$AK$5:$AM$15,3,0), RPE_FuelConsumptionSummerTBtu, RPE_FuelConsumptionTotalTBtu, RPE_GenerationSummerGWh, RPE_GenerationTotalGWh, RPE_CO2EmissionsSummerThousandTons, RPE_CO2EmissionsTotalThousandTons, RPE_NOXEmissionsSummerThousandTons, RPE_NOXEmissionsTotalThousandTons, RPE_SO2EmissionsSummerThousandTons, RPE_SO2EmissionsTotalThousandTons, RPE_DispatchableCapacityMW), MeetPrimaryCriteria2,"=1",IF($B$8="IPM Region",RPE_IPMRegionGroupAcronym,RPE_State),"="&IF($B$8="National","*",$I98))) -> 7.117557827 | K98: =IF(I98=0,"",IF($B$20="Actual",0,SUMIFS(CHOOSE(VLOOKUP($B$35,'Lookup tables'!$AK$5:$AM$15,3,0), RPE_FuelConsumptionSummerTBtu, RPE_FuelConsumptionTotalTBtu, RPE_GenerationSummerGWh, RPE_GenerationTotalGWh, RPE_CO2EmissionsSummerThousandTons, RPE_CO2EmissionsTotalThousandTons, RPE_NOXEmissionsSummerThousandTons, RPE_NOXEmissionsTotalThousandTons, RPE_SO2EmissionsSummerThousandTons, RPE_SO2EmissionsTotalThousandTons, RPE_DispatchableCapacityMW), MeetComparisonCriteria2,"=1",IF($B$8="IPM Region",RPE_IPMRegionGroupAcronym,RPE_State),"="&IF($B$8="National","*",$I98)))) -> 0 | L98: 7.117557827 | M98: =IF(I98=0,"",SUMIFS(CHOOSE(VLOOKUP($E$18,'Lookup tables'!$AK$5:$AM$15,3,0), RPE_FuelConsumptionSummerTBtu, RPE_FuelConsumptionTotalTBtu, RPE_GenerationSummerGWh, RPE_GenerationTotalGWh, RPE_CO2EmissionsSummerThousandTons, RPE_CO2EmissionsTotalThousandTons, RPE_NOXEmissionsSummerThousandTons, RPE_NOXEmissionsTotalThousandTons, RPE_SO2EmissionsSummerThousandTons, RPE_SO2EmissionsTotalThousandTons, RPE_DispatchableCapacityMW), MeetPrimaryCriteria3,"=1",IF($E$8="IPM Region",RPE_IPMRegionGroupAcronym,RPE_State),"="&IF($E$8="National","*",$I98))) -> 0 | N98: =IF(I98=0,"",IF($E$20="Actual",0,SUMIFS(CHOOSE(VLOOKUP($E$35,'Lookup tables'!$AK$5:$AM$15,3,0), RPE_FuelConsumptionSummerTBtu, RPE_FuelConsumptionTotalTBtu, RPE_GenerationSummerGWh, RPE_GenerationTotalGWh, RPE_CO2EmissionsSummerThousandTons, RPE_CO2EmissionsTotalThousandTons, RPE_NOXEmissionsSummerThousandTons, RPE_NOXEmissionsTotalThousandTons, RPE_SO2EmissionsSummerThousandTons, RPE_SO2EmissionsTotalThousandTons, RPE_DispatchableCapacityMW), MeetComparisonCriteria3,"=1",IF($E$8="IPM Region",RPE_IPMRegionGroupAcronym,RPE_State),"="&IF($E$8="National","*",$I98)))) -> 0 | O98: 0 | P98: 16.00000001 | Q98: 16 | S98: 43 | T98: SD | U98: 0.4520672949 | V98: 0 | W98: 0
I99: =IF($B$8="State",Map!P46,Map!O46) -> VA | J99: =IF(I99=0,"",SUMIFS(CHOOSE(VLOOKUP($B$18,'Lookup tables'!$AK$5:$AM$15,3,0), RPE_FuelConsumptionSummerTBtu, RPE_FuelConsumptionTotalTBtu, RPE_GenerationSummerGWh, RPE_GenerationTotalGWh, RPE_CO2EmissionsSummerThousandTons, RPE_CO2EmissionsTotalThousandTons, RPE_NOXEmissionsSummerThousandTons, RPE_NOXEmissionsTotalThousandTons, RPE_SO2EmissionsSummerThousandTons, RPE_SO2EmissionsTotalThousandTons, RPE_DispatchableCapacityMW), MeetPrimaryCriteria2,"=1",IF($B$8="IPM Region",RPE_IPMRegionGroupAcronym,RPE_State),"="&IF($B$8="National","*",$I99))) -> 2.932227508 | K99: =IF(I99=0,"",IF($B$20="Actual",0,SUMIFS(CHOOSE(VLOOKUP($B$35,'Lookup tables'!$AK$5:$AM$15,3,0), RPE_FuelConsumptionSummerTBtu, RPE_FuelConsumptionTotalTBtu, RPE_GenerationSummerGWh, RPE_GenerationTotalGWh, RPE_CO2EmissionsSummerThousandTons, RPE_CO2EmissionsTotalThousandTons, RPE_NOXEmissionsSummerThousandTons, RPE_NOXEmissionsTotalThousandTons, RPE_SO2EmissionsSummerThousandTons, RPE_SO2EmissionsTotalThousandTons, RPE_DispatchableCapacityMW), MeetComparisonCriteria2,"=1",IF($B$8="IPM Region",RPE_IPMRegionGroupAcronym,RPE_State),"="&IF($B$8="National","*",$I99)))) -> 0 | L99: 2.932227508 | M99: =IF(I99=0,"",SUMIFS(CHOOSE(VLOOKUP($E$18,'Lookup tables'!$AK$5:$AM$15,3,0), RPE_FuelConsumptionSummerTBtu, RPE_FuelConsumptionTotalTBtu, RPE_GenerationSummerGWh, RPE_GenerationTotalGWh, RPE_CO2EmissionsSummerThousandTons, RPE_CO2EmissionsTotalThousandTons, RPE_NOXEmissionsSummerThousandTons, RPE_NOXEmissionsTotalThousandTons, RPE_SO2EmissionsSummerThousandTons, RPE_SO2EmissionsTotalThousandTons, RPE_DispatchableCapacityMW), MeetPrimaryCriteria3,"=1",IF($E$8="IPM Region",RPE_IPMRegionGroupAcronym,RPE_State),"="&IF($E$8="National","*",$I99))) -> 0 | N99: =IF(I99=0,"",IF($E$20="Actual",0,SUMIFS(CHOOSE(VLOOKUP($E$35,'Lookup tables'!$AK$5:$AM$15,3,0), RPE_FuelConsumptionSummerTBtu, RPE_FuelConsumptionTotalTBtu, RPE_GenerationSummerGWh, RPE_GenerationTotalGWh, RPE_CO2EmissionsSummerThousandTons, RPE_CO2EmissionsTotalThousandTons, RPE_NOXEmissionsSummerThousandTons, RPE_NOXEmissionsTotalThousandTons, RPE_SO2EmissionsSummerThousandTons, RPE_SO2EmissionsTotalThousandTons, RPE_DispatchableCapacityMW), MeetComparisonCriteria3,"=1",IF($E$8="IPM Region",RPE_IPMRegionGroupAcronym,RPE_State),"="&IF($E$8="National","*",$I99)))) -> 0 | O99: 0 | P99: 27.00000001 | Q99: 27 | S99: 44 | T99: ID | U99: 0.3630973706 | V99: 0 | W99: 0
I100: =IF($B$8="State",Map!P47,Map!O47) -> VT | J100: =IF(I100=0,"",SUMIFS(CHOOSE(VLOOKUP($B$18,'Lookup tables'!$AK$5:$AM$15,3,0), RPE_FuelConsumptionSummerTBtu, RPE_FuelConsumptionTotalTBtu, RPE_GenerationSummerGWh, RPE_GenerationTotalGWh, RPE_CO2EmissionsSummerThousandTons, RPE_CO2EmissionsTotalThousandTons, RPE_NOXEmissionsSummerThousandTons, RPE_NOXEmissionsTotalThousandTons, RPE_SO2EmissionsSummerThousandTons, RPE_SO2EmissionsTotalThousandTons, RPE_DispatchableCapacityMW), MeetPrimaryCriteria2,"=1",IF($B$8="IPM Region",RPE_IPMRegionGroupAcronym,RPE_State),"="&IF($B$8="National","*",$I100))) -> 0.04646798762 | K100: =IF(I100=0,"",IF($B$20="Actual",0,SUMIFS(CHOOSE(VLOOKUP($B$35,'Lookup tables'!$AK$5:$AM$15,3,0), RPE_FuelConsumptionSummerTBtu, RPE_FuelConsumptionTotalTBtu, RPE_GenerationSummerGWh, RPE_GenerationTotalGWh, RPE_CO2EmissionsSummerThousandTons, RPE_CO2EmissionsTotalThousandTons, RPE_NOXEmissionsSummerThousandTons, RPE_NOXEmissionsTotalThousandTons, RPE_SO2EmissionsSummerThousandTons, RPE_SO2EmissionsTotalThousandTons, RPE_DispatchableCapacityMW), MeetComparisonCriteria2,"=1",IF($B$8="IPM Region",RPE_IPMRegionGroupAcronym,RPE_State),"="&IF($B$8="National","*",$I100)))) -> 0 | L100: 0.04646798762 | M100: =IF(I100=0,"",SUMIFS(CHOOSE(VLOOKUP($E$18,'Lookup tables'!$AK$5:$AM$15,3,0), RPE_FuelConsumptionSummerTBtu, RPE_FuelConsumptionTotalTBtu, RPE_GenerationSummerGWh, RPE_GenerationTotalGWh, RPE_CO2EmissionsSummerThousandTons, RPE_CO2EmissionsTotalThousandTons, RPE_NOXEmissionsSummerThousandTons, RPE_NOXEmissionsTotalThousandTons, RPE_SO2EmissionsSummerThousandTons, RPE_SO2EmissionsTotalThousandTons, RPE_DispatchableCapacityMW), MeetPrimaryCriteria3,"=1",IF($E$8="IPM Region",RPE_IPMRegionGroupAcronym,RPE_State),"="&IF($E$8="National","*",$I100))) -> 0 | N100: =IF(I100=0,"",IF($E$20="Actual",0,SUMIFS(CHOOSE(VLOOKUP($E$35,'Lookup tables'!$AK$5:$AM$15,3,0), RPE_FuelConsumptionSummerTBtu, RPE_FuelConsumptionTotalTBtu, RPE_GenerationSummerGWh, RPE_GenerationTotalGWh, RPE_CO2EmissionsSummerThousandTons, RPE_CO2EmissionsTotalThousandTons, RPE_NOXEmissionsSummerThousandTons, RPE_NOXEmissionsTotalThousandTons, RPE_SO2EmissionsSummerThousandTons, RPE_SO2EmissionsTotalThousandTons, RPE_DispatchableCapacityMW), MeetComparisonCriteria3,"=1",IF($E$8="IPM Region",RPE_IPMRegionGroupAcronym,RPE_State),"="&IF($E$8="National","*",$I100)))) -> 0 | O100: 0 | P100: 48.00000001 | Q100: 48 | S100: 45 | T100: NH | U100: 0.2458698342 | V100: 0 | W100: 0
I101: =IF($B$8="State",Map!P48,Map!O48) -> WA | J101: =IF(I101=0,"",SUMIFS(CHOOSE(VLOOKUP($B$18,'Lookup tables'!$AK$5:$AM$15,3,0), RPE_FuelConsumptionSummerTBtu, RPE_FuelConsumptionTotalTBtu, RPE_GenerationSummerGWh, RPE_GenerationTotalGWh, RPE_CO2EmissionsSummerThousandTons, RPE_CO2EmissionsTotalThousandTons, RPE_NOXEmissionsSummerThousandTons, RPE_NOXEmissionsTotalThousandTons, RPE_SO2EmissionsSummerThousandTons, RPE_SO2EmissionsTotalThousandTons, RPE_DispatchableCapacityMW), MeetPrimaryCriteria2,"=1",IF($B$8="IPM Region",RPE_IPMRegionGroupAcronym,RPE_State),"="&IF($B$8="National","*",$I101))) -> 0.7979621962 | K101: =IF(I101=0,"",IF($B$20="Actual",0,SUMIFS(CHOOSE(VLOOKUP($B$35,'Lookup tables'!$AK$5:$AM$15,3,0), RPE_FuelConsumptionSummerTBtu, RPE_FuelConsumptionTotalTBtu, RPE_GenerationSummerGWh, RPE_GenerationTotalGWh, RPE_CO2EmissionsSummerThousandTons, RPE_CO2EmissionsTotalThousandTons, RPE_NOXEmissionsSummerThousandTons, RPE_NOXEmissionsTotalThousandTons, RPE_SO2EmissionsSummerThousandTons, RPE_SO2EmissionsTotalThousandTons, RPE_DispatchableCapacityMW), MeetComparisonCriteria2,"=1",IF($B$8="IPM Region",RPE_IPMRegionGroupAcronym,RPE_State),"="&IF($B$8="National","*",$I101)))) -> 0 | L101: 0.7979621962 | M101: =IF(I101=0,"",SUMIFS(CHOOSE(VLOOKUP($E$18,'Lookup tables'!$AK$5:$AM$15,3,0), RPE_FuelConsumptionSummerTBtu, RPE_FuelConsumptionTotalTBtu, RPE_GenerationSummerGWh, RPE_GenerationTotalGWh, RPE_CO2EmissionsSummerThousandTons, RPE_CO2EmissionsTotalThousandTons, RPE_NOXEmissionsSummerThousandTons, RPE_NOXEmissionsTotalThousandTons, RPE_SO2EmissionsSummerThousandTons, RPE_SO2EmissionsTotalThousandTons, RPE_DispatchableCapacityMW), MeetPrimaryCriteria3,"=1",IF($E$8="IPM Region",RPE_IPMRegionGroupAcronym,RPE_State),"="&IF($E$8="National","*",$I101))) -> 0 | N101: =IF(I101=0,"",IF($E$20="Actual",0,SUMIFS(CHOOSE(VLOOKUP($E$35,'Lookup tables'!$AK$5:$AM$15,3,0), RPE_FuelConsumptionSummerTBtu, RPE_FuelConsumptionTotalTBtu, RPE_GenerationSummerGWh, RPE_GenerationTotalGWh, RPE_CO2EmissionsSummerThousandTons, RPE_CO2EmissionsTotalThousandTons, RPE_NOXEmissionsSummerThousandTons, RPE_NOXEmissionsTotalThousandTons, RPE_SO2EmissionsSummerThousandTons, RPE_SO2EmissionsTotalThousandTons, RPE_DispatchableCapacityMW), MeetComparisonCriteria3,"=1",IF($E$8="IPM Region",RPE_IPMRegionGroupAcronym,RPE_State),"="&IF($E$8="National","*",$I101)))) -> 0 | O101: 0 | P101: 42.00000001 | Q101: 42 | S101: 46 | T101: RI | U101: 0.2351583279 | V101: 0 | W101: 0
I102: =IF($B$8="State",Map!P49,Map!O49) -> WI | J102: =IF(I102=0,"",SUMIFS(CHOOSE(VLOOKUP($B$18,'Lookup tables'!$AK$5:$AM$15,3,0), RPE_FuelConsumptionSummerTBtu, RPE_FuelConsumptionTotalTBtu, RPE_GenerationSummerGWh, RPE_GenerationTotalGWh, RPE_CO2EmissionsSummerThousandTons, RPE_CO2EmissionsTotalThousandTons, RPE_NOXEmissionsSummerThousandTons, RPE_NOXEmissionsTotalThousandTons, RPE_SO2EmissionsSummerThousandTons, RPE_SO2EmissionsTotalThousandTons, RPE_DispatchableCapacityMW), MeetPrimaryCriteria2,"=1",IF($B$8="IPM Region",RPE_IPMRegionGroupAcronym,RPE_State),"="&IF($B$8="National","*",$I102))) -> 2.88391743 | K102: =IF(I102=0,"",IF($B$20="Actual",0,SUMIFS(CHOOSE(VLOOKUP($B$35,'Lookup tables'!$AK$5:$AM$15,3,0), RPE_FuelConsumptionSummerTBtu, RPE_FuelConsumptionTotalTBtu, RPE_GenerationSummerGWh, RPE_GenerationTotalGWh, RPE_CO2EmissionsSummerThousandTons, RPE_CO2EmissionsTotalThousandTons, RPE_NOXEmissionsSummerThousandTons, RPE_NOXEmissionsTotalThousandTons, RPE_SO2EmissionsSummerThousandTons, RPE_SO2EmissionsTotalThousandTons, RPE_DispatchableCapacityMW), MeetComparisonCriteria2,"=1",IF($B$8="IPM Region",RPE_IPMRegionGroupAcronym,RPE_State),"="&IF($B$8="National","*",$I102)))) -> 0 | L102: 2.88391743 | M102: =IF(I102=0,"",SUMIFS(CHOOSE(VLOOKUP($E$18,'Lookup tables'!$AK$5:$AM$15,3,0), RPE_FuelConsumptionSummerTBtu, RPE_FuelConsumptionTotalTBtu, RPE_GenerationSummerGWh, RPE_GenerationTotalGWh, RPE_CO2EmissionsSummerThousandTons, RPE_CO2EmissionsTotalThousandTons, RPE_NOXEmissionsSummerThousandTons, RPE_NOXEmissionsTotalThousandTons, RPE_SO2EmissionsSummerThousandTons, RPE_SO2EmissionsTotalThousandTons, RPE_DispatchableCapacityMW), MeetPrimaryCriteria3,"=1",IF($E$8="IPM Region",RPE_IPMRegionGroupAcronym,RPE_State),"="&IF($E$8="National","*",$I102))) -> 0 | N102: =IF(I102=0,"",IF($E$20="Actual",0,SUMIFS(CHOOSE(VLOOKUP($E$35,'Lookup tables'!$AK$5:$AM$15,3,0), RPE_FuelConsumptionSummerTBtu, RPE_FuelConsumptionTotalTBtu, RPE_GenerationSummerGWh, RPE_GenerationTotalGWh, RPE_CO2EmissionsSummerThousandTons, RPE_CO2EmissionsTotalThousandTons, RPE_NOXEmissionsSummerThousandTons, RPE_NOXEmissionsTotalThousandTons, RPE_SO2EmissionsSummerThousandTons, RPE_SO2EmissionsTotalThousandTons, RPE_DispatchableCapacityMW), MeetComparisonCriteria3,"=1",IF($E$8="IPM Region",RPE_IPMRegionGroupAcronym,RPE_State),"="&IF($E$8="National","*",$I102)))) -> 0 | O102: 0 | P102: 28.00000001 | Q102: 28 | S102: 47 | T102: DE | U102: 0.1827244873 | V102: 0 | W102: 0
I103: =IF($B$8="State",Map!P50,Map!O50) -> WV | J103: =IF(I103=0,"",SUMIFS(CHOOSE(VLOOKUP($B$18,'Lookup tables'!$AK$5:$AM$15,3,0), RPE_FuelConsumptionSummerTBtu, RPE_FuelConsumptionTotalTBtu, RPE_GenerationSummerGWh, RPE_GenerationTotalGWh, RPE_CO2EmissionsSummerThousandTons, RPE_CO2EmissionsTotalThousandTons, RPE_NOXEmissionsSummerThousandTons, RPE_NOXEmissionsTotalThousandTons, RPE_SO2EmissionsSummerThousandTons, RPE_SO2EmissionsTotalThousandTons, RPE_DispatchableCapacityMW), MeetPrimaryCriteria2,"=1",IF($B$8="IPM Region",RPE_IPMRegionGroupAcronym,RPE_State),"="&IF($B$8="National","*",$I103))) -> 11.18355111 | K103: =IF(I103=0,"",IF($B$20="Actual",0,SUMIFS(CHOOSE(VLOOKUP($B$35,'Lookup tables'!$AK$5:$AM$15,3,0), RPE_FuelConsumptionSummerTBtu, RPE_FuelConsumptionTotalTBtu, RPE_GenerationSummerGWh, RPE_GenerationTotalGWh, RPE_CO2EmissionsSummerThousandTons, RPE_CO2EmissionsTotalThousandTons, RPE_NOXEmissionsSummerThousandTons, RPE_NOXEmissionsTotalThousandTons, RPE_SO2EmissionsSummerThousandTons, RPE_SO2EmissionsTotalThousandTons, RPE_DispatchableCapacityMW), MeetComparisonCriteria2,"=1",IF($B$8="IPM Region",RPE_IPMRegionGroupAcronym,RPE_State),"="&IF($B$8="National","*",$I103)))) -> 0 | L103: 11.18355111 | M103: =IF(I103=0,"",SUMIFS(CHOOSE(VLOOKUP($E$18,'Lookup tables'!$AK$5:$AM$15,3,0), RPE_FuelConsumptionSummerTBtu, RPE_FuelConsumptionTotalTBtu, RPE_GenerationSummerGWh, RPE_GenerationTotalGWh, RPE_CO2EmissionsSummerThousandTons, RPE_CO2EmissionsTotalThousandTons, RPE_NOXEmissionsSummerThousandTons, RPE_NOXEmissionsTotalThousandTons, RPE_SO2EmissionsSummerThousandTons, RPE_SO2EmissionsTotalThousandTons, RPE_DispatchableCapacityMW), MeetPrimaryCriteria3,"=1",IF($E$8="IPM Region",RPE_IPMRegionGroupAcronym,RPE_State),"="&IF($E$8="National","*",$I103))) -> 0 | N103: =IF(I103=0,"",IF($E$20="Actual",0,SUMIFS(CHOOSE(VLOOKUP($E$35,'Lookup tables'!$AK$5:$AM$15,3,0), RPE_FuelConsumptionSummerTBtu, RPE_FuelConsumptionTotalTBtu, RPE_GenerationSummerGWh, RPE_GenerationTotalGWh, RPE_CO2EmissionsSummerThousandTons, RPE_CO2EmissionsTotalThousandTons, RPE_NOXEmissionsSummerThousandTons, RPE_NOXEmissionsTotalThousandTons, RPE_SO2EmissionsSummerThousandTons, RPE_SO2EmissionsTotalThousandTons, RPE_DispatchableCapacityMW), MeetComparisonCriteria3,"=1",IF($E$8="IPM Region",RPE_IPMRegionGroupAcronym,RPE_State),"="&IF($E$8="National","*",$I103)))) -> 0 | O103: 0 | P103: 6.00000001 | Q103: 6 | S103: 48 | T103: VT | U103: 0.04646798762 | V103: 0 | W103: 0
I104: =IF($B$8="State",Map!P51,Map!O51) -> WY | J104: =IF(I104=0,"",SUMIFS(CHOOSE(VLOOKUP($B$18,'Lookup tables'!$AK$5:$AM$15,3,0), RPE_FuelConsumptionSummerTBtu, RPE_FuelConsumptionTotalTBtu, RPE_GenerationSummerGWh, RPE_GenerationTotalGWh, RPE_CO2EmissionsSummerThousandTons, RPE_CO2EmissionsTotalThousandTons, RPE_NOXEmissionsSummerThousandTons, RPE_NOXEmissionsTotalThousandTons, RPE_SO2EmissionsSummerThousandTons, RPE_SO2EmissionsTotalThousandTons, RPE_DispatchableCapacityMW), MeetPrimaryCriteria2,"=1",IF($B$8="IPM Region",RPE_IPMRegionGroupAcronym,RPE_State),"="&IF($B$8="National","*",$I104))) -> 4.912166644 | K104: =IF(I104=0,"",IF($B$20="Actual",0,SUMIFS(CHOOSE(VLOOKUP($B$35,'Lookup tables'!$AK$5:$AM$15,3,0), RPE_FuelConsumptionSummerTBtu, RPE_FuelConsumptionTotalTBtu, RPE_GenerationSummerGWh, RPE_GenerationTotalGWh, RPE_CO2EmissionsSummerThousandTons, RPE_CO2EmissionsTotalThousandTons, RPE_NOXEmissionsSummerThousandTons, RPE_NOXEmissionsTotalThousandTons, RPE_SO2EmissionsSummerThousandTons, RPE_SO2EmissionsTotalThousandTons, RPE_DispatchableCapacityMW), MeetComparisonCriteria2,"=1",IF($B$8="IPM Region",RPE_IPMRegionGroupAcronym,RPE_State),"="&IF($B$8="National","*",$I104)))) -> 0 | L104: 4.912166644 | M104: =IF(I104=0,"",SUMIFS(CHOOSE(VLOOKUP($E$18,'Lookup tables'!$AK$5:$AM$15,3,0), RPE_FuelConsumptionSummerTBtu, RPE_FuelConsumptionTotalTBtu, RPE_GenerationSummerGWh, RPE_GenerationTotalGWh, RPE_CO2EmissionsSummerThousandTons, RPE_CO2EmissionsTotalThousandTons, RPE_NOXEmissionsSummerThousandTons, RPE_NOXEmissionsTotalThousandTons, RPE_SO2EmissionsSummerThousandTons, RPE_SO2EmissionsTotalThousandTons, RPE_DispatchableCapacityMW), MeetPrimaryCriteria3,"=1",IF($E$8="IPM Region",RPE_IPMRegionGroupAcronym,RPE_State),"="&IF($E$8="National","*",$I104))) -> 0 | N104: =IF(I104=0,"",IF($E$20="Actual",0,SUMIFS(CHOOSE(VLOOKUP($E$35,'Lookup tables'!$AK$5:$AM$15,3,0), RPE_FuelConsumptionSummerTBtu, RPE_FuelConsumptionTotalTBtu, RPE_GenerationSummerGWh, RPE_GenerationTotalGWh, RPE_CO2EmissionsSummerThousandTons, RPE_CO2EmissionsTotalThousandTons, RPE_NOXEmissionsSummerThousandTons, RPE_NOXEmissionsTotalThousandTons, RPE_SO2EmissionsSummerThousandTons, RPE_SO2EmissionsTotalThousandTons, RPE_DispatchableCapacityMW), MeetComparisonCriteria3,"=1",IF($E$8="IPM Region",RPE_IPMRegionGroupAcronym,RPE_State),"="&IF($E$8="National","*",$I104)))) -> 0 | O104: 0 | P104: 23.00000001 | Q104: 23 | S104: 49 | T104: DC | U104: 0.0178888774 | V104: 0 | W104: 0
I105: =IF($B$8="State",Map!P52,Map!O52) ->  | J105: =IF(I105=0,"",SUMIFS(CHOOSE(VLOOKUP($B$18,'Lookup tables'!$AK$5:$AM$15,3,0), RPE_FuelConsumptionSummerTBtu, RPE_FuelConsumptionTotalTBtu, RPE_GenerationSummerGWh, RPE_GenerationTotalGWh, RPE_CO2EmissionsSummerThousandTons, RPE_CO2EmissionsTotalThousandTons, RPE_NOXEmissionsSummerThousandTons, RPE_NOXEmissionsTotalThousandTons, RPE_SO2EmissionsSummerThousandTons, RPE_SO2EmissionsTotalThousandTons, RPE_DispatchableCapacityMW), MeetPrimaryCriteria2,"=1",IF($B$8="IPM Region",RPE_IPMRegionGroupAcronym,RPE_State),"="&IF($B$8="National","*",$I105))) -> 0 | K105: =IF(I105=0,"",IF($B$20="Actual",0,SUMIFS(CHOOSE(VLOOKUP($B$35,'Lookup tables'!$AK$5:$AM$15,3,0), RPE_FuelConsumptionSummerTBtu, RPE_FuelConsumptionTotalTBtu, RPE_GenerationSummerGWh, RPE_GenerationTotalGWh, RPE_CO2EmissionsSummerThousandTons, RPE_CO2EmissionsTotalThousandTons, RPE_NOXEmissionsSummerThousandTons, RPE_NOXEmissionsTotalThousandTons, RPE_SO2EmissionsSummerThousandTons, RPE_SO2EmissionsTotalThousandTons, RPE_DispatchableCapacityMW), MeetComparisonCriteria2,"=1",IF($B$8="IPM Region",RPE_IPMRegionGroupAcronym,RPE_State),"="&IF($B$8="National","*",$I105)))) -> 0 | L105: 0 | M105: =IF(I105=0,"",SUMIFS(CHOOSE(VLOOKUP($E$18,'Lookup tables'!$AK$5:$AM$15,3,0), RPE_FuelConsumptionSummerTBtu, RPE_FuelConsumptionTotalTBtu, RPE_GenerationSummerGWh, RPE_GenerationTotalGWh, RPE_CO2EmissionsSummerThousandTons, RPE_CO2EmissionsTotalThousandTons, RPE_NOXEmissionsSummerThousandTons, RPE_NOXEmissionsTotalThousandTons, RPE_SO2EmissionsSummerThousandTons, RPE_SO2EmissionsTotalThousandTons, RPE_DispatchableCapacityMW), MeetPrimaryCriteria3,"=1",IF($E$8="IPM Region",RPE_IPMRegionGroupAcronym,RPE_State),"="&IF($E$8="National","*",$I105))) -> 0 | N105: =IF(I105=0,"",IF($E$20="Actual",0,SUMIFS(CHOOSE(VLOOKUP($E$35,'Lookup tables'!$AK$5:$AM$15,3,0), RPE_FuelConsumptionSummerTBtu, RPE_FuelConsumptionTotalTBtu, RPE_GenerationSummerGWh, RPE_GenerationTotalGWh, RPE_CO2EmissionsSummerThousandTons, RPE_CO2EmissionsTotalThousandTons, RPE_NOXEmissionsSummerThousandTons, RPE_NOXEmissionsTotalThousandTons, RPE_SO2EmissionsSummerThousandTons, RPE_SO2EmissionsTotalThousandTons, RPE_DispatchableCapacityMW), MeetComparisonCriteria3,"=1",IF($E$8="IPM Region",RPE_IPMRegionGroupAcronym,RPE_State),"="&IF($E$8="National","*",$I105)))) -> 0 | O105: 0 | W105: 0
I106: =IF($B$8="State",Map!P53,Map!O53) -> 0 | J106: =IF(I106=0,"",SUMIFS(CHOOSE(VLOOKUP($B$18,'Lookup tables'!$AK$5:$AM$15,3,0), RPE_FuelConsumptionSummerTBtu, RPE_FuelConsumptionTotalTBtu, RPE_GenerationSummerGWh, RPE_GenerationTotalGWh, RPE_CO2EmissionsSummerThousandTons, RPE_CO2EmissionsTotalThousandTons, RPE_NOXEmissionsSummerThousandTons, RPE_NOXEmissionsTotalThousandTons, RPE_SO2EmissionsSummerThousandTons, RPE_SO2EmissionsTotalThousandTons, RPE_DispatchableCapacityMW), MeetPrimaryCriteria2,"=1",IF($B$8="IPM Region",RPE_IPMRegionGroupAcronym,RPE_State),"="&IF($B$8="National","*",$I106))) ->  | K106: =IF(I106=0,"",IF($B$20="Actual",0,SUMIFS(CHOOSE(VLOOKUP($B$35,'Lookup tables'!$AK$5:$AM$15,3,0), RPE_FuelConsumptionSummerTBtu, RPE_FuelConsumptionTotalTBtu, RPE_GenerationSummerGWh, RPE_GenerationTotalGWh, RPE_CO2EmissionsSummerThousandTons, RPE_CO2EmissionsTotalThousandTons, RPE_NOXEmissionsSummerThousandTons, RPE_NOXEmissionsTotalThousandTons, RPE_SO2EmissionsSummerThousandTons, RPE_SO2EmissionsTotalThousandTons, RPE_DispatchableCapacityMW), MeetComparisonCriteria2,"=1",IF($B$8="IPM Region",RPE_IPMRegionGroupAcronym,RPE_State),"="&IF($B$8="National","*",$I106)))) ->  | M106: =IF(I106=0,"",SUMIFS(CHOOSE(VLOOKUP($E$18,'Lookup tables'!$AK$5:$AM$15,3,0), RPE_FuelConsumptionSummerTBtu, RPE_FuelConsumptionTotalTBtu, RPE_GenerationSummerGWh, RPE_GenerationTotalGWh, RPE_CO2EmissionsSummerThousandTons, RPE_CO2EmissionsTotalThousandTons, RPE_NOXEmissionsSummerThousandTons, RPE_NOXEmissionsTotalThousandTons, RPE_SO2EmissionsSummerThousandTons, RPE_SO2EmissionsTotalThousandTons, RPE_DispatchableCapacityMW), MeetPrimaryCriteria3,"=1",IF($E$8="IPM Region",RPE_IPMRegionGroupAcronym,RPE_State),"="&IF($E$8="National","*",$I106))) ->  | N106: =IF(I106=0,"",IF($E$20="Actual",0,SUMIFS(CHOOSE(VLOOKUP($E$35,'Lookup tables'!$AK$5:$AM$15,3,0), RPE_FuelConsumptionSummerTBtu, RPE_FuelConsumptionTotalTBtu, RPE_GenerationSummerGWh, RPE_GenerationTotalGWh, RPE_CO2EmissionsSummerThousandTons, RPE_CO2EmissionsTotalThousandTons, RPE_NOXEmissionsSummerThousandTons, RPE_NOXEmissionsTotalThousandTons, RPE_SO2EmissionsSummerThousandTons, RPE_SO2EmissionsTotalThousandTons, RPE_DispatchableCapacityMW), MeetComparisonCriteria3,"=1",IF($E$8="IPM Region",RPE_IPMRegionGroupAcronym,RPE_State),"="&IF($E$8="National","*",$I106)))) ->  | Q106: =IF(OR(I106=" ",I106=0),"",IF($Q$53="Alphabetical",100-(ROW()-6),RANK(P106,IF($B$8="State",$P$56:$P$104,$P$56:$P$118),IF($Q$53="Descending",0,1)))) ->  | W106: 0
I107: =IF($B$8="State",Map!P54,Map!O58) -> 0 | J107: =IF(I107=0,"",SUMIFS(CHOOSE(VLOOKUP($B$18,'Lookup tables'!$AK$5:$AM$15,3,0), RPE_FuelConsumptionSummerTBtu, RPE_FuelConsumptionTotalTBtu, RPE_GenerationSummerGWh, RPE_GenerationTotalGWh, RPE_CO2EmissionsSummerThousandTons, RPE_CO2EmissionsTotalThousandTons, RPE_NOXEmissionsSummerThousandTons, RPE_NOXEmissionsTotalThousandTons, RPE_SO2EmissionsSummerThousandTons, RPE_SO2EmissionsTotalThousandTons, RPE_DispatchableCapacityMW), MeetPrimaryCriteria2,"=1",IF($B$8="IPM Region",RPE_IPMRegionGroupAcronym,RPE_State),"="&IF($B$8="National","*",$I107))) ->  | K107: =IF(I107=0,"",IF($B$20="Actual",0,SUMIFS(CHOOSE(VLOOKUP($B$35,'Lookup tables'!$AK$5:$AM$15,3,0), RPE_FuelConsumptionSummerTBtu, RPE_FuelConsumptionTotalTBtu, RPE_GenerationSummerGWh, RPE_GenerationTotalGWh, RPE_CO2EmissionsSummerThousandTons, RPE_CO2EmissionsTotalThousandTons, RPE_NOXEmissionsSummerThousandTons, RPE_NOXEmissionsTotalThousandTons, RPE_SO2EmissionsSummerThousandTons, RPE_SO2EmissionsTotalThousandTons, RPE_DispatchableCapacityMW), MeetComparisonCriteria2,"=1",IF($B$8="IPM Region",RPE_IPMRegionGroupAcronym,RPE_State),"="&IF($B$8="National","*",$I107)))) ->  | M107: =IF(I107=0,"",SUMIFS(CHOOSE(VLOOKUP($E$18,'Lookup tables'!$AK$5:$AM$15,3,0), RPE_FuelConsumptionSummerTBtu, RPE_FuelConsumptionTotalTBtu, RPE_GenerationSummerGWh, RPE_GenerationTotalGWh, RPE_CO2EmissionsSummerThousandTons, RPE_CO2EmissionsTotalThousandTons, RPE_NOXEmissionsSummerThousandTons, RPE_NOXEmissionsTotalThousandTons, RPE_SO2EmissionsSummerThousandTons, RPE_SO2EmissionsTotalThousandTons, RPE_DispatchableCapacityMW), MeetPrimaryCriteria3,"=1",IF($E$8="IPM Region",RPE_IPMRegionGroupAcronym,RPE_State),"="&IF($E$8="National","*",$I107))) ->  | N107: =IF(I107=0,"",IF($E$20="Actual",0,SUMIFS(CHOOSE(VLOOKUP($E$35,'Lookup tables'!$AK$5:$AM$15,3,0), RPE_FuelConsumptionSummerTBtu, RPE_FuelConsumptionTotalTBtu, RPE_GenerationSummerGWh, RPE_GenerationTotalGWh, RPE_CO2EmissionsSummerThousandTons, RPE_CO2EmissionsTotalThousandTons, RPE_NOXEmissionsSummerThousandTons, RPE_NOXEmissionsTotalThousandTons, RPE_SO2EmissionsSummerThousandTons, RPE_SO2EmissionsTotalThousandTons, RPE_DispatchableCapacityMW), MeetComparisonCriteria3,"=1",IF($E$8="IPM Region",RPE_IPMRegionGroupAcronym,RPE_State),"="&IF($E$8="National","*",$I107)))) ->  | W107: 0
I108: =IF($B$8="State",Map!P55,Map!O59) -> 0 | J108: =IF(I108=0,"",SUMIFS(CHOOSE(VLOOKUP($B$18,'Lookup tables'!$AK$5:$AM$15,3,0), RPE_FuelConsumptionSummerTBtu, RPE_FuelConsumptionTotalTBtu, RPE_GenerationSummerGWh, RPE_GenerationTotalGWh, RPE_CO2EmissionsSummerThousandTons, RPE_CO2EmissionsTotalThousandTons, RPE_NOXEmissionsSummerThousandTons, RPE_NOXEmissionsTotalThousandTons, RPE_SO2EmissionsSummerThousandTons, RPE_SO2EmissionsTotalThousandTons, RPE_DispatchableCapacityMW), MeetPrimaryCriteria2,"=1",IF($B$8="IPM Region",RPE_IPMRegionGroupAcronym,RPE_State),"="&IF($B$8="National","*",$I108))) ->  | K108: =IF(I108=0,"",IF($B$20="Actual",0,SUMIFS(CHOOSE(VLOOKUP($B$35,'Lookup tables'!$AK$5:$AM$15,3,0), RPE_FuelConsumptionSummerTBtu, RPE_FuelConsumptionTotalTBtu, RPE_GenerationSummerGWh, RPE_GenerationTotalGWh, RPE_CO2EmissionsSummerThousandTons, RPE_CO2EmissionsTotalThousandTons, RPE_NOXEmissionsSummerThousandTons, RPE_NOXEmissionsTotalThousandTons, RPE_SO2EmissionsSummerThousandTons, RPE_SO2EmissionsTotalThousandTons, RPE_DispatchableCapacityMW), MeetComparisonCriteria2,"=1",IF($B$8="IPM Region",RPE_IPMRegionGroupAcronym,RPE_State),"="&IF($B$8="National","*",$I108)))) ->  | M108: =IF(I108=0,"",SUMIFS(CHOOSE(VLOOKUP($E$18,'Lookup tables'!$AK$5:$AM$15,3,0), RPE_FuelConsumptionSummerTBtu, RPE_FuelConsumptionTotalTBtu, RPE_GenerationSummerGWh, RPE_GenerationTotalGWh, RPE_CO2EmissionsSummerThousandTons, RPE_CO2EmissionsTotalThousandTons, RPE_NOXEmissionsSummerThousandTons, RPE_NOXEmissionsTotalThousandTons, RPE_SO2EmissionsSummerThousandTons, RPE_SO2EmissionsTotalThousandTons, RPE_DispatchableCapacityMW), MeetPrimaryCriteria3,"=1",IF($E$8="IPM Region",RPE_IPMRegionGroupAcronym,RPE_State),"="&IF($E$8="National","*",$I108))) ->  | N108: =IF(I108=0,"",IF($E$20="Actual",0,SUMIFS(CHOOSE(VLOOKUP($E$35,'Lookup tables'!$AK$5:$AM$15,3,0), RPE_FuelConsumptionSummerTBtu, RPE_FuelConsumptionTotalTBtu, RPE_GenerationSummerGWh, RPE_GenerationTotalGWh, RPE_CO2EmissionsSummerThousandTons, RPE_CO2EmissionsTotalThousandTons, RPE_NOXEmissionsSummerThousandTons, RPE_NOXEmissionsTotalThousandTons, RPE_SO2EmissionsSummerThousandTons, RPE_SO2EmissionsTotalThousandTons, RPE_DispatchableCapacityMW), MeetComparisonCriteria3,"=1",IF($E$8="IPM Region",RPE_IPMRegionGroupAcronym,RPE_State),"="&IF($E$8="National","*",$I108)))) ->  | W108: 0
I109: =IF($B$8="State",Map!P56,Map!O60) -> 0 | J109: =IF(I109=0,"",SUMIFS(CHOOSE(VLOOKUP($B$18,'Lookup tables'!$AK$5:$AM$15,3,0), RPE_FuelConsumptionSummerTBtu, RPE_FuelConsumptionTotalTBtu, RPE_GenerationSummerGWh, RPE_GenerationTotalGWh, RPE_CO2EmissionsSummerThousandTons, RPE_CO2EmissionsTotalThousandTons, RPE_NOXEmissionsSummerThousandTons, RPE_NOXEmissionsTotalThousandTons, RPE_SO2EmissionsSummerThousandTons, RPE_SO2EmissionsTotalThousandTons, RPE_DispatchableCapacityMW), MeetPrimaryCriteria2,"=1",IF($B$8="IPM Region",RPE_IPMRegionGroupAcronym,RPE_State),"="&IF($B$8="National","*",$I109))) ->  | K109: =IF(I109=0,"",IF($B$20="Actual",0,SUMIFS(CHOOSE(VLOOKUP($B$35,'Lookup tables'!$AK$5:$AM$15,3,0), RPE_FuelConsumptionSummerTBtu, RPE_FuelConsumptionTotalTBtu, RPE_GenerationSummerGWh, RPE_GenerationTotalGWh, RPE_CO2EmissionsSummerThousandTons, RPE_CO2EmissionsTotalThousandTons, RPE_NOXEmissionsSummerThousandTons, RPE_NOXEmissionsTotalThousandTons, RPE_SO2EmissionsSummerThousandTons, RPE_SO2EmissionsTotalThousandTons, RPE_DispatchableCapacityMW), MeetComparisonCriteria2,"=1",IF($B$8="IPM Region",RPE_IPMRegionGroupAcronym,RPE_State),"="&IF($B$8="National","*",$I109)))) ->  | M109: =IF(I109=0,"",SUMIFS(CHOOSE(VLOOKUP($E$18,'Lookup tables'!$AK$5:$AM$15,3,0), RPE_FuelConsumptionSummerTBtu, RPE_FuelConsumptionTotalTBtu, RPE_GenerationSummerGWh, RPE_GenerationTotalGWh, RPE_CO2EmissionsSummerThousandTons, RPE_CO2EmissionsTotalThousandTons, RPE_NOXEmissionsSummerThousandTons, RPE_NOXEmissionsTotalThousandTons, RPE_SO2EmissionsSummerThousandTons, RPE_SO2EmissionsTotalThousandTons, RPE_DispatchableCapacityMW), MeetPrimaryCriteria3,"=1",IF($E$8="IPM Region",RPE_IPMRegionGroupAcronym,RPE_State),"="&IF($E$8="National","*",$I109))) ->  | N109: =IF(I109=0,"",IF($E$20="Actual",0,SUMIFS(CHOOSE(VLOOKUP($E$35,'Lookup tables'!$AK$5:$AM$15,3,0), RPE_FuelConsumptionSummerTBtu, RPE_FuelConsumptionTotalTBtu, RPE_GenerationSummerGWh, RPE_GenerationTotalGWh, RPE_CO2EmissionsSummerThousandTons, RPE_CO2EmissionsTotalThousandTons, RPE_NOXEmissionsSummerThousandTons, RPE_NOXEmissionsTotalThousandTons, RPE_SO2EmissionsSummerThousandTons, RPE_SO2EmissionsTotalThousandTons, RPE_DispatchableCapacityMW), MeetComparisonCriteria3,"=1",IF($E$8="IPM Region",RPE_IPMRegionGroupAcronym,RPE_State),"="&IF($E$8="National","*",$I109)))) ->  | W109: 0
I110: =IF($B$8="State",Map!P57,Map!O61) -> 0 | J110: =IF(I110=0,"",SUMIFS(CHOOSE(VLOOKUP($B$18,'Lookup tables'!$AK$5:$AM$15,3,0), RPE_FuelConsumptionSummerTBtu, RPE_FuelConsumptionTotalTBtu, RPE_GenerationSummerGWh, RPE_GenerationTotalGWh, RPE_CO2EmissionsSummerThousandTons, RPE_CO2EmissionsTotalThousandTons, RPE_NOXEmissionsSummerThousandTons, RPE_NOXEmissionsTotalThousandTons, RPE_SO2EmissionsSummerThousandTons, RPE_SO2EmissionsTotalThousandTons, RPE_DispatchableCapacityMW), MeetPrimaryCriteria2,"=1",IF($B$8="IPM Region",RPE_IPMRegionGroupAcronym,RPE_State),"="&IF($B$8="National","*",$I110))) ->  | K110: =IF(I110=0,"",IF($B$20="Actual",0,SUMIFS(CHOOSE(VLOOKUP($B$35,'Lookup tables'!$AK$5:$AM$15,3,0), RPE_FuelConsumptionSummerTBtu, RPE_FuelConsumptionTotalTBtu, RPE_GenerationSummerGWh, RPE_GenerationTotalGWh, RPE_CO2EmissionsSummerThousandTons, RPE_CO2EmissionsTotalThousandTons, RPE_NOXEmissionsSummerThousandTons, RPE_NOXEmissionsTotalThousandTons, RPE_SO2EmissionsSummerThousandTons, RPE_SO2EmissionsTotalThousandTons, RPE_DispatchableCapacityMW), MeetComparisonCriteria2,"=1",IF($B$8="IPM Region",RPE_IPMRegionGroupAcronym,RPE_State),"="&IF($B$8="National","*",$I110)))) ->  | M110: =IF(I110=0,"",SUMIFS(CHOOSE(VLOOKUP($E$18,'Lookup tables'!$AK$5:$AM$15,3,0), RPE_FuelConsumptionSummerTBtu, RPE_FuelConsumptionTotalTBtu, RPE_GenerationSummerGWh, RPE_GenerationTotalGWh, RPE_CO2EmissionsSummerThousandTons, RPE_CO2EmissionsTotalThousandTons, RPE_NOXEmissionsSummerThousandTons, RPE_NOXEmissionsTotalThousandTons, RPE_SO2EmissionsSummerThousandTons, RPE_SO2EmissionsTotalThousandTons, RPE_DispatchableCapacityMW), MeetPrimaryCriteria3,"=1",IF($E$8="IPM Region",RPE_IPMRegionGroupAcronym,RPE_State),"="&IF($E$8="National","*",$I110))) ->  | N110: =IF(I110=0,"",IF($E$20="Actual",0,SUMIFS(CHOOSE(VLOOKUP($E$35,'Lookup tables'!$AK$5:$AM$15,3,0), RPE_FuelConsumptionSummerTBtu, RPE_FuelConsumptionTotalTBtu, RPE_GenerationSummerGWh, RPE_GenerationTotalGWh, RPE_CO2EmissionsSummerThousandTons, RPE_CO2EmissionsTotalThousandTons, RPE_NOXEmissionsSummerThousandTons, RPE_NOXEmissionsTotalThousandTons, RPE_SO2EmissionsSummerThousandTons, RPE_SO2EmissionsTotalThousandTons, RPE_DispatchableCapacityMW), MeetComparisonCriteria3,"=1",IF($E$8="IPM Region",RPE_IPMRegionGroupAcronym,RPE_State),"="&IF($E$8="National","*",$I110)))) ->  | W110: 0
I111: =IF($B$8="State",Map!P58,Map!O62) -> 0 | J111: =IF(I111=0,"",SUMIFS(CHOOSE(VLOOKUP($B$18,'Lookup tables'!$AK$5:$AM$15,3,0), RPE_FuelConsumptionSummerTBtu, RPE_FuelConsumptionTotalTBtu, RPE_GenerationSummerGWh, RPE_GenerationTotalGWh, RPE_CO2EmissionsSummerThousandTons, RPE_CO2EmissionsTotalThousandTons, RPE_NOXEmissionsSummerThousandTons, RPE_NOXEmissionsTotalThousandTons, RPE_SO2EmissionsSummerThousandTons, RPE_SO2EmissionsTotalThousandTons, RPE_DispatchableCapacityMW), MeetPrimaryCriteria2,"=1",IF($B$8="IPM Region",RPE_IPMRegionGroupAcronym,RPE_State),"="&IF($B$8="National","*",$I111))) ->  | K111: =IF(I111=0,"",IF($B$20="Actual",0,SUMIFS(CHOOSE(VLOOKUP($B$35,'Lookup tables'!$AK$5:$AM$15,3,0), RPE_FuelConsumptionSummerTBtu, RPE_FuelConsumptionTotalTBtu, RPE_GenerationSummerGWh, RPE_GenerationTotalGWh, RPE_CO2EmissionsSummerThousandTons, RPE_CO2EmissionsTotalThousandTons, RPE_NOXEmissionsSummerThousandTons, RPE_NOXEmissionsTotalThousandTons, RPE_SO2EmissionsSummerThousandTons, RPE_SO2EmissionsTotalThousandTons, RPE_DispatchableCapacityMW), MeetComparisonCriteria2,"=1",IF($B$8="IPM Region",RPE_IPMRegionGroupAcronym,RPE_State),"="&IF($B$8="National","*",$I111)))) ->  | M111: =IF(I111=0,"",SUMIFS(CHOOSE(VLOOKUP($E$18,'Lookup tables'!$AK$5:$AM$15,3,0), RPE_FuelConsumptionSummerTBtu, RPE_FuelConsumptionTotalTBtu, RPE_GenerationSummerGWh, RPE_GenerationTotalGWh, RPE_CO2EmissionsSummerThousandTons, RPE_CO2EmissionsTotalThousandTons, RPE_NOXEmissionsSummerThousandTons, RPE_NOXEmissionsTotalThousandTons, RPE_SO2EmissionsSummerThousandTons, RPE_SO2EmissionsTotalThousandTons, RPE_DispatchableCapacityMW), MeetPrimaryCriteria3,"=1",IF($E$8="IPM Region",RPE_IPMRegionGroupAcronym,RPE_State),"="&IF($E$8="National","*",$I111))) ->  | N111: =IF(I111=0,"",IF($E$20="Actual",0,SUMIFS(CHOOSE(VLOOKUP($E$35,'Lookup tables'!$AK$5:$AM$15,3,0), RPE_FuelConsumptionSummerTBtu, RPE_FuelConsumptionTotalTBtu, RPE_GenerationSummerGWh, RPE_GenerationTotalGWh, RPE_CO2EmissionsSummerThousandTons, RPE_CO2EmissionsTotalThousandTons, RPE_NOXEmissionsSummerThousandTons, RPE_NOXEmissionsTotalThousandTons, RPE_SO2EmissionsSummerThousandTons, RPE_SO2EmissionsTotalThousandTons, RPE_DispatchableCapacityMW), MeetComparisonCriteria3,"=1",IF($E$8="IPM Region",RPE_IPMRegionGroupAcronym,RPE_State),"="&IF($E$8="National","*",$I111)))) ->  | Q111: =IF(OR(I111=" ",I111=0),"",IF($Q$53="Alphabetical",50-(ROW()-6),RANK(P111,IF($B$8="State",$P$56:$P$104,$P$56:$P$118),IF($Q$53="Descending",0,1)))) ->  | W111: 0
I112: =IF($B$8="State",Map!P59,Map!O63) -> 0 | J112: =IF(I112=0,"",SUMIFS(CHOOSE(VLOOKUP($B$18,'Lookup tables'!$AK$5:$AM$15,3,0), RPE_FuelConsumptionSummerTBtu, RPE_FuelConsumptionTotalTBtu, RPE_GenerationSummerGWh, RPE_GenerationTotalGWh, RPE_CO2EmissionsSummerThousandTons, RPE_CO2EmissionsTotalThousandTons, RPE_NOXEmissionsSummerThousandTons, RPE_NOXEmissionsTotalThousandTons, RPE_SO2EmissionsSummerThousandTons, RPE_SO2EmissionsTotalThousandTons, RPE_DispatchableCapacityMW), MeetPrimaryCriteria2,"=1",IF($B$8="IPM Region",RPE_IPMRegionGroupAcronym,RPE_State),"="&IF($B$8="National","*",$I112))) ->  | K112: =IF(I112=0,"",IF($B$20="Actual",0,SUMIFS(CHOOSE(VLOOKUP($B$35,'Lookup tables'!$AK$5:$AM$15,3,0), RPE_FuelConsumptionSummerTBtu, RPE_FuelConsumptionTotalTBtu, RPE_GenerationSummerGWh, RPE_GenerationTotalGWh, RPE_CO2EmissionsSummerThousandTons, RPE_CO2EmissionsTotalThousandTons, RPE_NOXEmissionsSummerThousandTons, RPE_NOXEmissionsTotalThousandTons, RPE_SO2EmissionsSummerThousandTons, RPE_SO2EmissionsTotalThousandTons, RPE_DispatchableCapacityMW), MeetComparisonCriteria2,"=1",IF($B$8="IPM Region",RPE_IPMRegionGroupAcronym,RPE_State),"="&IF($B$8="National","*",$I112)))) ->  | M112: =IF(I112=0,"",SUMIFS(CHOOSE(VLOOKUP($E$18,'Lookup tables'!$AK$5:$AM$15,3,0), RPE_FuelConsumptionSummerTBtu, RPE_FuelConsumptionTotalTBtu, RPE_GenerationSummerGWh, RPE_GenerationTotalGWh, RPE_CO2EmissionsSummerThousandTons, RPE_CO2EmissionsTotalThousandTons, RPE_NOXEmissionsSummerThousandTons, RPE_NOXEmissionsTotalThousandTons, RPE_SO2EmissionsSummerThousandTons, RPE_SO2EmissionsTotalThousandTons, RPE_DispatchableCapacityMW), MeetPrimaryCriteria3,"=1",IF($E$8="IPM Region",RPE_IPMRegionGroupAcronym,RPE_State),"="&IF($E$8="National","*",$I112))) ->  | N112: =IF(I112=0,"",IF($E$20="Actual",0,SUMIFS(CHOOSE(VLOOKUP($E$35,'Lookup tables'!$AK$5:$AM$15,3,0), RPE_FuelConsumptionSummerTBtu, RPE_FuelConsumptionTotalTBtu, RPE_GenerationSummerGWh, RPE_GenerationTotalGWh, RPE_CO2EmissionsSummerThousandTons, RPE_CO2EmissionsTotalThousandTons, RPE_NOXEmissionsSummerThousandTons, RPE_NOXEmissionsTotalThousandTons, RPE_SO2EmissionsSummerThousandTons, RPE_SO2EmissionsTotalThousandTons, RPE_DispatchableCapacityMW), MeetComparisonCriteria3,"=1",IF($E$8="IPM Region",RPE_IPMRegionGroupAcronym,RPE_State),"="&IF($E$8="National","*",$I112)))) ->  | W112: 0
I113: =IF($B$8="State",Map!P60,Map!O64) -> 0 | J113: =IF(I113=0,"",SUMIFS(CHOOSE(VLOOKUP($B$18,'Lookup tables'!$AK$5:$AM$15,3,0), RPE_FuelConsumptionSummerTBtu, RPE_FuelConsumptionTotalTBtu, RPE_GenerationSummerGWh, RPE_GenerationTotalGWh, RPE_CO2EmissionsSummerThousandTons, RPE_CO2EmissionsTotalThousandTons, RPE_NOXEmissionsSummerThousandTons, RPE_NOXEmissionsTotalThousandTons, RPE_SO2EmissionsSummerThousandTons, RPE_SO2EmissionsTotalThousandTons, RPE_DispatchableCapacityMW), MeetPrimaryCriteria2,"=1",IF($B$8="IPM Region",RPE_IPMRegionGroupAcronym,RPE_State),"="&IF($B$8="National","*",$I113))) ->  | K113: =IF(I113=0,"",IF($B$20="Actual",0,SUMIFS(CHOOSE(VLOOKUP($B$35,'Lookup tables'!$AK$5:$AM$15,3,0), RPE_FuelConsumptionSummerTBtu, RPE_FuelConsumptionTotalTBtu, RPE_GenerationSummerGWh, RPE_GenerationTotalGWh, RPE_CO2EmissionsSummerThousandTons, RPE_CO2EmissionsTotalThousandTons, RPE_NOXEmissionsSummerThousandTons, RPE_NOXEmissionsTotalThousandTons, RPE_SO2EmissionsSummerThousandTons, RPE_SO2EmissionsTotalThousandTons, RPE_DispatchableCapacityMW), MeetComparisonCriteria2,"=1",IF($B$8="IPM Region",RPE_IPMRegionGroupAcronym,RPE_State),"="&IF($B$8="National","*",$I113)))) ->  | M113: =IF(I113=0,"",SUMIFS(CHOOSE(VLOOKUP($E$18,'Lookup tables'!$AK$5:$AM$15,3,0), RPE_FuelConsumptionSummerTBtu, RPE_FuelConsumptionTotalTBtu, RPE_GenerationSummerGWh, RPE_GenerationTotalGWh, RPE_CO2EmissionsSummerThousandTons, RPE_CO2EmissionsTotalThousandTons, RPE_NOXEmissionsSummerThousandTons, RPE_NOXEmissionsTotalThousandTons, RPE_SO2EmissionsSummerThousandTons, RPE_SO2EmissionsTotalThousandTons, RPE_DispatchableCapacityMW), MeetPrimaryCriteria3,"=1",IF($E$8="IPM Region",RPE_IPMRegionGroupAcronym,RPE_State),"="&IF($E$8="National","*",$I113))) ->  | N113: =IF(I113=0,"",IF($E$20="Actual",0,SUMIFS(CHOOSE(VLOOKUP($E$35,'Lookup tables'!$AK$5:$AM$15,3,0), RPE_FuelConsumptionSummerTBtu, RPE_FuelConsumptionTotalTBtu, RPE_GenerationSummerGWh, RPE_GenerationTotalGWh, RPE_CO2EmissionsSummerThousandTons, RPE_CO2EmissionsTotalThousandTons, RPE_NOXEmissionsSummerThousandTons, RPE_NOXEmissionsTotalThousandTons, RPE_SO2EmissionsSummerThousandTons, RPE_SO2EmissionsTotalThousandTons, RPE_DispatchableCapacityMW), MeetComparisonCriteria3,"=1",IF($E$8="IPM Region",RPE_IPMRegionGroupAcronym,RPE_State),"="&IF($E$8="National","*",$I113)))) ->  | W113: 0
I114: =IF($B$8="State",Map!P61,Map!O65) -> 0 | J114: =IF(I114=0,"",SUMIFS(CHOOSE(VLOOKUP($B$18,'Lookup tables'!$AK$5:$AM$15,3,0), RPE_FuelConsumptionSummerTBtu, RPE_FuelConsumptionTotalTBtu, RPE_GenerationSummerGWh, RPE_GenerationTotalGWh, RPE_CO2EmissionsSummerThousandTons, RPE_CO2EmissionsTotalThousandTons, RPE_NOXEmissionsSummerThousandTons, RPE_NOXEmissionsTotalThousandTons, RPE_SO2EmissionsSummerThousandTons, RPE_SO2EmissionsTotalThousandTons, RPE_DispatchableCapacityMW), MeetPrimaryCriteria2,"=1",IF($B$8="IPM Region",RPE_IPMRegionGroupAcronym,RPE_State),"="&IF($B$8="National","*",$I114))) ->  | K114: =IF(I114=0,"",IF($B$20="Actual",0,SUMIFS(CHOOSE(VLOOKUP($B$35,'Lookup tables'!$AK$5:$AM$15,3,0), RPE_FuelConsumptionSummerTBtu, RPE_FuelConsumptionTotalTBtu, RPE_GenerationSummerGWh, RPE_GenerationTotalGWh, RPE_CO2EmissionsSummerThousandTons, RPE_CO2EmissionsTotalThousandTons, RPE_NOXEmissionsSummerThousandTons, RPE_NOXEmissionsTotalThousandTons, RPE_SO2EmissionsSummerThousandTons, RPE_SO2EmissionsTotalThousandTons, RPE_DispatchableCapacityMW), MeetComparisonCriteria2,"=1",IF($B$8="IPM Region",RPE_IPMRegionGroupAcronym,RPE_State),"="&IF($B$8="National","*",$I114)))) ->  | M114: =IF(I114=0,"",SUMIFS(CHOOSE(VLOOKUP($E$18,'Lookup tables'!$AK$5:$AM$15,3,0), RPE_FuelConsumptionSummerTBtu, RPE_FuelConsumptionTotalTBtu, RPE_GenerationSummerGWh, RPE_GenerationTotalGWh, RPE_CO2EmissionsSummerThousandTons, RPE_CO2EmissionsTotalThousandTons, RPE_NOXEmissionsSummerThousandTons, RPE_NOXEmissionsTotalThousandTons, RPE_SO2EmissionsSummerThousandTons, RPE_SO2EmissionsTotalThousandTons, RPE_DispatchableCapacityMW), MeetPrimaryCriteria3,"=1",IF($E$8="IPM Region",RPE_IPMRegionGroupAcronym,RPE_State),"="&IF($E$8="National","*",$I114))) ->  | N114: =IF(I114=0,"",IF($E$20="Actual",0,SUMIFS(CHOOSE(VLOOKUP($E$35,'Lookup tables'!$AK$5:$AM$15,3,0), RPE_FuelConsumptionSummerTBtu, RPE_FuelConsumptionTotalTBtu, RPE_GenerationSummerGWh, RPE_GenerationTotalGWh, RPE_CO2EmissionsSummerThousandTons, RPE_CO2EmissionsTotalThousandTons, RPE_NOXEmissionsSummerThousandTons, RPE_NOXEmissionsTotalThousandTons, RPE_SO2EmissionsSummerThousandTons, RPE_SO2EmissionsTotalThousandTons, RPE_DispatchableCapacityMW), MeetComparisonCriteria3,"=1",IF($E$8="IPM Region",RPE_IPMRegionGroupAcronym,RPE_State),"="&IF($E$8="National","*",$I114)))) ->  | W114: 0
I115: =IF($B$8="State",Map!P62,Map!O66) -> 0 | J115: =IF(I115=0,"",SUMIFS(CHOOSE(VLOOKUP($B$18,'Lookup tables'!$AK$5:$AM$15,3,0), RPE_FuelConsumptionSummerTBtu, RPE_FuelConsumptionTotalTBtu, RPE_GenerationSummerGWh, RPE_GenerationTotalGWh, RPE_CO2EmissionsSummerThousandTons, RPE_CO2EmissionsTotalThousandTons, RPE_NOXEmissionsSummerThousandTons, RPE_NOXEmissionsTotalThousandTons, RPE_SO2EmissionsSummerThousandTons, RPE_SO2EmissionsTotalThousandTons, RPE_DispatchableCapacityMW), MeetPrimaryCriteria2,"=1",IF($B$8="IPM Region",RPE_IPMRegionGroupAcronym,RPE_State),"="&IF($B$8="National","*",$I115))) ->  | K115: =IF(I115=0,"",IF($B$20="Actual",0,SUMIFS(CHOOSE(VLOOKUP($B$35,'Lookup tables'!$AK$5:$AM$15,3,0), RPE_FuelConsumptionSummerTBtu, RPE_FuelConsumptionTotalTBtu, RPE_GenerationSummerGWh, RPE_GenerationTotalGWh, RPE_CO2EmissionsSummerThousandTons, RPE_CO2EmissionsTotalThousandTons, RPE_NOXEmissionsSummerThousandTons, RPE_NOXEmissionsTotalThousandTons, RPE_SO2EmissionsSummerThousandTons, RPE_SO2EmissionsTotalThousandTons, RPE_DispatchableCapacityMW), MeetComparisonCriteria2,"=1",IF($B$8="IPM Region",RPE_IPMRegionGroupAcronym,RPE_State),"="&IF($B$8="National","*",$I115)))) ->  | M115: =IF(I115=0,"",SUMIFS(CHOOSE(VLOOKUP($E$18,'Lookup tables'!$AK$5:$AM$15,3,0), RPE_FuelConsumptionSummerTBtu, RPE_FuelConsumptionTotalTBtu, RPE_GenerationSummerGWh, RPE_GenerationTotalGWh, RPE_CO2EmissionsSummerThousandTons, RPE_CO2EmissionsTotalThousandTons, RPE_NOXEmissionsSummerThousandTons, RPE_NOXEmissionsTotalThousandTons, RPE_SO2EmissionsSummerThousandTons, RPE_SO2EmissionsTotalThousandTons, RPE_DispatchableCapacityMW), MeetPrimaryCriteria3,"=1",IF($E$8="IPM Region",RPE_IPMRegionGroupAcronym,RPE_State),"="&IF($E$8="National","*",$I115))) ->  | N115: =IF(I115=0,"",IF($E$20="Actual",0,SUMIFS(CHOOSE(VLOOKUP($E$35,'Lookup tables'!$AK$5:$AM$15,3,0), RPE_FuelConsumptionSummerTBtu, RPE_FuelConsumptionTotalTBtu, RPE_GenerationSummerGWh, RPE_GenerationTotalGWh, RPE_CO2EmissionsSummerThousandTons, RPE_CO2EmissionsTotalThousandTons, RPE_NOXEmissionsSummerThousandTons, RPE_NOXEmissionsTotalThousandTons, RPE_SO2EmissionsSummerThousandTons, RPE_SO2EmissionsTotalThousandTons, RPE_DispatchableCapacityMW), MeetComparisonCriteria3,"=1",IF($E$8="IPM Region",RPE_IPMRegionGroupAcronym,RPE_State),"="&IF($E$8="National","*",$I115)))) ->  | W115: 0
I116: =IF($B$8="State",Map!P63,Map!O67) -> 0 | J116: =IF(I116=0,"",SUMIFS(CHOOSE(VLOOKUP($B$18,'Lookup tables'!$AK$5:$AM$15,3,0), RPE_FuelConsumptionSummerTBtu, RPE_FuelConsumptionTotalTBtu, RPE_GenerationSummerGWh, RPE_GenerationTotalGWh, RPE_CO2EmissionsSummerThousandTons, RPE_CO2EmissionsTotalThousandTons, RPE_NOXEmissionsSummerThousandTons, RPE_NOXEmissionsTotalThousandTons, RPE_SO2EmissionsSummerThousandTons, RPE_SO2EmissionsTotalThousandTons, RPE_DispatchableCapacityMW), MeetPrimaryCriteria2,"=1",IF($B$8="IPM Region",RPE_IPMRegionGroupAcronym,RPE_State),"="&IF($B$8="National","*",$I116))) ->  | K116: =IF(I116=0,"",IF($B$20="Actual",0,SUMIFS(CHOOSE(VLOOKUP($B$35,'Lookup tables'!$AK$5:$AM$15,3,0), RPE_FuelConsumptionSummerTBtu, RPE_FuelConsumptionTotalTBtu, RPE_GenerationSummerGWh, RPE_GenerationTotalGWh, RPE_CO2EmissionsSummerThousandTons, RPE_CO2EmissionsTotalThousandTons, RPE_NOXEmissionsSummerThousandTons, RPE_NOXEmissionsTotalThousandTons, RPE_SO2EmissionsSummerThousandTons, RPE_SO2EmissionsTotalThousandTons, RPE_DispatchableCapacityMW), MeetComparisonCriteria2,"=1",IF($B$8="IPM Region",RPE_IPMRegionGroupAcronym,RPE_State),"="&IF($B$8="National","*",$I116)))) ->  | M116: =IF(I116=0,"",SUMIFS(CHOOSE(VLOOKUP($E$18,'Lookup tables'!$AK$5:$AM$15,3,0), RPE_FuelConsumptionSummerTBtu, RPE_FuelConsumptionTotalTBtu, RPE_GenerationSummerGWh, RPE_GenerationTotalGWh, RPE_CO2EmissionsSummerThousandTons, RPE_CO2EmissionsTotalThousandTons, RPE_NOXEmissionsSummerThousandTons, RPE_NOXEmissionsTotalThousandTons, RPE_SO2EmissionsSummerThousandTons, RPE_SO2EmissionsTotalThousandTons, RPE_DispatchableCapacityMW), MeetPrimaryCriteria3,"=1",IF($E$8="IPM Region",RPE_IPMRegionGroupAcronym,RPE_State),"="&IF($E$8="National","*",$I116))) ->  | N116: =IF(I116=0,"",IF($E$20="Actual",0,SUMIFS(CHOOSE(VLOOKUP($E$35,'Lookup tables'!$AK$5:$AM$15,3,0), RPE_FuelConsumptionSummerTBtu, RPE_FuelConsumptionTotalTBtu, RPE_GenerationSummerGWh, RPE_GenerationTotalGWh, RPE_CO2EmissionsSummerThousandTons, RPE_CO2EmissionsTotalThousandTons, RPE_NOXEmissionsSummerThousandTons, RPE_NOXEmissionsTotalThousandTons, RPE_SO2EmissionsSummerThousandTons, RPE_SO2EmissionsTotalThousandTons, RPE_DispatchableCapacityMW), MeetComparisonCriteria3,"=1",IF($E$8="IPM Region",RPE_IPMRegionGroupAcronym,RPE_State),"="&IF($E$8="National","*",$I116)))) ->  | W116: 0
I117: =IF($B$8="State",Map!P64,Map!O68) -> 0 | J117: =IF(I117=0,"",SUMIFS(CHOOSE(VLOOKUP($B$18,'Lookup tables'!$AK$5:$AM$15,3,0), RPE_FuelConsumptionSummerTBtu, RPE_FuelConsumptionTotalTBtu, RPE_GenerationSummerGWh, RPE_GenerationTotalGWh, RPE_CO2EmissionsSummerThousandTons, RPE_CO2EmissionsTotalThousandTons, RPE_NOXEmissionsSummerThousandTons, RPE_NOXEmissionsTotalThousandTons, RPE_SO2EmissionsSummerThousandTons, RPE_SO2EmissionsTotalThousandTons, RPE_DispatchableCapacityMW), MeetPrimaryCriteria2,"=1",IF($B$8="IPM Region",RPE_IPMRegionGroupAcronym,RPE_State),"="&IF($B$8="National","*",$I117))) ->  | K117: =IF(I117=0,"",IF($B$20="Actual",0,SUMIFS(CHOOSE(VLOOKUP($B$35,'Lookup tables'!$AK$5:$AM$15,3,0), RPE_FuelConsumptionSummerTBtu, RPE_FuelConsumptionTotalTBtu, RPE_GenerationSummerGWh, RPE_GenerationTotalGWh, RPE_CO2EmissionsSummerThousandTons, RPE_CO2EmissionsTotalThousandTons, RPE_NOXEmissionsSummerThousandTons, RPE_NOXEmissionsTotalThousandTons, RPE_SO2EmissionsSummerThousandTons, RPE_SO2EmissionsTotalThousandTons, RPE_DispatchableCapacityMW), MeetComparisonCriteria2,"=1",IF($B$8="IPM Region",RPE_IPMRegionGroupAcronym,RPE_State),"="&IF($B$8="National","*",$I117)))) ->  | M117: =IF(I117=0,"",SUMIFS(CHOOSE(VLOOKUP($E$18,'Lookup tables'!$AK$5:$AM$15,3,0), RPE_FuelConsumptionSummerTBtu, RPE_FuelConsumptionTotalTBtu, RPE_GenerationSummerGWh, RPE_GenerationTotalGWh, RPE_CO2EmissionsSummerThousandTons, RPE_CO2EmissionsTotalThousandTons, RPE_NOXEmissionsSummerThousandTons, RPE_NOXEmissionsTotalThousandTons, RPE_SO2EmissionsSummerThousandTons, RPE_SO2EmissionsTotalThousandTons, RPE_DispatchableCapacityMW), MeetPrimaryCriteria3,"=1",IF($E$8="IPM Region",RPE_IPMRegionGroupAcronym,RPE_State),"="&IF($E$8="National","*",$I117))) ->  | N117: =IF(I117=0,"",IF($E$20="Actual",0,SUMIFS(CHOOSE(VLOOKUP($E$35,'Lookup tables'!$AK$5:$AM$15,3,0), RPE_FuelConsumptionSummerTBtu, RPE_FuelConsumptionTotalTBtu, RPE_GenerationSummerGWh, RPE_GenerationTotalGWh, RPE_CO2EmissionsSummerThousandTons, RPE_CO2EmissionsTotalThousandTons, RPE_NOXEmissionsSummerThousandTons, RPE_NOXEmissionsTotalThousandTons, RPE_SO2EmissionsSummerThousandTons, RPE_SO2EmissionsTotalThousandTons, RPE_DispatchableCapacityMW), MeetComparisonCriteria3,"=1",IF($E$8="IPM Region",RPE_IPMRegionGroupAcronym,RPE_State),"="&IF($E$8="National","*",$I117)))) ->  | W117: 0
I118: =IF($B$8="State",Map!P65,Map!O69) -> 0 | J118: =IF(I118=0,"",SUMIFS(CHOOSE(VLOOKUP($B$18,'Lookup tables'!$AK$5:$AM$15,3,0), RPE_FuelConsumptionSummerTBtu, RPE_FuelConsumptionTotalTBtu, RPE_GenerationSummerGWh, RPE_GenerationTotalGWh, RPE_CO2EmissionsSummerThousandTons, RPE_CO2EmissionsTotalThousandTons, RPE_NOXEmissionsSummerThousandTons, RPE_NOXEmissionsTotalThousandTons, RPE_SO2EmissionsSummerThousandTons, RPE_SO2EmissionsTotalThousandTons, RPE_DispatchableCapacityMW), MeetPrimaryCriteria2,"=1",IF($B$8="IPM Region",RPE_IPMRegionGroupAcronym,RPE_State),"="&IF($B$8="National","*",$I118))) ->  | K118: =IF(I118=0,"",IF($B$20="Actual",0,SUMIFS(CHOOSE(VLOOKUP($B$35,'Lookup tables'!$AK$5:$AM$15,3,0), RPE_FuelConsumptionSummerTBtu, RPE_FuelConsumptionTotalTBtu, RPE_GenerationSummerGWh, RPE_GenerationTotalGWh, RPE_CO2EmissionsSummerThousandTons, RPE_CO2EmissionsTotalThousandTons, RPE_NOXEmissionsSummerThousandTons, RPE_NOXEmissionsTotalThousandTons, RPE_SO2EmissionsSummerThousandTons, RPE_SO2EmissionsTotalThousandTons, RPE_DispatchableCapacityMW), MeetComparisonCriteria2,"=1",IF($B$8="IPM Region",RPE_IPMRegionGroupAcronym,RPE_State),"="&IF($B$8="National","*",$I118)))) ->  | M118: =IF(I118=0,"",SUMIFS(CHOOSE(VLOOKUP($E$18,'Lookup tables'!$AK$5:$AM$15,3,0), RPE_FuelConsumptionSummerTBtu, RPE_FuelConsumptionTotalTBtu, RPE_GenerationSummerGWh, RPE_GenerationTotalGWh, RPE_CO2EmissionsSummerThousandTons, RPE_CO2EmissionsTotalThousandTons, RPE_NOXEmissionsSummerThousandTons, RPE_NOXEmissionsTotalThousandTons, RPE_SO2EmissionsSummerThousandTons, RPE_SO2EmissionsTotalThousandTons, RPE_DispatchableCapacityMW), MeetPrimaryCriteria3,"=1",IF($E$8="IPM Region",RPE_IPMRegionGroupAcronym,RPE_State),"="&IF($E$8="National","*",$I118))) ->  | N118: =IF(I118=0,"",IF($E$20="Actual",0,SUMIFS(CHOOSE(VLOOKUP($E$35,'Lookup tables'!$AK$5:$AM$15,3,0), RPE_FuelConsumptionSummerTBtu, RPE_FuelConsumptionTotalTBtu, RPE_GenerationSummerGWh, RPE_GenerationTotalGWh, RPE_CO2EmissionsSummerThousandTons, RPE_CO2EmissionsTotalThousandTons, RPE_NOXEmissionsSummerThousandTons, RPE_NOXEmissionsTotalThousandTons, RPE_SO2EmissionsSummerThousandTons, RPE_SO2EmissionsTotalThousandTons, RPE_DispatchableCapacityMW), MeetComparisonCriteria3,"=1",IF($E$8="IPM Region",RPE_IPMRegionGroupAcronym,RPE_State),"="&IF($E$8="National","*",$I118)))) ->  | W118: 0

Sheet Emissions GWh Btu MW
E2: EMISSIONS
A4: PRIMARY CASE | B4: v6 Summer 2021 Ref Case
A5: SECONDARY CASE
A7: Regional Aggregation | B7: National | C7: =IF(B7="State","RPE_State","RPE_RegionGroupAcronym") -> RPE_RegionGroupAcronym
A8: Region | B8: IN
A10: FILTERS
A11: Fuel Type | B11: All Units | C11: RPE_FuelType
A12: Fossil >25 MW | B12: All Units | C12: RPE_Fossil25MW
A13: Existing/New/Retired | B13: Existing and New | C13: RPE_ExistingorNewUnit
A14: Plant Type | B14: All Units | C14: RPE_PlantType
A15: Plant Category | B15: All Units | C15: RPE_PlantCategory
A16: Plant Controls | B16: All Units | C16: =MATCH(B16,Controls,0) -> 1
A17: Existing or New Controls | B17: All Controls
A21: ***You must click the update button to update the charts
J34: Emissions Charts Only Controls
L35: Comparison Type: | M35: Actual | Z35: Column Chart Only Controls | AG35: Column and Pie Chart Controls | AM35: Pie Chart Only Controls
L36: Comparison: | M36: Historical Data | Z36: Comparison Type: | AA36: Actual | AG36: Category: | AH36: Generation | AK36: Pie Chart 1 | AM36: Run | AN36: Historical Data
L37: Fixed or Parallel: | M37: Fixed | Z37: Comparison: | AA37: Jan 2020 Ref Case | AG37: Timeframe: | AH37: Annual | AM37: Year | AN37: 2019
L38: Comparison Year: | M38: 2018 | Z38: Fixed or Parallel: | AA38: Parallel | AG38: Aggregation: | AH38: Grouped
Z39: Comparison Year: | AA39: 2030 | AG39: Highlight: | AH39: Combustion Turbine | AK39: Pie Chart 2 | AM39: Run | AN39: v6 Summer 2021 Ref Case
AM40: Year | AN40: 2030
F41: *Historical data is still under development. It is approximate and may not always provide an apples-to-apples comparison to IPM outputs. See READ ME worksheet for more info. | X41: *Historical data is still under development. It is approximate and may have significant error in some circumstances. See READ ME worksheet for more info.
G48: THESE TABELS AREN'T GRAPHED; see set below | Y48: =IF($AH$36="Capacity",VLOOKUP($AH$36,$A$173:$B$177,2,0),VLOOKUP($AH$36&"_"&$AH$37,$A$173:$B$177,2,0)) -> RPE_GenerationTotalGWh | AD48: =IF(AH36="Heat Input","TBtu",IF(AH36="Capacity","MW","GWh")) -> GWh | AE48: =AH37&" "&AH36&" ("&AD48&")" -> Annual Generation (GWh) | AJ48: =AE48&", "&AN36&" "&AN37 -> Annual Generation (GWh), Historical Data 2019 | AK48: =AE48&", "&AN39&" "&AN40 -> Annual Generation (GWh), v6 Summer 2021 Ref Case 2030
G49: Annual SO2 | J49: Annual CO2 | M49: Annual NOx | P49: Ozone Season NOx | X49: 1 | Y49: =X49+1 -> 2 | Z49: =Y49+1 -> 3 | AA49: 4 | AB49: 5 | AC49: 6 | AD49: 7 | AE49: 8 | AF49: 9 | AG49: 10 | AH49: 11 | AI49: 12 | AJ49: 13 | AK49: 14 | AL49: 15 | AM49: 16 | AN49: 17 | AO49: 18 | AP49: 19 | AQ49: =AP49+1 -> 20 | AR49: =AQ49+1 -> 21 | AS49: =AR49+1 -> 22 | AT49: =AS49+1 -> 23 | AU49: =AT49+1 -> 24 | AV49: =AU49+1 -> 25 | AW49: =AV49+1 -> 26
G50: RPE_SO2EmissionsTotalThousandTons | J50: RPE_CO2EmissionsTotalThousandTons | M50: RPE_NOXEmissionsTotalThousandTons | P50: RPE_NOXEmissionsSummerThousandTons | W50: Year | X50: All Units | Y50: Biomass | Z50: Coal Steam | AA50: Combined Cycle | AB50: Combustion Turbine | AC50: Energy Storage | AD50: Fossil Other | AE50: Fuel Cell | AF50: Geothermal | AG50: Hydro | AH50: IGCC | AI50: International Imports | AJ50: Landfill Gas | AK50: Non-Fossil Other | AL50: Nuclear | AM50: O/G Steam | AN50: Offshore Wind | AO50: Pumped Storage | AP50: Solar PV | AQ50: Solar PV - DG | AR50: Solar Thermal | AS50: Wind | AT50: Coal 30% CCS | AU50: Coal 90% CCS | AV50: Coal W/CCS | AW50: NGCC w/CCS
A51: =IF(M35="Percent Change","Percent Change","thousands of short tons") -> thousands of short tons | G51: Historical | H51: =$B$4 -> v6 Summer 2021 Ref Case | I51: =$B$5 -> 0 | J51: Historical | K51: =$B$4 -> v6 Summer 2021 Ref Case | L51: =$B$5 -> 0 | M51: Historical | N51: =$B$4 -> v6 Summer 2021 Ref Case | O51: =$B$5 -> 0 | P51: Historical | Q51: =$B$4 -> v6 Summer 2021 Ref Case | R51: =$B$5 -> 0 | U51: 1 | V51: Historical | W51: 2013 | X51: =CHOOSE(VLOOKUP($AH$36&"_"&$AH$37,$A$179:$B$184,2,0), SUMIFS(RPE_FuelConsumptionSummerTBtu,MeetHistoricCriteriaSeries2,"=1", IF($B$7="IPM Region",RPE_RegionGroupAcronym,RPE_State),"="&IF($B$7="National","*",$B$8),RPE_Year,"="&$W51), SUMIFS(RPE_FuelConsumptionTotalTBtu,MeetHistoricCriteriaSeries2,"=1", IF($B$7="IPM Region",RPE_RegionGroupAcronym,RPE_State),"="&IF($B$7="National","*",$B$8),RPE_Year,"="&$W51), SUMIFS(RPE_GenerationSummerGWh,MeetHistoricCriteriaSeries2,"=1", IF($B$7="IPM Region",RPE_RegionGroupAcronym,RPE_State),"="&IF($B$7="National","*",$B$8),RPE_Year,"="&$W51), SUMIFS(RPE_GenerationTotalGWh,MeetHistoricCriteriaSeries2,"=1", IF($B$7="IPM Region",RPE_RegionGroupAcronym,RPE_State),"="&IF($B$7="National","*",$B$8),RPE_Year,"="&$W51), SUMIFS(RPE_DispatchableCapacityMW,MeetHistoricCriteriaSeries2,"=1", IF($B$7="IPM Region",RPE_RegionGroupAcronym,RPE_State),"="&IF($B$7="National","*",$B$8),RPE_Year,"="&$W51)) -> 4035640.807 | Y51: =CHOOSE(VLOOKUP($AH$36&"_"&$AH$37,$A$179:$B$184,2,0), SUMIFS(RPE_FuelConsumptionSummerTBtu,MeetHistoricCriteriaSeries2,"=1", IF($B$7="IPM Region",RPE_RegionGroupAcronym,RPE_State),"="&IF($B$7="National","*",$B$8),RPE_Year,"="&$W51,RPE_PlantType,"="&Y$50), SUMIFS(RPE_FuelConsumptionTotalTBtu,MeetHistoricCriteriaSeries2,"=1", IF($B$7="IPM Region",RPE_RegionGroupAcronym,RPE_State),"="&IF($B$7="National","*",$B$8),RPE_Year,"="&$W51,RPE_PlantType,"="&Y$50), SUMIFS(RPE_GenerationSummerGWh,MeetHistoricCriteriaSeries2,"=1", IF($B$7="IPM Region",RPE_RegionGroupAcronym,RPE_State),"="&IF($B$7="National","*",$B$8),RPE_Year,"="&$W51,RPE_PlantType,"="&Y$50), SUMIFS(RPE_GenerationTotalGWh,MeetHistoricCriteriaSeries2,"=1", IF($B$7="IPM Region",RPE_RegionGroupAcronym,RPE_State),"="&IF($B$7="National","*",$B$8),RPE_Year,"="&$W51,RPE_PlantType,"="&Y$50), SUMIFS(RPE_DispatchableCapacityMW,MeetHistoricCriteriaSeries2,"=1", IF($B$7="IPM Region",RPE_RegionGroupAcronym,RPE_State),"="&IF($B$7="National","*",$B$8),RPE_Year,"="&$W51,RPE_PlantType,"="&Y$50)) -> 42573.38833 | Z51: 1637240.671 | AA51: 872799.9312 | AB51: 56241.24293 | AC51: 0 | AD51: 0 | AE51: 339.39235 | AF51: 15659.07208 | AG51: 267051.6087 | AH51: 4154.11039 | AI51: =CHOOSE(VLOOKUP($AH$36&"_"&$AH$37,$A$179:$B$184,2,0), SUMIFS(RPE_FuelConsumptionSummerTBtu,MeetHistoricCriteriaSeries2,"=1", IF($B$7="IPM Region",RPE_RegionGroupAcronym,RPE_State),"="&IF($B$7="National","*",$B$8),RPE_Year,"="&$W51,RPE_PlantType,"="&AI$50), SUMIFS(RPE_FuelConsumptionTotalTBtu,MeetHistoricCriteriaSeries2,"=1", IF($B$7="IPM Region",RPE_RegionGroupAcronym,RPE_State),"="&IF($B$7="National","*",$B$8),RPE_Year,"="&$W51,RPE_PlantType,"="&AI$50), SUMIFS(RPE_GenerationSummerGWh,MeetHistoricCriteriaSeries2,"=1", IF($B$7="IPM Region",RPE_RegionGroupAcronym,RPE_State),"="&IF($B$7="National","*",$B$8),RPE_Year,"="&$W51,RPE_PlantType,"="&AI$50), SUMIFS(RPE_GenerationTotalGWh,MeetHistoricCriteriaSeries2,"=1", IF($B$7="IPM Region",RPE_RegionGroupAcronym,RPE_State),"="&IF($B$7="National","*",$B$8),RPE_Year,"="&$W51,RPE_PlantType,"="&AI$50), SUMIFS(RPE_DispatchableCapacityMW,MeetHistoricCriteriaSeries2,"=1", IF($B$7="IPM Region",RPE_RegionGroupAcronym,RPE_State),"="&IF($B$7="National","*",$B$8),RPE_Year,"="&$W51,RPE_PlantType,"="&AI$50)) -> 0 | AJ51: 10420.65937 | AK51: 23454.64093 | AL51: 789016.473 | AM51: 139529.5974 | AN51: 0 | AO51: 0 | AP51: 8101.534218 | AR51: 975.9072 | AS51: 167191.1464 | AT51: 0 | AU51: 0 | AV51: 0 | AW51: 0
F52: 2015 | G52: =SUMIFS(RPE_SO2EmissionsTotalThousandTons, MeetHistoricCriteriaSeries2,"=1",RPE_Year,"="&$F52, IF($B$7="IPM Region", RPE_RegionGroupAcronym, RPE_State),"="&IF($B$7="National","*",$B$8)) -> 2231.270926 | J52: =SUMIFS(RPE_CO2EmissionsTotalThousandTons, MeetHistoricCriteriaSeries2,"=1",RPE_Year,"="&$F52, IF($B$7="IPM Region", RPE_RegionGroupAcronym, RPE_State),"="&IF($B$7="National","*",$B$8)) -> 2120508.862 | M52: =SUMIFS(RPE_NOXEmissionsTotalThousandTons, MeetHistoricCriteriaSeries2,"=1",RPE_Year,"="&$F52, IF($B$7="IPM Region", RPE_RegionGroupAcronym, RPE_State),"="&IF($B$7="National","*",$B$8)) -> 1418.873013 | P52: =SUMIFS(RPE_NOXEmissionsSummerThousandTons, MeetHistoricCriteriaSeries2,"=1",RPE_Year,"="&$F52, IF($B$7="IPM Region", RPE_RegionGroupAcronym, RPE_State),"="&IF($B$7="National","*",$B$8)) -> 632.103182 | U52: =U51+1 -> 2 | W52: 2014 | X52: 4061140.606 | Y52: 46577.58972 | Z52: 1629044.753 | AA52: 882735.1727 | AB52: 57596.76228 | AC52: 0 | AD52: 0 | AE52: 538.15497 | AF52: 15623.1 | AG52: 257733.8008 | AH52: 6048.17963 | AI52: 0 | AJ52: 11198.91813 | AK52: 22143.0504 | AL52: 797165.982 | AM52: 135096.9913 | AN52: 0 | AO52: 78.009 | AP52: 15210.40035 | AR52: 2492.699088 | AS52: 180924.7078 | AT52: 0 | AU52: 0 | AV52: 0 | AW52: 0
F53: 2016 | G53: 1498.026021 | J53: 2014664.397 | M53: 1226.948147 | P53: 564.314576 | U53: =U52+1 -> 3 | W53: 2015 | X53: 4030842.105 | Y53: 45425.79755 | Z53: 1418761.981 | AA53: 1046314.755 | AB53: 74057.90728 | AC53: 0 | AD53: 0 | AE53: 694.46394 | AF53: 15687.235 | AG53: 247389.9855 | AH53: 9104.78871 | AI53: 0 | AJ53: 11289.04001 | AK53: 21518.68823 | AL53: 797177.877 | AM53: 127331.5064 | AN53: 0 | AO53: 0 | AP53: 21611.55474 | AR53: 3327.998626 | AS53: 189946.0817 | AT53: 0 | AU53: 0 | AV53: 0 | AW53: 0
F54: 2017 | G54: 1346.531325 | J54: 1940983.789 | M54: 1093.565518 | P54: 477.694603 | U54: 4 | W54: 2016 | X54: 4020173.871 | Y54: 47456.32603 | Z54: 1318514.031 | AA54: 1074863.812 | AB54: 89057.65262 | AC54: 0 | AD54: 0 | AE54: 746.714401 | AF54: 15565.705 | AG54: 266212.6131 | AH54: 8375.5919 | AI54: 0 | AJ54: 11217.08625 | AK54: 8128.958602 | AL54: 805693.948 | AM54: 110884.3436 | AN54: 0 | AO54: 0 | AP54: 32581.91323 | AR54: 3308.396 | AS54: 226184.1341 | AT54: 0 | AU54: 0 | AV54: 0 | AW54: 0
F55: 2018 | G55: 1272.25861 | J55: 1954956.943 | M55: 1053.771164 | P55: 456.284355 | U55: 5 | W55: 2017 | X55: 4007279.816 | Y55: 46238.69871 | Z55: 1311463.102 | AA55: 1053845.514 | AB55: 60325.38372 | AC55: 0 | AD55: 0 | AE55: 1000.74844 | AF55: 15604.17265 | AG55: 298623.4105 | AH55: 8641.66403 | AI55: 0 | AJ55: 11407.58895 | AK55: 19061.50685 | AL55: 804949.635 | AM55: 69377.39798 | AN55: 104.351 | AO55: 0 | AP55: 49842.74899 | AR55: 3269.324 | AS55: 253524.5689 | AT55: 0 | AU55: 0 | AV55: 0 | AW55: 0
F56: 2019 | G56: 976.917057 | J56: 1793655.76 | M56: 907.210975 | P56: 400.048963 | U56: 6 | W56: 2018 | X56: 4154722.3 | Y56: 46228.25911 | Z56: 1252837.547 | AA56: 1191437.226 | AB56: 86551.18741 | AC56: 0 | AD56: 0 | AE56: 121.774 | AF56: 16406.12405 | AG56: 289990.9034 | AH56: 7852.7422 | AI56: 0 | AJ56: 11293.79865 | AK56: 19254.60243 | AL56: 807077.759 | AM56: 85014.39923 | AN56: 117.362 | AO56: 0 | AP56: 62802.30737 | AR56: 3591.75 | AS56: 274144.5581 | AT56: 0 | AU56: 0 | AV56: 0 | AW56: 0
F57: 2020 | G57: 788.166214 | J57: 1584110.935 | M57: 739.942722 | P57: 341.671575 | U57: 7 | W57: 2019 | X57: 4082963.734 | Y57: 42616.68272 | Z57: 1051493.636 | AA57: 1300319.937 | AB57: 83620.07514 | AC57: 711.898 | AD57: 0 | AE57: 32.090661 | AF57: 15472.717 | AG57: 287873.7305 | AH57: 8774.87217 | AI57: 0 | AJ57: 10468.32732 | AK57: 18969.11138 | AL57: 809409.262 | AM57: 91512.6108 | AN57: 117.792 | AO57: -5260.744 | AP57: 68718.89424 | AR57: 2347.685 | AS57: 295765.1565 | AT57: 0 | AU57: 0 | AV57: 0 | AW57: 0
F58: 2023 | H58: =SUMIFS(RPE_SO2EmissionsTotalThousandTons, MeetPrimaryCriteriaSeries2,"=1",RPE_Year,"="&$F58, IF($B$7="IPM Region", RPE_RegionGroupAcronym, RPE_State),"="&IF($B$7="National","*",$B$8)) -> 631.287017 | I58: =SUMIFS(RPE_SO2EmissionsTotalThousandTons, MeetComparisonCriteriaSeries2,"=1",RPE_Year,"="&$F58, IF($B$7="IPM Region", RPE_RegionGroupAcronym, RPE_State),"="&IF($B$7="National","*",$B$8)) -> 0 | K58: =SUMIFS(RPE_CO2EmissionsTotalThousandTons, MeetPrimaryCriteriaSeries2,"=1",RPE_Year,"="&$F58, IF($B$7="IPM Region", RPE_RegionGroupAcronym, RPE_State),"="&IF($B$7="National","*",$B$8)) -> 1453730.912 | L58: =SUMIFS(RPE_CO2EmissionsTotalThousandTons, MeetComparisonCriteriaSeries2,"=1",RPE_Year,"="&$F58, IF($B$7="IPM Region", RPE_RegionGroupAcronym, RPE_State),"="&IF($B$7="National","*",$B$8)) -> 0 | N58: =SUMIFS(RPE_NOXEmissionsTotalThousandTons, MeetPrimaryCriteriaSeries2,"=1",RPE_Year,"="&$F58, IF($B$7="IPM Region", RPE_RegionGroupAcronym, RPE_State),"="&IF($B$7="National","*",$B$8)) -> 592.8192874 | O58: =SUMIFS(RPE_NOXEmissionsTotalThousandTons, MeetComparisonCriteriaSeries2,"=1",RPE_Year,"="&$F58, IF($B$7="IPM Region", RPE_RegionGroupAcronym, RPE_State),"="&IF($B$7="National","*",$B$8)) -> 0 | Q58: =SUMIFS(RPE_NOXEmissionsSummerThousandTons, MeetPrimaryCriteriaSeries2,"=1",RPE_Year,"="&$F58, IF($B$7="IPM Region", RPE_RegionGroupAcronym, RPE_State),"="&IF($B$7="National","*",$B$8)) -> 263.487655 | R58: =SUMIFS(RPE_NOXEmissionsSummerThousandTons, MeetComparisonCriteriaSeries2,"=1",RPE_Year,"="&$F58, IF($B$7="IPM Region", RPE_RegionGroupAcronym, RPE_State),"="&IF($B$7="National","*",$B$8)) -> 0 | U58: 8
